Workbook

Sheet A propos
D1: APPSA 3D Avant Projet de Plan de Surfaces de dégagement Aéronautiques sous Google Earth
D2: Version | I2: 14.2 | J2: =Parametres!D15 -> EXPLOITANT
D3: Système géodésique WGS84 par ellipsoïde (demi-grand axe : 6378137 et aplatissement inverse : 298.257223563)
A5: Les objectifs de l'outil APPSA 3D sont de : - Permettre une visualisation simplifiée des surfaces de dégagement d’un aérodrome (piste, hélistation ou vertiport) en 3D en créant un script Google Earth ; - Insérer des obstacles dans la visualisation ; - Calculer le percement des surfaces de dégagement par les obstacles ; - Faciliter le traitement des obstacles et la prise de décision.
A13: Prérequis : - Avoir Excel 2010 ou version ultérieure et PENSER A ACTIVER LES MACROS ; - Avoir Google Earth pro ou pouvoir accéder à la version de Google Earth ; - Disposer d'une connexion internet.
A15: Information importante : L’outil a pour but de donner uniquement une information visuelle « simple » du plan de dégagement aéronautique dans l’environnement proche d’un aérodrome. Il ne remplace en aucun cas l’expertise de la DGAC. L'outil n'a aucune valeur juridique.
A17: L’outil est fourni par la DGAC (Direction Générale de l’Aviation Civile) et est soumis à l’Open Data. A ce titre, la reproduction, la redistribution et l’adaptation sont possibles sous réserve d’assurer la mention claire et actualisée de la paternité de la source, c’est-à-dire la DGAC, de ne pas engager la responsabilité de la DGAC dans l’éventualité où des inexactitudes seraient présentes, et garantir que les informations ne fassent pas l’objet de droits de propriété intellectuelle.

Sheet Entrees Aero
B1: Type de plateforme | D1: Type de réglementation | F1: =IF(Parametres!J32=3,IF(AND(GPS!C10<>0,GPS!C11<>0,'GPS HELI'!C10<>0,'GPS HELI'!C11<>0),IF(distancewgs(GPS!C10,GPS!C11,'GPS HELI'!C10,'GPS HELI'!C11)>16000,"Erreur : La distance entre l'aérodrome et l'hélistation est supérieure à 15000m",""),""),"") -> 
B2: Rechercher un aérodrome, sélectionner dans la liste et cliquer sur le bouton "Remplir fiche" | D2: aurillac
B3: NOM AERODROME | D3: AURILLAC - LFLW - 15/33 principale
B4: COTE de référence retenue pour l'aérodrome (m) | D4: 638.8608
B5: TYPE DE PISTE | F5: =IF(AND(F1="",A22="pas de message d'alerte",A23="pas de message d'alerte",A24="pas de message d'alerte",A25="pas de message d'alerte",A94="pas de message d'alerte",A95="pas de message d'alerte",A100="pas de message d'alerte",A107="pas de message d'alerte",A108="pas de message d'alerte",F12="",F19="",F20="",F18=""),"","Il y a des erreurs à corriger") -> 
D6: Extrémité / Seuil | E6: Extrémité / Seuil | G6: =IF(Parametres!D8=1,IF(OR('caracteristiques des surfaces'!G16<>"",'caracteristiques des surfaces'!H16<>"",'caracteristiques des surfaces'!G17<>"",'caracteristiques des surfaces'!H17<>"",'caracteristiques des surfaces'!G25<>"",'caracteristiques des surfaces'!H25<>"",'caracteristiques des surfaces'!G42<>"",'caracteristiques des surfaces'!G43<>"",'caracteristiques des surfaces'!H43<>"",'caracteristiques des surfaces'!G45<>"",'caracteristiques des surfaces'!G23<>"",'caracteristiques des surfaces'!H23<>"",'caracteristiques des surfaces'!G24<>"",'caracteristiques des surfaces'!H24<>"",'caracteristiques des surfaces'!G30<>"",'caracteristiques des surfaces'!H30<>"",'caracteristiques des surfaces'!G32<>"",'caracteristiques des surfaces'!H32<>"",'caracteristiques des surfaces'!G33<>"",'caracteristiques des surfaces'!G35<>"",'caracteristiques des surfaces'!H35<>"",'caracteristiques des surfaces'!G36<>"",'caracteristiques des surfaces'!G46<>"",'caracteristiques des surfaces'!G47<>"",'caracteristiques des surfaces'!J26<>"",'caracteristiques des surfaces'!K26<>"",'caracteristiques des surfaces'!G63<>"",'caracteristiques des surfaces'!H63<>"",'caracteristiques des surfaces'!G64<>"",'caracteristiques des surfaces'!H64<>"",'caracteristiques des surfaces'!G66<>"",'caracteristiques des surfaces'!H66<>"",'caracteristiques des surfaces'!K30<>"",'caracteristiques des surfaces'!L37<>""),"Attention la réglementation a été modifiée : "&'caracteristiques des surfaces'!L15&"-"&'caracteristiques des surfaces'!L37&"-"&'caracteristiques des surfaces'!L29&"-"&'caracteristiques des surfaces'!L31&"-"&'caracteristiques des surfaces'!L34&"-"&'caracteristiques des surfaces'!L62&"-"&'caracteristiques des surfaces'!K29&"-"&'caracteristiques des surfaces'!K30,""),IF(OR('caracteristiques des surfaces'!G16<>"",'caracteristiques des surfaces'!H16<>"",'caracteristiques des surfaces'!G17<>"",'caracteristiques des surfaces'!H17<>"",'caracteristiques des surfaces'!G25<>"",'caracteristiques des surfaces'!H25<>"",'caracteristiques des surfaces'!G42<>"",'caracteristiques des surfaces'!G43<>"",'caracteristiques des surfaces'!H43<>"",'caracteristiques des surfaces'!G45<>"",'caracteristiques des surfaces'!G23<>"",'caracteristiques des surfaces'!H23<>"",'caracteristiques des surfaces'!G24<>"",'caracteristiques des surfaces'!H24<>"",'caracteristiques des surfaces'!G30<>"",'caracteristiques des surfaces'!H30<>"",'caracteristiques des surfaces'!G32<>"",'caracteristiques des surfaces'!H32<>"",'caracteristiques des surfaces'!G33<>"",'caracteristiques des surfaces'!G35<>"",'caracteristiques des surfaces'!H35<>"",'caracteristiques des surfaces'!G36<>"",'caracteristiques des surfaces'!G46<>"",'caracteristiques des surfaces'!G47<>"",'caracteristiques des surfaces'!J26<>"",'caracteristiques des surfaces'!K26<>"",'caracteristiques des surfaces'!G63<>"",'caracteristiques des surfaces'!H63<>"",'caracteristiques des surfaces'!G64<>"",'caracteristiques des surfaces'!H64<>"",'caracteristiques des surfaces'!G66<>"",'caracteristiques des surfaces'!H66<>"",'caracteristiques des surfaces'!K30<>"",'caracteristiques des surfaces'!L37<>""),"Attention la réglementation a été modifiée : "&'caracteristiques des surfaces'!L15&"-"&'caracteristiques des surfaces'!L37&"-"&'caracteristiques des surfaces'!L29&"-"&'caracteristiques des surfaces'!L31&"-"&'caracteristiques des surfaces'!L34&"-"&'caracteristiques des surfaces'!L62&"-"&'caracteristiques des surfaces'!K30,"")) -> Attention la réglementation a été modifiée : -Décollage-----
B7: n° du seuil | E7: ='caracteristiques des surfaces'!E5 -> 33
B8: chiffre de code | E8: ='caracteristiques des surfaces'!E6 -> 3
B9: Spécifications utilisées
B10: longueur de piste (m) | D10: 1700 | G10: Observations: | H10: Date de MAJ Base SIA le 01/06/2022
B11: largeur piste (m) | D11: 30 | G11: Statut : CAP Code aéro : 3C Aéronef contraignant : code lettre C (ADG : IIB) Aéronef régulier : code lettre C (ADG : IIB) Gestionnaire : COMMUNAUTE D'AGGLOMERATION DU BASSIN D'AURILLAC Type de trafic : - Internationnal : non - National : oui - IFR : oui - VFR : oui Services : - Info : AFIS - SSLIA : 4 Nbre de piste : 1 - 15/33(Principale)(revêtue)
B12: Seuil : latitude WGS84 ou Lambert93 (Extrémité piste) | D12: 44.897736 | E12: 44.884508 | F12: =IF(AND(D12<>"",E12<>"",D13<>"",E13<>""),IF(OR(GPS!H4=FALSE,GPS!I4=FALSE,GPS!H5=FALSE,GPS!I5=FALSE),"Erreur WGS",IF(OR(GPS!J4=TRUE,GPS!K4=TRUE,GPS!J5=TRUE,GPS!K5=TRUE),"Inversion WGS","")),"") -> 
B13: Seuil : longitude WGS84 ou Lambert93 (Extrémité piste) | D13: 2.416594 | E13: 2.4274
B14: Seuil :COTE du seuil (m) (Extrémité piste) | D14: 638.8608 | E14: 624.5352
B15: Prolongement dégagé: longueur du côté du seuil (QFU opposé) (m) | D15: 50 | E15: 50
B16: Prolongement dégagé: Largeur du côté du seuil (QFU opposé) (m)
B17: Prolongement dégagé: COTE origine trouée décollage du côté du seuil (QFU opposé) (m) | D17: 638.8608 | E17: 624.5352
B18: Seuil décalé : longueur (m) | F18: =IF(OR(GPS!H12=TRUE,GPS!I12=TRUE),"Indiquer la longueur du seuil décalé", "") -> 
B19: Seuil décalé : latitude WGS84 ou Lambert93 | F19: =IF(OR(E28="Erreur WGS",E28="Inversion WGS"),"Seuil "&'caracteristiques des surfaces'!D5&" : "&E28,IF(GPS!M7=FALSE,"Le seuil décalé " & GPS!G3 & " n'est pas bien placé",IF(GPS!M6=FALSE,"Le seuil décalé " &GPS!F3 & " n'est pas bien placé",""))) -> 
B20: Seuil décalé : longitude WGS84 ou Lambert93 | F20: =IF(OR(E33="Erreur WGS",E33="Inversion WGS"),"Seuil "&'caracteristiques des surfaces'!E5&" : "&E33,"") -> 
B21: Seuil décalé :COTE du seuil (m)
A22: =IFERROR(IF(D17<>"",IF(ROUND(D17,2)<ROUND(D14,2),"Veuillez vérifier les cotes : la cote de l'origine de la trouée de décollage est inférieure à l'extrémité de la piste",IF(E17<>"",IF(ROUND(E17,2)<ROUND(E14,2),"Veuillez vérifier les cotes : la cote de l'origine de la trouée de décollage est inférieure à l'extrémité de la piste","pas de message d'alerte"),"pas de message d'alerte") ), IF(E17<>"",IF(ROUND(E17,2)<ROUND(E14,2),"Veuillez vérifier les cotes : la cote de l'origine de la trouée de décollage est inférieure à l'extrémité de la piste","pas de message d'alerte"),"pas de message d'alerte")),"pas de message d'alerte") -> pas de message d'alerte
A23: =IFERROR(IF(D4<MAX(D14,E14,D21,E21),"Veuillez vérifier les cotes : la cote de référence entrée est inférieure à l'une des cotes de la piste","pas de message d'alerte"),"pas de message d'alerte") -> pas de message d'alerte
A24: =IFERROR(IF(OR('intermédiaire entrée'!D7=1,'intermédiaire entrée'!D7=2),IF(OR('intermédiaire entrée'!E7=1,'intermédiaire entrée'!E7=2),"pas de message d'alerte","vérifier l'exploitation de la piste (à vue ou aux instruments) qui doit être identique sur les deux seuils"),IF(OR('intermédiaire entrée'!E7=1,'intermédiaire entrée'!E7=2),"vérifier l'exploitation de la piste (à vue ou aux instruments) qui doit être identique sur les deux seuils","pas de message d'alerte")),"pas de message d'alerte") -> pas de message d'alerte
A25: =IFERROR(IF(OR(SUBSTITUTE('caracteristiques des surfaces'!D16," ","")="/",SUBSTITUTE('caracteristiques des surfaces'!E16," ","")="/"),"Le chiffre de code et le type d'approche entrés sur l'un des 2 seuils ne sont pas compatibles.","pas de message d'alerte"),"pas de message d'alerte") -> pas de message d'alerte
D26: Info utilisateur (m) | E26: Calcul automatique à partir WGS84 (m) | F26: RSE (modification des distances déclarées)
B27: ="RWY ID : " & 'caracteristiques des surfaces'!D5& " ("&ROUND(GPS!C4,2)&"°)" -> RWY ID : 15 (149,85°) | C27: Prolongement dégagé(QFU opposé) | D27: =D15 -> 50 | E27: =D15 -> 50 | F27: ="Distance de départ par rapport à l'extrémité physique du seuil " & 'caracteristiques des surfaces'!D5 & " pour toutes les distances déclarées ci-dessous." -> Distance de départ par rapport à l'extrémité physique du seuil 15 pour toutes les distances déclarées ci-dessous.
C28: Seuil décalé | D28: =D18 -> 0 | E28: =IF(AND(D19<>"",D20<>""),IF(OR(GPS!H10=FALSE,GPS!H11=FALSE),"Erreur WGS",IF(OR(GPS!J10=TRUE,GPS!J11=TRUE),"Inversion WGS",IF(OR(D19<>0,D20<>0),ROUND(distancewgs(GPS!F4,GPS!F5,GPS!F10,GPS!F11),0),0))),0) -> 0
C29: TODA | D29: =E15+D10& "(auto)" -> 1750(auto) | E29: =E30+E32 -> 1750 | F29: TODA
C30: TORA | D30: =D10 -> 1700 | E30: =IF(AND(D12<>"",D13<>"",E12<>"",E13<>""),ROUND(distancewgs(GPS!F4,GPS!F5,GPS!G4,GPS!G5),0),0) -> 1700 | F30: TORA
C31: LDA | D31: =D10-D18&"(auto)" -> 1700(auto) | E31: =IF(E28<>"",IF(OR(E28="Erreur WGS",E28="Inversion WGS"),"Erreur WGS",E30-E28),E30) -> 1700 | F31: LDA
B32: ="RWY ID : " & 'caracteristiques des surfaces'!E5& " ("&ROUND(GPS!D4,2)&"°)" -> RWY ID : 33 (329,86°) | C32: Prolongement dégagé(QFU opposé) | D32: =E15 -> 50 | E32: =E15 -> 50 | F32: ="Distance de départ par rapport à l'extrémité physique du seuil " & 'caracteristiques des surfaces'!E5& " pour toutes les distances déclarées ci-dessous." -> Distance de départ par rapport à l'extrémité physique du seuil 33 pour toutes les distances déclarées ci-dessous.
C33: Seuil décalé | D33: =E18 -> 0 | E33: =IF(AND(E19<>"",E20<>""),IF(OR(GPS!I10=FALSE,GPS!I11=FALSE),"Erreur WGS",IF(OR(GPS!K10=TRUE,GPS!K11=TRUE),"Inversion WGS",IF(OR(E19<>0,E20<>0),ROUND(distancewgs(GPS!G4,GPS!G5,GPS!G10,GPS!G11),0),0))),0) -> 0
C34: TODA | D34: =D10+D15&"(auto)" -> 1750(auto) | E34: =E35+E27 -> 1750 | F34: TODA
C35: TORA | D35: =D10 -> 1700 | E35: =IF(AND(D12<>"",D13<>"",E12<>"",E13<>""),ROUND(distancewgs(GPS!F4,GPS!F5,GPS!G4,GPS!G5),0),0) -> 1700 | F35: TORA
C36: LDA | D36: =D10-E18&"(auto)" -> 1700(auto) | E36: =IF(E33<>"",IF(OR(E33="Erreur WGS",E33="Inversion WGS"),"Erreur WGS",E35-E33),E35) -> 1700 | F36: LDA
A37: =IFERROR(IF(OR((E30-D30)>=20,(E35-D35)>=20),"Veuillez vérifier les distances : TORA indiquée est inférieure de 20m à la TORA calculée automatiquement avec les coordonnées WGS84",IF(OR((D30-E30)>=20,(D35-E35)>=20),"Veuillez vérifier les distances : TORA indiquée est inférieure de 20m à la TORA calculée automatiquement avec les coordonnées WGS84","pas de message d'information")),"pas de message d'information") -> pas de message d'information
A38: =IFERROR(IF(OR((E27-D27)>=10,(E28-D28)>=10,(E32-D32)>=10,(E33-D33)>=10),"Veuillez vérifier les longueurs : prolongement dégagé ou seuil décalé inférieur de 10m par rapport aux calculs auto WGS84",IF(OR((D27-E27)>=10,(D28-E28)>=10,(D32-E32)>=10,(D33-E33)>=10),"Veuillez vérifier les longueurs : prolongement dégagé ou seuil décalé supérieure 10m par rapport aux calculs auto WGS84","pas de message d'information")),"pas de message d'information") -> pas de message d'information
B41: TROUEE COURBE ATTERRISSAGE
B42: Courbe n°1 | D42: ="Seuil " & 'caracteristiques des surfaces'!D5 -> Seuil 15 | E42: ="Seuil " & 'caracteristiques des surfaces'!E5 -> Seuil 33
B43: Longueur de l’alignement droit (m) | F43: =IF(AND('Entrees Aero'!D44<>0,'Entrees Aero'!D45<>0),IF(OR('trouees courbe atterrissage 1'!D45<>"/",'trouees courbe atterrissage 1'!D57<>"/",'trouees courbe atterrissage 1'!D68<>"/"),0,1),0) -> 0
B44: Angle (en degré) (courbe à droite "+" et courbe à gauche "-") | F44: =IF(AND('Entrees Aero'!E44<>0,'Entrees Aero'!E45<>0),IF(OR('trouees courbe atterrissage 1'!L45<>"/",'trouees courbe atterrissage 1'!L57<>"/",'trouees courbe atterrissage 1'!L68<>"/"),0,1),0) -> 0
B45: rayon de virage (m)
B46: Azimut magnétique (cap (en degré)) | D46: =GPS!C68 -> 0 | E46: =GPS!D68 -> 0
B47: Courbe n°2
B48: Longueur de l’alignement droit (m) | F48: =IF(AND('Entrees Aero'!D49<>0,'Entrees Aero'!D50<>0),IF(OR('trouees courbe atterrissage 2'!D45<>"/",'trouees courbe atterrissage 2'!D57<>"/",'trouees courbe atterrissage 2'!D68<>"/"),"","Les valeurs indiquées pour la trouée courbe n°2 du seuil"&'caracteristiques des surfaces'!D5&" ne seront pas prises en compte"),"") -> 
B49: Angle (en degré) (courbe à droite "+" et courbe à gauche "-") | F49: =IF(AND('Entrees Aero'!E49<>0,'Entrees Aero'!E50<>0),IF(OR('trouees courbe atterrissage 2'!L45<>"/",'trouees courbe atterrissage 2'!L57<>"/",'trouees courbe atterrissage 2'!L68<>"/"),"","Les valeurs indiquées pour la trouée courbe n°2 du seuil"& 'caracteristiques des surfaces'!E5&" ne seront pas prises en compte"),"") -> 
B50: rayon de virage (m)
B51: Azimut magnétique (cap (en degré)) | D51: =GPS!I68 -> 0 | E51: =GPS!J68 -> 0
B52: AFFICHER OU PAS LES TROUEES DROITES
B53: Afficher la trouée droite
A54: =IFERROR(IF(F43=1,"Les valeurs indiquées pour la trouée courbe n°1 du seuil "&'caracteristiques des surfaces'!D5&" ne seront pas prises en compte",IF(F44=1,"Les valeurs indiquées pour la trouée courbe n°1 du seuil "&'caracteristiques des surfaces'!E5&" ne seront pas prises en compte","pas de message d'information")),"pas de message d'information") -> pas de message d'information
A55: =IFERROR(IF(F48=1,"Les valeurs indiquées pour la trouée courbe n°2 du seuil "&'caracteristiques des surfaces'!D5&" ne seront pas prises en compte",IF(F49=1,"Les valeurs indiquées pour la trouée courbe n°2 du seuil "&'caracteristiques des surfaces'!E5&" ne seront pas prises en compte","pas de message d'information")),"pas de message d'information") -> pas de message d'information
B56: TROUEE COURBE DECOLLAGE (QFU)
B57: Courbe n°1 | D57: ="QFU " & 'caracteristiques des surfaces'!E5 -> QFU 33 | E57: ="QFU " & 'caracteristiques des surfaces'!D5 -> QFU 15
B58: Longueur de l’alignement droit (m) | F58: =IF(AND('Entrees Aero'!D59<>0,'Entrees Aero'!D60<>0),IF(OR('trouees courbe decollage 1'!D36<>"/",'trouees courbe decollage 1'!D48<>"/"),0,1),0) -> 0
B59: Angle (en degré) (courbe à droite "+" et courbe à gauche "-") | F59: =IF(AND('Entrees Aero'!E59<>0,'Entrees Aero'!E60<>0),IF(OR('trouees courbe decollage 1'!L36<>"/",'trouees courbe decollage 1'!L48<>"/"),0,1),0) -> 0
B60: rayon de virage (m)
B61: Azimut magnétique (cap (en degré)) | D61: =GPS!C88 -> 0 | E61: =GPS!D88 -> 0
B62: Courbe n°2
B63: Longueur de l’alignement droit (m) | F63: =IF(AND('Entrees Aero'!D64<>0,'Entrees Aero'!D65<>0),IF(OR('trouees courbe decollage 2'!D37<>"/",'trouees courbe decollage 2'!D49<>"/"),0,1),0) -> 0
B64: Angle (en degré) (courbe à droite "+" et courbe à gauche "-") | F64: =IF(AND('Entrees Aero'!E64<>0,'Entrees Aero'!E65<>0),IF(OR('trouees courbe decollage 2'!L41<>"/",'trouees courbe decollage 2'!L53<>"/"),0,1),0) -> 0
B65: rayon de virage (m)
B66: Azimut magnétique (cap (en degré)) | D66: =GPS!I88 -> 0 | E66: =GPS!J88 -> 0
B67: AFFICHER OU PAS LES TROUEES DROITES
B68: Afficher la trouée droite
A69: =IFERROR(IF(F58=1,"Les valeurs indiquées pour la trouée courbe n°1 du seuil "&#REF!&" ne seront pas prises en compte",IF(F59=1,"Les valeurs indiquées pour la trouée courbe n°1 du seuil "&#REF!&" ne seront pas prises en compte","pas de message d'information")),"pas de message d'information") -> pas de message d'information
A70: =IFERROR(IF(F63=1,"Les valeurs indiquées pour la trouée courbe n°2 du seuil "&#REF!&" ne seront pas prises en compte",IF(F64=1,"Les valeurs indiquées pour la trouée courbe n°2 du seuil "&#REF!&" ne seront pas prises en compte","pas de message d'information")),"pas de message d'information") -> pas de message d'information
B86: POINT INTERMEDIAIRE DU PROFIL DE PISTE (maxi 5 points) les points seront replacés sur l'axe automatiquement
D87: WGS84 LAT ou Lambert93 X | E87: WGS84 LONG ou Lambert93 Y | F87: Cote altimétrique | G87: ="Dist (m) Seuil " &'caracteristiques des surfaces'!D5 -> Dist (m) Seuil 15
B88: 1er point | G88: =IF(AND(GPS!$E$4=TRUE,GPS!$E$5=TRUE),IF(AND($D$12<>"",$D$13<>"",$E$12<>"",$E$13<>""),IF(AND(D88<>"",E88<>""),IF(H88<>"","",distancewgs(GPS!$C$14,GPS!$C$15,GPS!C45,GPS!D45)),""),""),"") ->  | H88: =IF(AND(GPS!$E$4=TRUE,GPS!$E$5=TRUE),IF(AND($D$12<>"",$D$13<>"",$E$12<>"",$E$13<>""),IF(AND(D88<>"",E88<>""),(IF(OR(GPS!E45=FALSE,GPS!F45=FALSE),"Erreur WGS",(IF(OR(GPS!G45=TRUE,GPS!H45=TRUE),"Inversion WGS",(IF(GPS!I45=TRUE,IF(F88<>"","","Côte manquante"),"Point Hors Piste")))))),""),""),"") -> 
B89: 2ème point | G89: =IF(AND(GPS!$E$4=TRUE,GPS!$E$5=TRUE),IF(AND($D$12<>"",$D$13<>"",$E$12<>"",$E$13<>""),IF(AND(D89<>"",E89<>""),IF(H89<>"","",distancewgs(GPS!$C$14,GPS!$C$15,GPS!C46,GPS!D46)),""),""),"") ->  | H89: =IF(AND(GPS!$E$4=TRUE,GPS!$E$5=TRUE),IF(AND($D$12<>"",$D$13<>"",$E$12<>"",$E$13<>""),IF(AND(D89<>"",E89<>""),(IF(OR(GPS!E46=FALSE,GPS!F46=FALSE),"Erreur WGS",(IF(OR(GPS!G46=TRUE,GPS!H46=TRUE),"Inversion WGS",(IF(GPS!I46=TRUE,IF(F89<>"","","Côte manquante"),"Point Hors Piste")))))),""),""),"") -> 
B90: 3ème point | G90: =IF(AND(GPS!$E$4=TRUE,GPS!$E$5=TRUE),IF(AND($D$12<>"",$D$13<>"",$E$12<>"",$E$13<>""),IF(AND(D90<>"",E90<>""),IF(H90<>"","",distancewgs(GPS!$C$14,GPS!$C$15,GPS!C47,GPS!D47)),""),""),"") ->  | H90: =IF(AND(GPS!$E$4=TRUE,GPS!$E$5=TRUE),IF(AND($D$12<>"",$D$13<>"",$E$12<>"",$E$13<>""),IF(AND(D90<>"",E90<>""),(IF(OR(GPS!E47=FALSE,GPS!F47=FALSE),"Erreur WGS",(IF(OR(GPS!G47=TRUE,GPS!H47=TRUE),"Inversion WGS",(IF(GPS!I47=TRUE,IF(F90<>"","","Côte manquante"),"Point Hors Piste")))))),""),""),"") -> 
B91: 4ème point | G91: =IF(AND(GPS!$E$4=TRUE,GPS!$E$5=TRUE),IF(AND($D$12<>"",$D$13<>"",$E$12<>"",$E$13<>""),IF(AND(D91<>"",E91<>""),IF(H91<>"","",distancewgs(GPS!$C$14,GPS!$C$15,GPS!C48,GPS!D48)),""),""),"") ->  | H91: =IF(AND(GPS!$E$4=TRUE,GPS!$E$5=TRUE),IF(AND($D$12<>"",$D$13<>"",$E$12<>"",$E$13<>""),IF(AND(D91<>"",E91<>""),(IF(OR(GPS!E48=FALSE,GPS!F48=FALSE),"Erreur WGS",(IF(OR(GPS!G48=TRUE,GPS!H48=TRUE),"Inversion WGS",(IF(GPS!I48=TRUE,IF(F91<>"","","Côte manquante"),"Point Hors Piste")))))),""),""),"") -> 
B92: 5ème point | G92: =IF(AND(GPS!$E$4=TRUE,GPS!$E$5=TRUE),IF(AND($D$12<>"",$D$13<>"",$E$12<>"",$E$13<>""),IF(AND(D92<>"",E92<>""),IF(H92<>"","",distancewgs(GPS!$C$14,GPS!$C$15,GPS!C49,GPS!D49)),""),""),"") ->  | H92: =IF(AND(GPS!$E$4=TRUE,GPS!$E$5=TRUE),IF(AND($D$12<>"",$D$13<>"",$E$12<>"",$E$13<>""),IF(AND(D92<>"",E92<>""),(IF(OR(GPS!E49=FALSE,GPS!F49=FALSE),"Erreur WGS",(IF(OR(GPS!G49=TRUE,GPS!H49=TRUE),"Inversion WGS",(IF(GPS!I49=TRUE,IF(F92<>"","","Côte manquante"),"Point Hors Piste")))))),""),""),"") -> 
A94: =IFERROR(IF(D4>0,IF(D4<MAX(F88,F89,F90,F91,F92),"Veuillez vérifier les cotes : la cote de référence entrée est inférieure à l'une des cotes des points intermédiaires","pas de message d'alerte"),"pas de message d'alerte"),"pas de message d'alerte") -> pas de message d'alerte
A95: =IFERROR(IF(OR(H88<>"",H89<>"",H90<>"",H91<>"",H92<>""),"Veuillez vérifier : les point intermédiaire (erreur WGS ou hors de la piste ou cote manquante) ","pas de message d'alerte"),"pas de message d'alerte") -> pas de message d'alerte
B97: OFZ COTE à l'origine de la surface atterrissage interrompu | D97: Altitude | E97: Altitude auto
B98: ="SEUIL"&'caracteristiques des surfaces'!D5 -> SEUIL15 | E98: =IF('caracteristiques des surfaces'!D49<>"/",GPS!M192,"Pas d'OFZ") -> 631.698
B99: ="SEUIL"&'caracteristiques des surfaces'!E5&"" -> SEUIL33 | E99: =IF('caracteristiques des surfaces'!E49<>"/",GPS!O192,"Pas d'OFZ") -> Pas d'OFZ
A100: =IFERROR(IF(AND(F98="Pas d'OFZ",F99="Pas d'OFZ"),"pas de message d'alerte",IF(D4>0,IF(D4<MAX(D98,D99),"Veuillez vérifier les cotes : la cote de référence entrée est inférieure à l'une des cotes des points intermédiaires","pas de message d'alerte"),"pas de message d'alerte")),"pas de message d'alerte") -> pas de message d'alerte
A101: =IFERROR(IF(AND(E98="Pas d'OFZ",E99="Pas d'OFZ"),"pas de message d'information",IF(OR('tableaux OFZ'!AI9=1,'tableaux OFZ'!AI9=2,'tableaux OFZ'!AI25=1,'tableaux OFZ'!AI25=2),"La cote d'origine de la surface d'atterrissage interrompu sera celle du seuil opposé","pas de message d'information")),"pas de message d'information") -> pas de message d'information
B103: PAPI /APAPI (OCS) ou VSS
D104: Pente PAPI ou Pente approche pour VSS (en degré) exemple : 3° ou 4° | E104: Angle de calage (A) uniquement pour PAPI ou APAPI Exemple : Pour PAPI à 3° : 3 - 0,5 Pour APAPI à 3° : 3 - 0,25 | F104: Inclinaise (°) Exemple : Pour PAPI à 3° : A - 0,57 Pour APAPI à 3° : A - 0,90 Pour VSS : Pente approche - 1,12 | G104: Décalage axe PAPI (en degré) droite "+" ou gauche "-"
B105: ="SEUIL"&'caracteristiques des surfaces'!D5 -> SEUIL15 | D105: 3 | E105: 2.5 | F105: ='caracteristiques des surfaces'!D69 -> 1.93
B106: ="SEUIL"&'caracteristiques des surfaces'!E5&"" -> SEUIL33 | D106: 4 | E106: 3.5 | F106: ='caracteristiques des surfaces'!E69 -> 2.93
A107: =IFERROR(IF(OR(D105<>"",G105<>""),IF(Parametres!J29<>3,IF(E105="","Veuillez vérifier :l'angle de calage manquant ","pas de message d'alerte"),"pas de message d'alerte"),"pas de message d'alerte"),"pas de message d'alerte") -> pas de message d'alerte
A108: =IFERROR(IF(OR(D106<>"",G106<>""),IF(Parametres!J30<>3,IF(E106="","Veuillez vérifier :l'angle de calage manquant ","pas de message d'alerte"),"pas de message d'alerte"),"pas de message d'alerte"),"pas de message d'alerte") -> pas de message d'alerte
B109: Info VSS | C109: Cas dans lesquels la vérification des VSS n’est pas nécessaire : Pistes de code 3 ou 4 et procédure dans l’axe (finale dans le prolongement de l’axe de piste) : - servitudes aéronautiques de dégagement, ou, à défaut, surfaces de dégagement (fond de trouée à 2% de pente) régulièrement vérifiées (dans le cadre du suivi de l’homologation) et non percées ou : -piste (même QFU) équipée de PAPI et OCS PAPI (non percée par des obstacles) située en dessous de la VSS. Pistes de code 1 ou 2 et procédure dans l’axe (finale dans le prolongement de l’axe de piste) : - pente d’approche finale telle que la VSS soit au dessus du fond de trouée des servitudes aéronautiques de dégagement, ou à défaut, surfaces de dégagement régulièrement vérifiées (dans le cadre de l’homologation) ou - piste (même QFU) équipée de PAPI et OCS PAPI (non percée par des obstacles) située en dessous de la VSS. Cas dans lesquels la vérification des VSS est nécessaire : - toute piste avec procédure dans l’axe ne répondant pas aux conditions ci-dessus ; - pistes avec procédures non dans l’axe.
B111: RESA | D111: ="côté Seuil " & 'caracteristiques des surfaces'!D5 & "(QFU" & 'caracteristiques des surfaces'!E5 & ")" -> côté Seuil 15(QFU33) | E111: ="côté Seuil " & 'caracteristiques des surfaces'!E5 & "(QFU" & 'caracteristiques des surfaces'!D5 & ")" -> côté Seuil 33(QFU15)
B112: Longueur
B113: Largeur
B114: Point de départ par rapport extrémité piste (si différent de la bande de piste)
B115: Info RESA | C115: L'outil va automatiquement positionner une RESA (existante ou pas, pour info) sur la piste revêtue, en adaptant les règles de construction de la CS ADR-DSN.C.215. Vous pouvez si vous le souhaitez modifier les caractéristiques, en saisissant la longueur et la largeur (et éventuellement le point de départ par rapport à l'extrémité de piste). Dans la visualisation Google Earth, il faudra cocher la case "piste" pour voir les RESA. Attention : il n'y aura aucun calcul de percement sur la RESA.
F118: ='A propos'!D2 & " " &'A propos'!I2 -> Version 14.2

Sheet Entrees Heli (hidden)
A1: Type de plateforme | F1: ='Entrees Aero'!F1 -> 
A2: Rechercher une hélistation, sélectionner dans la liste et cliquer sur le bouton "Remplir fiche"
A3: NOM HELISTATION
A4: Hélicoptère type
A5: Forme hélistation (Forme FATO et Aire de sécurité) | C5: Position | F5: =IF(AND(F1="",D10="",A14="pas de message d'alerte",A15="pas de message d'alerte",A16="pas de message d'alerte",A35="pas de message d'alerte",A36="pas de message d'alerte",A37="pas de message d'alerte",A38="pas de message d'alerte",A39="pas de message d'alerte", A40="pas de message d'alerte",A60="pas de message d'alerte",A61="pas de message d'alerte", A62="pas de message d'alerte",A63="pas de message d'alerte"),"","Il y a des erreurs à corriger") -> Il y a des erreurs à corriger | I5: Observations :
B6: =IF(Parametres!J33=1,"Diamètre",IF(Parametres!J33=2,"Longueur et Largeur","Largeur")) -> Diamètre | C6: =IF(Parametres!J33=1,"",IF(Parametres!J33=2,"","Longueur")) ->  | D6: =Parametres!L36 -> 
A7: Dimensions FATO (m)
A8: Dimensions Aire de sécurité (m)
A9: Centre FATO LAT/LON WGS84 ou lambert93 | B9: LAT | C9: LON
D10: =IF(AND(B10<>"",C10<>""),IF('GPS HELI'!I10=FALSE,"Erreur WGS",""),"") -> 
A11: COTE de référence retenue pour l'hélistation (m) COTE altimétrique du centre de FATO (compris hauteur terrasse) | C11: =IF(MAX(D21,D45)>B11,"La cote de référence doit être supérieure aux cotes des seuils","") -> 
A12: Déclinaison magnétique (°)
A13: Orientation géographique (en degré) | B13: =B20 ->  | C13: Orientation de l'hélistation pour permettre de dessiner la forme de l'hélistation (identique au sens d'atterrissage QFU 1 (ci-dessous))
A14: =IF(OR(B10="",C10=""),"Veuillez renseigner les coordonnées du centre de la FATO",IF(B11="","Veuillez renseigner la cote de référence de l'hélistation","pas de message d'alerte")) -> Veuillez renseigner les coordonnées du centre de la FATO
A15: =IF(Parametres!J33<3,IF(B7="","Veuillez renseigner une dimension pour la FATO",IF(B8="","Veuillez renseigner une dimension pour l'aire de sécurité",IF(B7>=B8,"La dimension de la FATO ne peut pas être supérieure à celle de l'aire de sécurité","pas de message d'alerte"))),"pas de message d'alerte") -> Veuillez renseigner une dimension pour la FATO
A16: =IF(Parametres!J33=3,IF(OR(B7="",C7=""),"Veuillez renseigner la longueur et la largeur de la FATO",IF(OR(B8="",C8=""),"Veuillez renseigner la longueur et la largeur de l'aire de sécurité",IF(C7>=C8,"La longueur de la FATO ne peut pas être supérieure à la longueur de l'aire de sécurité",IF(B7>=B8,"La largeur de la FATO ne peut pas être supérieure à la largeur de l'aire de sécurité",IF(B7>C7,"La longueur de FATO ne peut pas être inférieure à sa largeur",IF(B8>C8,"La longueur de l'aire de sécurité ne peut pas être inférieure à sa largeur","pas de message d'alerte")))))),"pas de message d'alerte") -> pas de message d'alerte
A17: APPROCHE / DECOLLAGE
A18: QFU 1 (obligatoire)
A19: Atterrissage(QFU) | C19: Décollage (QFU) | F19: =IF(B20<>"",IF(Parametres!$J$33=3,"Pour info dans le cas d'une hélisation rectangulaire : le QFU du décollage sera le même que l'atterrissage. Si vous souhaitez, un QFU différent, il faut renseigner le tableau QFU2 (ligne 37).",IF(E20="","Si le champ du QFU du décollage est vide, la trouée de décollage prise en compte sera une " & LOWER(Parametres!M34)& " à " & 'caracteristiques des surfaces'!D136&"°","")),"") -> 
A20: Atterrissage (Orientation vraie) | B20: =IF(B19<>"",_xlfn.SWITCH(Parametres!J50,1,azimut_desti(B19-B12,0),2,azimut_desti(B19+B12,0)),"") ->  | C20: Décollage (Orientation vraie) | E20: =IF(E19<>"",_xlfn.SWITCH(Parametres!J50,1,azimut_desti(E19-B12,0),2,azimut_desti(E19+B12,0)),"") -> 
A21: Cote seuil (m) | C21: Cote seuil automatique(m) | D21: =IF(Parametres!$J$33<>3,B11,IF(B21="",B11,B21)) -> 0 | E21: =IF(B21<>"",IF(Parametres!$J$33<>3,"Pour info : la cote sera celle de la cote de référence. Si vous souhaitez, une cote différente, vous devez choisir la forme RECTANGLE pour l'hélistation.",""),"") -> 
A22: Classe de performance
A23: Utilisation Jour ou Nuit
A24: Prolongement Dégagé (m)
A25: Courbe (optionnelle) | B25: Longueur de l’alignement droit (m) | C25: Angle (en °) (courbe à droite "+" et à gauche "-") | D25: Rayon de virage (m) | E25: Azimut vrai (cap (en °)) | F25: Azimut magnétique (cap (en °)) | G25: Afficher trouée droite
A26: Atterrissage | E26: =IFERROR(IF(AND(B19<>"",B26<>"",C26<>"",D26<>""),azimut_desti('GPS HELI'!C186,180),""),"") ->  | F26: =IFERROR(IF(E26<>"0",_xlfn.SWITCH(Parametres!$J$50,1,azimut_desti(E26+$B$12,0),2,azimut_desti(E26-$B$12,0)),"0"),"") ->  | G26: =IF('Heli_trouees Att-Dec-Lat-PR'!F109="Endehors","La courbe ne sera prise en compte car en dehors","") -> 
A27: Décollage | E27: =IFERROR(IF(AND(B19<>"",B27<>"",C27<>"",D27<>""),'GPS HELI'!H186,""),"") ->  | F27: =IFERROR(IF(E27<>"0",_xlfn.SWITCH(Parametres!$J$50,1,azimut_desti(E27+$B$12,0),2,azimut_desti(E27-$B$12,0)),"0"),"") ->  | G27: =IF('Heli_trouees Att-Dec-Lat-PR'!F141="Endehors","La courbe ne sera prise en compte car en dehors","") -> 
A28: Phase de recul (optionnelle) | B28: 1ère section | D28: 2ème section | F28: 3ème section | H28: Distance de recul (m) | I28: Décalage de la surface de protection (m) | J28: Largeur de départ (m) | K28: Désaxage (°)
A29: Nom de l'hélicoptère | B29: distance recul (m) | C29: hauteur (m) | D29: distance recul (m) | E29: hauteur (m) | F29: distance recul (m) | G29: hauteur (m)
A35: =IF(AND('Entrees Heli'!B7<>"",'Entrees Heli'!B8<>""),IF(B13="","Vous devez indiquer une orientation",IF(Parametres!J33=1,"pas de message d'alerte",IF(AND('Entrees Heli'!B20<>"",'Entrees Heli'!B13<>'Entrees Heli'!B20),"Le QFU1 doit être identique à l'orientation géographique","pas de message d'alerte"))),"pas de message d'alerte") -> pas de message d'alerte
A36: =IF(OR(B19="",E19=""),"Veuillez renseigner les QFU d'atterrissage et de décollage","pas de message d'alerte") -> Veuillez renseigner les QFU d'atterrissage et de décollage
A37: =IF(D26<>"",IF(B26>0,IF(D26+B26<575,"La somme du rayon de l’arc (" & D26 &"m), et de la longueur d'alignement (" &B26 &"m)ne doit pas être inférieure à 575 mètres","pas de message d'alerte"),IF(D26+B26>=575,"pas de message d'alerte","Dans le cas d'un alignement à 0, le rayon ne peut pas être inférieur à 575m")),"pas de message d'alerte") -> pas de message d'alerte
A38: =IF(D27<>"",IF(B27>0,IF(D27+B27<575,"La somme du rayon de l’arc (" & D27 &"m), et de la longueur d'alignement (" &B27 &"m)ne doit pas être inférieure à 575 mètres","pas de message d'alerte"),IF(D27+B27>=575,"pas de message d'alerte","Dans le cas d'un alignement à 0, le rayon ne peut pas être inférieur à 575m")),"pas de message d'alerte") -> pas de message d'alerte
A39: =IF(OR(AND(H30<>"",OR(D30>H30,F30<H30)),AND(H31<>"",OR(D31>H31,F31<H31)),AND(H32<>"",OR(D32>H32,F32<H32)),AND(H33<>"",OR(D33>H33,F33<H33)),AND(H34<>"",OR(D34>H34,F34<H34))),"La distance de recul doit être comprise entre les distances de recul des 2ème et 3ème section","pas de message d'alerte") -> pas de message d'alerte
A40: =IF(Parametres!$J$33=3,IF(OR(I30+C7<0,H31+C7<0,I32+C7<0,I33+C7<0,I34+C7<0),"Le décalage de la surface de protection de la phase de recul doit être compris entre "&"-"&C7&" et 500 m","pas de message d'alerte"),IF(OR(I30+B7<0,HI9+B7<0,I32+B7<0,I33+B7<0,I34+B7<0),"Le décalage de la surface de protection de la phase de recul doit être compris entre "&"-"&B7&" et 500 m","pas de message d'alerte")) -> pas de message d'alerte
A41: pas de message d'information
A42: QFU 2 (optionnel)
A43: Atterrissage(QFU) | C43: Décollage (QFU) | F43: =IF(AND(B20<>"",B44<>""),IF(Parametres!$J$33=3,"Pour info dans le cas d'une hélisation rectangulaire : le QFU du décollage sera le même que l'atterrissage. ",IF(E44="","Si le champ du QFU du décollage est vide, la trouée de décollage prise en compte sera une " & LOWER(Parametres!M35)& " à " & 'caracteristiques des surfaces'!E136&"°","")),"") -> 
A44: Atterrissage (Orientation vraie) | B44: =IF(B43<>"",_xlfn.SWITCH(Parametres!J50,1,azimut_desti(B43-B12,0),2,azimut_desti(B43+B12,0)),"") ->  | C44: Décollage (Orientation vraie) | E44: =IF(E43<>"",_xlfn.SWITCH(Parametres!J50,1,azimut_desti(E43-B12,0),2,azimut_desti(E43+B12,0)),"") -> 
A45: Cote seuil (m) | C45: Cote seuil automatique(m) | D45: =IF(Parametres!$J$33<>3,B11,IF(B44<>"",IF(B45="",B11,B45),"")) -> 0 | E45: =IF(B45<>"",IF(Parametres!$J$33<>3,"Pour info : la cote sera celle de la cote de référence. Si vous souhaitez, une cote différente, vous devez choisir la forme RECTANGLE pour l'hélistation.",""),"") -> 
A46: Classe de performance
A47: Utilisation Jour ou Nuit
A48: Prolongement Dégagé (m)
A49: Courbe (optionnelle) | B49: Longueur de l’alignement droit (m) | C49: Angle (en °) (courbe à droite "+" et à gauche "-") | D49: Rayon de virage (m) | E49: Azimut vrai (cap (en °)) | F49: Azimut magnétique (cap (en °)) | G49: Afficher trouée droite
A50: Atterrissage | E50: =IFERROR(IF(AND(B44<>"",B50<>"",C50<>"",D50<>""),azimut_desti('GPS HELI'!C209,180),""),"") ->  | F50: =IFERROR(IF(E50<>"0",_xlfn.SWITCH(Parametres!$J$50,1,azimut_desti(E50+$B$12,0),2,azimut_desti(E50-$B$12,0)),"0"),"") ->  | G50: =IF(B44<>"",IF('Heli_trouees Att-Dec-Lat-PR'!N109="Endehors","La courbe ne sera prise en compte car en dehors",""),"") -> 
A51: Décollage | E51: =IFERROR(IF(AND(B44<>"",B51<>"",C51<>"",D51<>""),'GPS HELI'!H209,""),"") ->  | F51: =IFERROR(IF(E51<>"0",_xlfn.SWITCH(Parametres!$J$50,1,azimut_desti(E51+$B$12,0),2,azimut_desti(E51-$B$12,0)),"0"),"") ->  | G51: =IF(B44<>"",IF('Heli_trouees Att-Dec-Lat-PR'!N141="Endehors","La courbe ne sera prise en compte car en dehors",""),"") -> 
A52: Phase de recul (optionnelle) | B52: 1ère section | D52: 2ème section | F52: 3ème section | H52: Distance de recul (m) | I52: Décalage de la surface de protection (m) | J52: Largeur de départ (m) | K52: Désaxage (°)
A53: Nom de l'hélicoptère | B53: distance recul (m) | C53: hauteur (m) | D53: distance recul (m) | E53: hauteur (m) | F53: distance recul (m) | G53: hauteur (m)
A59: =IF(AND(OR(B43<>"",E43<>""),OR(B43="",E43="")),"Veuillez renseigner les QFU d'atterrissage et de décollage","pas de message d'alerte") -> pas de message d'alerte
A60: =IF(D50<>"",IF(B50>0,IF(D50+B50<575,"La somme du rayon de l’arc (" & D50 &"m), et de la longueur d'alignement (" &B50 &"m)ne doit pas être inférieure à 575 mètres","pas de message d'alerte"),IF(D50+B50>=575,"pas de message d'alerte","Dans le cas d'un alignement à 0, le rayon ne peut pas être inférieur à 575m")),"pas de message d'alerte") -> pas de message d'alerte
A61: =IF(D51<>"",IF(B51>0,IF(D51+B51<575,"La somme du rayon de l’arc (" & D51 &"m), et de la longueur d'alignement (" &B51 &"m)ne doit pas être inférieure à 575 mètres","pas de message d'alerte"),IF(D51+B51>=575,"pas de message d'alerte","Dans le cas d'un alignement à 0, le rayon ne peut pas être inférieur à 575m")),"pas de message d'alerte") -> pas de message d'alerte
A62: =IF(OR(AND(H54<>"",OR(D54>H54,F54<H54)),AND(H55<>"",OR(D55>H55,F55<H55)),AND(H56<>"",OR(D56>H56,F56<H56)),AND(H57<>"",OR(D57>H57,F57<H57)),AND(H58<>"",OR(D58>H58,F58<H58))),"La distance de recul doit être comprise entre les distances de recul des 2ème et 3ème section","pas de message d'alerte") -> pas de message d'alerte
A63: =IF(Parametres!$J$33=3,IF(OR(I54+C7<0,I55+C7<0,I56+C7<0,I57+C7<0,I58+C7<0),"Le décalage de la surface de protection de la phase de recul doit être compris entre "&"-"&C7&" et 500 m","pas de message d'alerte"),IF(OR(I54+B7<0,I55+B7<0,I56+B7<0,HI1+B7<0,I58+B7<0),"Le décalage de la surface de protection de la phase de recul doit être compris entre "&"-"&B7&" et 500 m","pas de message d'alerte")) -> pas de message d'alerte
A64: pas de message d'information

Sheet Entrees Vertiport (hidden)
A1: Type de plateforme
A2: NOM VERTIPORT
A3: D-value (m)
A4: Forme du vertiport (forme FATO et Aire de sécurité) | C4: Position | F4: =IF(Parametres!O63>0,"IL Y A " & Parametres!O63 & " ERREUR(S) A CORRIGER","") -> IL Y A 3 ERREUR(S) A CORRIGER
B5: =IF(Parametres!J60=1,"Diamètre",IF(Parametres!J60=2,"Longueur et Largeur","Largeur")) -> Diamètre | C5: =IF(Parametres!J60=1,"",IF(Parametres!J60=2,"","Longueur")) -> 
A6: Dimensions FATO (m)
A7: Dimensions Aire de sécurité (m)
A8: Centre FATO LAT/LON WGS84 ou lambert93 | B8: LAT | C8: LON
D9: =IF(AND(B9<>"",C9<>""),IF('GPS VERTIPORT'!I10=FALSE,"Erreur WGS",""),"") ->  | I9: Observations :
A10: COTE de référence retenue pour le vertiport (m) COTE altimétrique du centre de FATO (compris hauteur terrasse) | C10: =IF(MAX(D21,D49)>B10,"La cote de référence doit être supérieure aux cotes des seuils","") -> 
A11: Déclinaison magnétique (°)
A12: Orientation géographique (en degré) | B12: =B20 ->  | C12: Orientation de l'hélistation pour permettre de dessiner la forme de l'hélistation (identique au sens d'atterrissage QFU 1 (ci-dessous))
A13: =IF(B3="","Veuillez renseigner une D-value",IF(OR(B9="",C9=""),"Veuillez renseigner les coordonnées du centre de la FATO",IF(B10="","Veuillez renseigner la cote de référence de l'hélistation","pas de message d'alerte"))) -> Veuillez renseigner une D-value
A14: =IF(Parametres!J60<3,IF(B6="","Veuillez renseigner une dimension pour la FATO",IF(B7="","Veuillez renseigner une dimension pour l'aire de sécurité",IF(B6>=B7,"La dimension de la FATO ne peut pas être supérieure à celle de l'aire de sécurité","pas de message d'alerte"))),"pas de message d'alerte") -> Veuillez renseigner une dimension pour la FATO
A15: =IF(Parametres!J60=3,IF(OR(B6="",C6=""),"Veuillez renseigner la longueur et la largeur de la FATO",IF(OR(B7="",C7=""),"Veuillez renseigner la longueur et la largeur de l'aire de sécurité",IF(C6>=C7,"La longueur de la FATO ne peut pas être supérieure à la longueur de l'aire de sécurité",IF(B6>=B7,"La largeur de la FATO ne peut pas être supérieure à la largeur de l'aire de sécurité",IF(B6>C6,"La longueur de FATO ne peut pas être inférieure à sa largeur",IF(B7>C7,"La longueur de l'aire de sécurité ne peut pas être inférieure à sa largeur","pas de message d'alerte")))))),"pas de message d'alerte") -> pas de message d'alerte
A16: OLS
A17: APPROCHE / DECOLLAGE
A18: QFU 1 (obligatoire)
A19: Atterrissage(QFU) | C19: Décollage (QFU) | F19: =IF(B20<>"",IF(Parametres!$J$33=3,"Pour info dans le cas d'une hélisation rectangulaire : le QFU du décollage sera le même que l'atterrissage. Si vous souhaitez, un QFU différent, il faut renseigner le tableau QFU2 (ligne 37).",IF(E20="","Si le champ du QFU du décollage est vide, la trouée de décollage prise en compte sera une " & LOWER(Parametres!M34)& " à " & 'caracteristiques des surfaces'!D136&"°","")),"") -> 
A20: Atterrissage (Orientation vraie) | B20: =IF(B19<>"",_xlfn.SWITCH(Parametres!J50,1,azimut_desti(B19-B11,0),2,azimut_desti(B19+B11,0)),"") ->  | C20: Décollage (Orientation vraie) | E20: =IF(E19<>"",_xlfn.SWITCH(Parametres!J50,1,azimut_desti(E19-B11,0),2,azimut_desti(E19+B11,0)),"") -> 
A21: Cote seuil (m) | C21: Cote seuil automatique(m) | D21: =IF(Parametres!$J$33<>3,B10,IF(B21="",B10,B21)) -> 0 | E21: =IF(B21<>"",IF(Parametres!$J$33<>3,"Pour info : la cote sera celle de la cote de référence. Si vous souhaitez, une cote différente, vous devez choisir la forme RECTANGLE pour l'hélistation.",""),"") -> 
A22: Catégorie
A23: Utilisation Jour ou Nuit
A24: Prolongement Dégagé | B24: Atterrissage | C24: Décollage
A25: Longueur (m)
A26: Hauteur (m)
A27: Courbe (optionnelle) | C27: Longueur de l’alignement droit (m) | D27: Angle (en °) (courbe à droite "+" et à gauche "-") | E27: Rayon de virage (m) | F27: Azimut vrai (cap (en °)) | G27: Azimut magnétique (cap (en °)) | H27: Afficher trouée droite
A28: Atterrissage | B28: 1ère courbe | F28: =IFERROR(azimut_desti('GPS VERTIPORT'!C188,180),"") ->  | G28: =IF(F28<>"",_xlfn.SWITCH(Parametres!$J$50,1,azimut_desti(F28+$B$11,0),2,azimut_desti(F28-$B$11,0)),"") ->  | H28: =IF('Heli_trouees Att-Dec-Lat-PR'!F109="Endehors","La courbe ne sera prise en compte car en dehors","") -> 
B29: 2ème courbe | F29: =IFERROR(azimut_desti('GPS VERTIPORT'!N188,180),"") ->  | G29: =IF(F29<>"",_xlfn.SWITCH(Parametres!$J$50,1,azimut_desti(F29+$B$11,0),2,azimut_desti(F29-$B$11,0)),"") -> 
A30: Décollage | B30: 1ère courbe | F30: =IFERROR('GPS VERTIPORT'!H188,"") ->  | G30: =IF(F30<>"",_xlfn.SWITCH(Parametres!$J$50,1,azimut_desti(F30+$B$11,0),2,azimut_desti(F30-$B$11,0)),"") ->  | H30: =IF('Heli_trouees Att-Dec-Lat-PR'!F141="Endehors","La courbe ne sera prise en compte car en dehors","") -> 
B31: 2ème courbe | F31: =IFERROR('GPS VERTIPORT'!S188,"") ->  | G31: =IF(F31<>"",_xlfn.SWITCH(Parametres!$J$50,1,azimut_desti(F31+$B$11,0),2,azimut_desti(F31-$B$11,0)),"") -> 
A32: =IF(AND(OR(B19<>"",E19<>""),OR(B19="",E19="")),"Veuillez renseigner les QFU d'atterrissage et de décollage","pas de message d'alerte") -> pas de message d'alerte
A33: =IF(AND($B$6<>"",$B$7<>""),IF(B20="","Merci de renseigner le QFU","pas de message d'alerte"),"pas de message d'alerte") -> pas de message d'alerte
A34: =IF(AND(OR(C28<>"",D28<>"",E28<>""),OR(C28="",D28="",E28="")),"Toutes les données de la 1ère courbe à l'atterrissage ne sont pas remplies","pas de message d'alerte") -> pas de message d'alerte
A35: =IF(AND(OR(C29<>"",D29<>"",E29<>""),OR(C29="",D29="",E29="")),"Toutes les données de la 2ème courbe à l'atterrissage ne sont pas remplies","pas de message d'alerte") -> pas de message d'alerte
A36: =IF(AND(OR(C30<>"",D30<>"",E30<>""),OR(C30="",D30="",E30="")),"Toutes les données de la 1ère courbe au décollage ne sont pas remplies","pas de message d'alerte") -> pas de message d'alerte
A37: =IF(AND(OR(C31<>"",D31<>"",E31<>""),OR(C31="",D31="",E31="")),"Toutes les données de la 2ème courbe au décollage ne sont pas remplies","pas de message d'alerte") -> pas de message d'alerte
A38: =IF(AND(C28<>"",D28<>"",E28<>""),IF(C28>0,IF(E28+C28<575,"Pour la 1ère courbe à l'atterrissage, la somme du rayon de virage (" & E28 &"m) et de la longueur d'alignement droit (" &C28 &"m) ne doit pas être inférieure à 575m","pas de message d'alerte"),IF(E28<575,"Pour la 1ère courbe à l'atterrissage, le rayon de virage (" & E28 &"m) ne peut pas être inférieur à 575m avec un alignement à 0","pas de message d'alerte")),"pas de message d'alerte") -> pas de message d'alerte
A39: =IF(AND(C29<>"",D29<>"",E29<>""),IF(E29+C29<575,"Pour la 2ème courbe à l'atterrissage, la somme du rayon de virage (" & E29 &"m) et de la longueur d'alignement droit (" &C29 &"m) ne doit pas être inférieure à 575m","pas de message d'alerte"),"pas de message d'alerte") -> pas de message d'alerte
A40: =IF(AND(C30<>"",D30<>"",E30<>""),IF(C30>0,IF(E30+C30<575,"Pour la 1ère courbe au décollage, la somme du rayon de virage (" & E30 &"m) et de la longueur d'alignement droit (" &C30 &"m) ne doit pas être inférieure à 575m","pas de message d'alerte"),IF(E30<575,"Pour la 1ère courbe au décollage, le rayon de virage (" & E30 &"m) ne peut pas être inférieur à 575m avec un alignement à 0","pas de message d'alerte")),"pas de message d'alerte") -> pas de message d'alerte
A41: =IF(AND(C31<>"",D31<>"",E31<>""),IF(E31+C31<575,"Pour la 2ème courbe à l'atterrissage, la somme du rayon de virage (" & E31 &"m) et de la longueur d'alignement droit (" &C31 &"m) ne doit pas être inférieure à 575m","pas de message d'alerte"),"pas de message d'alerte") -> pas de message d'alerte
A42: =IF(AND(C29<>"",C29<150),"La longueur d'alignement droit (" &C29 &"m) de la 2ème courbe à l'atterrissage ne doit pas être inférieure à 150m",IF(AND(C31<>"",C31<150),"La longueur d'alignement droit (" &C31 &"m) de la 2ème courbe au décollage ne doit pas être inférieure à 150m","pas de message d'alerte")) -> pas de message d'alerte
A43: =IF(AND(C28="",D28="",E28="",OR(C29<>"",D29<>"",E29<>"")),"La 1ère courbe doit être renseignée avant la 2ème courbe pour l'atterrissage",IF(AND(C30="",D30="",E30="",OR(C31<>"",D31<>"",E31<>"")),"La 1ère courbe doit être renseignée avant la 2ème courbe pour le décollage","pas de message d'alerte")) -> pas de message d'alerte
A44: =IF('caracteristiques des surfaces'!D208<'caracteristiques des surfaces'!D207,"La largeur finale de la trouée à l'atterrissage est inférieure à sa largeur initiale","pas de message d'alerte") -> pas de message d'alerte
A45: =IF('caracteristiques des surfaces'!D208<'caracteristiques des surfaces'!D224,"La largeur finale de la trouée au décollage est inférieure à sa largeur initiale","pas de message d'alerte") -> pas de message d'alerte
A46: QFU 2 (optionnel)
A47: Atterrissage(QFU) | C47: Décollage (QFU) | F47: =IF(AND(B20<>"",B48<>""),IF(Parametres!$J$33=3,"Pour info dans le cas d'une hélisation rectangulaire : le QFU du décollage sera le même que l'atterrissage. ",IF(E48="","Si le champ du QFU du décollage est vide, la trouée de décollage prise en compte sera une " & LOWER(Parametres!M35)& " à " & 'caracteristiques des surfaces'!E136&"°","")),"") -> 
A48: Atterrissage (Orientation vraie) | B48: =IF(B47<>"",_xlfn.SWITCH(Parametres!J50,1,azimut_desti(B47-B11,0),2,azimut_desti(B47+B11,0)),"") ->  | C48: Décollage (Orientation vraie) | E48: =IF(E47<>"",_xlfn.SWITCH(Parametres!J50,1,azimut_desti(E47-B11,0),2,azimut_desti(E47+B11,0)),"") -> 
A49: Cote seuil (m) | C49: Cote seuil automatique(m) | D49: =IF(Parametres!$J$33<>3,B10,IF(B48<>"",IF(B49="",B10,B49),"")) -> 0 | E49: =IF(B49<>"",IF(Parametres!$J$33<>3,"Pour info : la cote sera celle de la cote de référence. Si vous souhaitez, une cote différente, vous devez choisir la forme RECTANGLE pour l'hélistation.",""),"") -> 
A50: Catégorie
A51: Utilisation Jour ou Nuit
A52: Prolongement Dégagé | B52: Atterrissage | C52: Décollage
A53: Longueur (m)
A54: Hauteur (m)
A55: Courbe (optionnelle) | C55: Longueur de l’alignement droit (m) | D55: Angle (en °) (courbe à droite "+" et à gauche "-") | E55: Rayon de virage (m) | F55: Azimut vrai (cap (en °)) | G55: Azimut magnétique (cap (en °)) | H55: Afficher trouée droite
A56: Atterrissage | B56: 1ère courbe | F56: =IFERROR(azimut_desti('GPS VERTIPORT'!C209,180),"") ->  | G56: =IF(F56<>"",_xlfn.SWITCH(Parametres!$J$50,1,azimut_desti(F56+$B$11,0),2,azimut_desti(F56-$B$11,0)),"") ->  | H56: =IF(B48<>"",IF('Heli_trouees Att-Dec-Lat-PR'!N109="Endehors","La courbe ne sera prise en compte car en dehors",""),"") -> 
B57: 2ème courbe | F57: =IFERROR(azimut_desti('GPS VERTIPORT'!N209,180),"") ->  | G57: =IF(F57<>"",_xlfn.SWITCH(Parametres!$J$50,1,azimut_desti(F57+$B$11,0),2,azimut_desti(F57-$B$11,0)),"") -> 
A58: Décollage | B58: 1ère courbe | F58: =IFERROR('GPS VERTIPORT'!H209,"") ->  | G58: =IF(F58<>"",_xlfn.SWITCH(Parametres!$J$50,1,azimut_desti(F58+$B$11,0),2,azimut_desti(F58-$B$11,0)),"") ->  | H58: =IF(B48<>"",IF('Heli_trouees Att-Dec-Lat-PR'!N141="Endehors","La courbe ne sera prise en compte car en dehors",""),"") -> 
B59: 2ème courbe | F59: =IFERROR('GPS VERTIPORT'!S209,"") ->  | G59: =IF(F59<>"",_xlfn.SWITCH(Parametres!$J$50,1,azimut_desti(F59+$B$11,0),2,azimut_desti(F59-$B$11,0)),"") -> 
A60: =IF(AND(OR(B47<>"",E47<>""),OR(B47="",E47="")),"Veuillez renseigner les QFU d'atterrissage et de décollage","pas de message d'alerte") -> pas de message d'alerte
A61: =IF(AND(OR(C56<>"",D56<>"",E56<>""),OR(C56="",D56="",E56="")),"Toutes les données de la 1ère courbe à l'atterrissage ne sont pas remplies","pas de message d'alerte") -> pas de message d'alerte
A62: =IF(AND(OR(C57<>"",D57<>"",E57<>""),OR(C57="",D57="",E57="")),"Toutes les données de la 2ème courbe à l'atterrissage ne sont pas remplies","pas de message d'alerte") -> pas de message d'alerte
A63: =IF(AND(OR(C58<>"",D58<>"",E58<>""),OR(C58="",D58="",E58="")),"Toutes les données de la 1ère courbe au décollage ne sont pas remplies","pas de message d'alerte") -> pas de message d'alerte
A64: =IF(AND(OR(C59<>"",D59<>"",E59<>""),OR(C59="",D59="",E59="")),"Toutes les données de la 2ème courbe au décollage ne sont pas remplies","pas de message d'alerte") -> pas de message d'alerte
A65: =IF(AND(C56<>"",D56<>"",E56<>""),IF(C56>0,IF(E56+C56<575,"Pour la 1ère courbe à l'atterrissage, la somme du rayon de virage (" & E56 &"m) et de la longueur d'alignement droit (" &C56 &"m) ne doit pas être inférieure à 575m","pas de message d'alerte"),IF(E56<575,"Pour la 1ère courbe à l'atterrissage, le rayon de virage (" & E56 &"m) ne peut pas être inférieur à 575m avec un alignement à 0","pas de message d'alerte")),"pas de message d'alerte") -> pas de message d'alerte
A66: =IF(AND(C57<>"",D57<>"",E57<>""),IF(E57+C57<575,"Pour la 2ème courbe à l'atterrissage, la somme du rayon de virage (" & E57 &"m) et de la longueur d'alignement droit (" &C57 &"m) ne doit pas être inférieure à 575m","pas de message d'alerte"),"pas de message d'alerte") -> pas de message d'alerte
A67: =IF(AND(C58<>"",D58<>"",E58<>""),IF(C58>0,IF(E58+C58<575,"Pour la 1ère courbe au décollage, la somme du rayon de virage (" & E58 &"m) et de la longueur d'alignement droit (" &C58 &"m) ne doit pas être inférieure à 575m","pas de message d'alerte"),IF(E58<575,"Pour la 1ère courbe au décollage, le rayon de virage (" & E58 &"m) ne peut pas être inférieur à 575m avec un alignement à 0","pas de message d'alerte")),"pas de message d'alerte") -> pas de message d'alerte
A68: =IF(AND(C59<>"",D59<>"",E59<>""),IF(E59+C59<575,"Pour la 2ème courbe à l'atterrissage, la somme du rayon de virage (" & E59 &"m) et de la longueur d'alignement droit (" &C59 &"m) ne doit pas être inférieure à 575m","pas de message d'alerte"),"pas de message d'alerte") -> pas de message d'alerte
A69: =IF(AND(C57<>"",C57<150),"La longueur d'alignement droit (" &C57 &"m) de la 2ème courbe à l'atterrissage ne doit pas être inférieure à 150m",IF(AND(C59<>"",C59<150),"La longueur d'alignement droit (" &C59 &"m) de la 2ème courbe au décollage ne doit pas être inférieure à 150m","pas de message d'alerte")) -> pas de message d'alerte
A70: =IF(AND(C56="",D56="",E56="",OR(C57<>"",D57<>"",E57<>"")),"La 1ère courbe doit être renseignée avant la 2ème courbe pour l'atterrissage",IF(AND(C58="",D58="",E58="",OR(C59<>"",D59<>"",E59<>"")),"La 1ère courbe doit être renseignée avant la 2ème courbe pour le décollage","pas de message d'alerte")) -> pas de message d'alerte
A71: =IF('caracteristiques des surfaces'!E208<'caracteristiques des surfaces'!E207,"La largeur finale de la trouée à l'atterrissage est inférieure à sa largeur initiale","pas de message d'alerte") -> pas de message d'alerte
A72: =IF('caracteristiques des surfaces'!E208<'caracteristiques des surfaces'!E224,"La largeur finale de la trouée au décollage est inférieure à sa largeur initiale","pas de message d'alerte") -> pas de message d'alerte
A73: Surface de transition (optionnelle)
A74: QFU 1 - Afficher la surface de transition | C74: Hauteur (m) | D74: 70 | E74: Hauteur auto (m) | F74: =IF(Parametres!M72=2,"Pas de surface de transition",IF('Entrees Vertiport'!D74<>"",'Entrees Vertiport'!D74,'tableaux vertiports'!CI8)) -> 70
A75: QFU 2 - Afficher la surface de transition | C75: Hauteur (m) | E75: Hauteur auto (m) | F75: =IF(Parametres!M73=2,"Pas de surface de transition",IF('Entrees Vertiport'!D75<>"",'Entrees Vertiport'!D75,'tableaux vertiports'!CI8)) -> 45
A77: Atterrissage (QFU)
A78: 1ère OFV
A79: Type du volume | D79: Utilisation Jour ou Nuit
A80: =_xlfn.SWITCH(Parametres!M75,1,"Atterrissage (QFU)",2,"Atterrissage (QFU)",3,"",4,"Atterrissage 1 (QFU)",5,"Début secteur 1 (QFU)") -> Atterrissage (QFU) | C80: =_xlfn.SWITCH(Parametres!M75,1,"Atterrissage (Orientation vraie)",2,"Atterrissage (Orientation vraie)",3,"",4,"Atterrissage 1 (Orientation vraie)",5,"Début secteur 1 (Orientation vraie)") -> Atterrissage (Orientation vraie) | E80: =IF(B80<>"",_xlfn.SWITCH(Parametres!$J$50,1,azimut_desti(B80+$B$11,0),2,azimut_desti(B80-$B$11,0)),"") -> 
A81: =_xlfn.SWITCH(Parametres!M75,1,"",2,"",3,"",4,"Atterrissage 2 (QFU)",5,"Fin secteur 1 (QFU)") ->  | C81: =_xlfn.SWITCH(Parametres!M75,1,"",2,"",3,"",4,"Atterrissage 2 (Orientation vraie)",5,"Fin secteur 1 (Orientation vraie)") ->  | E81: =IF(B81<>"",_xlfn.SWITCH(Parametres!$J$50,1,azimut_desti(B81+$B$11,0),2,azimut_desti(B81-$B$11,0)),"") -> 
A82: =_xlfn.SWITCH(Parametres!M75,1,"",2,"",3,"",4,"",5,"Début secteur 2 (QFU)") ->  | C82: =_xlfn.SWITCH(Parametres!M75,1,"",2,"",3,"",4,"",5,"Début secteur 2 (Orientation vraie)") ->  | E82: =IF(B82<>"",_xlfn.SWITCH(Parametres!$J$50,1,azimut_desti(B82+$B$11,0),2,azimut_desti(B82-$B$11,0)),"") -> 
A83: =_xlfn.SWITCH(Parametres!M75,1,"",2,"",3,"",4,"",5,"Fin secteur 2 (QFU)") ->  | C83: =_xlfn.SWITCH(Parametres!M75,1,"",2,"",3,"",4,"",5,"Fin secteur 2 (Orientation vraie)") ->  | E83: =IF(B83<>"",_xlfn.SWITCH(Parametres!$J$50,1,azimut_desti(B83+$B$11,0),2,azimut_desti(B83-$B$11,0)),"") -> 
A84: Volume de type I
A85: Base du volume | B85: FATOFront (m) | D85: FATOBack (m) | F85: FATOWidth (m)
A86: Sommet du volume | B86: TOFront (m) | D86: TOBack (m) | F86: TOWidth (m)
A87: Hauteurs | B87: h1 (m) | D87: h2 (m)
A88: Pentes | B88: θDep (%) | D88: θApp (%)
A89: =IF(OR(Parametres!M75=6,AND(C85="",E85="",G85="",C86="",E86="",G86="",C87="",E87="",C88="",E88=""),AND(C85<>"",E85<>"",G85<>"",C86<>"",E86<>"",G86<>"",C87<>"",E87<>"",C88<>"",E88<>"")),"pas de message d'alerte","Toutes les données de l'OFV doivent être renseignées") -> pas de message d'alerte
A90: =IF(AND(Parametres!M75<=2,B80=""),"Le QFU d'atterrissage doit être renseigné","pas de message d'alerte") -> Le QFU d'atterrissage doit être renseigné
A91: =IF(AND(Parametres!M75=4,OR(B80="",B81="")),"Les deux QFU d'atterrissage doivent être renseignés","pas de message d'alerte") -> pas de message d'alerte
A92: =IF(C85>C86,"FATO Front ne peut pas être supérieur à TO Front","pas de message d'alerte") -> pas de message d'alerte
A93: =IF(E85>E86,"FATO Back ne peut pas être supérieur à TO Back","pas de message d'alerte") -> pas de message d'alerte
A94: =IF(G85>G86,"FATO Width ne peut pas être supérieur à TO Width","pas de message d'alerte") -> pas de message d'alerte
A95: =IF(C87>E87,"h1 ne peut pas être supérieure à h2","pas de message d'alerte") -> pas de message d'alerte
A96: =IF(C85<0.75*B3,"FATO Front ne peut pas être inférieur à 0,75D soit " & B3*0.75&"m","pas de message d'alerte") -> pas de message d'alerte
A97: =IF(E85<0.75*B3,"FATO Back ne peut pas être inférieur à 0,75D soit " & B3*0.75&"m","pas de message d'alerte") -> pas de message d'alerte
A98: =IF(G85<1.5*B3,"FATO Width ne peut pas être inférieur à 1,5D soit " & B3*1.5&"m","pas de message d'alerte") -> pas de message d'alerte
A99: =IF(C86>5*B3,"TO Front ne peut pas être supérieur à 5D soit " & B3*5&"m","pas de message d'alerte") -> pas de message d'alerte
A100: =IF(E86>5*B3,"TO Back ne peut pas être supérieur à 5D soit " & B3*5&"m","pas de message d'alerte") -> pas de message d'alerte
A101: =IF(G86>5*B3,"TO Width ne peut pas être supérieur à 5D soit " & B3*5&"m","pas de message d'alerte") -> pas de message d'alerte
A102: =IF(C88="","pas de message d'alerte",IF(C88<0.045,"La pente de décollage ne peut pas être inférieure à 4,5%","pas de message d'alerte")) -> pas de message d'alerte
A103: =IF(E88="","pas de message d'alerte",IF(E88<0.045,"La pente d'atterrissage ne peut pas être inférieure à 4,5%","pas de message d'alerte")) -> pas de message d'alerte
A104: =IF(AND(Parametres!M75=2,C85<>E85),"Attention : Pour un volume bidirectionnel, le maximum des valeurs FATO Front et FATO Back sera utilisé pour le calcul des surfaces","pas de message d'alerte") -> pas de message d'alerte
A105: =IF(AND(Parametres!M75=2,C86<>E86),"Attention : Pour un volume bidirectionnel, le maximum des valeurs TO Front et TO Back sera utilisé pour le calcul des surfaces","pas de message d'alerte") -> pas de message d'alerte
A106: =IF(AND(Parametres!M75>=2,C88<>E88),"Attention : Le minimum des pentes d'approche et de décollage sera utilisé pour le calcul des surfaces","pas de message d'alerte") -> pas de message d'alerte
A107: =IF(AND(Parametres!M75=5,OR(B80="",B81=""),B82<>"",B83<>""),"Le secteur 1 doit être renseigné avant le secteur 2","pas de message d'alerte") -> pas de message d'alerte
A108: pas de message d'alerte
A109: =IF(AND(Parametres!M75=5,OR(B80<>"",B81<>""),OR(B80="",B81="")),"Les angles de début et de fin du secteur 1 doivent être renseignés","pas de message d'alerte") -> pas de message d'alerte
A110: =IF(AND(Parametres!M75=5,OR(B82<>"",B83<>""),OR(B82="",B83="")),"Les angles de début et de fin du secteur 2 doivent être renseignés","pas de message d'alerte") -> pas de message d'alerte
A111: 2ème OFV (optionnelle)
A112: Type du volume | D112: Utilisation Jour ou Nuit
A113: =_xlfn.SWITCH(Parametres!M76,1,"Atterrissage (QFU)",2,"Atterrissage (QFU)",3,"",4,"Atterrissage 1 (QFU)",5,"Début secteur 1 (QFU)",6,"") ->  | C113: =_xlfn.SWITCH(Parametres!M76,1,"Atterrissage (Orientation vraie)",2,"Atterrissage (Orientation vraie)",3,"",4,"Atterrissage 1 (Orientation vraie)",5,"Début secteur 1 (Orientation vraie)",6,"") ->  | E113: =IF(B113<>"",_xlfn.SWITCH(Parametres!$J$50,1,azimut_desti(B113+$B$11,0),2,azimut_desti(B113-$B$11,0)),"") -> 
A114: =_xlfn.SWITCH(Parametres!M76,1,"",2,"",3,"",4,"Atterrissage 2 (QFU)",5,"Fin secteur 1 (QFU)",6,"") ->  | C114: =_xlfn.SWITCH(Parametres!M76,1,"",2,"",3,"",4,"Atterrissage 2 (Orientation vraie)",5,"Fin secteur 1 (Orientation vraie)",6,"") ->  | E114: =IF(B114<>"",_xlfn.SWITCH(Parametres!$J$50,1,azimut_desti(B114+$B$11,0),2,azimut_desti(B114-$B$11,0)),"") -> 
A115: =_xlfn.SWITCH(Parametres!M76,1,"",2,"",3,"",4,"",5,"Début secteur 2 (QFU)",6,"") ->  | C115: =_xlfn.SWITCH(Parametres!M76,1,"",2,"",3,"",4,"",5,"Début secteur 2 (Orientation vraie)",6,"") ->  | E115: =IF(B115<>"",_xlfn.SWITCH(Parametres!$J$50,1,azimut_desti(B115+$B$11,0),2,azimut_desti(B115-$B$11,0)),"") -> 
A116: =_xlfn.SWITCH(Parametres!M76,1,"",2,"",3,"",4,"",5,"Fin secteur 2 (QFU)",6,"") ->  | C116: =_xlfn.SWITCH(Parametres!M76,1,"",2,"",3,"",4,"",5,"Fin secteur 2 (Orientation vraie)",6,"") ->  | E116: =IF(B116<>"",_xlfn.SWITCH(Parametres!$J$50,1,azimut_desti(B116+$B$11,0),2,azimut_desti(B116-$B$11,0)),"") -> 
A117: Volume de type I
A118: Base du volume | B118: FATOFront (m) | D118: FATOBack (m) | F118: FATOWidth (m)
A119: Sommet du volume | B119: TOFront (m) | D119: TOBack (m) | F119: TOWidth (m)
A120: Hauteurs | B120: h1 (m) | D120: h2 (m)
A121: Pentes | B121: θDep (%) | D121: θApp (%)
A122: =IF(OR(Parametres!M76=6,AND(C118="",E118="",G118="",C119="",E119="",G119="",C120="",E120="",C121="",E121=""),AND(C118<>"",E118<>"",G118<>"",C119<>"",E119<>"",G119<>"",C120<>"",E120<>"",C121<>"",E121<>"")),"pas de message d'alerte","Toutes les données de l'OFV doivent être renseignées") -> pas de message d'alerte
A123: =IF(AND(Parametres!M76<=2,B113=""),"Le QFU d'atterrissage doit être renseigné","pas de message d'alerte") -> pas de message d'alerte
A124: =IF(AND(Parametres!M76=4,OR(B113="",B114="")),"Les deux QFU d'atterrissage doivent être renseignés","pas de message d'alerte") -> pas de message d'alerte
A125: =IF(C118>C119,"FATO Front ne peut pas être supérieur à TO Front","pas de message d'alerte") -> pas de message d'alerte
A126: =IF(E118>E119,"FATO Back ne peut pas être supérieur à TO Back","pas de message d'alerte") -> pas de message d'alerte
A127: =IF(G118>G119,"FATO Width ne peut pas être supérieur à TO Width","pas de message d'alerte") -> pas de message d'alerte
A128: =IF(C120>E120,"h1 ne peut pas être supérieure à h2","pas de message d'alerte") -> pas de message d'alerte
A129: =IF(Parametres!M76=6,"pas de message d'alerte",IF(C118<0.75*B3,"FATO Front ne peut pas être inférieur à 0,75D soit " & B3*0.75&"m","pas de message d'alerte")) -> pas de message d'alerte
A130: =IF(Parametres!M76=6,"pas de message d'alerte",IF(E118<0.75*B3,"FATO Back ne peut pas être inférieur à 0,75D soit " & B3*0.75&"m","pas de message d'alerte")) -> pas de message d'alerte
A131: =IF(Parametres!M76=6,"pas de message d'alerte",IF(G118<1.5*B3,"FATO Width ne peut pas être inférieur à 1,5D soit " & B3*1.5&"m","pas de message d'alerte")) -> pas de message d'alerte
A132: =IF(C119>5*B3,"TO Front ne peut pas être supérieur à 5D soit " & B3*5&"m","pas de message d'alerte") -> pas de message d'alerte
A133: =IF(E119>5*B3,"TO Back ne peut pas être supérieur à 5D soit " & B3*5&"m","pas de message d'alerte") -> pas de message d'alerte
A134: =IF(G119>5*B3,"TO Width ne peut pas être supérieur à 5D soit " & B3*5&"m","pas de message d'alerte") -> pas de message d'alerte
A135: =IF(C121="","pas de message d'alerte",IF(C121<0.045,"La pente de décollage ne peut pas être inférieure à 4,5%","pas de message d'alerte")) -> pas de message d'alerte
A136: =IF(E121="","pas de message d'alerte",IF(E121<0.045,"La pente d'atterrissage ne peut pas être inférieure à 4,5%","pas de message d'alerte")) -> pas de message d'alerte
A137: =IF(AND(Parametres!M76=2,C118<>E118),"Attention : Pour un volume bidirectionnel, le maximum des valeurs FATO Front et FATO Back sera utilisé pour le calcul des surfaces","pas de message d'alerte") -> pas de message d'alerte
A138: =IF(AND(Parametres!M76=2,C119<>E119),"Attention : Pour un volume bidirectionnel, le maximum des valeurs TO Front et TO Back sera utilisé pour le calcul des surfaces","pas de message d'alerte") -> pas de message d'alerte
A139: =IF(AND(Parametres!M76>=2,C121<>E121),"Attention : Le minimum des pentes d'approche et de décollage sera utilisé pour le calcul des surfaces","pas de message d'alerte") -> pas de message d'alerte
A140: =IF(AND(Parametres!M76=5,OR(B113="",B114=""),B115<>"",B116<>""),"Le secteur 1 doit être renseigné avant le secteur 2","pas de message d'alerte") -> pas de message d'alerte
A141: pas de message d'alerte
A142: =IF(AND(Parametres!M76=5,OR(B113<>"",B114<>""),OR(B113="",B114="")),"Les angles de début et de fin du secteur 1 doivent être renseignés","pas de message d'alerte") -> pas de message d'alerte
A143: =IF(AND(Parametres!M76=5,OR(B115<>"",B116<>""),OR(B115="",B116="")),"Les angles de début et de fin du secteur 2 doivent être renseignés","pas de message d'alerte") -> pas de message d'alerte

Sheet AD Heli (hidden)
A1: ID | B1: lk3 | C1: Nom | D1: Atlas | E1: Statut | F1: Ifr | G1: Nuit | H1: Jour/Nuit | I1: Latitude | J1: Longitude | K1: Wgs84 | L1: Altitude (Ft) | M1: Altitude (m) | N1: HauteurFt | O1: DimFato | P1: Forme FATO | Q1: Dimension 1 FATO (m) | R1: Dimension 2 FATO (m) | S1: DimTlof | T1: SousCat | U1: ClassePerf | V1: HelRef | W1: EnTerrasse | X1: Terrasse/Surface | Y1: ZoneHabitee | Z1: Revetement | AA1: Resistance | AB1: HorTxt | AC1: Sslia | AD1: Balisage | AE1: Exploitant | AF1: Geometrie | AG1: Remarque | AH1: Extension | AI1: Recherche (élément présent dans le nom) | AJ1: Rang de chaque AD trouvé | AK1: Rang des AD trouvés | AL1: AD trouvés
A2: 1 | B2: [LF] | C2: ABBEVILLE CENTRE HOSPITALIER | D2: oui | E2: TPD | F2: non | G2: oui | H2: =IF(G2="oui","Nuit","Jour") -> Nuit | I2: 50.101539 | J2: 1.831314 | K2: 2 | L2: 82 | M2: =ROUND(L2/3.281,1) -> 25 | N2: 62 | O2: Diamètre 17 | P2: Circulaire | Q2: 17 | S2: Diamètre 17 | T2: HB | U2: non définie | V2: MAX 3.5t | W2: oui | X2: =IF(W2="oui","En terrasse",IF(W2="non","En surface","")) -> En terrasse | Y2: hostile habitée | Z2: Béton | AA2: 3,5t | AB2: NIL | AC2: OUI (2 extincteurs sur roues de 100kg + 6 extincteurs de 9kg) | AD2: OUI : 14 feux encastrés (12 verts et 2 jaunes) | AE2: Centre hospitalier Tél.03 22 25 52 00 | AF2: 50.101539,1.831314 | AI2: =IFERROR(IF(SEARCH('Entrees Heli'!B$2,'AD Heli'!C2)>0,A2,""),"") -> 1 | AJ2: =IFERROR(RANK(AI2,AI$2:AI$808,1),"") -> 1 | AK2: =IFERROR(VLOOKUP(A2,AJ$2:AJ$808,1,FALSE),"") -> 1 | AL2: =IF(AK2<>"",LOOKUP(AK2,AJ$2:AJ$808,C$2:C$808),"") -> ABBEVILLE CENTRE HOSPITALIER
A3: 2 | B3: [NT] | C3: AFAREAITU CHT | D3: non | E3: TPD | F3: non | G3: oui | H3: Nuit | I3: -17.550278 | J3: -149.79 | K3: 2 | L3: 5 | M3: 1.5 | O3: diamètre 13.8m | P3: Circulaire | Q3: 13.8 | S3: diamètre 13.8m | U3: 2 | V3: Dauphin AS 365 N3 | W3: non | X3: En surface | Y3: non hostile | Z3: Béton | AB3: NIL | AC3: 1 extincteur 50 kg de poudre BC | AD3: OUI# Jour : marquage au sol# Nuit : 18 feux verts encastrés omnidirectionnels + 4 projecteurs blancs rasants. | AE3: Centre hospitalier de Afareaitu TEL : (689) 40 55 22 49 | AF3: -17.550278,-149.79 | AG3: Réservé au transport sanitaire. | AI3: =IFERROR(IF(SEARCH('Entrees Heli'!B$2,'AD Heli'!C3)>0,A3,""),"") -> 2 | AJ3: 2 | AK3: 2 | AL3: AFAREAITU CHT
A4: 3 | B4: [LF] | C4: AIX EN PROVENCE CENTRE HOSPITALIER | D4: oui | E4: RST | F4: non | G4: oui | H4: Nuit | I4: 43.534717 | J4: 5.442236 | K4: 2 | L4: 721 | M4: 219.8 | O4: Diametre 26 | P4: Circulaire | Q4: 26 | S4: Diamètre 26 | T4: HB | U4: 1. Voir AD3 TXT 01. | W4: oui | X4: En terrasse | Y4: hostile habitée | Z4: Béton | AA4: 4t | AC4: Oui (5 extincteurs poudre 50 kg + 1 extincteur CO2 20 kg avec perche) | AD4: 2 feux encastrés verts + 33 feux omnidirectionnels verts +12 projecteurs ambiance | AE4: Centre hospitalier TEL : 04 42 33 50 00 FAX : 04 42 33 51 57 | AF4: 43.534717,5.442236 | AG4: Réservée exclusivement au transport sanitaire#axes arrivée:125º/305º#axes départ:125º/258° | AI4: =IFERROR(IF(SEARCH('Entrees Heli'!B$2,'AD Heli'!C4)>0,A4,""),"") -> 3 | AJ4: 3 | AK4: 3 | AL4: AIX EN PROVENCE CENTRE HOSPITALIER
A5: 4 | B5: [LF] | C5: ALBERTVILLE CENTRE HOSPITALIER | D5: oui | E5: TPD | F5: non | G5: oui | H5: Nuit | I5: 45.669439 | J5: 6.37 | K5: 2 | L5: 1143 | M5: 348.4 | O5: Diamètre 20 | P5: Circulaire | Q5: 20 | T5: HB | U5: 1 | V5: EC 145 | W5: oui | X5: En terrasse | Y5: hostile non habitée | Z5: Béton avec résine | AA5: 3.6 t | AB5: NIL | AC5: Oui ( 5 extincteurs 50kg poudre) | AD5: OUI | AE5: Centre hospitalier d'Albertville TEL.04 79 89 55 55 FAX 04 79 37 48 10. | AF5: 45.669439,6.37 | AG5: Réservée exclusivement au transport sanitaire. | AI5: =IFERROR(IF(SEARCH('Entrees Heli'!B$2,'AD Heli'!C5)>0,A5,""),"") -> 4 | AJ5: 4 | AK5: 4 | AL5: ALBERTVILLE CENTRE HOSPITALIER
A6: 5 | B6: [LF] | C6: ALBERTVILLE CRS ALPES | D6: non | E6: RST | F6: non | G6: non | H6: Jour | I6: 45.656894 | J6: 6.376036 | K6: 2 | L6: 1084 | M6: 330.4 | O6: 25x30 | P6: Rectangulaire | Q6: 30 | R6: 25 | T6: HB | U6: non définie | V6: non défini | W6: non | X6: En surface | Z6: Enrobé | AA6: 4t | AB6: NIL | AC6: Oui (50kg poudre) | AD6: NIL | AE6: Bâtiment LE ROMA.#Ministère de l'Intérieur.#habitation spécialement destinée au ministère de l'intérieur et au secours en montagne. | AF6: 45.656894,6.376036 | AI6: =IFERROR(IF(SEARCH('Entrees Heli'!B$2,'AD Heli'!C6)>0,A6,""),"") -> 5 | AJ6: 5 | AK6: 5 | AL6: ALBERTVILLE CRS ALPES
A7: 6 | B7: [LF] | C7: ALENCON CENTRE HOSPITALIER | D7: oui | E7: TPD | F7: non | G7: oui | H7: Nuit | I7: 48.424167 | J7: 0.0825 | K7: x | L7: 435 | M7: 132.6 | O7: 20.6x20.6 | P7: Carré | Q7: 20.6 | R7: 20.6 | S7: 11.4x11.4 | T7: HB | U7: 1 | V7: AS 365 N Dauphin | W7: non | X7: En surface | Y7: hostile habitée | Z7: Bitume | AA7: 4.5t | AB7: NIL | AC7: Oui (Extincteur 50kg poudre sur roues) | AD7: OUI. | AE7: Centre hospitalier intercommunal d'Alençon Mamers#TEL : 02 33 32 30 30 FAX : 02 33 32 31 14 | AF7: 48.424167,0.0825 | AG7: Trouée courbe au Nord-Ouest.#Pour LDG et TKOF, PPR PN 15 mn sur FREQ SAMU 61.#Utilisation de l'hélistation par un seul hélicoptère à la fois. | AI7: =IFERROR(IF(SEARCH('Entrees Heli'!B$2,'AD Heli'!C7)>0,A7,""),"") -> 6 | AJ7: 6 | AK7: 6 | AL7: ALENCON CENTRE HOSPITALIER
A8: 7 | B8: [LF] | C8: ALES CENTRE HOSPITALIER | D8: oui | E8: TPD | F8: non | G8: oui | H8: Nuit | I8: 44.147778 | J8: 4.095556 | K8: x | L8: 552 | M8: 168.2 | O8: 21x21 | P8: Carré | Q8: 21 | S8: 21x21 | W8: oui | X8: En terrasse | Z8: Résine sur béton | AA8: 4 t | AB8: NIL | AC8: OUI (13 extincteurs poudre : 5x50 kg, 2x25 kg, 6x9 kg). | AD8: OUI | AE8: Centre hospitalier de Alès-Cévennes - TEL 04 66 78 30 27 (standard 04 66 78 33 33), FAX : 04 66 78 31 53. | AF8: 44.147778,4.095556 | AG8: Aire de sécurité : 27 m x 27 m.#Réservé à usage sanitaire.#Axes d'arrivée : 233° et 358° (axe 358° préférentiel).#Axes de départ : 053° et 178° (axe 053° préférentiel). | AI8: =IFERROR(IF(SEARCH('Entrees Heli'!B$2,'AD Heli'!C8)>0,A8,""),"") -> 7 | AJ8: 7 | AK8: 7 | AL8: ALES CENTRE HOSPITALIER
A9: 8 | B9: [LF] | C9: ALPES LEMAN CENTRE HOSPITALIER | D9: oui | E9: TPD | F9: non | G9: oui | H9: Nuit | I9: 46.140833 | J9: 6.320278 | K9: x | L9: 1532 | M9: 466.9 | W9: oui | X9: En terrasse | AB9: H24 | AC9: OUI (5 extincteurs poudre 50 kg et 1 extincteur CO2 10 kg) | AD9: OUI | AE9: Centre hospitalier Alpes Léman - TEL : 04 50 82 22 01 - FAX : 04 50 82 22 04 | AF9: 46.140833,6.320278 | AG9: Obstacle : arbre dans la trouée Nord-Est à 1,7 km de l'hélistation, hauteur 105 m (345 ft) par rapport à l'hélistation. | AI9: =IFERROR(IF(SEARCH('Entrees Heli'!B$2,'AD Heli'!C9)>0,A9,""),"") -> 8 | AJ9: 8 | AK9: 8 | AL9: ALPES LEMAN CENTRE HOSPITALIER
A10: 9 | B10: [LF] | C10: AMBERT CENTRE HOSPITALIER | D10: non | E10: TPD | F10: non | G10: oui | H10: Nuit | I10: 45.553889 | J10: 3.741389 | K10: 2 | L10: 1762 | M10: 537 | O10: 15 x 15 | P10: Carré | Q10: 15 | S10: 9 x 9 | T10: HB | U10: 2 | V10: EC145 - BK117 | W10: non | X10: En surface | Y10: hostile habitée | Z10: bitume | AA10: 4.0 t | AB10: H24 | AC10: Oui (extincteurs poudre + CO2) | AD10: Oui | AE10: Centre hospitalier d'Ambert : TEL 04 73 82 73 82 / FAX : 04 73 82 73 71 | AF10: 45.553889,3.741389 | AI10: =IFERROR(IF(SEARCH('Entrees Heli'!B$2,'AD Heli'!C10)>0,A10,""),"") -> 9 | AJ10: 9 | AK10: 9 | AL10: AMBERT CENTRE HOSPITALIER
A11: 10 | B11: [LF] | C11: AMBOISE CENTRE HOSPITALIER | D11: oui | E11: TPD | F11: non | G11: oui | H11: Nuit | I11: 47.408056 | J11: 0.981111 | K11: x | L11: 308 | M11: 93.9 | O11: 21.5x21.5 | P11: Carré | Q11: 21.5 | S11: 21.5x21.5 | T11: HB | U11: 1 | V11: EC 135 T2 | W11: oui | X11: En terrasse | Y11: hostile habitée | Z11: Béton | AA11: 4.3t | AB11: NIL | AC11: 2 extincteurs 10 kg CO2, mousse : 1 poste fixe débit 250 l/min. | AD11: OUI | AE11: Centre Hospitalier Robert Debré d'Amboise TEL : 02 47 23 33 33 FAX : 02 47 23 33 26 | AF11: 47.408056,0.981111 | AG11: Axes ATT/DEC : 075°/255° et 095°/275°.#Réservée aux vols sanitaires.#O/R Urgence TEL : 02 47 23 33 92 | AI11: =IFERROR(IF(SEARCH('Entrees Heli'!B$2,'AD Heli'!C11)>0,A11,""),"") -> 10 | AJ11: 10 | AK11: 10 | AL11: AMBOISE CENTRE HOSPITALIER
A12: 11 | B12: [LF] | C12: AMIENS CENTRE HOSPITALIER UNIVERSITAIRE NORD | D12: non | E12: TPD | F12: non | G12: oui | H12: Nuit | I12: 49.906667 | J12: 2.295833 | K12: x | L12: 161 | M12: 49.1 | O12: 18.3 x 18.3 m | P12: Carré | Q12: 18.3 | S12: 9 x 9 m | W12: non | X12: En surface | Z12: Béton | AB12: NIL | AC12: Oui (50 kg poudre). | AD12: OUI sur FATO ; NON sur TLOF | AE12: CHU Amiens-Nord Standard : 03 22 66 80 00 - SAMU 80 : 03 22 44 33 33 | AF12: 49.906667,2.295833 | AG12: Réservée aux opérations de transport sanitaire.#Etude opérationnelle OPS 3 requise avant utilisation.#Trouée d'envol principale orientée 220°, utilisable également à l'atterrissage.#Trouée d'envol secondaire orientée 140° utilisable également à l'atterrissage. | AI12: =IFERROR(IF(SEARCH('Entrees Heli'!B$2,'AD Heli'!C12)>0,A12,""),"") -> 11 | AJ12: 11 | AK12: 11 | AL12: AMIENS CENTRE HOSPITALIER UNIVERSITAIRE NORD
A13: 12 | B13: [LF] | C13: AMIENS CENTRE HOSPITALIER UNIVERSITAIRE SUD | D13: oui | E13: TPD | F13: non | G13: oui | H13: Nuit | I13: 49.873056 | J13: 2.255556 | K13: x | L13: 309 | M13: 94.2 | O13: 20.6 m x 20.6 m | P13: Carré | Q13: 20.6 | S13: 9 m x 9 m | W13: oui | X13: En terrasse | Z13: Béton | AA13: 5.0 t | AB13: NIL | AC13: Oui (3x100 kg poudre sur roues, 2 robinets d'incendie armés) | AD13: OUI | AE13: CHU Amiens SAMU (80) - TEL : 03 22 08 80 00 | AF13: 49.873056,2.255556 | AG13: Réservée au transport sanitaire.# Utilisation de l'hélistation par un HEL à la fois.# Contacter SAMU 80 pour signaler l'approche.# Survol des habitations et localités voisines à éviter. | AI13: =IFERROR(IF(SEARCH('Entrees Heli'!B$2,'AD Heli'!C13)>0,A13,""),"") -> 12 | AJ13: 12 | AK13: 12 | AL13: AMIENS CENTRE HOSPITALIER UNIVERSITAIRE SUD
A14: 13 | B14: [LF] | C14: AMILLY CENTRE HOSPITALIER | D14: oui | E14: TPD | F14: non | G14: oui | H14: Nuit | I14: 47.996719 | J14: 2.774425 | K14: 2 | L14: 353 | M14: 107.6 | O14: 20x30 | P14: Rectangulaire | Q14: 30 | R14: 20 | S14: 14x14 | T14: HB | U14: 1 | V14: EC 135 | W14: non | X14: En surface | Y14: hostile habitée | Z14: Enrobé béton (2.5 t) | AB14: NIL | AC14: Oui (2 x 50 kg de poudre) | AD14: OUI | AE14: Centre hospitalier de l'agglomération Montargeoise Tél: 02 38 95 91 11/FAX: 02 38 95 90 22 | AF14: 47.996719,2.774425 | AG14: Réservé aux évacuations sanitaires.#A/A sur 123.5 MHz.#LDG trouée Est: 070/250; trouée Ouest: 050/230. | AI14: =IFERROR(IF(SEARCH('Entrees Heli'!B$2,'AD Heli'!C14)>0,A14,""),"") -> 13 | AJ14: 13 | AK14: 13 | AL14: AMILLY CENTRE HOSPITALIER
A15: 14 | B15: [LF] | C15: ANGERS CENTRE HOSPITALIER | D15: oui | E15: TPD | F15: non | G15: oui | H15: Nuit | I15: 47.486111 | J15: -0.554167 | K15: x | L15: 138 | M15: 42.1 | W15: non | X15: En surface | AB15: H24 | AC15: Oui - 5 extincteurs (1 ABC 50 kg, 1 CO2 10 kg, 2 ABC 9 kg, 1 CO2 5 kg) | AD15: OUI | AE15: Centre hospitalier d'ANGERS - TEL : 02 41 35 32 97. | AF15: 47.486111,-0.554167 | AG15: Réservé aux missions sanitaires, vols d'ambulance et SMUH. #Contact radio obligatoire pour tout mouvement, sur FREQ SAMU Opération 122.980 MHz.#Axes trouées : 125°/305°. | AI15: =IFERROR(IF(SEARCH('Entrees Heli'!B$2,'AD Heli'!C15)>0,A15,""),"") -> 14 | AJ15: 14 | AK15: 14 | AL15: ANGERS CENTRE HOSPITALIER
A16: 15 | B16: [LF] | C16: ANGOULEME CENTRE HOSPITALIER | D16: oui | E16: TPD | F16: non | G16: oui | H16: Nuit | I16: 45.634167 | J16: 0.117778 | K16: 2 | L16: 154 | M16: 46.9 | W16: non | X16: En surface | AB16: NIL | AC16: OUI (2 extincteurs 50 kg de poudre) | AD16: OUI | AE16: Centre hospitalier de GIRAC Tél: 05 45 24 40 40. | AF16: 45.634167,0.117778 | AG16: APCH trouée Ouest 149°/329°, trouée Est 119°/299°. | AI16: =IFERROR(IF(SEARCH('Entrees Heli'!B$2,'AD Heli'!C16)>0,A16,""),"") -> 15 | AJ16: 15 | AK16: 15 | AL16: ANGOULEME CENTRE HOSPITALIER
A17: 16 | B17: [LF] | C17: ANNECY CENTRE HOSPITALIER | D17: non | E17: TPD | F17: non | G17: oui | H17: Nuit | I17: 45.931389 | J17: 6.118333 | K17: x | L17: 1512 | M17: 460.8 | O17: 20x20 | P17: Carré | Q17: 20 | T17: HB | U17: 1 | V17: non défini | W17: oui | X17: En terrasse | Y17: hostile habitée | Z17: Béton | AA17: 4t | AB17: NIL | AC17: Oui (Extincteurs: 2 x 100 kg poudre, 1 x 50kg poudre, 1 portatif) | AD17: OUI | AE17: Centre hospitalier d'ANNECY. Tél: 04 50 63 63 63. | AF17: 45.931389,6.118333 | AG17: Accès réservé au SMUH. | AI17: =IFERROR(IF(SEARCH('Entrees Heli'!B$2,'AD Heli'!C17)>0,A17,""),"") -> 16 | AJ17: 16 | AK17: 16 | AL17: ANNECY CENTRE HOSPITALIER
A18: 17 | B18: [LF] | C18: ANNONAY CENTRE HOSPITALIER | D18: oui | E18: TPD | F18: non | G18: oui | H18: Nuit | I18: 45.241708 | J18: 4.665844 | K18: 2 | L18: 1364 | M18: 415.7 | N18: 16 | O18: 20 x 20 m | P18: Carré | Q18: 20 | S18: 20 x 20 m | T18: HB | U18: 1 | V18: masse MAX 4t | W18: oui | X18: En terrasse | Y18: hostile habitée | Z18: Béton | AA18: 4t | AB18: NIL | AC18: Oui (5 extincteurs poudre 50kg) | AD18: OUI | AE18: Centre hospitalier d'ANNONAY.Tél./FAX 04 75 67 35 00. | AF18: 45.241708,4.665844 | AG18: Contacter TROPHUS 3 ou TRAVIATA 3 sur 85,575 MHz ou Tél:04 75 33 33 33 ou 04 75 33 42 87. Axes d'approche: 086° et 282°. Axes de départ : 102° et 266°. Evolutions interdites dans trouée nord entre 340° et 040°. Réservée exclusivement au transport sanitaire. | AI18: =IFERROR(IF(SEARCH('Entrees Heli'!B$2,'AD Heli'!C18)>0,A18,""),"") -> 17 | AJ18: 17 | AK18: 17 | AL18: ANNONAY CENTRE HOSPITALIER
A19: 18 | B19: [LF] | C19: ANTIBES PORT VAUBAN | D19: oui | E19: TPD | F19: non | G19: non | H19: Jour | I19: 43.588194 | J19: 7.132342 | K19: 2 | L19: 22 | M19: 6.7 | N19: 16 | S19: Diamètre 19 | T19: HB | U19: 2 et 3 (flottabilité exigée) | W19: oui | X19: En terrasse | Y19: hostile habitée | Z19: Béton | AA19: 5t | AB19: NIL | AD19: OUI | AE19: S.A International Yacht Club Tél.04 93 34 30 30 | AF19: 43.588194,7.132342 | AG19: Réservée au transport à la demande des usagers du port. Vols privés et de travail aérien interdits. Accord préalable du gestionnaire exigé avant toute utilisation. | AI19: =IFERROR(IF(SEARCH('Entrees Heli'!B$2,'AD Heli'!C19)>0,A19,""),"") -> 18 | AJ19: 18 | AK19: 18 | AL19: ANTIBES PORT VAUBAN
A20: 19 | B20: [LF] | C20: APT CENTRE HOSPITALIER | D20: oui | E20: TPD | F20: non | G20: oui | H20: Nuit | I20: 43.875833 | J20: 5.381944 | K20: x | L20: 869 | M20: 264.9 | W20: oui | X20: En terrasse | AB20: NIL | AC20: OUI (extincteur sur roues: 50 kg poudre) | AD20: OUI | AE20: Hôpital d'APT. Tél: 04 90 04 33 65 / 04 90 04 34 00 (Urgences de l'hôpital). | AF20: 43.875833,5.381944 | AI20: =IFERROR(IF(SEARCH('Entrees Heli'!B$2,'AD Heli'!C20)>0,A20,""),"") -> 19 | AJ20: 19 | AK20: 19 | AL20: APT CENTRE HOSPITALIER
A21: 20 | B21: [LF] | C21: ARCACHON POLE SANTE | D21: oui | E21: TPD | F21: non | G21: oui | H21: Nuit | I21: 44.6125 | J21: -1.113889 | K21: x | L21: 46 | M21: 14 | W21: oui | X21: En terrasse | AB21: NIL | AC21: OUI (2 extincteurs poudre 50 kg) | AD21: OUI | AE21: PC Sécurité - TEL : 05 57 52 90 41 / FAX : 05 57 52 93 01 | AF21: 44.6125,-1.113889 | AG21: Pénétration dans la zone LF-R31 A : PPR CAZAUX APP 119.600 MHz#Aire de sécurité : 26.6 x 26.6 m. | AI21: =IFERROR(IF(SEARCH('Entrees Heli'!B$2,'AD Heli'!C21)>0,A21,""),"") -> 20 | AJ21: 20 | AK21: 20 | AL21: ARCACHON POLE SANTE
A22: 21 | B22: [LF] | C22: ARCHAMPS TECHNOPOLE | D22: non | E22: TPD | F22: non | G22: non | H22: Jour | I22: 46.138972 | J22: 6.125333 | K22: x | L22: 1627 | M22: 495.9 | O22: 21x21 | P22: Carré | Q22: 21 | T22: HB | U22: CP3 Exposée | V22: AW109 | W22: non | X22: En surface | Y22: hostile non habitée | Z22: Enrobé anti-kérozène | AA22: 5t | AB22: Jour uniquement | AC22: Extincteur sur roues (50 kg poudre). | AD22: NIL | AE22: Société Skycam Hélicoptères Tél. 04.50.39.85.21 | AF22: 46.138972,6.125333 | AG22: Conditions d'utilisation et circuit d'approche : agrément obligatoire de l'équipage par l'exploitant. | AI22: =IFERROR(IF(SEARCH('Entrees Heli'!B$2,'AD Heli'!C22)>0,A22,""),"") -> 21 | AJ22: 21 | AK22: 21 | AL22: ARCHAMPS TECHNOPOLE
A23: 22 | B23: [LF] | C23: ARCS 2000 | D23: oui | E23: TPD | F23: non | G23: non | H23: Jour | I23: 45.575278 | J23: 6.831111 | K23: 2 | L23: 6780 | M23: 2066.4 | W23: oui | X23: En terrasse | AC23: Oui (poudre : 1 x 50 kg sur roues + 2 x 9 kg) | AD23: NIL | AE23: HBG France - Tél : 06 11 74 38 83 | AF23: 45.575278,6.831111 | AG23: Contact radio : 130.000 MHz. | AI23: =IFERROR(IF(SEARCH('Entrees Heli'!B$2,'AD Heli'!C23)>0,A23,""),"") -> 22 | AJ23: 22 | AK23: 22 | AL23: ARCS 2000
A24: 23 | B24: [LF] | C24: ARGENTAN CENTRE HOSPITALIER | D24: non | E24: TPD | F24: non | G24: oui | H24: Nuit | I24: 48.746531 | J24: -0.017989 | K24: 2 | L24: 596 | M24: 181.7 | O24: 21x21 | P24: Carré | Q24: 21 | S24: 21x21 | T24: HB | U24: 1 | V24: AS 365N | W24: oui | X24: En terrasse | Y24: hostile habitée | Z24: Béton | AA24: 4.5t | AB24: NIL | AC24: OUI (poudre 250 kg) | AD24: OUI | AE24: Centre hospitalier d'Argentan - TEL : 02 33 12 33 12 | AF24: 48.746531,-0.017989 | AI24: =IFERROR(IF(SEARCH('Entrees Heli'!B$2,'AD Heli'!C24)>0,A24,""),"") -> 23 | AJ24: 23 | AK24: 23 | AL24: ARGENTAN CENTRE HOSPITALIER
A25: 24 | B25: [LF] | C25: ARRAS CENTRE HOSPITALIER | D25: oui | E25: RST | F25: non | G25: oui | H25: Nuit | I25: 50.296206 | J25: 2.759208 | K25: 2 | L25: 254 | M25: 77.4 | O25: 18.7 x 18.7 | P25: Carré | Q25: 18.7 | S25: 18.7 x 18.7 | T25: HB | U25: 1 | V25: MD 902 PW207E | W25: non | X25: En surface | Y25: hostile habitée | Z25: Béton | AA25: 4t | AB25: NIL | AC25: Oui (50 kg poudre + 2 x 9 kg poudre) | AD25: oui | AE25: Centre hospitalier - TEL : 03 21 21 10 10 - E-mail : direction@ch-arras.fr | AF25: 50.296206,2.759208 | AG25: Axes d'APCH et TKOF : 002°/182°# Equipée HAPI pour le franchissement des obstacles non balisés dans les trouées (calage 10° / 17,6 %) | AI25: =IFERROR(IF(SEARCH('Entrees Heli'!B$2,'AD Heli'!C25)>0,A25,""),"") -> 24 | AJ25: 24 | AK25: 24 | AL25: ARRAS CENTRE HOSPITALIER
A26: 25 | B26: [LF] | C26: AUBENAS CENTRE HOSPITALIER | D26: oui | E26: TPD | F26: non | G26: oui | H26: Nuit | I26: 44.613889 | J26: 4.397222 | K26: 2 | L26: 785 | M26: 239.3 | O26: Diamètre 20.6 | P26: Circulaire | Q26: 20.6 | T26: HB | U26: 1 | V26: AS 365 N | W26: oui | X26: En terrasse | Y26: hostile habitée | Z26: Béton | AA26: 4.3 t | AB26: NIL | AC26: Oui (5 extincteurs poudre de 50 kg BC) | AD26: Oui | AE26: Centre hospitalier d'AUBENAS TEL 04 75 35 60 60 | AF26: 44.613889,4.397222 | AG26: Contact préalable Tél : 04 75 35 76 77 ou 154.525 MHz ou 159.125 MHz ou 86.055 MHz. Indicatif: TYPHUS 4. Réservée exclusivement au transport sanitaire. | AI26: =IFERROR(IF(SEARCH('Entrees Heli'!B$2,'AD Heli'!C26)>0,A26,""),"") -> 25 | AJ26: 25 | AK26: 25 | AL26: AUBENAS CENTRE HOSPITALIER
A27: 26 | B27: [LF] | C27: AUBERIVE | D27: non | E27: TPD | F27: non | G27: non | H27: Jour | I27: 49.203953 | J27: 4.412222 | K27: 2 | L27: 390 | M27: 118.9 | O27: 20 x 20 m | P27: Carré | Q27: 20 | S27: 11.8 x 11.8 m | T27: HB | U27: 3 | V27: AS 350 / MAX 3.5 t | W27: non | X27: En surface | Y27: non hostile | Z27: non revêtue | AA27: 3.5 t | AC27: 1 extincteur sur roues 50 kg poudre | AD27: non | AE27: HELITEL | AF27: 49.203953,4.412222 | AI27: =IFERROR(IF(SEARCH('Entrees Heli'!B$2,'AD Heli'!C27)>0,A27,""),"") -> 26 | AJ27: 26 | AK27: 26 | AL27: AUBERIVE
A28: 27 | B28: [LF] | C28: AUCH CENTRE HOSPITALIER | D28: oui | E28: TPD | F28: non | G28: oui | H28: Nuit | I28: 43.631389 | J28: 0.573333 | K28: x | L28: 597 | M28: 182 | O28: 20x20 | P28: Carré | Q28: 20 | S28: 20x20 | T28: HB | U28: 1 | V28: non défini | W28: non | X28: En surface | Y28: hostile non habitée | Z28: enrobé | AA28: 4 t | AB28: NIL | AC28: Extincteur sur roue (50kg poudre) | AD28: Oui | AE28: Centre hospitalier TEL 05 62 61 32 32 | AF28: 43.631389,0.573333 | AI28: =IFERROR(IF(SEARCH('Entrees Heli'!B$2,'AD Heli'!C28)>0,A28,""),"") -> 27 | AJ28: 27 | AK28: 27 | AL28: AUCH CENTRE HOSPITALIER
A29: 28 | B29: [LF] | C29: AULNAY SOUS BOIS CENTRE HOSPITALIER | D29: oui | E29: TPD | F29: non | G29: oui | H29: Nuit | I29: 48.954444 | J29: 2.521111 | K29: x | L29: 190 | M29: 57.9 | O29: 23x23 | P29: Carré | Q29: 23 | S29: 11x11 | T29: HB | U29: 1 | V29: EC135 | W29: non | X29: En surface | Y29: hostile habitée | Z29: Enrobé | AA29: 4t | AB29: NIL | AC29: 1 extincteur CO2 (5 kg), 1 extincteur à poudre (50 kg). | AD29: oui | AE29: Centre hospitalier int. Robert BALLANGER.TEL: 01 49 36 72 72 FAX: 01 49 36 73 63 | AF29: 48.954444,2.521111 | AG29: Exclusivement réservé aux missions sanitaires d'urgence effectuées par des hélicoptères sanitaires(ambulance).Contact radio obligatoire LE BOURGET TWR 118.925 MHZ.ARR et DEP via les points "AULNAY, BH1, RH2, ARRIVEE SUD". | AI29: =IFERROR(IF(SEARCH('Entrees Heli'!B$2,'AD Heli'!C29)>0,A29,""),"") -> 28 | AJ29: 28 | AK29: 28 | AL29: AULNAY SOUS BOIS CENTRE HOSPITALIER
A30: 29 | B30: [LF] | C30: AURILLAC CENTRE HOSPITALIER | D30: non | E30: RST | F30: non | G30: oui | H30: Nuit | I30: 44.926667 | J30: 2.438056 | K30: 2 | L30: 2146 | M30: 654.1 | O30: 20 x 20 | P30: Carré | Q30: 20 | T30: HB | U30: 1 | V30: EC145 | W30: oui | X30: En terrasse | Y30: hostile habitée | Z30: Béton | AA30: 4 t | AB30: H24 | AC30: Oui (2 x 100kg poudre) | AD30: Oui | AE30: Centre hospitalier d'Aurillac - TEL : 04 71 46 47 33 | AF30: 44.926667,2.438056 | AG30: Réservé aux vols SMUH. | AI30: =IFERROR(IF(SEARCH('Entrees Heli'!B$2,'AD Heli'!C30)>0,A30,""),"") -> 29 | AJ30: 29 | AK30: 29 | AL30: AURILLAC CENTRE HOSPITALIER
A31: 30 | B31: [LF] | C31: AUXERRE CENTRE HOSPITALIER | D31: non | E31: TPD | F31: non | G31: oui | H31: Nuit | I31: 47.804444 | J31: 3.557778 | K31: x | L31: 528 | M31: 160.9 | O31: 20x20 | P31: Carré | Q31: 20 | S31: 14x14 | T31: HB | U31: 1 | V31: EC 135 | W31: non | X31: En surface | Y31: hostile habitée | Z31: bitume | AA31: 5t | AB31: NIL. | AC31: Oui (50kg poudre) | AD31: Oui | AE31: Centre Hospitalier 03 86 48 48 48 Poste 76 658 | AF31: 47.804444,3.557778 | AG31: Réservée aux évacuations sanitaires sur PPR exploitant.#Axes ATT/DEC : 035°/215°. | AI31: =IFERROR(IF(SEARCH('Entrees Heli'!B$2,'AD Heli'!C31)>0,A31,""),"") -> 30 | AJ31: 30 | AK31: 30 | AL31: AUXERRE CENTRE HOSPITALIER
A32: 31 | B32: [LF] | C32: AVIGNON CENTRE HOSPITALIER | D32: oui | E32: RST | F32: non | G32: oui | H32: Nuit | I32: 43.920267 | J32: 4.798972 | K32: 2 | L32: 69 | M32: 21 | W32: non | X32: En surface | AB32: NIL | AC32: Oui (5 extincteurs à poudre 250 Kgs au total) | AD32: OUI | AE32: Centre hospitalier d'Avignon. TEL : 04 32 75 33 33. | AF32: 43.920267,4.798972 | AG32: Les atterrissages face au nord, de nuit, imposent l`utilisation de l`indicateur visuel de pente d'approche (APAPI 8°-14%) dont la mise en service est soumise à préavis minimum de 15 min au TEL : 04 32 75 32 82 - FAX : 04 90 82 05 90 (SAMU 84).#Tout mouvement devra faire l'objet d'un préavis destiné à neutraliser la circulation de la voie de liaison située au nord de la plate-forme (TEL : 04 32 75 32 82 Régulation SAMU).#Aire de sécurité : diamètre 26,92 m. | AI32: =IFERROR(IF(SEARCH('Entrees Heli'!B$2,'AD Heli'!C32)>0,A32,""),"") -> 31 | AJ32: 31 | AK32: 31 | AL32: AVIGNON CENTRE HOSPITALIER
A33: 32 | B33: [LF] | C33: BAGNOLS SUR CEZE CENTRE HOSPITALIER | D33: oui | E33: TPD | F33: non | G33: oui | H33: Nuit | I33: 44.158333 | J33: 4.615556 | K33: x | L33: 285 | M33: 86.9 | O33: 21x21 | P33: Carré | Q33: 21 | W33: oui | X33: En terrasse | Z33: Béton | AB33: NIL | AC33: OUI (254 kg poudre) | AD33: OUI | AE33: Centre hospitalier de Bagnols sur Cèze Tél : 04 66 79 10 11 | AF33: 44.158333,4.615556 | AG33: Réservée aux opérations de transport sanitaire de jour et de nuit#SAMU 30 (urgences) : 04 66 68 33 29#Conditions d'exploitation :#trouée d'envol : 318°/138°. | AI33: =IFERROR(IF(SEARCH('Entrees Heli'!B$2,'AD Heli'!C33)>0,A33,""),"") -> 32 | AJ33: 32 | AK33: 32 | AL33: BAGNOLS SUR CEZE CENTRE HOSPITALIER
A34: 33 | B34: [LF] | C34: BALE MULHOUSE | D34: oui | E34: CAP | F34: non | G34: non | H34: Jour | I34: 47.59 | J34: 7.529167 | K34: 2 | L34: 885 | M34: 269.7 | AF34: 47.59,7.529167 | AI34: =IFERROR(IF(SEARCH('Entrees Heli'!B$2,'AD Heli'!C34)>0,A34,""),"") -> 33 | AJ34: 33 | AK34: 33 | AL34: BALE MULHOUSE
A35: 34 | B35: [LF] | C35: BASTIA CENTRE HOSPITALIER | D35: non | E35: RST | F35: non | G35: oui | H35: Nuit | I35: 42.682222 | J35: 9.428333 | K35: x | L35: 443 | M35: 135 | O35: Diamètre 25 | P35: Circulaire | Q35: 25 | T35: HB | U35: 1 | V35: non défini | W35: oui | X35: En terrasse | Y35: hostile habitée | Z35: Bitume | AA35: 13t | AB35: NIL | AC35: OUI (50 kg poudre) | AD35: OUI (17 feux encastrés jaunes + 62 feux blancs hors sol) | AE35: Centre hospitalier. Tél: 04 95 59 11 11. | AF35: 42.682222,9.428333 | AI35: =IFERROR(IF(SEARCH('Entrees Heli'!B$2,'AD Heli'!C35)>0,A35,""),"") -> 34 | AJ35: 34 | AK35: 34 | AL35: BASTIA CENTRE HOSPITALIER
A36: 35 | B36: [LF] | C36: BAYONNE CENTRE HOSPITALIER DE LA COTE BASQUE | D36: oui | E36: TPD | F36: non | G36: oui | H36: Nuit | I36: 43.4825 | J36: -1.479722 | K36: x | L36: 150 | M36: 45.7 | O36: 21x21 | P36: Carré | Q36: 21 | S36: 21x21 | T36: HB | U36: 1 | V36: HEL de LHT=13,5m MAX. | W36: oui | X36: En terrasse | Y36: hostile habitée | Z36: Ciment | AA36: 6t | AB36: NIL | AC36: Oui (2 extincteurs 75 kg poudre et 2 extincteurs portatifs) | AD36: OUI | AE36: Centre Hospitalier de la Côte Basque. Tél.05 59 44 35 35. | AF36: 43.4825,-1.479722 | AG36: Réservée aux transports sanitaires. Axes trouées 115°/295°. Contacter BIARRITZ TWR 118,7 MHz. | AI36: =IFERROR(IF(SEARCH('Entrees Heli'!B$2,'AD Heli'!C36)>0,A36,""),"") -> 35 | AJ36: 35 | AK36: 35 | AL36: BAYONNE CENTRE HOSPITALIER DE LA COTE BASQUE
A37: 36 | B37: [LF] | C37: BEAUVAIS CENTRE HOSPITALIER | D37: oui | E37: TPD | F37: non | G37: oui | H37: Nuit | I37: 49.449167 | J37: 2.068333 | K37: x | L37: 304 | M37: 92.7 | O37: 20.6x20.6 | P37: Carré | Q37: 20.6 | S37: 11x11 | T37: HB | U37: 1 | V37: AS365N3 | W37: non | X37: En surface | Y37: hostile habitée | Z37: bitume (Non définie) | AB37: NIL | AC37: Oui (50kg poudre) | AD37: OUI (FATO et TLOF). | AE37: Centre hospitalier BEAUVAIS TEL : Urgences : 03 44 11 21 73. | AF37: 49.449167,2.068333 | AG37: Réservée transports sanitaires.#Trouée TKOF et ATT 128/308° interdite de nuit.#Hélistation située en CTR Beauvais.#Panne d'un moteur en approche ou au départ : se référer à l'arrêté de création, auprès de l'exploitant ou de la Délégation Picardie.#TKOF : Trouée courbe orientée 117° sur les 500 premiers mètres, puis 027°. Utilisable à l' ATT. | AI37: =IFERROR(IF(SEARCH('Entrees Heli'!B$2,'AD Heli'!C37)>0,A37,""),"") -> 36 | AJ37: 36 | AK37: 36 | AL37: BEAUVAIS CENTRE HOSPITALIER
A38: 37 | B38: [LF] | C38: BELLE-ILE-EN-MER CENTRE HOSPITALIER | D38: non | E38: TPD | F38: non | G38: oui | H38: Nuit | I38: 47.345 | J38: -3.161389 | K38: 2 | L38: 102 | M38: 31.1 | W38: non | X38: En surface | AB38: H24 | AC38: 50 kg poudre. | AD38: 15 feux d'approche encastrés + 4 projecteurs rasants | AE38: Directeur délégué de site. TEL : 02 97 31 48 48 | AF38: 47.345,-3.161389 | AG38: Utilisation réservée aux vols du SMUH.#Orientation des trouées DEP et ARR : 036° / 216°. | AI38: =IFERROR(IF(SEARCH('Entrees Heli'!B$2,'AD Heli'!C38)>0,A38,""),"") -> 37 | AJ38: 37 | AK38: 37 | AL38: BELLE-ILE-EN-MER CENTRE HOSPITALIER
A39: 38 | B39: [LF] | C39: BERCK SUR MER CENTRE HOSPITALIER HELIO-MARIN | D39: oui | E39: RST | F39: non | G39: non | H39: Jour | I39: 50.418461 | J39: 1.564283 | K39: 2 | L39: 42 | M39: 12.8 | O39: 21x21 | P39: Carré | Q39: 21 | S39: 21x21 | U39: 2 | W39: non | X39: En surface | Z39: Béton | AA39: 10t | AB39: NIL | AC39: Oui (50kg poudre + 6 LEP + 9kg CO2). | AD39: NIL | AE39: Centre hospitalier.Tél: 03 21 89 20 20. FAX: 03 21 89 20 38. | AF39: 50.418461,1.564283 | AG39: Arrivée et Départ face au Sud.#Cheminement par l'Ouest (mer). | AI39: =IFERROR(IF(SEARCH('Entrees Heli'!B$2,'AD Heli'!C39)>0,A39,""),"") -> 38 | AJ39: 38 | AK39: 38 | AL39: BERCK SUR MER CENTRE HOSPITALIER HELIO-MARIN
A40: 39 | B40: [LF] | C40: BESANCON CHU JEAN MINJOZ | D40: oui | E40: TPD | F40: non | G40: oui | H40: Nuit | I40: 47.225569 | J40: 5.964472 | K40: 2 | L40: 940 | M40: 286.5 | O40: 20 x 20 | P40: Carré | Q40: 20 | S40: 11.5 x 11.5 | T40: HB | U40: 1 | V40: EC 145 | W40: non | X40: En surface | Y40: hostile habitée | Z40: Enrobé | AA40: 10t | AB40: NIL | AC40: Extincteurs poudre : 2 x 50 kg | AD40: Oui | AE40: CHU Jean Minjoz - Besançon - TEL : 03 81 66 81 66 | AF40: 47.225569,5.964472 | AI40: =IFERROR(IF(SEARCH('Entrees Heli'!B$2,'AD Heli'!C40)>0,A40,""),"") -> 39 | AJ40: 39 | AK40: 39 | AL40: BESANCON CHU JEAN MINJOZ
A41: 40 | B41: [LF] | C41: BEZIERS HOPITAL MONTIMARAN | D41: non | E41: TPD | F41: non | G41: non | H41: Jour | I41: 43.341111 | J41: 3.255556 | K41: 2 | L41: 229 | M41: 69.8 | O41: 21 x 21 m | P41: Carré | Q41: 21 | S41: 21 x 21 m | T41: HB | U41: 1 | V41: SA 365 N3 | W41: oui | X41: En terrasse | Y41: hostile habitée | Z41: Béton | AA41: 4.3 t | AB41: H24 | AC41: extincteurs poudre : 2 x 100kg + 6 x 9kg | AD41: 28 feux omnidirectionnels verts + 8 projecteurs blancs. | AE41: Centre hospitalier - TEL : 04 67 35 70 35 - FAX : 04 67 35 72 00 | AF41: 43.341111,3.255556 | AG41: Réservé au SMUH.# Préavis de 15 min exigé avant tout mouvement - TEL : 04 67 35 72 68 ou 04 67 35 75 99.# Axes de DEP et ARR : secteur angulaire 270°/135° (privilégier le secteur 270°/075°) lorsque les conditions le permettent).# | AI41: =IFERROR(IF(SEARCH('Entrees Heli'!B$2,'AD Heli'!C41)>0,A41,""),"") -> 40 | AJ41: 40 | AK41: 40 | AL41: BEZIERS HOPITAL MONTIMARAN
A42: 41 | B42: [LF] | C42: BIARRITZ PAYS BASQUE | D42: oui | E42: CAP | F42: non | G42: non | H42: Jour | I42: 43.469167 | J42: -1.535 | K42: 2 | L42: 234 | M42: 71.3 | AF42: 43.469167,-1.535 | AI42: =IFERROR(IF(SEARCH('Entrees Heli'!B$2,'AD Heli'!C42)>0,A42,""),"") -> 41 | AJ42: 41 | AK42: 41 | AL42: BIARRITZ PAYS BASQUE
A43: 42 | B43: [LF] | C43: BLAYE CENTRE HOSPITALIER SAINT NICOLAS DE BLAYE | D43: oui | E43: TPD | F43: non | G43: oui | H43: Nuit | I43: 45.135694 | J43: -0.658917 | K43: x | L43: 81 | M43: 24.7 | O43: 21x21 m | P43: Carré | Q43: 21 | S43: 21x21 m | T43: HB | U43: 1 | V43: AS365N3 | W43: oui | X43: En terrasse | Y43: hostile habitée | Z43: Béton | AA43: 4.3t | AB43: H24 | AC43: Oui (4 extincteurs 9kg, 2 RIA) | AD43: Oui. | AE43: Centre Hospitalier de BLAYE, Services Techniques Tél : 05 57 33 40 00 | AF43: 45.135694,-0.658917 | AG43: Utilisation réservée aux vols de service médical d'urgences. | AI43: =IFERROR(IF(SEARCH('Entrees Heli'!B$2,'AD Heli'!C43)>0,A43,""),"") -> 42 | AJ43: 42 | AK43: 42 | AL43: BLAYE CENTRE HOSPITALIER SAINT NICOLAS DE BLAYE
A44: 43 | B44: [LF] | C44: BLOIS CENTRE HOSPITALIER | D44: oui | E44: TPD | F44: non | G44: oui | H44: Nuit | I44: 47.604675 | J44: 1.342453 | K44: 2 | L44: 355 | M44: 108.2 | O44: 21.5x21.5 | P44: Carré | Q44: 21.5 | S44: 10x10 | T44: HB | U44: 1 | V44: AS 365 N | W44: non | X44: En surface | Y44: hostile habitée | Z44: Béton | AA44: 10t | AB44: NIL | AC44: OUI (50kg de poudre) | AD44: OUI | AE44: Centre Hospitalier de Blois - TEL : 02 54 78 78 78 - FAX : 02 54 74 60 77 | AF44: 47.604675,1.342453 | AG44: Réservé aux évacuations sanitaires.#O/R SAMU TEL 02 54 78 78 78. | AI44: =IFERROR(IF(SEARCH('Entrees Heli'!B$2,'AD Heli'!C44)>0,A44,""),"") -> 43 | AJ44: 43 | AK44: 43 | AL44: BLOIS CENTRE HOSPITALIER
A45: 44 | B45: [LF] | C45: BORDEAUX HAUT LEVEQUE CENTRE HOSPITALIER | D45: oui | E45: TPD | F45: non | G45: oui | H45: Nuit | I45: 44.785278 | J45: -0.660833 | K45: x | L45: 275 | M45: 83.8 | O45: 21x21 | P45: Carré | Q45: 21 | T45: HB | W45: oui | X45: En terrasse | Y45: hostile habitée | Z45: Tole acier larmé | AA45: 4,3t | AB45: NIL | AC45: OUI (mousse: 3 postes fixes, 1 sous plateforme+rideau de brumisation) | AD45: OUI (28 feux oranges encastrés + 2 projecteurs + phare d'hélistation) | AE45: Centre hospitalier#TEL 05 57 65 68 56#FAX 05 57 65 60 65 | AF45: 44.785278,-0.660833 | AG45: Réservée exclusivement au transport sanitaire | AI45: =IFERROR(IF(SEARCH('Entrees Heli'!B$2,'AD Heli'!C45)>0,A45,""),"") -> 44 | AJ45: 44 | AK45: 44 | AL45: BORDEAUX HAUT LEVEQUE CENTRE HOSPITALIER
A46: 45 | B46: [LF] | C46: BORDEAUX PELLEGRIN CENTRE HOSPITALIER | D46: oui | E46: TPD | F46: non | G46: oui | H46: Nuit | I46: 44.8275 | J46: -0.604722 | K46: 2 | L46: 257 | M46: 78.3 | O46: 38x30 | P46: Rectangulaire | Q46: 38 | R46: 30 | T46: HB | U46: 1 | V46: Masse MAX 4,3t | W46: oui | X46: En terrasse | Y46: hostile habitée | Z46: Structure métallique | AA46: 4,3t | AB46: NIL | AC46: Oui (70kg poudre + 2 lances mousse + rideau brumisation + 20 kg CO2) | AD46: OUI | AE46: CHU BORDEAUX PELLEGRIN : TEL 05 56 79 56 44 / 05 56 79 55 61- FAX 05 56 79 47 97 | AF46: 44.8275,-0.604722 | AG46: Pour LDG et TKOF PPR 3 min contacter PELLEGRIN OPERATION 122,975MHz.Utilisation par un seul HEL á la fois. | AI46: =IFERROR(IF(SEARCH('Entrees Heli'!B$2,'AD Heli'!C46)>0,A46,""),"") -> 45 | AJ46: 45 | AK46: 45 | AL46: BORDEAUX PELLEGRIN CENTRE HOSPITALIER
A47: 46 | B47: [LF] | C47: BORDEAUX ROBERT PICQUE HOPITAL MILITAIRE | D47: oui | E47: TPD | F47: non | G47: oui | H47: Nuit | I47: 44.8 | J47: -0.574167 | K47: 2 | L47: 62 | M47: 18.9 | W47: non | X47: En surface | AB47: NIL | AC47: Oui (extincteurs poudre 5 x 50 kg + CO2 de 2 x 11 kg) | AD47: OUI | AE47: Hôpital d'Instruction des Armées Robert PICQUE. Tél 05 56 84 73 13 FAX 05 56 04 17 90. | AF47: 44.8,-0.574167 | AG47: Hélistation réservée HEL sanitaires MIL et sécurité civile. Pénétration dans la CTR, O/R MERIGNAC Tour 118,300 MHz. Axes trouées 010°/190°. Zones : habitée NE, non habitée SW. | AI47: =IFERROR(IF(SEARCH('Entrees Heli'!B$2,'AD Heli'!C47)>0,A47,""),"") -> 46 | AJ47: 46 | AK47: 46 | AL47: BORDEAUX ROBERT PICQUE HOPITAL MILITAIRE
A48: 47 | B48: [LF] | C48: BOULOGNE SUR MER CENTRE HOSPITALIER | D48: non | E48: RST | F48: non | G48: oui | H48: Nuit | I48: 50.722947 | J48: 1.628878 | K48: 2 | L48: 279 | M48: 85 | O48: 20x20 | P48: Carré | Q48: 20 | S48: 10.5x10.5 | T48: HB | U48: 1 | V48: SA 365 N | W48: non | X48: En surface | Y48: hostile habitée | Z48: Enrobé | AA48: Non définie | AB48: NIL | AC48: Oui (150kg poudre) | AD48: nuit + HAPI | AE48: Centre hospitalier Tél: 03 21 99 33 33, Fax: 03 21 99 30 00 | AF48: 50.722947,1.628878 | AG48: Axe d'approche : 295°, équipé d'un indicateur visuel de pente d'approche (HAPI), calage 20% (11.5°).#Réservé au transport sanitaire.#Attention : pylône ALT 964 ft, RDL 110°/1 NM, balisé J/N. | AI48: =IFERROR(IF(SEARCH('Entrees Heli'!B$2,'AD Heli'!C48)>0,A48,""),"") -> 47 | AJ48: 47 | AK48: 47 | AL48: BOULOGNE SUR MER CENTRE HOSPITALIER
A49: 48 | B49: [LF] | C49: BOURG EN BRESSE CENTRE HOSPITALIER | D49: oui | E49: RST | F49: non | G49: oui | H49: Nuit | I49: 46.224722 | J49: 5.209722 | K49: 2 | L49: 814 | M49: 248.1 | O49: 20.6 x 20.6 | P49: Carré | Q49: 20.6 | S49: 20.6 x 20.6 | T49: HB | U49: 1 | V49: EC145 | W49: oui | X49: En terrasse | Y49: hostile habitée | Z49: Béton | AA49: 3.6 t | AB49: [!]H24 avec utilisation de nuit uniquement pour la trouée rectiligne a | AC49: Oui (5 x 50kg poudre + RIA mousse) | AD49: Oui | AE49: Centre Hospitalier de Bourg-en-Bresse - TEL : 04 74 45 46 47 | AF49: 46.224722,5.209722 | AG49: Réservé aux vols SMUH. | AH49: <aixm:TxtRmkWorkHr>H24 avec utilisation de nuit uniquement pour la trouée rectiligne au Nord-Est.</aixm:TxtRmkWorkHr> | AI49: =IFERROR(IF(SEARCH('Entrees Heli'!B$2,'AD Heli'!C49)>0,A49,""),"") -> 48 | AJ49: 48 | AK49: 48 | AL49: BOURG EN BRESSE CENTRE HOSPITALIER
A50: 49 | B50: [LF] | C50: BOURG SAINT-MAURICE CENTRE HOSPITALIER | D50: non | E50: RST | F50: non | G50: oui | H50: Nuit | I50: 45.616111 | J50: 6.764167 | K50: x | L50: 2838 | M50: 865 | O50: Diamètre 20 | P50: Circulaire | Q50: 20 | W50: oui | X50: En terrasse | Z50: béton + membrane polyurée | AA50: 4t | AB50: H24 | AC50: Oui (voir ci-dessous) | AD50: OUI | AE50: Tél. 04.79.41.79.79 - FAX : 04.79.07.53.02 | AF50: 45.616111,6.764167 | AG50: Hélistation réservée aux vols SMUH.# Moyens SSLIA: 5 x 50 kg poudre ABC sur roues,# 2 x 5 kg poudre ABC, 1 x 20 kg CO2, 1 x 5 kg CO2. | AI50: =IFERROR(IF(SEARCH('Entrees Heli'!B$2,'AD Heli'!C50)>0,A50,""),"") -> 49 | AJ50: 49 | AK50: 49 | AL50: BOURG SAINT-MAURICE CENTRE HOSPITALIER
A51: 50 | B51: [LF] | C51: BOURGES CENTRE HOSPITALIER | D51: oui | E51: TPD | F51: non | G51: oui | H51: Nuit | I51: 47.084167 | J51: 2.435278 | K51: x | L51: 445 | M51: 135.6 | O51: Diamètre 22.2 m | P51: Circulaire | Q51: 22.2 | S51: Diamètre 13.4 m | T51: HB | W51: non | X51: En surface | Z51: Béton | AA51: 4.3 t | AB51: NIL | AC51: Oui (50kg de poudre) | AD51: Diurne et nocturne | AE51: Centre hospitalier Jacques Coeur - TEL : 02 48 48 48 48 / FAX : 02 48 48 48 00 | AF51: 47.084167,2.435278 | AG51: Réservé aux évacuations sanitaires.#Utilisation par un seul hélicoptère à la fois.#Axes : 204°/024°#Axes préférentiels : ATT 204° - DEC 024°#Pente des surfaces de protection des trouées : 4.5%. | AI51: =IFERROR(IF(SEARCH('Entrees Heli'!B$2,'AD Heli'!C51)>0,A51,""),"") -> 50 | AJ51: 50 | AK51: 50 | AL51: BOURGES CENTRE HOSPITALIER
A52: 51 | B52: [LF] | C52: BOURGOIN JALLIEU CENTRE HOSPITALIER OUDOT | D52: oui | E52: TPD | F52: non | G52: oui | H52: Nuit | I52: 45.596111 | J52: 5.245 | K52: x | L52: 822 | M52: 250.5 | O52: 20.6x20.6 | P52: Carré | Q52: 20.6 | S52: 20.6x20.6 | T52: HB | U52: 1 | V52: AS 365 N | W52: oui | X52: En terrasse | Y52: hostile non habitée | Z52: Béton | AA52: 4.3t | AB52: H24 | AC52: Oui (poudre et mousse) | AD52: OUI | AE52: Centre hospitalier Pierre Oudot. Tél. 04 69 15 70 18 - FAX : 04 69 15 70 13 | AF52: 45.596111,5.245 | AI52: =IFERROR(IF(SEARCH('Entrees Heli'!B$2,'AD Heli'!C52)>0,A52,""),"") -> 51 | AJ52: 51 | AK52: 51 | AL52: BOURGOIN JALLIEU CENTRE HOSPITALIER OUDOT
A53: 52 | B53: [LF] | C53: BREST AMIRAUTE | D53: non | E53: ADM | F53: non | G53: oui | H53: Nuit | I53: 48.380556 | J53: -4.491667 | K53: x | L53: 0 | M53: 0 | O53: 60x50 | P53: Rectangulaire | Q53: 60 | R53: 50 | T53: HB | U53: non définie | V53: non défini | W53: non | X53: En surface | Y53: hostile non habitée | Z53: Gazon | AA53: Non définie | AB53: O/R | AC53: Oui | AD53: OUI | AE53: Préfecture maritime. | AF53: 48.380556,-4.491667 | AG53: Hélistation située à l'intérieur de la zone LF-P112. Contact LANVEOC TWR 123,200 MHz. | AI53: =IFERROR(IF(SEARCH('Entrees Heli'!B$2,'AD Heli'!C53)>0,A53,""),"") -> 52 | AJ53: 52 | AK53: 52 | AL53: BREST AMIRAUTE
A54: 53 | B54: [LF] | C54: BREST CENTRE HOSPITALIER LA CAVALE BLANCHE | D54: oui | E54: TPD | F54: non | G54: oui | H54: Nuit | I54: 48.403333 | J54: -4.529444 | K54: 2 | L54: 121 | M54: 36.9 | W54: non | X54: En surface | AB54: NIL | AC54: 1 extincteur à poudre 50 kg. 1 extincteur CO2 2 kg. | AD54: OUI | AE54: Centre hospitalier La Cavale Blanche - TEL : 02 98 22 33 33 | AF54: 48.403333,-4.529444 | AG54: Le survol des bâtiments compris dans le secteur des RDL 108° et 238° centré sur l'aire de prise de contact, est interdit.#Aire de sécurité : 36 x 31 m. | AI54: =IFERROR(IF(SEARCH('Entrees Heli'!B$2,'AD Heli'!C54)>0,A54,""),"") -> 53 | AJ54: 53 | AK54: 53 | AL54: BREST CENTRE HOSPITALIER LA CAVALE BLANCHE
A55: 54 | B55: [LF] | C55: BRIANCON | D55: oui | E55: RST | F55: non | G55: oui | H55: Nuit | I55: 44.906275 | J55: 6.632833 | K55: 2 | L55: 4372 | M55: 1332.5 | O55: 27x27 | P55: Carré | Q55: 27 | S55: 21x21 | T55: HB | U55: 1 | V55: AS 365 DAUPHIN | W55: oui | X55: En terrasse | Y55: hostile habitée | Z55: Structure métallique | AA55: 4t | AB55: NIL | AC55: Oui (2 lances à incendie avec adjuvant + 2 extincteurs poudre (2x9kg)) | AD55: OUI | AE55: Centre hospitalier TEL 04 92 25 25 25 | AF55: 44.906275,6.632833 | AI55: =IFERROR(IF(SEARCH('Entrees Heli'!B$2,'AD Heli'!C55)>0,A55,""),"") -> 54 | AJ55: 54 | AK55: 54 | AL55: BRIANCON
A56: 55 | B56: [LF] | C56: BRIGNOLES HOPITAL JEAN MARCEL | D56: non | E56: TPD | F56: non | G56: oui | H56: Nuit | I56: 43.403053 | J56: 6.066308 | K56: 2 | L56: 753 | M56: 229.5 | O56: 21x21 | P56: Carré | Q56: 21 | S56: 9,60x9,60 | T56: HB | U56: 1 | V56: EC135 LHT 13 m | W56: non | X56: En surface | Z56: Béton bitumineux | AA56: 4t | AB56: NIL | AC56: Oui (50kg poudre) | AD56: OUI | AE56: Centre hospitalier. Tél: 04 94 72 66 00. FAX: 04 94 72 67 35 | AF56: 43.403053,6.066308 | AG56: Préavis au gestionnaire exigé pour tout mouvement.#Trouée unique Ouest 265°.#Transport sanitaire uniquement.#Obstacles : cf VAC AD3 HST BRIGNOLES HOPITAL JEAN MARCEL | AI56: =IFERROR(IF(SEARCH('Entrees Heli'!B$2,'AD Heli'!C56)>0,A56,""),"") -> 55 | AJ56: 55 | AK56: 55 | AL56: BRIGNOLES HOPITAL JEAN MARCEL
A57: 56 | B57: [LF] | C57: CAEN CENTRE HOSPITALIER | D57: oui | E57: TPD | F57: non | G57: oui | H57: Nuit | I57: 49.203611 | J57: -0.3575 | K57: x | L57: 283 | M57: 86.3 | W57: oui | X57: En terrasse | AB57: NIL | AC57: extincteurs poudre : 1 x 100 kg, 3 x 50 kg, 3 x 9 kg | AD57: OUI | AE57: CHU CAEN NORMANDIE TEL : 02 31 06 49 33 / 02 31 06 66 67 | AF57: 49.203611,-0.3575 | AG57: Axe TKOF et LDG : 109°/289°#Pour LDG et TKOF, PPR 15 mn sur FREQ 122.980 MHz, indicatif SAMU 14 | AI57: =IFERROR(IF(SEARCH('Entrees Heli'!B$2,'AD Heli'!C57)>0,A57,""),"") -> 56 | AJ57: 56 | AK57: 56 | AL57: CAEN CENTRE HOSPITALIER
A58: 57 | B58: [LF] | C58: CALAIS CENTRE HOSPITALIER | D58: oui | E58: RST | F58: non | G58: oui | H58: Nuit | I58: 50.941283 | J58: 1.889481 | K58: x | L58: 11 | M58: 3.4 | O58: 15x15 | P58: Carré | Q58: 15 | S58: 11x11 | W58: non | X58: En surface | Z58: Béton | AA58: 4 t | AC58: OUI (50 kg poudre) | AD58: OUI (diurne et nocturne) | AE58: Centre Hospitalier de CALAIS TEL : 03 21 46 33 33 | AF58: 50.941283,1.889481 | AG58: Réservé aux transports sanitaires.# Trouées : 017°/197° | AI58: =IFERROR(IF(SEARCH('Entrees Heli'!B$2,'AD Heli'!C58)>0,A58,""),"") -> 57 | AJ58: 57 | AK58: 57 | AL58: CALAIS CENTRE HOSPITALIER
A59: 58 | B59: [LF] | C59: CALVI CENTRE HOSPITALIER | D59: non | E59: TPD | F59: non | G59: oui | H59: Nuit | I59: 42.549722 | J59: 8.763889 | K59: x | L59: 48 | M59: 14.6 | O59: 20.6 x 20.6 | P59: Carré | Q59: 20.6 | S59: 10 x 10 | T59: HB | U59: 1 | V59: AS 365 N3 | W59: non | X59: En surface | Y59: hostile habitée | Z59: Béton | AB59: NIL | AC59: OUI (50 kg poudre) | AD59: OUI (12 feux encastrés blancs + 12 feux encastrés verts) | AE59: Centre hospitalier de Bastia. Tél: 04 95 59 11 22 | AF59: 42.549722,8.763889 | AG59: Trouées : 015°/195° et 298°/108° | AI59: =IFERROR(IF(SEARCH('Entrees Heli'!B$2,'AD Heli'!C59)>0,A59,""),"") -> 58 | AJ59: 58 | AK59: 58 | AL59: CALVI CENTRE HOSPITALIER
A60: 59 | B60: [LF] | C60: CANNES BROUSSAILLES HOPITAL | D60: oui | E60: TPD | F60: non | G60: oui | H60: Nuit | I60: 43.564167 | J60: 7.005278 | K60: x | L60: 375 | M60: 114.3 | O60: 20x20 | P60: Carré | Q60: 20 | W60: oui | X60: En terrasse | Z60: Béton | AA60: 4.3t | AB60: H24 | AC60: Oui (Mousse : 2 postes fixes, Emulseur : 25l-débit : 200l/mn). | AD60: OUI + phare. | AE60: Centre Hospitalier TEL : 04 93 69 70 00 | AF60: 43.564167,7.005278 | AG60: Strictement réservée aux transports sanitaires PN gestionnaire.#MET : VIS 5 km, Base des nuages 1500 ft.#Trouée : 282°/102°#Présence d'un paratonnerre (385 ft) et d'une cheminée (381 ft) proches de la trouée. Le feu d'obstacle du paratonnerre se situe 2 m en dessous du sommet. | AI60: =IFERROR(IF(SEARCH('Entrees Heli'!B$2,'AD Heli'!C60)>0,A60,""),"") -> 59 | AJ60: 59 | AK60: 59 | AL60: CANNES BROUSSAILLES HOPITAL
A61: 60 | B61: [LF] | C61: CANNES MANDELIEU | D61: oui | E61: CAP | F61: non | G61: non | H61: Jour | I61: 43.546389 | J61: 6.954167 | K61: 2 | L61: 14 | M61: 4.3 | W61: non | X61: En surface | AF61: 43.546389,6.954167 | AI61: =IFERROR(IF(SEARCH('Entrees Heli'!B$2,'AD Heli'!C61)>0,A61,""),"") -> 60 | AJ61: 60 | AK61: 60 | AL61: CANNES MANDELIEU
A62: 61 | B62: [LF] | C62: CANNES QUAI DU LARGE | D62: oui | E62: TPD | F62: non | G62: non | H62: Jour | I62: 43.545 | J62: 7.017222 | K62: x | L62: 10 | M62: 3 | O62: Diamètre 21.6 m | P62: Circulaire | Q62: 21.6 | S62: Diamètre 12 m | U62: 1 interdite. | W62: non | X62: En surface | Z62: Béton | AA62: 5t | AB62: ETE : 0600 jusqu'au plus tôt de 1830 ou CS+30, HIV : 0700 - CS+30 | AC62: Oui (2 extincteurs 50kg poudre) | AD62: NIL | AE62: SARL HELIPARTNER Tél : 04 93 39 25 56/06 84 47 65 93 | AF62: 43.545,7.017222 | AG62: Pente de la surface de protection des trouées d'envol :#CP2 : 12.5 % / CP3 : + 8 % sur 245 m puis 16 %.# Flottabilité exigée.# Tout vol circulaire sans escale (ou série de vols) est soumis à l'accord préalable de l'exploitant ainsi qu' à l'accord préalable du service de la navigation aérienne Sud-Est.# Préavis au gestionnaire exigé : PN 15 mn lors des grandes manifestations annoncées par NOTAM ; ETE 1 HR, HIV 2 HR.# Trouée : secteur angulaire 140°/250° établi au-dessus de la mer.# Hélistation fermée hors HOR ATS CANNES MANDELIEU. | AI62: =IFERROR(IF(SEARCH('Entrees Heli'!B$2,'AD Heli'!C62)>0,A62,""),"") -> 61 | AJ62: 61 | AK62: 61 | AL62: CANNES QUAI DU LARGE
A63: 62 | B63: [LF] | C63: CARCASSONNE MONTREDON CENTRE HOSPITALIER | D63: oui | E63: TPD | F63: non | G63: oui | H63: Nuit | I63: 43.219722 | J63: 2.394444 | K63: x | L63: 352 | M63: 107.3 | O63: 20.6 x 20.6 | P63: Carré | Q63: 20.6 | S63: 20.6 x 20.6 | T63: HB | U63: 1 | V63: EC 135 | W63: oui | X63: En terrasse | Y63: hostile habitée | Z63: Béton | AA63: 4 t | AC63: 2 extincteurs 50 kg poudre | AD63: OUI | AE63: Centre hospitalier de Carcassonne Urgences : TEL 04 68 24 27 73 - PC Sécurité : TEL 04 68 24 22 22 - FAX 04 68 24 35 49 - SAMU : TEL 04 68 11 78 70 | AF63: 43.219722,2.394444 | AG63: Réservé aux opérations de transport sanitaire.#AVT : JET A1.#Conditions d'exploitation :#Aire de sécurité : 20.6 x 20.6 m.#Trouée Est orientée 111° (direction préférentielle d'atterrissage), jour et nuit.#Atterrissage au QFU 029 et décollage au QFU 011.#Trouée Nord-ouest orientée 303° (direction préférentielle de décollage), jour et nuit.# Atterrissage au QFU 012 et décollage au QFU 030. Accès à l'AST en terrasse exclusivement en translation dans l'effet de sol. | AI63: =IFERROR(IF(SEARCH('Entrees Heli'!B$2,'AD Heli'!C63)>0,A63,""),"") -> 62 | AJ63: 62 | AK63: 62 | AL63: CARCASSONNE MONTREDON CENTRE HOSPITALIER
A64: 63 | B64: [LF] | C64: CARPENTRAS CENTRE HOSPITALIER | D64: oui | E64: RST | F64: non | G64: oui | H64: Nuit | I64: 44.046667 | J64: 5.025833 | K64: 2 | L64: 285 | M64: 86.9 | O64: 21 x 21 m | P64: Carré | Q64: 21 | S64: 21 x 21 m | W64: oui | X64: En terrasse | Z64: Béton bitumineux | AA64: 4 t | AB64: NIL | AC64: Extincteurs poudre : 1x100kg, 2x50kg, 6x9kg | AD64: OUI | AE64: Pôle Santé de Carpentras : TEL 04 32 85 88 88#FAX 04 32 85 89 01 | AF64: 44.046667,5.025833 | AG64: Réservée aux transports sanitaires d'urgence héliportés#Aire de sécurité : 27 m x 27 m.#Axes préférentiels LDG / TKOF : 133° / 313° | AI64: =IFERROR(IF(SEARCH('Entrees Heli'!B$2,'AD Heli'!C64)>0,A64,""),"") -> 63 | AJ64: 63 | AK64: 63 | AL64: CARPENTRAS CENTRE HOSPITALIER
A65: 64 | B65: [LF] | C65: CASTRES CENTRE HOSPITALIER | D65: non | E65: RST | F65: non | G65: oui | H65: Nuit | I65: 43.603844 | J65: 2.239203 | K65: 2 | L65: 642 | M65: 195.7 | O65: 13x9 | P65: Rectangulaire | Q65: 13 | R65: 9 | T65: HB | U65: non définie | V65: non défini | W65: non | X65: En surface | Y65: hostile habitée | Z65: Béton | AA65: 3t | AB65: NIL | AC65: Oui (5x50kg poudre) | AD65: 12 feux jaunes omnidirectionnels encastrés;4 projecteurs d'ambiance | AE65: SAMU-SMUR Tél:05 63 71 15 15. | AF65: 43.603844,2.239203 | AG65: PPR exploitant. Ecoute Castres AFIS 118,5MHz. OBST :clocher éclairé dans le 020°. Axe LDG 150°. Axe TKOF 170°. Située dans le 139°/2NM du NDB "CVU" 356KHz et sous l'axe d'APCH ILS de l'AD de Castres-Mazamet. | AI65: =IFERROR(IF(SEARCH('Entrees Heli'!B$2,'AD Heli'!C65)>0,A65,""),"") -> 64 | AJ65: 64 | AK65: 64 | AL65: CASTRES CENTRE HOSPITALIER
A66: 65 | B66: [LF] | C66: CASTRES HAUTERIVE CENTRE HOSPITALIER | D66: oui | E66: TPD | F66: non | G66: oui | H66: =IF(G66="oui","Nuit","Jour") -> Nuit | I66: 43.565 | J66: 2.26 | K66: 2 | L66: 610 | M66: =ROUND(L66/3.281,1) -> 185.9 | O66: 20x20 | P66: Carré | Q66: 20 | S66: 11x11 | T66: HB | U66: 1 | V66: EC 135 | W66: non | X66: =IF(W66="oui","En terrasse",IF(W66="non","En surface","")) -> En surface | Z66: Béton de ciment | AA66: 7.5 t | AB66: NIL | AC66: Oui (50kg poudre) | AD66: OUI | AE66: Hôpital du pays de l'Autan TEL : 05 63 71 63 71 | AF66: 43.565,2.26 | AG66: Présence d'une ligne électrique haute tension non balisée à 1000 m au Nord-Ouest de l'hélistation.#Hélistation spécialement destinée aux transports sanitaires et vols de service médical d'urgence hospitalière (SMUH).#Axes APCH et TKOF : 151°/331° et 125°/305°. | AI66: =IFERROR(IF(SEARCH('Entrees Heli'!B$2,'AD Heli'!C66)>0,A66,""),"") -> 65 | AJ66: =IFERROR(RANK(AI66,AI$2:AI$808,1),"") -> 65 | AK66: =IFERROR(VLOOKUP(A66,AJ$2:AJ$808,1,FALSE),"") -> 65 | AL66: =IF(AK66<>"",LOOKUP(AK66,AJ$2:AJ$808,C$2:C$808),"") -> CASTRES HAUTERIVE CENTRE HOSPITALIER
A67: 66 | B67: [SO] | C67: CAYENNE CENTRE HOSPITALIER | D67: non | E67: TPD | F67: non | G67: oui | H67: Nuit | I67: 4.922778 | J67: -52.321944 | K67: 2 | L67: 49 | M67: 14.9 | O67: 26x26 | P67: Carré | Q67: 26 | S67: 26x26 | W67: oui | X67: En terrasse | Z67: Composite | AA67: 11.2t | AB67: H24 | AC67: 5 extincteurs à poudre de 50 kg, 2 PIA mousse + 2 agents sur site. | AD67: OUI (40 feux encastrés + 6 projecteurs) | AE67: Centre Hospitalier de Cayenne Andrée ROSEMON - TEL : 0594 39 51 51 - FAX : 0594 37 85 83 | AF67: 4.922778,-52.321944 | AG67: Réservé au transport sanitaire.#Deux trouées d'atterrissage désaxées de 11° suivant les axes 136° et 305°. | AI67: =IFERROR(IF(SEARCH('Entrees Heli'!B$2,'AD Heli'!C67)>0,A67,""),"") -> 66 | AJ67: 66 | AK67: 66 | AL67: CAYENNE CENTRE HOSPITALIER
A68: 67 | B68: [LF] | C68: CERBERE | D68: non | E68: RST | F68: non | G68: oui | H68: Nuit | I68: 42.458908 | J68: 3.159917 | K68: 2 | L68: 50 | M68: 15.2 | O68: 12x12 | P68: Carré | Q68: 12 | T68: HB | U68: non définie | V68: non défini | W68: non | X68: En surface | Y68: hostile non habitée | Z68: Béton bitumineux | AA68: 4t | AB68: NIL | AC68: NIL | AD68: OUI | AE68: Centre médical du cap Peyrefite. | AF68: 42.458908,3.159917 | AG68: En période estivale, survol plage de Peyrefite interdit lors des LDG et TKOF. | AI68: =IFERROR(IF(SEARCH('Entrees Heli'!B$2,'AD Heli'!C68)>0,A68,""),"") -> 67 | AJ68: 67 | AK68: 67 | AL68: CERBERE
A69: 68 | B69: [LF] | C69: CHALLANS | D69: oui | E69: TPD | F69: non | G69: oui | H69: Nuit | I69: 46.854167 | J69: -1.830556 | K69: x | L69: 130 | M69: 39.6 | O69: 27x27 | P69: Carré | Q69: 27 | S69: 11x11 | T69: HB | U69: 1 | V69: AS 365 Dauphin | W69: non | X69: En surface | Y69: hostile non habitée | Z69: Béton bitumineux | AA69: 5t | AB69: NIL | AC69: Oui (50kg poudre) | AD69: OUI | AE69: Mairie de CHALLANS. TEL : 02 51 49 79 79 ou 06 26 01 81 84 (astreinte) | AF69: 46.854167,-1.830556 | AG69: Hélistation réservée principalement et prioritairement aux transports sanitaires et vols de service médical d'urgence (SMUH).#Utilisation de l'hélistation par un seul hélicoptère à la fois. | AI69: =IFERROR(IF(SEARCH('Entrees Heli'!B$2,'AD Heli'!C69)>0,A69,""),"") -> 68 | AJ69: 68 | AK69: 68 | AL69: CHALLANS
A70: 69 | B70: [LF] | C70: CHALON SUR SAONE CENTRE HOSPITALIER W. MOREY | D70: oui | E70: TPD | F70: non | G70: oui | H70: Nuit | I70: 46.7775 | J70: 4.841944 | K70: x | L70: 665 | M70: 202.7 | O70: 20 x 20 m | P70: Carré | Q70: 20 | S70: 20 x 20 m | W70: oui | X70: En terrasse | Z70: Béton | AA70: 3.8 t | AB70: O/R gestionnaire. | AC70: OUI (250kg poudre + 20kg CO2, répartis sur 4 postes, 2 RIA mousse) | AD70: OUI | AE70: Centre Hospitalier W. MOREY - TEL 03 85 44 66 88 - FAX 03 85 44 66 99. | AF70: 46.7775,4.841944 | AG70: Aire de sécurité : 26.50 m x 26.50 m. | AI70: =IFERROR(IF(SEARCH('Entrees Heli'!B$2,'AD Heli'!C70)>0,A70,""),"") -> 69 | AJ70: 69 | AK70: 69 | AL70: CHALON SUR SAONE CENTRE HOSPITALIER W. MOREY
A71: 70 | B71: [LF] | C71: CHAMBERY CENTRE HOSPITALIER | D71: oui | E71: TPD | F71: non | G71: oui | H71: Nuit | I71: 45.563056 | J71: 5.911944 | K71: 2 | L71: 1020 | M71: 310.9 | O71: 20x20 | P71: Carré | Q71: 20 | T71: HB | U71: 1 | V71: EC 145 | W71: oui | X71: En terrasse | Y71: hostile habitée | Z71: Béton | AA71: 3.6 t | AB71: NIL | AC71: Oui (5 poudre ABC de 50kg + 1 CO2 de 20 kg) | AD71: OUI | AE71: Centre hospitalier Métropole Savoie TEL 04 79 96 61 72 | AF71: 45.563056,5.911944 | AG71: Aviser centre hospitalier Tél : 04 79 96 61 72 ou contacter ANTARES DIR 617.#Hélistation réservée exclusivement au transport sanitaire.#Aire de stationnement présente. | AI71: =IFERROR(IF(SEARCH('Entrees Heli'!B$2,'AD Heli'!C71)>0,A71,""),"") -> 70 | AJ71: 70 | AK71: 70 | AL71: CHAMBERY CENTRE HOSPITALIER
A72: 71 | B72: [LF] | C72: CHAMONIX CENTRE HOSPITALIER | D72: oui | E72: TPD | F72: non | G72: oui | H72: Nuit | I72: 45.914444 | J72: 6.863056 | K72: x | L72: 3399 | M72: 1036 | O72: Diamètre 12 | P72: Circulaire | Q72: 12 | S72: Diamètre 12 | T72: HB | U72: non définie | V72: non défini | W72: non | X72: En surface | Y72: hostile habitée | Z72: Béton | AA72: 10t | AB72: NIL | AC72: Oui (50kg poudre) | AD72: OUI | AE72: Centre Hospitalier de CHAMONIX TEL 04 50 53 84 00. | AF72: 45.914444,6.863056 | AG72: Réservée au transport sanitaire. | AI72: =IFERROR(IF(SEARCH('Entrees Heli'!B$2,'AD Heli'!C72)>0,A72,""),"") -> 71 | AJ72: 71 | AK72: 71 | AL72: CHAMONIX CENTRE HOSPITALIER
A73: 72 | B73: [LF] | C73: CHAMONIX SECURITE | D73: non | E73: TPD | F73: non | G73: non | H73: Jour | I73: 45.938919 | J73: 6.895811 | K73: 2 | L73: 3532 | M73: 1076.5 | O73: Diamètre 25 | P73: Circulaire | Q73: 25 | S73: Diamètre 25 | T73: HB | U73: non définie | V73: non défini | W73: non | X73: En surface | Y73: hostile non habitée | Z73: Revêtue | AA73: 4t | AB73: NIL | AC73: Oui (50kg poudre) | AD73: NIL | AE73: Commune de CHAMONIX. | AF73: 45.938919,6.895811 | AG73: Réservée aux opérations d'assistance et de secours. | AI73: =IFERROR(IF(SEARCH('Entrees Heli'!B$2,'AD Heli'!C73)>0,A73,""),"") -> 72 | AJ73: 72 | AK73: 72 | AL73: CHAMONIX SECURITE
A74: 73 | B74: [LF] | C74: CHARLEVILLE MEZIERES CENTRE HOSPITALIER | D74: oui | E74: TPD | F74: non | G74: oui | H74: Nuit | I74: 49.762608 | J74: 4.697583 | K74: 2 | L74: 577 | M74: 175.9 | O74: 20x25.2 | P74: Rectangulaire | Q74: 25.2 | R74: 20 | S74: 20x25.2 | T74: HB | U74: 1 | V74: EC 135 | W74: oui | X74: En terrasse | Y74: hostile habitée | Z74: Béton | AA74: 5t | AB74: NIL | AC74: OUI (2 x 150 kg poudre) | AD74: OUI | AE74: Centre Hospitalier - TEL SAMU : 03 24 56 76 55 | AF74: 49.762608,4.697583 | AI74: =IFERROR(IF(SEARCH('Entrees Heli'!B$2,'AD Heli'!C74)>0,A74,""),"") -> 73 | AJ74: 73 | AK74: 73 | AL74: CHARLEVILLE MEZIERES CENTRE HOSPITALIER
A75: 74 | B75: [LF] | C75: CHARTRES CENTRE HOSPITALIER | D75: oui | E75: TPD | F75: non | G75: oui | H75: Nuit | I75: 48.42 | J75: 1.504722 | K75: x | L75: 488 | M75: 148.7 | O75: 25x30 | P75: Rectangulaire | Q75: 30 | R75: 25 | S75: 14x14 | T75: HB | U75: 1 | V75: AS 365 N2 | W75: non | X75: En surface | Y75: hostile habitée | Z75: Enrobé béton | AA75: 4.2t | AB75: NIL | AC75: Oui (50kg poudre) | AD75: Diurne et nocturne | AE75: Centre Hospitalier de Chartres hôtel Dieu Louis Pasteur.#TEL 02 37 28 28 66#FAX 02 37 30 32 75 | AF75: 48.42,1.504722 | AG75: Réservé aux évacuations sanitaires.#Axes: 118°/298°#A/A 119.2 obligatoire | AI75: =IFERROR(IF(SEARCH('Entrees Heli'!B$2,'AD Heli'!C75)>0,A75,""),"") -> 74 | AJ75: 74 | AK75: 74 | AL75: CHARTRES CENTRE HOSPITALIER
A76: 75 | B76: [LF] | C76: CHATEAUROUX CENTRE HOSPITALIER | D76: oui | E76: TPD | F76: non | G76: oui | H76: Nuit | I76: 46.798278 | J76: 1.697222 | K76: x | L76: 558 | M76: 170.1 | N76: 43 | W76: oui | X76: En terrasse | AB76: NIL | AC76: Oui (2 lances, 2 extincteurs 100 kg, 1 extincteur 50 kg). | AD76: Diurne et nocturne | AE76: Centre Hospitalier de Chateauroux Le Blanc. TEL : 02 54 29 60 00 | AF76: 46.798278,1.697222 | AG76: O/R SAMU TEL : 02 54 29 60 00 et 02 54 22 70 17.#Réservé aux EVASAN.#Contact radio obligatoire avec CHATEAUROUX TWR ou INFO et A/A en dehors des HOR ATS.#Trouées : 011°/191° et 022°/202°. | AI76: =IFERROR(IF(SEARCH('Entrees Heli'!B$2,'AD Heli'!C76)>0,A76,""),"") -> 75 | AJ76: 75 | AK76: 75 | AL76: CHATEAUROUX CENTRE HOSPITALIER
A77: 76 | B77: [LF] | C77: CHATELLERAULT CENTRE HOSPITALIER | D77: oui | E77: TPD | F77: non | G77: oui | H77: Nuit | I77: 46.832778 | J77: 0.556667 | K77: x | L77: 277 | M77: 84.4 | T77: HB | V77: EC 135 | W77: oui | X77: En terrasse | Y77: hostile habitée | Z77: Bitume | AA77: 4,5t | AB77: NIL | AC77: Oui (50kg poudre) | AD77: OUI | AE77: Hôpital Chatellerault | AF77: 46.832778,0.556667 | AG77: Trouée Ouest, de jour classe de performance 1. Trouée Est,de jour et de nuit classes de performance 1,2 et 3. | AI77: =IFERROR(IF(SEARCH('Entrees Heli'!B$2,'AD Heli'!C77)>0,A77,""),"") -> 76 | AJ77: 76 | AK77: 76 | AL77: CHATELLERAULT CENTRE HOSPITALIER
A78: 77 | B78: [LF] | C78: CHATILLON SUR SEINE CENTRE HOSPITALIER | D78: oui | E78: TPD | F78: non | G78: oui | H78: Nuit | I78: 47.861667 | J78: 4.558889 | K78: 2 | L78: 792 | M78: 241.4 | O78: 20x30 | P78: Rectangulaire | Q78: 30 | R78: 20 | S78: 14x14 | T78: HB | U78: 1 | V78: EC 135 | W78: non | X78: En surface | Y78: hostile habitée | Z78: Bitume | AA78: 5t | AB78: NIL | AC78: Oui (2 extincteurs 50kg poudre) | AD78: Diurne et nocturne | AE78: Centre hospitalier "Michel SORDEL" | AF78: 47.861667,4.558889 | AI78: =IFERROR(IF(SEARCH('Entrees Heli'!B$2,'AD Heli'!C78)>0,A78,""),"") -> 77 | AJ78: 77 | AK78: 77 | AL78: CHATILLON SUR SEINE CENTRE HOSPITALIER
A79: 78 | B79: [LF] | C79: CHAUNY CENTRE HOSPITALIER | D79: oui | E79: TPD | F79: non | G79: oui | H79: Nuit | I79: 49.626111 | J79: 3.2375 | K79: x | L79: 180 | M79: 54.9 | W79: non | X79: En surface | AB79: NIL | AC79: Oui (extincteur sur roues 50kg poudre) | AD79: OUI | AE79: Centre hospitalier de Chauny Tél.03 23 38 55 00 FAX 03 23 39 24 33. | AF79: 49.626111,3.2375 | AG79: Trouée 340° Départ CP1 arrivée interdite.#Trouée 160° Départ CP2 arrivée CP1. | AI79: =IFERROR(IF(SEARCH('Entrees Heli'!B$2,'AD Heli'!C79)>0,A79,""),"") -> 78 | AJ79: 78 | AK79: 78 | AL79: CHAUNY CENTRE HOSPITALIER
A80: 79 | B80: [LF] | C80: CHERBOURG ARSENAL-PREMAR | D80: non | E80: TPD | F80: non | G80: non | H80: Jour | I80: 49.653889 | J80: -1.64 | K80: x | L80: 26 | M80: 7.9 | T80: HB | U80: non définie | V80: non défini | AB80: NIL | AE80: Préfecture Maritime de Cherbourg. | AF80: 49.653889,-1.64 | AG80: Hélistation située à l'intérieur de la zone LF-P81. Utilisable de jour en VMC pour les appareils civils. | AI80: =IFERROR(IF(SEARCH('Entrees Heli'!B$2,'AD Heli'!C80)>0,A80,""),"") -> 79 | AJ80: 79 | AK80: 79 | AL80: CHERBOURG ARSENAL-PREMAR
A81: 80 | B81: [LF] | C81: CHIVA (FOIX)CENTRE HOSPITALIER | D81: oui | E81: TPD | F81: non | G81: oui | H81: Nuit | I81: 43.025325 | J81: 1.617617 | K81: 2 | L81: 1151 | M81: 350.8 | O81: 23x23 | P81: Carré | Q81: 23 | S81: 10.2x10.2 | T81: HB | U81: 1 | V81: EC 135 | W81: non | X81: En surface | Y81: hostile non habitée | Z81: Enrobé | AA81: 8.67t | AC81: Extincteurs poudre polyvalente classe ABC: 1x9Kg et 2X50 Kg sur roues | AD81: Lumineux | AE81: Centre Hospitalier Intercommunal du Val d'Ariège | AF81: 43.025325,1.617617 | AI81: =IFERROR(IF(SEARCH('Entrees Heli'!B$2,'AD Heli'!C81)>0,A81,""),"") -> 80 | AJ81: 80 | AK81: 80 | AL81: CHIVA (FOIX)CENTRE HOSPITALIER
A82: 81 | B82: [LF] | C82: CHOLET CENTRE HOSPITALIER | D82: oui | E82: TPD | F82: non | G82: oui | H82: Nuit | I82: 47.041414 | J82: -0.897361 | K82: 2 | L82: 352 | M82: 107.3 | O82: 24.15x24.15 m | P82: Carré | Q82: 24.15 | S82: 11.50x11.50 m | T82: HB | U82: 1 | V82: EC 135 T2 ou HEL dont LHT < ou = 13m | W82: non | X82: En surface | Y82: hostile habitée | Z82: Béton | AA82: 4.3t | AB82: NIL | AC82: 1 extincteur poudre sur roues 50 kg. | AD82: NIL | AE82: Centre hospitalier. TEL : 02 41 49 64 01 - 02 41 49 68 94 | AF82: 47.041414,-0.897361 | AG82: Reconnaissance obligatoire. PN exploitant afin de neutraliser les voies de circulation situées sous les trouées. | AI82: =IFERROR(IF(SEARCH('Entrees Heli'!B$2,'AD Heli'!C82)>0,A82,""),"") -> 81 | AJ82: 81 | AK82: 81 | AL82: CHOLET CENTRE HOSPITALIER
A83: 82 | B83: [LF] | C83: CLAMART HOPITAL D'INSTRUCTION DES ARMEES DE PERCY | D83: non | E83: TPD | F83: non | G83: oui | H83: Nuit | I83: 48.814297 | J83: 2.253933 | K83: 2 | L83: 333 | M83: 101.5 | O83: Octogone 47x36x28x36 | S83: Octogone 47x36x28x36 | T83: HB | U83: 1 | V83: AS 322 Super PUMA | W83: oui | X83: En terrasse | Y83: hostile habitée | Z83: Béton | AA83: 9t | AB83: NIL | AC83: NIL | AD83: OUI | AE83: Hôpital Tél.01 46 73 72 99. | AF83: 48.814297,2.253933 | AG83: QFU TKOF : 171 / 336.#QFU ATT : 351 / 156.#Utilisation de nuit réservée aux vols classés URGENTS.#Avant TKOF, TEL ATS LFPV 01 45 07 36 20 et LFPI 01 45 58 55 88.ALT survol 1500ft AMSL(sauf CLR ATS).Procédures:#TKOF 171: Carrefour anémomètre-WH3 ou NE.#TKOF 336: Seine-ITI HEL-IH2 ou LFPI. Antenne sous la trajectoire.#ATT 351: WH3 ou NE-ITI HEL-Carrefour anémomètre.#ATT 156: Pont Billancourt-Hélistation. | AI83: =IFERROR(IF(SEARCH('Entrees Heli'!B$2,'AD Heli'!C83)>0,A83,""),"") -> 82 | AJ83: 82 | AK83: 82 | AL83: CLAMART HOPITAL D'INSTRUCTION DES ARMEES DE PERCY
A84: 83 | B84: [LF] | C84: CLERMONT FERRAND ESTAING | D84: oui | E84: TPD | F84: non | G84: oui | H84: Nuit | I84: 45.785556 | J84: 3.109722 | K84: 2 | L84: 1203 | M84: 366.7 | N84: 55 | W84: oui | X84: En terrasse | AB84: H24 | AC84: Oui (6 extincteurs poudre 9 kg + 2 extincteurs poudre 100 kg) | AD84: OUI | AE84: Centre Hospitalier Estaing (SAMU/CODIS :TEL 04 73 41 40 15 / FAX 04 73 41 40 91) | AF84: 45.785556,3.109722 | AG84: Réservé au SMUH.#Contacter SAMU/CODIS 15 MIN avant l'arrivée.#Contacter CLERMONT TWR : 118,625 MHz. | AI84: =IFERROR(IF(SEARCH('Entrees Heli'!B$2,'AD Heli'!C84)>0,A84,""),"") -> 83 | AJ84: 83 | AK84: 83 | AL84: CLERMONT FERRAND ESTAING
A85: 84 | B85: [LF] | C85: CLERMONT FERRAND SAINT JACQUES | D85: oui | E85: TPD | F85: non | G85: oui | H85: Nuit | I85: 45.756983 | J85: 3.091861 | K85: 2 | L85: 1366 | M85: 416.3 | O85: 22x22 | P85: Carré | Q85: 22 | T85: HB | U85: 1 | V85: EC 145 | W85: non | X85: En surface | Y85: hostile habitée | Z85: Enrobé | AA85: 13t | AB85: NIL | AC85: Oui (109 kg poudre) | AD85: OUI. Rampe d'approche. | AE85: CHRU Saint Jacques (SAMU/CODIS :TEL 04 73 41 40 15 / FAX 04 73 41 40 91) | AF85: 45.756983,3.091861 | AG85: Réservé uniquement au transport sanitaire. Contacter SAMU/CODIS 15 MIN avant l'arrivée. Contacter CLERMONT TWR : 118,625 MHz. | AI85: =IFERROR(IF(SEARCH('Entrees Heli'!B$2,'AD Heli'!C85)>0,A85,""),"") -> 84 | AJ85: 84 | AK85: 84 | AL85: CLERMONT FERRAND SAINT JACQUES
A86: 85 | B86: [LF] | C86: COLMAR HOPITAL PASTEUR | D86: oui | E86: RST | F86: non | G86: oui | H86: Nuit | I86: 48.073861 | J86: 7.338111 | K86: 2 | L86: 710 | M86: 216.4 | W86: oui | X86: En terrasse | AB86: NIL | AC86: Oui ( 3 extincteurs 100 kg, 100 kg poudre, et 50kg poudre) | AD86: OUI | AE86: Centre hospitalier de COLMAR PASTEUR: TEL 03 89 12 45 09, FAX 03 89 12 44 48 | AF86: 48.073861,7.338111 | AG86: Réservé au service médical d'urgence PN 15 MIN.#Axes d'approche et de décollage 080°/260°. | AI86: =IFERROR(IF(SEARCH('Entrees Heli'!B$2,'AD Heli'!C86)>0,A86,""),"") -> 85 | AJ86: 85 | AK86: 85 | AL86: COLMAR HOPITAL PASTEUR
A87: 86 | B87: [LF] | C87: COLMAR MEYENHEIM | D87: non | E87: ADM | F87: non | G87: oui | H87: Nuit | I87: 47.919167 | J87: 7.4025 | K87: 2 | L87: 660 | M87: 201.2 | O87: 190 x 15 | P87: Rectangulaire | Q87: 190 | R87: 15 | S87: 15 x 15 | T87: HB | U87: 1, 2 et 3 | V87: EC 135 | W87: non | X87: En surface | Z87: Béton | AA87: 12 t | AB87: H24 7/7 | AC87: CO2 2x10kg | AD87: balisage lumineux TLOF + manche à air | AE87: DAG Tel : 03 89 62 92 60 (H24) | AF87: 47.919167,7.4025 | AG87: QFU : 01/19 | AI87: =IFERROR(IF(SEARCH('Entrees Heli'!B$2,'AD Heli'!C87)>0,A87,""),"") -> 86 | AJ87: 86 | AK87: 86 | AL87: COLMAR MEYENHEIM
A88: 87 | B88: [LF] | C88: CORBEIL-ESSONNES CENTRE HOSPITALIER SUD FRANCILIEN | D88: oui | E88: TPD | F88: non | G88: oui | H88: Nuit | I88: 48.620278 | J88: 2.457222 | K88: 2 | L88: 338 | M88: 103 | W88: oui | X88: En terrasse | AB88: H24 | AC88: OUI (5 extincteurs de 50 kg + 3 de 9 kg poudre) | AD88: OUI | AE88: Centre Hospitalier TEL : 01 61 69 54 53 / 58 - FAX : 01 61 69 54 63 | AF88: 48.620278,2.457222 | AG88: Réservé au transport sanitaire.#Axes 141°/321°.#Contact obligatoire avec ORLY TWR 118.7 Mhz avant de pénétrer dans la CTR PARIS et pour le départ vers le nord. | AI88: =IFERROR(IF(SEARCH('Entrees Heli'!B$2,'AD Heli'!C88)>0,A88,""),"") -> 87 | AJ88: 87 | AK88: 87 | AL88: CORBEIL-ESSONNES CENTRE HOSPITALIER SUD FRANCILIEN
A89: 88 | B89: [LF] | C89: CREIL CENTRE HOSPITALIER LAENNEC | D89: oui | E89: TPD | F89: non | G89: oui | H89: Nuit | I89: 49.247222 | J89: 2.458056 | K89: x | L89: 238 | M89: 72.5 | O89: 20.6x20.6 | P89: Carré | Q89: 20.6 | S89: 9x9 | T89: HB | U89: 1 | V89: AS 365 N3 | W89: non | X89: En surface | Y89: hostile habitée | Z89: enrobé | AA89: 4.3t | AB89: NIL | AC89: Oui (50 kg poudre) | AD89: OUI | AE89: Centre Hospitalier de Creil, Tél.03 44 61 67 85. | AF89: 49.247222,2.458056 | AG89: Réservée aux opérations de transport sanitaire.# 2 trouées d'envol orientées 199° et 349°, utilisables également à l'ATT. | AI89: =IFERROR(IF(SEARCH('Entrees Heli'!B$2,'AD Heli'!C89)>0,A89,""),"") -> 88 | AJ89: 88 | AK89: 88 | AL89: CREIL CENTRE HOSPITALIER LAENNEC
A90: 89 | B90: [LF] | C90: CRETEIL CENTRE HOSPITALIER HENRI MONDOR | D90: oui | E90: TPD | F90: non | G90: oui | H90: Nuit | I90: 48.798758 | J90: 2.453483 | K90: 2 | L90: 160 | M90: 48.8 | W90: oui | X90: En terrasse | AB90: H24 | AC90: OUI (6 extincteurs poudre de 50 kg et 1 extincteur CO2 de 5 kg) | AD90: OUI (Feux verts périphériques + projecteur) | AE90: Centre Hospitalier Henri Mondor - TEL : 01 45 17 95 00 | AF90: 48.798758,2.453483 | AG90: Poste de stationnement réservé à l'hélicoptère basé.#Pente des surfaces de protection : 4.5%#Présence d'obstacles trouant cette pente.#Présence d'un parking aérien à proximité de la FATO (ALT 193 ft).#Strictement réservée aux transports sanitaires.# Gestionnaire SAMU IDF : 122.975 MHz.#Contact radio obligatoire 5 mn avant de poser.# MET : Vents dominants Sud-Ouest# Trouées : 106°/312°. | AI90: =IFERROR(IF(SEARCH('Entrees Heli'!B$2,'AD Heli'!C90)>0,A90,""),"") -> 89 | AJ90: 89 | AK90: 89 | AL90: CRETEIL CENTRE HOSPITALIER HENRI MONDOR
A91: 90 | B91: [LF] | C91: DAX AZUR | D91: non | E91: ADM | F91: non | G91: non | H91: Jour | I91: 43.806944 | J91: -1.255556 | K91: x | L91: 121 | M91: 36.9 | O91: 600x24 | P91: Rectangulaire | Q91: 600 | R91: 24 | T91: HB | U91: non définie | V91: non défini | W91: non | X91: En surface | Y91: hostile non habitée | Z91: Bitume | AB91: NIL | AC91: NIL | AD91: NIL | AE91: EA ALAT Base école de DAX | AF91: 43.806944,-1.255556 | AG91: QFU: 14/32.#Réservée aux aéronefs défense de la base école de DAX.#Aéronefs extérieurs: contact obligatoire avec DAX OPERATIONS pour autorisation TEL 05 58 35 93 87.#Contact DAX TWR: 118.325 Mhz.#AZUR A/A: 33.35 Mhz. | AI91: =IFERROR(IF(SEARCH('Entrees Heli'!B$2,'AD Heli'!C91)>0,A91,""),"") -> 90 | AJ91: 90 | AK91: 90 | AL91: DAX AZUR
A92: 91 | B92: [LF] | C92: DAX CASTETS | D92: non | E92: ADM | F92: non | G92: non | H92: Jour | I92: 43.916667 | J92: -1.156944 | K92: x | L92: 184 | M92: 56.1 | O92: 800x90 | P92: Rectangulaire | Q92: 800 | R92: 90 | T92: HB | U92: non définie | V92: non défini | W92: non | X92: En surface | Y92: hostile non habitée | Z92: Gazon | AB92: NIL | AC92: NIL | AD92: NIL | AE92: EA ALAT Base école de DAX | AF92: 43.916667,-1.156944 | AG92: QFU: 06/24.#Réservée aux aéronefs défense de la base école de DAX.#Aéronefs extérieurs: contact obligatoire avec DAX OPERATIONS pour autorisation TEL 05 58 35 93 87.#Contact DAX TWR: 118.325 Mhz.#CASTETS A/A: 30.2 Mhz. | AI92: =IFERROR(IF(SEARCH('Entrees Heli'!B$2,'AD Heli'!C92)>0,A92,""),"") -> 91 | AJ92: 91 | AK92: 91 | AL92: DAX CASTETS
A93: 92 | B93: [LF] | C93: DAX CENTRE HOSPITALIER | D93: oui | E93: TPD | F93: non | G93: oui | H93: Nuit | I93: 43.7125 | J93: -1.040278 | K93: x | L93: 31 | M93: 9.4 | O93: 30x25 | P93: Rectangulaire | Q93: 30 | R93: 25 | S93: Diamètre 12 | T93: HB | W93: non | X93: En surface | Y93: hostile habitée | Z93: Bitume | AA93: 5t | AB93: NIL | AC93: Oui (1 extincteur 20kg CO2) | AD93: oui | AE93: Centre hospitalier | AF93: 43.7125,-1.040278 | AG93: Fréquence : DAX OPERATIONS 122,975 Mhz. Réservée aux transports sanitaires.#Contacter DAX TWR sur 118,325 MHz pendant horaires d'activité L F-R40.Utilisation de l'hélistation par un seul HEL á la fois. | AI93: =IFERROR(IF(SEARCH('Entrees Heli'!B$2,'AD Heli'!C93)>0,A93,""),"") -> 92 | AJ93: 92 | AK93: 92 | AL93: DAX CENTRE HOSPITALIER
A94: 93 | B94: [LF] | C94: DAX HERM | D94: non | E94: ADM | F94: non | G94: non | H94: Jour | I94: 43.822222 | J94: -1.111111 | K94: x | L94: 253 | M94: 77.1 | O94: 600x24 | P94: Rectangulaire | Q94: 600 | R94: 24 | T94: HB | U94: non définie | V94: non défini | W94: non | X94: En surface | Y94: hostile non habitée | Z94: Bitume | AB94: NIL | AC94: NIL | AD94: NIL | AE94: EA ALAT Base école de DAX | AF94: 43.822222,-1.111111 | AG94: QFU: 06/24.#Réservée aux aéronefs défense de la base école de DAX.#Aéronefs extérieurs: contact obligatoire avec DAX OPERATIONS pour autorisation TEL 05 58 35 93 87.#Contact DAX TWR: 118.325 Mhz.#HERM A/A: 32.6 Mhz. | AI94: =IFERROR(IF(SEARCH('Entrees Heli'!B$2,'AD Heli'!C94)>0,A94,""),"") -> 93 | AJ94: 93 | AK94: 93 | AL94: DAX HERM
A95: 94 | B95: [LF] | C95: DAX PONTONX | D95: non | E95: ADM | F95: non | G95: non | H95: Jour | I95: 43.777778 | J95: -0.919444 | K95: x | L95: 53 | M95: 16.2 | O95: 300x250 | P95: Rectangulaire | Q95: 300 | R95: 250 | T95: HB | U95: non définie | V95: non défini | W95: non | X95: En surface | Y95: hostile non habitée | Z95: Gazon | AB95: NIL | AC95: NIL | AD95: NIL | AE95: EA ALAT Base école de DAX | AF95: 43.777778,-0.919444 | AG95: QFU: 10/28.#Réservée aux aéronefs défense de la base école de DAX.#Aéronefs extérieurs: contact obligatoire avec DAX OPERATIONS pour autorisation TEL 05 58 35 93 87.#Contact DAX TWR: 118.325 Mhz.#PONTONX A/A: 37.55 Mhz. | AI95: =IFERROR(IF(SEARCH('Entrees Heli'!B$2,'AD Heli'!C95)>0,A95,""),"") -> 94 | AJ95: 94 | AK95: 94 | AL95: DAX PONTONX
A96: 95 | B96: [LF] | C96: DAX TINON | D96: non | E96: ADM | F96: non | G96: non | H96: Jour | I96: 43.733333 | J96: -1.177778 | K96: x | L96: 151 | M96: 46 | O96: 300x200 | P96: Rectangulaire | Q96: 300 | R96: 200 | T96: HB | U96: non définie | V96: non défini | W96: non | X96: En surface | Y96: hostile non habitée | Z96: Gazon | AB96: NIL | AC96: NIL | AD96: NIL | AE96: EA ALAT Base école de DAX | AF96: 43.733333,-1.177778 | AG96: QFU: 08/26.#Réservée aux aéronefs défense de la base école de DAX.#Aéronefs extérieurs: contact obligatoire avec DAX OPERATIONS pour autorisation TEL 05 58 35 93 87.#Contact DAX TWR: 118.325 Mhz.#TINON A/A: 32.4 Mhz. | AI96: =IFERROR(IF(SEARCH('Entrees Heli'!B$2,'AD Heli'!C96)>0,A96,""),"") -> 95 | AJ96: 95 | AK96: 95 | AL96: DAX TINON
A97: 96 | B97: [LF] | C97: DIEPPE CENTRE HOSPITALIER | D97: oui | E97: TPD | F97: non | G97: oui | H97: Nuit | I97: 49.917778 | J97: 1.080556 | K97: x | L97: 69 | M97: 21 | O97: 20.60x20.60 | P97: Carré | Q97: 20.6 | S97: 20.60x20.60 | T97: HB | U97: 1 | V97: EC-145 | W97: oui | X97: En terrasse | Y97: hostile habitée | Z97: Bitume | AA97: 4.5 t | AB97: NIL | AC97: Oui 5x50kg (poudre) + 1 extincteur CO2 | AD97: oui | AE97: Centre hospitalier de Dieppe TEL : 02 32 14 72 17 | AF97: 49.917778,1.080556 | AI97: =IFERROR(IF(SEARCH('Entrees Heli'!B$2,'AD Heli'!C97)>0,A97,""),"") -> 96 | AJ97: 96 | AK97: 96 | AL97: DIEPPE CENTRE HOSPITALIER
A98: 97 | B98: [LF] | C98: DIGNE LES BAINS H1 CENTRE HOSPITALIER | D98: oui | E98: RST | F98: non | G98: oui | H98: Nuit | I98: 44.070556 | J98: 6.168333 | K98: 2 | L98: 1975 | M98: 602 | W98: non | X98: En surface | AB98: NIL | AC98: Oui (3 extincteurs à poudre 100kg, 85kg et 18kg) | AD98: OUI | AE98: Détachement aérien de la gendarmerie: TEL 04 92 32 32 70. FAX 04 92 32 32 74. | AF98: 44.070556,6.168333 | AG98: Axes 033°/213° et 003°/183°. | AI98: =IFERROR(IF(SEARCH('Entrees Heli'!B$2,'AD Heli'!C98)>0,A98,""),"") -> 97 | AJ98: 97 | AK98: 97 | AL98: DIGNE LES BAINS H1 CENTRE HOSPITALIER
A99: 98 | B99: [LF] | C99: DIGNE LES BAINS H2 CENTRE HOSPITALIER | D99: oui | E99: RST | F99: non | G99: non | H99: Jour | I99: 44.071111 | J99: 6.171944 | K99: 2 | L99: 1867 | M99: 569 | W99: non | X99: En surface | AB99: NIL | AC99: Oui (1 extincteur à poudre 50kg) | AD99: OUI | AE99: Centre Hospitalier Digne les Bains: TEL 04 92 30 15 15. FAX 04 92 30 14 00. | AF99: 44.071111,6.171944 | AG99: Réservé à usage sanitaire.#Axes 088°/268°. | AI99: =IFERROR(IF(SEARCH('Entrees Heli'!B$2,'AD Heli'!C99)>0,A99,""),"") -> 98 | AJ99: 98 | AK99: 98 | AL99: DIGNE LES BAINS H2 CENTRE HOSPITALIER
A100: 99 | B100: [LF] | C100: DIJON BOCAGE CENTRE HOSPITALIER UNIVERSITAIRE | D100: oui | E100: TPD | F100: non | G100: oui | H100: Nuit | I100: 47.321283 | J100: 5.069075 | K100: x | L100: 972 | M100: 296.3 | O100: 27x27 | P100: Carré | Q100: 27 | S100: 20x20 | T100: HB | U100: 1 | V100: EC135 | W100: oui | X100: En terrasse | Y100: hostile habitée | Z100: Béton | AA100: 5t | AB100: NIL | AC100: Oui (250kg de poudre répartis sur 5 postes) | AD100: Oui | AE100: CHU DIJON Bocage | AF100: 47.321283,5.069075 | AI100: =IFERROR(IF(SEARCH('Entrees Heli'!B$2,'AD Heli'!C100)>0,A100,""),"") -> 99 | AJ100: 99 | AK100: 99 | AL100: DIJON BOCAGE CENTRE HOSPITALIER UNIVERSITAIRE
A101: 100 | B101: [LF] | C101: DOLE CENTRE HOSPITALIER | D101: oui | E101: TPD | F101: non | G101: oui | H101: Nuit | I101: 47.083333 | J101: 5.472778 | K101: x | L101: 868 | M101: 264.6 | O101: 20.7 x 20.7 m | P101: Carré | Q101: 20.7 | S101: 20.7 x 20.7 m | W101: oui | X101: En terrasse | Z101: Bitume traité | AA101: 3.6 t | AB101: NIL | AC101: OUI (250kg de poudre répartie en trois postes) | AD101: OUI (diurne et lumineux secouru) | AE101: Centre Hospitalier de DOLE TEL : 03 84 79 80 80 FAX : 03 84 79 80 82 | AF101: 47.083333,5.472778 | AG101: Utilisable par des HEL bimoteurs sanitaires en classe de performance 1 (CP1 CAT A) sur autorisation du Centre Hospitalier.#Trouée Nord-Est : 060°/240°.#Trouée Sud-Ouest : 031°/211°.#Présence d'une structure métallique en limite Nord-Ouest de l'aire de sécurité, ce qui impose de réaliser la phase de recul sur l'axe 211° pour un départ au cap 060°. | AI101: =IFERROR(IF(SEARCH('Entrees Heli'!B$2,'AD Heli'!C101)>0,A101,""),"") -> 100 | AJ101: 100 | AK101: 100 | AL101: DOLE CENTRE HOSPITALIER
A102: 101 | B102: [LF] | C102: DOUAI CENTRE HOSPITALIER | D102: oui | E102: TPD | F102: non | G102: oui | H102: Nuit | I102: 50.337278 | J102: 3.10125 | K102: 2 | L102: 144 | M102: 43.9 | O102: 21 x 21 | P102: Carré | Q102: 21 | S102: 11 x 11 | T102: HB | U102: 1 | V102: AS 365 N3 | W102: non | X102: En surface | Y102: hostile habitée | AA102: 4.3t | AB102: NIL | AC102: Oui (50 kg poudre, 9 L eau pulvérisée) | AD102: OUI | AE102: Centre Hospitalier de DOUAI - TEL : 03 27 94 70 00 | AF102: 50.337278,3.10125 | AG102: Réservé au transport sanitaire.# Axes APP : 275° / 090°. | AI102: =IFERROR(IF(SEARCH('Entrees Heli'!B$2,'AD Heli'!C102)>0,A102,""),"") -> 101 | AJ102: 101 | AK102: 101 | AL102: DOUAI CENTRE HOSPITALIER
A103: 102 | B103: [LF] | C103: DOUAI USINE RENAULT | D103: oui | E103: RST | F103: non | G103: non | H103: Jour | I103: 50.358611 | J103: 3.032778 | K103: 2 | L103: 100 | M103: 30.5 | O103: 19x19 | P103: Carré | Q103: 19 | S103: 9x9 | T103: HB | U103: 3 | V103: SA 350 Ecureuil | W103: non | X103: En surface | Y103: hostile non habitée | Z103: Enrobé | AA103: HEL légers | AB103: NIL | AC103: Oui (borne incendie) + extincteur 50 kg de poudre sur roues | AD103: NIL | AE103: Usine Renault TEL: 01 76 83 92 18 FAX: 01 76 89 10 35 | AF103: 50.358611,3.032778 | AG103: Axes d'APCH et TKOF E/W (235°/055°). Cheminement : zones dégagées en évitant survol des parties habitées et le circuit d'AD de LFQS. Destinée au transport des personnels de la direction et aux besoins de fonctionnement de l'usine. | AI103: =IFERROR(IF(SEARCH('Entrees Heli'!B$2,'AD Heli'!C103)>0,A103,""),"") -> 102 | AJ103: 102 | AK103: 102 | AL103: DOUAI USINE RENAULT
A104: 103 | B104: [LF] | C104: DREUX CENTRE HOSPITALIER | D104: oui | E104: TPD | F104: oui | G104: oui | H104: Nuit | I104: 48.727475 | J104: 1.384686 | K104: 2 | L104: 451 | M104: 137.5 | W104: oui | X104: En terrasse | AB104: NIL | AC104: 2X300kg poudre+réserve eau+AFF+rampe périphérique 350l émulseur HF. | AD104: Diurne et lumineux | AE104: Centre hospitalier de DREUX - TEL 02 37 51 52 53 / FAX 02 37 46 44 29 | AF104: 48.727475,1.384686 | AG104: O/R SAMU TEL : 02 37 51 52 53# Axe ATT/DEC : 111°/291°.# Cause dimensions FATO, utilisation hélistation par HEL de référence sur PPR accordé par la DSAC.# Réservée aux évacuations sanitaires et aux exploitants HEL autorisés. | AI104: =IFERROR(IF(SEARCH('Entrees Heli'!B$2,'AD Heli'!C104)>0,A104,""),"") -> 103 | AJ104: 103 | AK104: 103 | AL104: DREUX CENTRE HOSPITALIER
A105: 104 | B105: [NW] | C105: DUMBEA CHT | D105: oui | E105: TPD | F105: non | G105: oui | H105: Nuit | I105: -22.208611 | J105: 166.452778 | K105: x | L105: 72 | M105: 21.9 | O105: 21 x 21 m | P105: Carré | Q105: 21 | S105: 21 x 21 m | W105: oui | X105: En terrasse | Z105: Béton | AA105: 4.3 t | AB105: NIL | AC105: 2 extincteurs poudre 100 kg et 150 kg | AD105: OUI | AE105: CHT Gaston Bourret TEL : 20 80 00 | AF105: -22.208611,166.452778 | AG105: Trouées : 120°/300°.# Réservé aux vols de sauvetage et d'évacuation sanitaire.# EVASAN PPR PN 1 HR centre TEL : 15.# Dangers à la navigation aérienne :# - ligne électrique balisée en partie, à l'Est,# - hélisurface au Sud-Ouest, utilisation principale : PUMA. | AI105: =IFERROR(IF(SEARCH('Entrees Heli'!B$2,'AD Heli'!C105)>0,A105,""),"") -> 104 | AJ105: 104 | AK105: 104 | AL105: DUMBEA CHT
A106: 105 | B106: [LF] | C106: DUNKERQUE CENTRE HOSPITALIER | D106: oui | E106: RST | F106: non | G106: oui | H106: Nuit | I106: 51.0375 | J106: 2.396667 | K106: x | L106: 55 | M106: 16.8 | O106: 20x20 | P106: Carré | Q106: 20 | S106: 20x20 | T106: HB | U106: non définie | V106: BK117C2 (EC145) | W106: oui | X106: En terrasse | Y106: hostile habitée | Z106: Béton | AA106: Force portante 3.6 t | AB106: NIL | AC106: Oui (2 x 150 kg poudre) | AD106: OUI | AE106: Centre hospitalier de DUNKERQUE - TEL: 03 28 28 59 11 / FAX: 03 28 28 57 80. | AF106: 51.0375,2.396667 | AG106: Axes d'APCH et DEC : Est/Ouest (061°/241°). | AI106: =IFERROR(IF(SEARCH('Entrees Heli'!B$2,'AD Heli'!C106)>0,A106,""),"") -> 105 | AJ106: 105 | AK106: 105 | AL106: DUNKERQUE CENTRE HOSPITALIER
A107: 106 | B107: [LF] | C107: ECHIROLLES CLINIQUE DES CEDRES | D107: non | E107: TPD | F107: non | G107: non | H107: Jour | I107: 45.1475 | J107: 5.723333 | K107: x | L107: 799 | M107: 243.5 | N107: 54 | O107: 21x21 | P107: Carré | Q107: 21 | T107: HB | U107: 1 | V107: EC 145 | W107: oui | X107: En terrasse | Y107: hostile habitée | Z107: Béton | AA107: 4t | AB107: NIL | AC107: OUI (poudre) | AD107: OUI | AE107: Clinique des Cèdres. Tél: 04 56 58 10 65. Fax: 04 56 58 10 66. | AF107: 45.1475,5.723333 | AI107: =IFERROR(IF(SEARCH('Entrees Heli'!B$2,'AD Heli'!C107)>0,A107,""),"") -> 106 | AJ107: 106 | AK107: 106 | AL107: ECHIROLLES CLINIQUE DES CEDRES
A108: 107 | B108: [LF] | C108: EPINAL EMILE DURKHEIM CENTRE HOSPITALIER | D108: oui | E108: RST | F108: non | G108: oui | H108: Nuit | I108: 48.181111 | J108: 6.454444 | K108: 2 | L108: 1295 | M108: 394.7 | O108: 20x20 | P108: Carré | Q108: 20 | S108: 20x20 | T108: HB | U108: 1 | V108: EC145 | W108: oui | X108: En terrasse | Y108: hostile habitée | Z108: Béton | AA108: 4 T | AB108: NIL | AC108: Oui (2 extincteurs à poudre 150kg) | AD108: OUI | AE108: Centre hospitalier Emile Durkheim : TEL 03 29 68 70 19 | AF108: 48.181111,6.454444 | AG108: Réservé au SMUH (Service Médical d'Urgence Héliporté) | AI108: =IFERROR(IF(SEARCH('Entrees Heli'!B$2,'AD Heli'!C108)>0,A108,""),"") -> 107 | AJ108: 107 | AK108: 107 | AL108: EPINAL EMILE DURKHEIM CENTRE HOSPITALIER
A109: 108 | B109: [LF] | C109: EVREUX CENTRE HOSPITALIER | D109: oui | E109: TPD | F109: non | G109: oui | H109: Nuit | I109: 49.031111 | J109: 1.114167 | K109: x | L109: 390 | M109: 118.9 | O109: 20x20 | P109: Carré | Q109: 20 | S109: 11.4x11.4 | T109: HB | U109: 1-2-3 | V109: BK 117 | W109: non | X109: En surface | Y109: non hostile | Z109: Enrobé | AA109: 10t | AB109: NIL | AC109: Oui (50 kg de poudre) | AD109: Oui | AE109: Centre Hospitalier d'EVREUX. TEL 02 32 33 86 31 | AF109: 49.031111,1.114167 | AG109: Hélistation implantée dans la CTR de classe D d'EVREUX.#Pour LDG et TKF, PPR 5 mn sur FREQ SAMU.#Utilisation de l'hélistation par un seul HEL à la fois.#Dimensions aire de sécurité : 26x26. | AI109: =IFERROR(IF(SEARCH('Entrees Heli'!B$2,'AD Heli'!C109)>0,A109,""),"") -> 108 | AJ109: 108 | AK109: 108 | AL109: EVREUX CENTRE HOSPITALIER
A110: 109 | B110: [LF] | C110: FECAMP CENTRE HOSPITALIER | D110: oui | E110: TPD | F110: non | G110: non | H110: Jour | I110: 49.743056 | J110: 0.385556 | K110: x | L110: 318 | M110: 96.9 | O110: 23x23 | P110: Carré | Q110: 23 | S110: 12.7x12.7 | T110: HB | U110: 1-2 | V110: Bell 430 | W110: non | X110: En surface | Y110: hostile non habitée | Z110: Béton | AA110: 5 t | AB110: NIL | AC110: Oui (50kg poudre) | AD110: NIL | AE110: Centre hospitalier intercommunal du pays des hautes falaises | AF110: 49.743056,0.385556 | AG110: TEL Service Sécurité : 02 35 10 91 85# TEL Standard : 02 35 10 90 00# Présence d'une ligne trés haute tension à l'est de la trouée d'envol nord/sud.# Axes APCH et TKOF : 170°/350° et 010°/190°.# Axe TKOF : 280°. | AI110: =IFERROR(IF(SEARCH('Entrees Heli'!B$2,'AD Heli'!C110)>0,A110,""),"") -> 109 | AJ110: 109 | AK110: 109 | AL110: FECAMP CENTRE HOSPITALIER
A111: 110 | B111: [LF] | C111: FLERS CENTRE HOSPITALIER | D111: oui | E111: TPD | F111: non | G111: oui | H111: Nuit | I111: 48.748611 | J111: -0.538333 | K111: 2 | L111: 754 | M111: 229.8 | O111: 20 x 20 | P111: Carré | Q111: 20 | S111: 12 x 12 | W111: non | X111: En surface | Z111: Enrobé (10t) | AB111: NIL | AC111: OUI (50 kg poudre + 50 kg CO2) | AD111: Oui | AE111: Centre Hospitalier Jacques Monod; TEL : 02 33 62 62 00 | AF111: 48.748611,-0.538333 | AG111: Utilisation un seul hélico à la fois.# Réservé SMUH (exceptionnelle pour gendarmerie - Dragon 50).# Dimensions aire de sécurité 30 x 30.# Présence bâtiments (balisés) et antenne GSM (balisée) à proximité. | AI111: =IFERROR(IF(SEARCH('Entrees Heli'!B$2,'AD Heli'!C111)>0,A111,""),"") -> 110 | AJ111: 110 | AK111: 110 | AL111: FLERS CENTRE HOSPITALIER
A112: 111 | B112: [LF] | C112: FLINS | D112: non | E112: RST | F112: non | G112: non | H112: Jour | I112: 48.981944 | J112: 1.863889 | K112: x | L112: 82 | M112: 25 | S112: Diamètre 30 | T112: HB | U112: non définie | V112: non défini | Z112: Gazon | AB112: NIL | AC112: NIL | AD112: NIL | AF112: 48.981944,1.863889 | AI112: =IFERROR(IF(SEARCH('Entrees Heli'!B$2,'AD Heli'!C112)>0,A112,""),"") -> 111 | AJ112: 111 | AK112: 111 | AL112: FLINS
A113: 112 | B113: [LF] | C113: FONTAINEBLEAU CENTRE HOSPITALIER | D113: non | E113: TPD | F113: non | G113: oui | H113: Nuit | I113: 48.410833 | J113: 2.695833 | K113: x | L113: 348 | M113: 106.1 | W113: oui | X113: En terrasse | AB113: H24 | AC113: Oui ( 5 extincteurs à poudre sur roues type BC). | AD113: OUI | AE113: Centre Hospitalier : 01 60 74 10 10 | AF113: 48.410833,2.695833 | AG113: Pente des surfaces de protection : 4.5%# Strictement réservée aux transports de malades et de blessés, de médecins ou de personnel médical.# MET : vents dominants Sud-Ouest et Nord-Est.# Trouées : 180° / 360°.# Obstacles : # Paratonnerre sur édicule ascenseur 114 m NGF (éclairé par projecteur);# Arbres trouée nord (360°) dans le cimetière :# 110m NGF à 191m hélistation ;# 116m NGF à 204m hélistation ;# 115m NGF à 211m hélistation.# Arbres trouée nord (360°) hors cimetière :# 134m NGF à 298m hélistation ;# Rideau d'arbres 137m NGF à 484m hélistation.# Manche à air éclairée.# Présence d'installations de stockage d'oxygène médical dans la trouée nord.# Préavis MNM 30 MIN exigé avant ATT auprès Centre Hospitalier | AI113: =IFERROR(IF(SEARCH('Entrees Heli'!B$2,'AD Heli'!C113)>0,A113,""),"") -> 112 | AJ113: 112 | AK113: 112 | AL113: FONTAINEBLEAU CENTRE HOSPITALIER
A114: 113 | B114: [LF] | C114: FOURMIES CENTRE HOSPITALIER | D114: non | E114: TPD | F114: non | G114: oui | H114: Nuit | I114: 50.01 | J114: 4.060556 | K114: 2 | L114: 670 | M114: 204.2 | O114: 15x15 | P114: Carré | Q114: 15 | S114: 11x11 | T114: HB | U114: 1 et 2 | V114: EC 145 | W114: non | X114: En surface | Y114: hostile habitée | Z114: Béton ( 4t ) | AB114: NIL | AC114: OUI (50 kg de poudre et 25L émulseur) | AD114: diurne et nocturne | AE114: Centre hospitalier de Fourmies | AF114: 50.01,4.060556 | AG114: Trouées : 147°(T) / 327°(T)# Réservé aux transports sanitaires.# Voir carte atlas VAC Hélistations. | AI114: =IFERROR(IF(SEARCH('Entrees Heli'!B$2,'AD Heli'!C114)>0,A114,""),"") -> 113 | AJ114: 113 | AK114: 113 | AL114: FOURMIES CENTRE HOSPITALIER
A115: 114 | B115: [LF] | C115: FREJUS HOPITAL BONNET | D115: oui | E115: TPD | F115: non | G115: oui | H115: Nuit | I115: 43.439742 | J115: 6.75155 | K115: 2 | L115: 69 | M115: 21 | O115: 21x21 | P115: Carré | Q115: 21 | S115: 9,60x9,60 | T115: HB | U115: 1 | V115: A 109 E | W115: non | X115: En surface | Y115: hostile habitée | Z115: Béton ciment | AA115: 4t | AB115: NIL | AC115: Oui (50kg poudre) | AD115: OUI | AE115: Centre hospitalier. TEL : 04 94 40 22 30 | AF115: 43.439742,6.75155 | AG115: PPR 20 min auprès exploitant exigé pour tout mouvement :# TEL (PC Sécurité) : 04 94 40 22 30 - FAX : 04 94 40 25 53.# Trouées Est/Ouest : 085°/265°.# Trouées préférentielles par l'Ouest (face à l'Est).# Les bâtiments percent la pente à 4,5%.# HAPI au QFU 085°, obligatoire pour s'affranchir des obstacles. | AI115: =IFERROR(IF(SEARCH('Entrees Heli'!B$2,'AD Heli'!C115)>0,A115,""),"") -> 114 | AJ115: 114 | AK115: 114 | AL115: FREJUS HOPITAL BONNET
A116: 115 | B116: [LF] | C116: GAP HOPITAL | D116: non | E116: TPD | F116: non | G116: non | H116: Jour | I116: 44.557222 | J116: 6.073336 | K116: 2 | L116: 2503 | M116: 762.9 | N116: 59 | O116: 21x21 | P116: Carré | Q116: 21 | S116: 21x21 | W116: oui | X116: En terrasse | Z116: Béton | AA116: 4 t | AB116: NIL | AC116: Oui O/R, 2 lances mousse + 1 extincteur 9 kg | AD116: OUI | AE116: Centre hospitalier intercommunal des Alpes du Sud. TEL 04 92 40 61 61 | AF116: 44.557222,6.073336 | AG116: Réservée aux opérations de SMUH.#Contact radio avec SAMU 05 FREQ 122.980 MHz.#Axes d'arrivée : 013° et 212° (axe 013° préférentiel).#Axes de départ : 193° et 032° (axe 032° préférentiel).#Aire de sécurité : 27 m x 27 m. | AI116: =IFERROR(IF(SEARCH('Entrees Heli'!B$2,'AD Heli'!C116)>0,A116,""),"") -> 115 | AJ116: 115 | AK116: 115 | AL116: GAP HOPITAL
A117: 116 | B117: [LF] | C117: GER | D117: non | E117: TPD | F117: non | G117: non | H117: Jour | I117: 43.050833 | J117: -0.041389 | K117: x | L117: 1310 | M117: 399.3 | O117: Diamètre 13 m | P117: Circulaire | Q117: 13 | S117: Diamètre 13 m | T117: HB | U117: 2 et 3 | V117: AS350B3 | W117: non | X117: En surface | Y117: hostile non habitée | Z117: Bitume | AB117: NIL | AC117: Oui (1 extincteur 50kg poudre, 1 extincteur 9kg poudre) | AD117: Diurne | AE117: SAF Hélicoptères. TEL : 05 62 91 12 45/06 11 12 61 90 | AF117: 43.050833,-0.041389 | AG117: Travail aérien. | AI117: =IFERROR(IF(SEARCH('Entrees Heli'!B$2,'AD Heli'!C117)>0,A117,""),"") -> 116 | AJ117: 116 | AK117: 116 | AL117: GER
A118: 117 | B118: [LF] | C118: GIEN CENTRE HOSPITALIER | D118: oui | E118: TPD | F118: non | G118: oui | H118: Nuit | I118: 47.690278 | J118: 2.634722 | K118: x | L118: 556 | M118: 169.5 | O118: 21x21 | P118: Carré | Q118: 21 | S118: 21x21 | T118: HB | U118: 1 | V118: SA 365 N | W118: oui | X118: En terrasse | Y118: hostile habitée | Z118: Béton | AA118: 4.5 t | AB118: NIL | AC118: Oui (250kg poudre) | AD118: Diurne et nocturne | AE118: Centre hospitalier Pierre Dezarnaulds | AF118: 47.690278,2.634722 | AG118: Réservé aux transports sanitaires. O/R 02 38 29 38 29. | AI118: =IFERROR(IF(SEARCH('Entrees Heli'!B$2,'AD Heli'!C118)>0,A118,""),"") -> 117 | AJ118: 117 | AK118: 117 | AL118: GIEN CENTRE HOSPITALIER
A119: 118 | B119: [LF] | C119: GRASSE HOPITAL CLAVARY | D119: oui | E119: RST | F119: non | G119: non | H119: Jour | I119: 43.619611 | J119: 6.928903 | K119: 2 | L119: 552 | M119: 168.2 | O119: 20x20 | P119: Carré | Q119: 20 | S119: 10.85x10.85 | W119: non | X119: En surface | Z119: Béton bitumineux | AA119: 4t | AB119: O/R | AC119: Oui (50kg poudre) | AD119: OUI | AE119: Centre hospitalier. Tél: 04 93 09 54 56. | AF119: 43.619611,6.928903 | AG119: Pente de la surface de protection des trouées d'envol : 4,5%.# Préavis à l'exploitant exigé pour tout mouvement.#Trouées Sud, Sud-Sud-Ouest, Nord.#Transport sanitaire. | AI119: =IFERROR(IF(SEARCH('Entrees Heli'!B$2,'AD Heli'!C119)>0,A119,""),"") -> 118 | AJ119: 118 | AK119: 118 | AL119: GRASSE HOPITAL CLAVARY
A120: 119 | B120: [LF] | C120: GRENOBLE HOPITAL NORD | D120: oui | E120: TPD | F120: non | G120: oui | H120: Nuit | I120: 45.200936 | J120: 5.745278 | K120: 2 | L120: 716 | M120: 218.2 | W120: non | X120: En surface | AB120: NIL | AC120: Oui (50kg poudre + mousse) | AD120: OUI | AE120: Centre hospitalier régional de Grenoble. Tél.04 76 76 75 75 FAX 04 76 44 77 40. | AF120: 45.200936,5.745278 | AG120: Transport sanitaire exclusivement.# Aviser SAMU avant toute utilisation : TEL 04 76 42 42 42 ou contacter VITAMINE 2 sur 122.975 MHz.# ATT au QFU 094°, DEC au QFU 274°. | AI120: =IFERROR(IF(SEARCH('Entrees Heli'!B$2,'AD Heli'!C120)>0,A120,""),"") -> 119 | AJ120: 119 | AK120: 119 | AL120: GRENOBLE HOPITAL NORD
A121: 120 | B121: [LF] | C121: GRIMAUD | D121: oui | E121: CAP | F121: non | G121: non | H121: Jour | I121: 43.267806 | J121: 6.551925 | K121: 2 | L121: 17 | M121: 5.2 | O121: 22.5 x 22.5 m | P121: Carré | Q121: 22.5 | S121: voir VAC | T121: HB | U121: 2 et 3 | V121: HEL de LHT <= 14.50 m | W121: non | X121: En surface | Z121: Non revêtu | AB121: O/R TEL : 04 94 555 999 | AC121: oui (2 extincteurs de 25 kg poudre) | AD121: NIL | AE121: SARL RCE TEL : 04 94 55 59 99 - FAX : 04 94 55 59 90. | AF121: 43.267806,6.551925 | AG121: Pente de la surface de protection des trouées d'envol: CP3 8% sur 245 m puis 16%.# PPR exigé pour tout vol.# TLOF : 4 aires de stationnement : voir limitations sur VAC H.# Trouée EST : 285°.# Trouée Ouest : courbe. | AI121: =IFERROR(IF(SEARCH('Entrees Heli'!B$2,'AD Heli'!C121)>0,A121,""),"") -> 120 | AJ121: 120 | AK121: 120 | AL121: GRIMAUD
A122: 121 | B122: [LF] | C122: GUERET CENTRE HOSPITALIER | D122: oui | E122: TPD | F122: non | G122: oui | H122: Nuit | I122: 46.161556 | J122: 1.868667 | K122: x | L122: 1752 | M122: 534 | O122: 27x27 | P122: Carré | Q122: 27 | S122: 10x10 | T122: HB | U122: 1 | V122: EC 135 | W122: non | X122: En surface | Y122: hostile habitée | Z122: Béton bitumineux | AA122: 3.5t | AC122: Oui (extincteur 50kg poudre + CO2) | AD122: OUI | AE122: Centre hospitalier de Guéret. TEL : 05 55 51 70 00 - FAX : 05 55 51 70 57. | AF122: 46.161556,1.868667 | AG122: Trouées décalées orientées 359° et 174°. | AI122: =IFERROR(IF(SEARCH('Entrees Heli'!B$2,'AD Heli'!C122)>0,A122,""),"") -> 121 | AJ122: 121 | AK122: 121 | AL122: GUERET CENTRE HOSPITALIER
A123: 122 | B123: [LF] | C123: HOPITAL NORD FRANCHE COMTE | D123: oui | E123: RST | F123: non | G123: oui | H123: Nuit | I123: 47.576111 | J123: 6.873056 | K123: x | L123: 1263 | M123: 384.9 | O123: diamètre 20 m. | P123: Circulaire | Q123: 20 | S123: diamètre 20 m. | T123: HB | U123: 1 | V123: EC 145 | W123: oui | X123: En terrasse | Y123: hostile habitée | Z123: Enrobé | AA123: 3.6 t | AB123: NIL | AC123: Oui(2 postes fixes mousse 200 L/mn, 3 extincteurs CO2 : 1x20kg, 2x2kg) | AD123: OUI | AE123: Hôpital Nord Franche Comté TEL : 03 84 98 31 28 | AF123: 47.576111,6.873056 | AG123: Réservée au service médical d'urgence.#PN 10 min.#Axes d'APCH et TKOF : 025°/205° | AI123: =IFERROR(IF(SEARCH('Entrees Heli'!B$2,'AD Heli'!C123)>0,A123,""),"") -> 122 | AJ123: 122 | AK123: 122 | AL123: HOPITAL NORD FRANCHE COMTE
A124: 123 | B124: [LF] | C124: ILE D'YEU PORT JOINVILLE | D124: non | E124: RST | F124: non | G124: non | H124: Jour | I124: 46.728333 | J124: -2.351111 | K124: x | L124: 10 | M124: 3 | O124: 20x20 | P124: Carré | Q124: 20 | S124: 11x11 | W124: non | X124: En surface | Z124: Bitume | AA124: 4t | AB124: OYA Hélicoptères | AC124: Oui (50kg poudre) | AD124: NIL | AE124: Mairie de l'Ile d'Yeu. Tél : 02 51 59 45 45 | AF124: 46.728333,-2.351111 | AG124: Axes préférentiels : 110°/290°#Contact AFIS ILE D'YEU 118,900 MHz | AI124: =IFERROR(IF(SEARCH('Entrees Heli'!B$2,'AD Heli'!C124)>0,A124,""),"") -> 123 | AJ124: 123 | AK124: 123 | AL124: ILE D'YEU PORT JOINVILLE
A125: 124 | B125: [LF] | C125: ISSOUDUN CENTRE HOSPITALIER | D125: oui | E125: TPD | F125: non | G125: oui | H125: Nuit | I125: 46.959444 | J125: 1.994722 | K125: x | L125: 465 | M125: 141.7 | W125: oui | X125: En terrasse | AB125: NIL | AC125: Oui (250kg poudre) | AD125: Diurne et nocturne | AE125: Centre Hospitalier de la Tour Blanche. TEL 02 54 03 54 03, FAX 02 54 03 54 21 | AF125: 46.959444,1.994722 | AG125: O/R URGENCE TEL 02 54 03 64 00 ou 02 54 03 54 00.#Réservé aux évacuations sanitaires.#Axes ATT/DEC: 289°/109° - 119°/299°.#Sens d'atterrissage préférentiel 119°.#Aire de sécurité : 26.5 x 26.5 m. | AI125: =IFERROR(IF(SEARCH('Entrees Heli'!B$2,'AD Heli'!C125)>0,A125,""),"") -> 124 | AJ125: 124 | AK125: 124 | AL125: ISSOUDUN CENTRE HOSPITALIER
A126: 125 | B126: [LF] | C126: ISTRES S.E.P. | D126: non | E126: TPD | F126: non | G126: non | H126: Jour | I126: 43.543889 | J126: 4.951944 | K126: x | L126: 72 | M126: 21.9 | O126: 30x30 | P126: Carré | Q126: 30 | T126: HB | U126: non définie | V126: non défini | W126: non | X126: En surface | Y126: hostile non habitée | Z126: Béton | AA126: 4t | AB126: NIL | AC126: NIL | AD126: NIL | AE126: Société Européenne de Propulsion. | AF126: 43.543889,4.951944 | AG126: Réservée aux opérations de SMUH. | AI126: =IFERROR(IF(SEARCH('Entrees Heli'!B$2,'AD Heli'!C126)>0,A126,""),"") -> 125 | AJ126: 125 | AK126: 125 | AL126: ISTRES S.E.P.
A127: 126 | B127: [LF] | C127: JIVA HILL PARK HOTEL | D127: oui | E127: TPD | F127: non | G127: non | H127: Jour | I127: 46.271667 | J127: 6.0225 | K127: 2 | L127: 1645 | M127: 501.4 | O127: 20 x 20 m | P127: Carré | Q127: 20 | W127: non | X127: En surface | Z127: Enrobé bitume | AA127: 5 t | AB127: NIL | AC127: OUI (2 extincteurs ABC et 1 extincteur CO2) | AD127: NIL | AE127: Jiva Hill Hôtel - 04 50 28 48 48 | AF127: 46.271667,6.0225 | AG127: Accès O/R à l'exploitant PN 24 HR | AI127: =IFERROR(IF(SEARCH('Entrees Heli'!B$2,'AD Heli'!C127)>0,A127,""),"") -> 126 | AJ127: 126 | AK127: 126 | AL127: JIVA HILL PARK HOTEL
A128: 127 | B128: [NW] | C128: KONE CHN | D128: oui | E128: TPD | F128: non | G128: oui | H128: Nuit | I128: -21.098611 | J128: 164.888333 | K128: x | L128: 69 | M128: 21 | O128: 18.2 x 18.2 m | P128: Carré | Q128: 18.2 | T128: HB | U128: 1 | V128: Puma SA330 | W128: non | X128: En surface | Y128: hostile habitée | Z128: Asphalte | AA128: 7.4 t | AB128: NIL | AC128: 1 extincteur poudre 50 kg sur roues. | AD128: NIL | AE128: Centre Hospitalier du Nord TEL : 42 11 68 | AF128: -21.098611,164.888333 | AG128: L'extincteur est stocké dans le local technique et sorti avant toute arrivée sur la voie d'accès à l'hélistation. | AI128: =IFERROR(IF(SEARCH('Entrees Heli'!B$2,'AD Heli'!C128)>0,A128,""),"") -> 127 | AJ128: 127 | AK128: 127 | AL128: KONE CHN
A129: 128 | B129: [LF] | C129: KREMLIN BICETRE CENTRE HOSPITALIER | D129: non | E129: TPD | F129: non | G129: oui | H129: Nuit | I129: 48.809444 | J129: 2.356111 | K129: x | L129: 270 | M129: 82.3 | O129: 20x20 | P129: Carré | Q129: 20 | S129: 14x14 | T129: HB | U129: 1 | V129: EC 135 | W129: non | X129: En surface | Y129: hostile habitée | Z129: béton | AA129: 4 t | AB129: H24 | AC129: Oui (50kg poudre) | AD129: OUI | AE129: Centre Hospitalier TEL : 01 45 21 39 95 - FAX : 01 45 21 36 17 | AF129: 48.809444,2.356111 | AG129: Décollage 075° / Atterrissage 255°. | AI129: =IFERROR(IF(SEARCH('Entrees Heli'!B$2,'AD Heli'!C129)>0,A129,""),"") -> 128 | AJ129: 128 | AK129: 128 | AL129: KREMLIN BICETRE CENTRE HOSPITALIER
A130: 129 | B130: [LF] | C130: LA PLAGNE | D130: non | E130: TPD | F130: non | G130: non | H130: =IF(G130="oui","Nuit","Jour") -> Jour | I130: 45.520278 | J130: 6.671389 | K130: 2 | L130: 5761 | M130: =ROUND(L130/3.281,1) -> 1755.9 | O130: 15 x 15 m | P130: Carré | Q130: 15 | S130: 15 x 15 m | W130: non | X130: =IF(W130="oui","En terrasse",IF(W130="non","En surface","")) -> En surface | Z130: Enrobé | AA130: 4,3 t | AB130: NIL | AC130: OUI (1 extincteur de 50 kg de poudre BC) | AD130: NIL | AE130: SAGS - Tél : 07 78 33 55 02 | AF130: 45.520278,6.671389 | AI130: =IFERROR(IF(SEARCH('Entrees Heli'!B$2,'AD Heli'!C130)>0,A130,""),"") -> 129 | AJ130: =IFERROR(RANK(AI130,AI$2:AI$808,1),"") -> 129 | AK130: =IFERROR(VLOOKUP(A130,AJ$2:AJ$808,1,FALSE),"") -> 129 | AL130: =IF(AK130<>"",LOOKUP(AK130,AJ$2:AJ$808,C$2:C$808),"") -> LA PLAGNE
A131: 130 | B131: [LF] | C131: LA ROCHE SUR YON CENTRE HOSPITALIER | D131: oui | E131: TPD | F131: non | G131: non | H131: Jour | I131: 46.668056 | J131: -1.412222 | K131: x | L131: 343 | M131: 104.5 | O131: 20.6x20.6 | P131: Carré | Q131: 20.6 | T131: HB | U131: 1 | V131: AS365N3 Dauphin | W131: oui | X131: En terrasse | Y131: hostile habitée | Z131: Béton | AA131: 4.3t | AB131: H24 | AC131: Oui (voir précisions plus bas) | AD131: OUI | AE131: Centre hospitalier départemental Vendée TEL: 02 51 44 61 61 | AF131: 46.668056,-1.412222 | AG131: Moyens SSLIA : 2 extincteurs poudre BC (respectivement 100 et 150 kg) + 1 extincteur CO2 avec perche (20 kg). | AI131: =IFERROR(IF(SEARCH('Entrees Heli'!B$2,'AD Heli'!C131)>0,A131,""),"") -> 130 | AJ131: 130 | AK131: 130 | AL131: LA ROCHE SUR YON CENTRE HOSPITALIER
A132: 131 | B132: [LF] | C132: LA ROCHELLE CENTRE HOSPITALIER | D132: oui | E132: TPD | F132: non | G132: non | H132: Jour | I132: 46.158889 | J132: -1.143056 | K132: x | L132: 49 | M132: 14.9 | N132: 49 | O132: 20x21 | P132: Rectangulaire | Q132: 21 | R132: 20 | T132: HB | U132: 1 | V132: non défini | W132: oui | X132: En terrasse | Y132: hostile habitée | Z132: Béton | AA132: 7t | AB132: NIL | AC132: Extincteurs poudre : 1x50 kg, 3x9 kg. Extincteur CO2 : 1x20 kg. | AD132: OUI | AE132: Centre Hospitalier de LA ROCHELLE - TEL : 05 46 45 50 50 - FAX 05 46 45 50 00. | AF132: 46.158889,-1.143056 | AG132: Réservée aux transports sanitaires. Trouée Est. A l'intérieur de la CTR LA ROCHELLE, contact radio obligatoire avec LA ROCHELLE TWR 118,0 Mhz en conditions MET inférieures aux conditions de vol à vue en espace aérien contrôlé. | AI132: =IFERROR(IF(SEARCH('Entrees Heli'!B$2,'AD Heli'!C132)>0,A132,""),"") -> 131 | AJ132: 131 | AK132: 131 | AL132: LA ROCHELLE CENTRE HOSPITALIER
A133: 132 | B133: [LF] | C133: LACANAU LE HUGA | D133: oui | E133: TPD | F133: non | G133: non | H133: Jour | I133: 45.006944 | J133: -1.164722 | K133: x | L133: 52 | M133: 15.8 | O133: 30x25 | P133: Rectangulaire | Q133: 30 | R133: 25 | S133: Diamètre 15 | T133: HB | U133: 1 | V133: LHT 12.5m-masse max:4t | W133: non | X133: En surface | Y133: hostile non habitée | Z133: Béton | AA133: 4t | AB133: NIL | AC133: Oui (extincteurs 50 kg de poudre) | AD133: NIL | AE133: Communauté des Communes Médoc-Atlantique.#TEL: 05 57 70 11 97 - FAX: 05 57 70 09 24 | AF133: 45.006944,-1.164722 | AG133: Réservée aux transports sanitaires, aux opérations de recherche et de sauvetage liées à la surveillance des plages. Axes ATT/DEC 140°/320° et 100°/280°. | AI133: =IFERROR(IF(SEARCH('Entrees Heli'!B$2,'AD Heli'!C133)>0,A133,""),"") -> 132 | AJ133: 132 | AK133: 132 | AL133: LACANAU LE HUGA
A134: 133 | B134: [LF] | C134: L'AIGLE CENTRE HOSPITALIER | D134: oui | E134: TPD | F134: non | G134: oui | H134: Nuit | I134: 48.768056 | J134: 0.611667 | K134: x | L134: 764 | M134: 232.9 | O134: 21x25 | P134: Rectangulaire | Q134: 25 | R134: 21 | S134: 9x9 | T134: HB | U134: 1-2-3. | V134: SA 365 | W134: non | X134: En surface | Y134: hostile non habitée | Z134: Béton bitumineux | AA134: 5t. | AB134: NIL | AC134: Oui (extincteur 50kg poudre) | AD134: OUI. | AE134: Centre Hospitalier TEL 02 33 24 95 95. | AF134: 48.768056,0.611667 | AI134: =IFERROR(IF(SEARCH('Entrees Heli'!B$2,'AD Heli'!C134)>0,A134,""),"") -> 133 | AJ134: 133 | AK134: 133 | AL134: L'AIGLE CENTRE HOSPITALIER
A135: 134 | B135: [LF] | C135: LANGON CENTRE HOSPITALIER | D135: oui | E135: TPD | F135: non | G135: oui | H135: Nuit | I135: 44.544722 | J135: -0.243611 | K135: x | L135: 121 | M135: 36.9 | O135: 21x21 | P135: Carré | Q135: 21 | T135: HB | U135: 1 | V135: Dauphin AS 365 N2 | W135: oui | X135: En terrasse | Y135: hostile habitée | Z135: Aluminium | AA135: 4.3 t | AB135: NIL | AC135: Oui. Mousse 2 postes fixes, rideau périphérique de brumisation. | AD135: 28 feux encastrés verts, 8 projecteurs rasants. | AE135: Centre hospitalier intercommunal sud Gironde site de Langon. TEL 05 56 76 57 57 FAX 05 56 63 40 28 | AF135: 44.544722,-0.243611 | AG135: Réservée exclusivement au transport sanitaire. | AI135: =IFERROR(IF(SEARCH('Entrees Heli'!B$2,'AD Heli'!C135)>0,A135,""),"") -> 134 | AJ135: 134 | AK135: 134 | AL135: LANGON CENTRE HOSPITALIER
A136: 135 | B136: [LF] | C136: LANNION CENTRE HOSPITALIER | D136: non | E136: RST | F136: non | G136: oui | H136: Nuit | I136: 48.722778 | J136: -3.465278 | K136: x | L136: 92 | M136: 28 | O136: 15 x 15 m | P136: Carré | Q136: 15 | S136: Diamètre 11 m | T136: HB | U136: non définie | V136: EC 145 | W136: non | X136: En surface | Y136: hostile habitée | Z136: Béton | AA136: 10t | AB136: NIL | AC136: Oui (50kg poudre + 20kg CO2) | AD136: OUI de toits / de la FATO / de la TLOF | AE136: Centre hospitalier Pierre LE DAMANY TEL : 02 96 05 71 11 | AF136: 48.722778,-3.465278 | AG136: Aire de sécurité : 26 x 26 m.#Réservée aux opérations de transport sanitaire.#2 trouées orientées : 220°/050°. | AI136: =IFERROR(IF(SEARCH('Entrees Heli'!B$2,'AD Heli'!C136)>0,A136,""),"") -> 135 | AJ136: 135 | AK136: 135 | AL136: LANNION CENTRE HOSPITALIER
A137: 136 | B137: [LF] | C137: LAON SEMILLY CENTRE HOSPITALIER | D137: oui | E137: RST | F137: non | G137: oui | H137: Nuit | I137: 49.55 | J137: 3.597222 | K137: 2 | L137: 233 | M137: 71 | O137: 20.6 x 20.6 m | P137: Carré | Q137: 20.6 | S137: 11.4 x 11.4 m | T137: HB | U137: 1 | V137: SA 365 N3 | W137: non | X137: En surface | Y137: hostile habitée | Z137: béton | AA137: 145.2 MPa | AB137: NIL | AC137: Oui (50 kg de poudre) | AD137: OUI | AE137: Centre hospitalier de LAON - TEL : 03 23 24 33 33 | AF137: 49.55,3.597222 | AG137: Réservé transport sanitaire d'urgence.# Axe d'approche : 126°/306°. | AI137: =IFERROR(IF(SEARCH('Entrees Heli'!B$2,'AD Heli'!C137)>0,A137,""),"") -> 136 | AJ137: 136 | AK137: 136 | AL137: LAON SEMILLY CENTRE HOSPITALIER
A138: 137 | B138: [LF] | C138: LE BLANC CENTRE HOSPITALIER | D138: oui | E138: TPD | F138: non | G138: oui | H138: Nuit | I138: 46.633889 | J138: 1.058611 | K138: 2 | L138: 302 | M138: 92 | O138: 20x20 | P138: Carré | Q138: 20 | S138: 20x20 | T138: HB | U138: 1 | V138: EC145 | W138: oui | X138: En terrasse | Y138: hostile habitée | Z138: Béton (3.6t) | AC138: 250 kg de poudre | AD138: Sur demande H24. TEL 02 54 28 28 48. | AE138: Centre hôspitalier du Blanc. TEL 02 54 28 28 28. | AF138: 46.633889,1.058611 | AG138: Réservé uniquement au transport sanitaire.#Axes : 140°/320°. A/A: 123.350 Mhz uniquement. | AI138: =IFERROR(IF(SEARCH('Entrees Heli'!B$2,'AD Heli'!C138)>0,A138,""),"") -> 137 | AJ138: 137 | AK138: 137 | AL138: LE BLANC CENTRE HOSPITALIER
A139: 138 | B139: [LF] | C139: LE CREUSOT CENTRE HOSPITALIER HOTEL DIEU | D139: oui | E139: TPD | F139: non | G139: oui | H139: Nuit | I139: 46.805 | J139: 4.449022 | K139: 2 | L139: 1180 | M139: 359.6 | O139: 15x15 | P139: Carré | Q139: 15 | S139: 10.8x10.8 | T139: HB | U139: 1 | V139: EC 135 | W139: non | X139: En surface | Y139: hostile habitée | Z139: Bitume traité | AA139: 4t | AB139: NIL | AC139: Oui (50kg poudre en un seul poste) | AD139: OUI (diurne et lumineux secouru) | AE139: Centre Hospitalier Hôtel Dieu. TEL: 03 85 77 20 00 FAX: 03 85 77 24 30. | AF139: 46.805,4.449022 | AG139: Utilisable par des HEL bimoteurs sanitaires en classe de performance 1 (CP1 CAT A) sur autorisation du Centre hospitalier.#QFU 095°/275°.#ARR/DEP 300 m/sol par le Nord. | AI139: =IFERROR(IF(SEARCH('Entrees Heli'!B$2,'AD Heli'!C139)>0,A139,""),"") -> 138 | AJ139: 138 | AK139: 138 | AL139: LE CREUSOT CENTRE HOSPITALIER HOTEL DIEU
A140: 139 | B140: [LF] | C140: LE HAVRE CENTRE HOSPITALIER | D140: oui | E140: TPD | F140: non | G140: oui | H140: Nuit | I140: 49.524722 | J140: 0.184722 | K140: x | L140: 40 | M140: 12.2 | O140: 20.6x20.6 | P140: Carré | S140: 11.3x11.3 | T140: HB | U140: 1 | V140: DAUPHIN AS 365 N3 | W140: non | X140: En surface | Y140: hostile habitée | Z140: Béton | AA140: 11.6t | AB140: H24 | AC140: Oui (1 extincteur à poudre 50kg) | AD140: Diurne et nocturne | AE140: Hôpital Jacques MONOD. TEL : 02 32 73 32 15 | AF140: 49.524722,0.184722 | AI140: =IFERROR(IF(SEARCH('Entrees Heli'!B$2,'AD Heli'!C140)>0,A140,""),"") -> 139 | AJ140: 139 | AK140: 139 | AL140: LE HAVRE CENTRE HOSPITALIER
A141: 140 | B141: [LF] | C141: LE MANS CENTRE HOSPITALIER | D141: oui | E141: TPD | F141: non | G141: oui | H141: Nuit | I141: 48.016733 | J141: 0.173278 | K141: 2 | L141: 225 | M141: 68.6 | O141: 21 x 21 | P141: Carré | Q141: 21 | T141: HB | W141: non | X141: En surface | Z141: Enrobé | AA141: 4 t | AB141: H24 | AC141: Oui (voir descriptif plus bas) | AD141: Oui | AE141: Centre hospitalier du Mans - TEL : 02 43 43 29 50 | AF141: 48.016733,0.173278 | AG141: Trouées à 4.5 %#SSLIA : 1 extincteur poudre sur roues 50 kg + extincteur poudre 6 kg dans hangar + 1 extincteur 2 kg de CO2 dans bureau | AI141: =IFERROR(IF(SEARCH('Entrees Heli'!B$2,'AD Heli'!C141)>0,A141,""),"") -> 140 | AJ141: 140 | AK141: 140 | AL141: LE MANS CENTRE HOSPITALIER
A142: 141 | B142: [LF] | C142: LE PLESSIS ROBINSON CENTRE CHIRURGICAL MARIE LANNELONGUE | D142: oui | E142: TPD | F142: non | G142: non | H142: Jour | I142: 48.784722 | J142: 2.274167 | K142: x | L142: 382 | M142: 116.4 | O142: 20x20 | P142: Carré | Q142: 20 | S142: 20x20 | T142: HB | U142: 1 | V142: EC135 | W142: oui | X142: En terrasse | Y142: hostile habitée | Z142: Matériaux composites ignifugés | AA142: 3.6 t | AB142: 0700-1900 (ETE : - 1HR) | AC142: Oui (2 postes fixes à mousse) Extincteur 50 Kg à poudre sur roues | AD142: Oui | AE142: TEL : 01 40 94 88 40 - FAX : 01 46 30 78 63 | AF142: 48.784722,2.274167 | AG142: Exclusivement réservée aux missions sanitaires d'urgence effectuées par des hélicoptères du SMUH.# Axes orientés 105°/285° et 120°/300°.# Préavis MNM 30 MIN exigé avant ATT : TEL 01 40 94 88 12 | AI142: =IFERROR(IF(SEARCH('Entrees Heli'!B$2,'AD Heli'!C142)>0,A142,""),"") -> 141 | AJ142: 141 | AK142: 141 | AL142: LE PLESSIS ROBINSON CENTRE CHIRURGICAL MARIE LANNELONGUE
A143: 142 | B143: [LF] | C143: LE PUY EN VELAY CENTRE HOSPITALIER | D143: oui | E143: TPD | F143: non | G143: oui | H143: Nuit | I143: 45.050556 | J143: 3.878056 | K143: 2 | L143: 2108 | M143: 642.5 | N143: 62 | O143: 21 x 21 | P143: Carré | Q143: 21 | S143: 21 x 21 | T143: HB | U143: 1 | V143: SA 365 N | W143: oui | X143: En terrasse | Y143: hostile habitée | Z143: Résine époxy | AA143: 4 t | AC143: Oui (1 x 100 kg poudre, 2 x 50 kg poudre et 2 x 9 kg poudre) | AD143: Sur demande H24, TEL : 04 71 02 02 02 | AE143: Centre hospitalier Emile Roux du Puy en Velay TEL : 04 71 02 02 02 | AF143: 45.050556,3.878056 | AI143: =IFERROR(IF(SEARCH('Entrees Heli'!B$2,'AD Heli'!C143)>0,A143,""),"") -> 142 | AJ143: 142 | AK143: 142 | AL143: LE PUY EN VELAY CENTRE HOSPITALIER
A144: 143 | B144: [LF] | C144: LFTG-HELISTATION TERRA GUINDALDES | D144: non | E144: TPD | F144: non | G144: oui | H144: Nuit | I144: 42.546667 | J144: 1.518611 | K144: 2 | L144: 4100 | M144: 1249.6 | O144: Diamètre 13,11 m | P144: Circulaire | Q144: 13.11 | S144: Diamètre 10,9 m | T144: HB | U144: 1 (2 et 3 | V144: Bell 429 | W144: non | X144: En surface | Y144: hostile non habitée | Z144: Béton | AA144: 15 t | AB144: H24 | AC144: Oui ( 50 kg poudre + extincteurs) | AD144: Oui | AE144: Heliand TEL : 00376 737271 | AF144: 42.546667,1.518611 | AG144: sous CAT.POL.H 305/420)#APCH trouée Ouest 292°/112° | AI144: =IFERROR(IF(SEARCH('Entrees Heli'!B$2,'AD Heli'!C144)>0,A144,""),"") -> 143 | AJ144: 143 | AK144: 143 | AL144: LFTG-HELISTATION TERRA GUINDALDES
A145: 144 | B145: [LF] | C145: LFTX-HELISTATION HOSPITAL NOSTRA SENYORA DE MERITXELL | D145: non | E145: RST | F145: non | G145: oui | H145: Nuit | I145: 42.511389 | J145: 1.533611 | K145: 2 | L145: 3503 | M145: 1067.7 | N145: 66 | O145: Diamètre de 13,11 m | P145: Circulaire | Q145: 13.11 | S145: Diamètre de 13,11 m | T145: HB | U145: 1 | V145: Bell 429 | W145: oui | X145: En terrasse | Y145: hostile habitée | Z145: Surface en bois | AA145: 3,7 t | AB145: H24 | AC145: OUI ( 50 kg poudre + extincteurs) | AD145: OUI | AE145: Servei Andorra d'Atencio Sanitaria TEL : 00376 871 000 | AF145: 42.511389,1.533611 | AG145: APCH trouée Ouest 230°/050°#APCH trouée Est 068°/248° | AI145: =IFERROR(IF(SEARCH('Entrees Heli'!B$2,'AD Heli'!C145)>0,A145,""),"") -> 144 | AJ145: 144 | AK145: 144 | AL145: LFTX-HELISTATION HOSPITAL NOSTRA SENYORA DE MERITXELL
A146: 145 | B146: [LF] | C146: LILLE CENTRE HOSPITALIER REGIONAL | D146: oui | E146: RST | F146: non | G146: oui | H146: Nuit | I146: 50.604167 | J146: 3.035 | K146: x | L146: 110 | M146: 33.5 | W146: non | X146: En surface | AB146: NIL | AC146: Oui (3 x 50 kg poudre, 1 x 9 kg CO2) | AD146: Oui HAPI : 8° - 14% | AE146: Centre hospitalier de LILLE - TEL : 03 20 17 40 00 / FAX : 03 20 44 45 00. | AF146: 50.604167,3.035 | AG146: Axes d'APCH et TKOF : 089°/269°. | AI146: =IFERROR(IF(SEARCH('Entrees Heli'!B$2,'AD Heli'!C146)>0,A146,""),"") -> 145 | AJ146: 145 | AK146: 145 | AL146: LILLE CENTRE HOSPITALIER REGIONAL
A147: 146 | B147: [LF] | C147: LIMOGES CENTRE HOSPITALIER | D147: oui | E147: TPD | F147: non | G147: oui | H147: Nuit | I147: 45.813864 | J147: 1.237811 | K147: 2 | L147: 899 | M147: 274 | O147: 19.5x19.5 | P147: Carré | Q147: 19.5 | S147: 11x11 | T147: HB | U147: 1 | V147: EC 135 / EC 145 | W147: non | X147: En surface | Y147: hostile habitée | Z147: Béton | AA147: 10t | AB147: H24 | AC147: Oui (bac à sable, couverture AF et 6 extincteurs dont 2x50 kg poudre) | AD147: Sur FATO avec télécommande. Allumage, 3 coups d'alternat consécutifs sur FREQ régulation SAMU 122.975 MHz. | AE147: Centre hospitalier de Limoges - TEL 05 55 05 55 55 | AF147: 45.813864,1.237811 | AG147: Axes d'APCH et TKOF : 315°/135° (trouées droites), 112°/292°/315° (trouée courbe)# Contacter LIMOGES Tour 119.550 MHz. | AI147: =IFERROR(IF(SEARCH('Entrees Heli'!B$2,'AD Heli'!C147)>0,A147,""),"") -> 146 | AJ147: 146 | AK147: 146 | AL147: LIMOGES CENTRE HOSPITALIER
A148: 147 | B148: [LF] | C148: LOCHES CENTRE HOSPITALIER | D148: oui | E148: TPD | F148: non | G148: oui | H148: Nuit | I148: 47.130556 | J148: 1.003056 | K148: x | L148: 231 | M148: 70.4 | O148: 21x21 | P148: Carré | Q148: 21 | S148: Diamètre 16 | T148: HB | U148: 1 | V148: EC 135 T2 | W148: non | X148: En surface | Y148: hostile habitée | Z148: Béton | AA148: 4.3t | AB148: NIL | AC148: 50 kg poudre | AD148: OUI | AE148: Centre Hospitalier de Loches TEL : 02 47 91 33 33 FAX : 02 47 91 92 00 | AF148: 47.130556,1.003056 | AG148: Atterrissage préférentiel : 264°.#Décollage préférentiel : 084°.#Réservée aux transports sanitaires.#O/R SAMU TEL exploitant | AI148: =IFERROR(IF(SEARCH('Entrees Heli'!B$2,'AD Heli'!C148)>0,A148,""),"") -> 147 | AJ148: 147 | AK148: 147 | AL148: LOCHES CENTRE HOSPITALIER
A149: 148 | B149: [LF] | C149: LONS LE SAUNIER CENTRE HOSPITALIER | D149: oui | E149: TPD | F149: non | G149: oui | H149: Nuit | I149: 46.676111 | J149: 5.55 | K149: x | L149: 896 | M149: 273.1 | O149: 22x22 | P149: Carré | Q149: 22 | S149: 22x22 | T149: HB | U149: 1 | V149: EC 145 | W149: oui | X149: En terrasse | Y149: hostile habitée | Z149: Bitume traité | AA149: 3.6 t | AB149: NIL | AC149: OUI (300kg de poudre en deux postes) | AD149: OUI (diurne et lumineux secouru) | AE149: Services techniques : TEL : 03 84 35 60 02. FAX : 03 84 35 60 70. | AF149: 46.676111,5.55 | AG149: Cheminements ARR/DEP de la trouée Sud: au moins 300 m sol par le Sud pour tenir compte de l'urbanisation environnante et de la présence de la LF-R45C.#Cheminements ARR/DEP de la trouée Nord: au moins 300 m sol en tenant compte du relief, de la végétation et des obstacles en limites latérales de la trouée. | AI149: =IFERROR(IF(SEARCH('Entrees Heli'!B$2,'AD Heli'!C149)>0,A149,""),"") -> 148 | AJ149: 148 | AK149: 148 | AL149: LONS LE SAUNIER CENTRE HOSPITALIER
A150: 149 | B150: [LF] | C150: LORIENT BRETAGNE SUD CENTRE HOSPITALIER | D150: oui | E150: TPD | F150: non | G150: oui | H150: Nuit | I150: 47.753611 | J150: -3.356111 | K150: x | L150: 100 | M150: 30.5 | W150: oui | X150: En terrasse | AB150: NIL | AC150: Oui (1 extincteur 5 kg CO2 + 1 extincteur 2 x 10 kg sur roues) | AD150: Oui | AE150: Hôpital de LORIENT. TEL 02 97 06 90 90 | AF150: 47.753611,-3.356111 | AG150: Contact obligatoire avec LORIENT TWR. | AI150: =IFERROR(IF(SEARCH('Entrees Heli'!B$2,'AD Heli'!C150)>0,A150,""),"") -> 149 | AJ150: 149 | AK150: 149 | AL150: LORIENT BRETAGNE SUD CENTRE HOSPITALIER
A151: 150 | B151: [LF] | C151: LYON BRON | D151: oui | E151: CAP | F151: non | G151: non | H151: Jour | I151: 45.729444 | J151: 4.938889 | K151: 2 | L151: 659 | M151: 200.9 | O151: 14.24 x 14.31 | P151: Rectangulaire | Q151: 14.31 | R151: 14.24 | W151: non | X151: En surface | Z151: Enrobé bitume | AA151: 3t | AF151: 45.729444,4.938889 | AI151: =IFERROR(IF(SEARCH('Entrees Heli'!B$2,'AD Heli'!C151)>0,A151,""),"") -> 150 | AJ151: 150 | AK151: 150 | AL151: LYON BRON
A152: 151 | B152: [LF] | C152: LYON CENTRE HOSPITALIER SUD | D152: oui | E152: TPD | F152: non | G152: oui | H152: Nuit | I152: 45.7025 | J152: 4.8075 | K152: 2 | L152: 753 | M152: 229.5 | W152: oui | X152: En terrasse | AB152: NIL | AC152: Oui (Extincteurs : 50kg poudre, 100kg poudre, 2x50kg) | AD152: OUI | AE152: Hospices civils de Lyon. Tél. 04 72 11 63 06 | AF152: 45.7025,4.8075 | AG152: Pour LDG, PPR 30 min. Contacter TEL : 04 72 11 63 06 | AI152: =IFERROR(IF(SEARCH('Entrees Heli'!B$2,'AD Heli'!C152)>0,A152,""),"") -> 151 | AJ152: 151 | AK152: 151 | AL152: LYON CENTRE HOSPITALIER SUD
A153: 152 | B153: [LF] | C153: LYON GROUPEMENT HOSPITALIER EST | D153: oui | E153: TPD | F153: non | G153: oui | H153: Nuit | I153: 45.747778 | J153: 4.9025 | K153: 2 | L153: 818 | M153: 249.3 | O153: 21x21 | P153: Carré | Q153: 21 | T153: HB | U153: 1 | V153: AGUSTA A 109 | W153: oui | X153: En terrasse | Y153: hostile habitée | Z153: Béton | AA153: 4t | AB153: NIL | AC153: Oui (poudre) | AD153: OUI | AE153: Hospices civils de Lyon. Tél. 04 72 11 63 06 | AF153: 45.747778,4.9025 | AG153: Pour LDG, PPR 30 min. Contacter TEL : 04 72 11 63 06 | AI153: =IFERROR(IF(SEARCH('Entrees Heli'!B$2,'AD Heli'!C153)>0,A153,""),"") -> 152 | AJ153: 152 | AK153: 152 | AL153: LYON GROUPEMENT HOSPITALIER EST
A154: 153 | B154: [LF] | C154: LYON HOPITAL EDOUARD HERRIOT | D154: oui | E154: TPD | F154: non | G154: oui | H154: Nuit | I154: 45.743889 | J154: 4.883056 | K154: x | L154: 658 | M154: 200.5 | N154: 63 | O154: 20x20 | P154: Carré | Q154: 20 | T154: HB | V154: EC145 | W154: oui | X154: En terrasse | Y154: hostile habitée | Z154: Béton | AA154: 3.6 t | AB154: NIL | AC154: Oui (5 extincteurs poudre 50 kg BC) | AD154: OUI avec IBN "G" O/R 15 min avant chaque arrivée. | AE154: Hospice civil de Lyon Tél.04 72 11 63 06 | AF154: 45.743889,4.883056 | AG154: Pour LDG, PPR 30 min. Contacter TEL : 04 72 11 63 06 .#ALT cheminements : 2000 ft QNH de jour, 2500 ft QNH de nuit (contact radio avec LYON INFO).#Classe de performance : 1. | AI154: =IFERROR(IF(SEARCH('Entrees Heli'!B$2,'AD Heli'!C154)>0,A154,""),"") -> 153 | AJ154: 153 | AK154: 153 | AL154: LYON HOPITAL EDOUARD HERRIOT
A155: 154 | B155: [LF] | C155: LYON LA SAUVEGARDE | D155: non | E155: TPD | F155: non | G155: oui | H155: Nuit | I155: 45.788889 | J155: 4.786944 | K155: 2 | L155: 906 | M155: 276.1 | N155: 56 | O155: 21x21 | P155: Carré | Q155: 21 | T155: HB | U155: 1 | V155: EC 135 | W155: oui | X155: En terrasse | Y155: hostile habitée | Z155: Résine | AA155: 4.3 t | AB155: 0700-1800 (SUM -1 HR) | AC155: Oui (3 extincteurs sur roues 50L poudre + 1 extincteur haute pression) | AD155: OUI | AE155: Clinique de la Sauvegarde - TEL : 04 72 17 17 93 | AF155: 45.788889,4.786944 | AI155: =IFERROR(IF(SEARCH('Entrees Heli'!B$2,'AD Heli'!C155)>0,A155,""),"") -> 154 | AJ155: 154 | AK155: 154 | AL155: LYON LA SAUVEGARDE
A156: 155 | B156: [LF] | C156: MACON CENTRE HOSPITALIER | D156: oui | E156: RST | F156: non | G156: oui | H156: Nuit | I156: 46.31445 | J156: 4.812306 | K156: 2 | L156: 727 | M156: 221.6 | O156: 20 x 20 m | P156: Carré | Q156: 20 | S156: 11 x 11 m | W156: non | X156: En surface | Z156: Enrobé | AA156: 5 t | AB156: NIL | AC156: 50 kg poudre (extincteur sur roulette). | AD156: OUI | AE156: Centre Hospitalier de Macon - TEL : 03 85 27 52 73 | AF156: 46.31445,4.812306 | AG156: Orientation des trouées : 149°/329°.# Cheminements d'arrivées et de départs NNO et SSE : au moins 300 mètres pour tenir compte de l'urbanisme environnant.# Réservé aux vols SMUH. | AI156: =IFERROR(IF(SEARCH('Entrees Heli'!B$2,'AD Heli'!C156)>0,A156,""),"") -> 155 | AJ156: 155 | AK156: 155 | AL156: MACON CENTRE HOSPITALIER
A157: 156 | B157: [FM] | C157: MAFATE - LA NOUVELLE - CIRQUE DE MAFATE | D157: non | E157: RST | F157: non | G157: non | H157: Jour | I157: -21.075556 | J157: 55.419167 | K157: 2 | L157: 4530 | M157: 1380.7 | O157: diamètre 13.4 | P157: Circulaire | Q157: 13.4 | S157: diamètre 13.4 | T157: HB | U157: 2-3 | V157: H125 | W157: non | X157: En surface | Y157: hostile non habitée | Z157: Béton et herbe | AA157: 5t | AB157: SR-SS | AC157: 2 chariots (50kg ABC, 30kg CO2), bac à sable 100L, couverture anti-feu | AD157: NIL | AE157: Mafate Hélicoptères TEL 0692 43 79 78 | AF157: -21.075556,55.419167 | AG157: Trouée : Cône de 140° entre les caps 203° et 343° | AI157: =IFERROR(IF(SEARCH('Entrees Heli'!B$2,'AD Heli'!C157)>0,A157,""),"") -> 156 | AJ157: 156 | AK157: 156 | AL157: MAFATE - LA NOUVELLE - CIRQUE DE MAFATE
A158: 157 | B158: [LF] | C158: MAGNY COURS CIRCUIT AUTOMOBILE | D158: non | E158: TPD | F158: non | G158: non | H158: Jour | I158: 46.856411 | J158: 3.154267 | K158: 2 | L158: 751 | M158: 228.9 | O158: (02) 29x29 | P158: Carré | Q158: 29 | S158: (02) 10x10 | T158: HB | U158: 3 | V158: non défini | W158: non | X158: En surface | Y158: non hostile | Z158: bitume | AA158: 10t | AB158: NIL. | AC158: Oui (50kg poudre) | AD158: NIL | AE158: Circuit automobile de Nevers Magny-Cours 03 86 21 80 00. | AF158: 46.856411,3.154267 | AG158: Utilisation uniquement sur PPR exploitant.#Axes ATT/DEC : 320°/140° avec hauteur ARR/DEP supérieure à 300 m AGL.#A l'occasion du grand prix de France de Formule 1, consignes particulières publiées par la voie de l'information aéronautique. | AI158: =IFERROR(IF(SEARCH('Entrees Heli'!B$2,'AD Heli'!C158)>0,A158,""),"") -> 157 | AJ158: 157 | AK158: 157 | AL158: MAGNY COURS CIRCUIT AUTOMOBILE
A159: 158 | B159: [LF] | C159: MANOSQUE CENTRE HOSPITALIER | D159: oui | E159: RST | F159: non | G159: oui | H159: Nuit | I159: 43.828056 | J159: 5.806111 | K159: x | L159: 1081 | M159: 329.5 | O159: 22x22 | P159: Carré | Q159: 22 | S159: 22x22 | W159: oui | X159: En terrasse | Z159: Béton bitumineux | AA159: 4 t | AB159: NIL | AC159: Oui (5 extincteurs poudre 50 kg) | AD159: OUI | AE159: Centre hospitalier de Manosque TEL 04 92 73 42 00 - FAX 04 92 77 78 48 | AF159: 43.828056,5.806111 | AG159: Hélistation réservée aux transports sanitaires d'urgence héliportés.#COM : SAMU Opérations 122.980 | AI159: =IFERROR(IF(SEARCH('Entrees Heli'!B$2,'AD Heli'!C159)>0,A159,""),"") -> 158 | AJ159: 158 | AK159: 158 | AL159: MANOSQUE CENTRE HOSPITALIER
A160: 159 | B160: [LF] | C160: MANTES LA JOLIE CENTRE HOSPITALIER FRANCOIS QUESNAY | D160: non | E160: TPD | F160: non | G160: oui | H160: Nuit | I160: 48.999033 | J160: 1.674942 | K160: 2 | L160: 92 | M160: 28 | O160: 26x31 | P160: Rectangulaire | Q160: 31 | R160: 26 | S160: 20x25 | T160: HB | U160: 1 | V160: AS 365 N2 | W160: oui | X160: En terrasse | Y160: hostile habitée | Z160: Revêtue | AA160: 4t | AB160: NIL | AC160: NIL | AD160: OUI | AE160: Centre Hospitalier Tél. 01 34 97 40 00 FAX 01 34 97 40 15 | AF160: 48.999033,1.674942 | AG160: Axes QFU 290°/110° et QFU 100°/280°. En attente décision préfectorale. | AI160: =IFERROR(IF(SEARCH('Entrees Heli'!B$2,'AD Heli'!C160)>0,A160,""),"") -> 159 | AJ160: 159 | AK160: 159 | AL160: MANTES LA JOLIE CENTRE HOSPITALIER FRANCOIS QUESNAY
A161: 160 | B161: [LF] | C161: MARGAUX RELAIS DE MARGAUX | D161: non | E161: TPD | F161: non | G161: non | H161: Jour | I161: 45.056667 | J161: -0.6575 | K161: x | L161: 10 | M161: 3 | O161: 20x20 | P161: Carré | Q161: 20 | S161: 12x12 | T161: HB | U161: non définie | V161: non défini | W161: non | X161: En surface | Y161: hostile non habitée | Z161: Non revêtu | AA161: 2,5t | AB161: NIL | AC161: Oui (extincteurs portatifs) | AD161: NIL | AE161: Direction du Relais de MARGAUX. Tél.05 57 88 38 30 FAX 05 57 88 31 73. | AF161: 45.056667,-0.6575 | AG161: Trouée unique au Nord-Ouest: axe 310°. | AI161: =IFERROR(IF(SEARCH('Entrees Heli'!B$2,'AD Heli'!C161)>0,A161,""),"") -> 160 | AJ161: 160 | AK161: 160 | AL161: MARGAUX RELAIS DE MARGAUX
A162: 161 | B162: [LF] | C162: MARNE LA VALLEE CENTRE HOSPITALIER | D162: oui | E162: TPD | F162: non | G162: oui | H162: Nuit | I162: 48.848611 | J162: 2.769722 | K162: x | L162: 412 | M162: 125.6 | O162: 20x20 | P162: Carré | Q162: 20 | S162: 12.60x12.60 | U162: 1 | V162: EC135 T1/T2, EC145, A109 E Power | W162: non | X162: En surface | Y162: hostile habitée | Z162: Béton | AA162: 3.5 t | AB162: H24 | AC162: OUI (2 poudre à roue 50 kg + 2 CO2 5 kg) | AD162: OUI | AE162: Grand Hôpital de l'Est Francilien - TEL : 01 61 10 61 10. | AF162: 48.848611,2.769722 | AG162: Exclusivement réservé aux hélicoptères sanitaires.#Axes : 130°/310°. | AI162: =IFERROR(IF(SEARCH('Entrees Heli'!B$2,'AD Heli'!C162)>0,A162,""),"") -> 161 | AJ162: 161 | AK162: 161 | AL162: MARNE LA VALLEE CENTRE HOSPITALIER
A163: 162 | B163: [LF] | C163: MARSEILLE HOPITAL DE LA TIMONE | D163: oui | E163: TPD | F163: non | G163: oui | H163: Nuit | I163: 43.289722 | J163: 5.4025 | K163: 2 | L163: 205 | M163: 62.5 | O163: 20,8 x 20,8 m | P163: Carré | Q163: 20.8 | S163: 20,8 x 20,8 m | W163: oui | X163: En terrasse | Z163: Béton | AA163: 4,3 t | AB163: H24 | AC163: Oui (250 kg poudre). | AD163: OUI (activable à distance par GSM : 06 21 82 29 57). | AE163: Hôpital de la Timone - TEL : 04 91 38 69 15 / 80 01 - FAX : 04 91 38 50 33 ou SAMU - TEL : 04 91 49 93 09 - FAX : 04 91 38 58 21- FREQ : 122.980 MHz. | AF163: 43.289722,5.4025 | AG163: Aire de sécurité : 27 m x 27 m.#Trouée d'envol Ouest : 298°/118°.# Trouée d'envol Est : 118°/298°.# Réservée aux opérations de transport sanitaire.# Accès à l'AST en terrasse (diamètre 16,5 m, ALT 205 ft) exclusivement par effet de sol (roulage interdit). | AI163: =IFERROR(IF(SEARCH('Entrees Heli'!B$2,'AD Heli'!C163)>0,A163,""),"") -> 162 | AJ163: 162 | AK163: 162 | AL163: MARSEILLE HOPITAL DE LA TIMONE
A164: 163 | B164: [LF] | C164: MARSEILLE HOPITAL NORD | D164: oui | E164: TPD | F164: non | G164: non | H164: Jour | I164: 43.38 | J164: 5.363056 | K164: 2 | L164: 643 | M164: 196 | O164: 20.6 x 20.6 m | P164: Carré | Q164: 20.6 | S164: 20.6 x 20.6 m | W164: oui | X164: En terrasse | Z164: Béton | AA164: 4 t | AB164: H24 | AC164: Oui O/R (4 extincteurs à poudre 50kg + 6 extincteurs à poudre 9 kg) | AD164: OUI | AE164: Hôpital Nord TEL 04 91 96 80 02/03 - FAX 04 91 96 80 01 ou SAMU TEL 04 91 49 91 91 - FAX 04 91 38 58 21 | AF164: 43.38,5.363056 | AG164: Aire de sécurité : 27 m x 27 m.#Axes : 300°/120°.# Réservée aux opérations services médicaux.# AST au sol diamètre 30 m, ALT 613 ft. | AI164: =IFERROR(IF(SEARCH('Entrees Heli'!B$2,'AD Heli'!C164)>0,A164,""),"") -> 163 | AJ164: 163 | AK164: 163 | AL164: MARSEILLE HOPITAL NORD
A165: 164 | B165: [LF] | C165: MARSEILLE LAVERAN HOPITAL MILITAIRE | D165: oui | E165: TPD | F165: non | G165: oui | H165: Nuit | I165: 43.327778 | J165: 5.415556 | K165: 2 | L165: 353 | M165: 107.6 | N165: 29 | O165: 21x21 | P165: Carré | Q165: 21 | S165: 21x21 | T165: HB | U165: 1 | V165: SA 365 N3 | W165: oui | X165: En terrasse | Y165: hostile habitée | Z165: Béton | AA165: 4.3 t | AB165: H24 | AC165: Oui (Extincteurs ABC : 2x100 kg sur roues + 6x9 kg et CO2 : 2x10 kg) | AD165: 28 feux verts omnidirectionnels + 8 projecteurs blancs + 1 manche à air éclairée | AE165: Hôpital d'instruction des armées# MARSEILLE LAVERAN# TEL: 04 91 61 76 62 - FAX : 04 91 61 74 98 | AF165: 43.327778,5.415556 | AG165: Axes d'arrivée : 333°(préférentiel) et 153°, jour et nuit# Axes de départ : 153° (préférentiel) et 333°, jour et nuit# Préavis de 15 min minimum exigé avant tout mouvement,# TEL : 04 91 61 76 62 | AI165: =IFERROR(IF(SEARCH('Entrees Heli'!B$2,'AD Heli'!C165)>0,A165,""),"") -> 164 | AJ165: 164 | AK165: 164 | AL165: MARSEILLE LAVERAN HOPITAL MILITAIRE
A166: 165 | B166: [LF] | C166: MARSEILLE PROVENCE | D166: oui | E166: CAP | F166: non | G166: non | H166: Jour | I166: 43.436667 | J166: 5.215 | K166: 2 | L166: 70 | M166: 21.3 | T166: HB | AF166: 43.436667,5.215 | AI166: =IFERROR(IF(SEARCH('Entrees Heli'!B$2,'AD Heli'!C166)>0,A166,""),"") -> 165 | AJ166: 165 | AK166: 165 | AL166: MARSEILLE PROVENCE
A167: 166 | B167: [LF] | C167: MARTIGUES CENTRE HOSPITALIER | D167: oui | E167: RST | F167: non | G167: oui | H167: Nuit | I167: 43.413056 | J167: 5.038889 | K167: x | L167: 178 | M167: 54.3 | O167: 21x21 | P167: Carré | Q167: 21 | S167: 21x21 | W167: oui | X167: En terrasse | Z167: Structure et caillebotis métallique | AA167: 4 t | AB167: NIL | AC167: OUI (12 extincteurs poudre (4x50kg + 8x9kg), 1 extincteur CO2 (2x9kg)) | AD167: OUI | AE167: Centre Hospitalier de Martigues TEL: 06 86 55 92 77 / 06 86 55 73 55, FAX: 04 42 43 20 27 | AF167: 43.413056,5.038889 | AG167: Utilisation de nuit pour trouée sud seulement. | AI167: =IFERROR(IF(SEARCH('Entrees Heli'!B$2,'AD Heli'!C167)>0,A167,""),"") -> 166 | AJ167: 166 | AK167: 166 | AL167: MARTIGUES CENTRE HOSPITALIER
A168: 167 | B168: [LF] | C168: MEAUX CENTRE HOSPITALIER | D168: non | E168: TPD | F168: non | G168: oui | H168: Nuit | I168: 48.966111 | J168: 2.887778 | K168: 2 | L168: 158 | M168: 48.2 | O168: Diamètre 20 m | P168: Circulaire | Q168: 20 | S168: Diamètre 14 m | W168: non | X168: En surface | Z168: Béton | AA168: 4 t | AB168: H24 | AC168: OUI (50 kg de poudre BC et 2 kg CO2) | AD168: OUI | AE168: PC Sécurité TEL : 01 64 35 10 42 | AF168: 48.966111,2.887778 | AG168: Transport sanitaire et SMUH de jour et de nuit#Orientation des trouées : 045° / 225°#Pentes des surfaces de protection (trouées de décollage et d'atterrissage) : 4,5%#Obstacles : #Dans la trouée 045° : #- angle garage cote 50,8 m à 37,4 m du centre de la FATO#- Présence d'arbres#Dans la trouée 225° :#- Bâtiment cote 60,8 m à 175 m du centre de la FATO#- Clocheton cathédrale : cote 123,5 m à une distance de 948 m du centre de la FATO#- Présence d'arbres | AI168: =IFERROR(IF(SEARCH('Entrees Heli'!B$2,'AD Heli'!C168)>0,A168,""),"") -> 167 | AJ168: 167 | AK168: 167 | AL168: MEAUX CENTRE HOSPITALIER
A169: 168 | B169: [LF] | C169: MELUN SANTEPOLE | D169: non | E169: TPD | F169: non | G169: oui | H169: Nuit | I169: 48.5575 | J169: 2.641667 | K169: x | L169: 338 | M169: 103 | O169: 20.6x20.6 | P169: Carré | Q169: 20.6 | S169: 20.6x20.6 | T169: HB | U169: 1 | V169: Non défini | W169: oui | X169: En terrasse | Y169: hostile habitée | Z169: Béton | AA169: 4.3 t | AC169: Oui (poudre : 2x100 kg et 2x50 kg) | AF169: 48.5575,2.641667 | AG169: QFU ATT/TKOF : 065°/245°#Réservée au transport sanitaire.#Préavis minimum de 15 min exigé avant tout mouvement : TEL 01 64 89 39 50. | AI169: =IFERROR(IF(SEARCH('Entrees Heli'!B$2,'AD Heli'!C169)>0,A169,""),"") -> 168 | AJ169: 168 | AK169: 168 | AL169: MELUN SANTEPOLE
A170: 169 | B170: [LF] | C170: MENDE CENTRE HOSPITALIER | D170: oui | E170: TPD | F170: non | G170: oui | H170: Nuit | I170: 44.522222 | J170: 3.489167 | K170: x | L170: 2540 | M170: 774.2 | O170: 21 x 21 | P170: Carré | Q170: 21 | S170: 21x21 | T170: HB | U170: 1 | V170: Dauphin SA365N | W170: oui | X170: En terrasse | Y170: hostile habitée | Z170: Bitume | AA170: 4t | AB170: NIL | AC170: OUI (260kg poudre) | AD170: OUI | AE170: Centre hospitalier de Mende#Tél.04 66 49 49 49 | AF170: 44.522222,3.489167 | AG170: Conditions d'exploitations:#Trouées 015°/195° et 140°/320°. | AI170: =IFERROR(IF(SEARCH('Entrees Heli'!B$2,'AD Heli'!C170)>0,A170,""),"") -> 169 | AJ170: 169 | AK170: 169 | AL170: MENDE CENTRE HOSPITALIER
A171: 170 | B171: [LF] | C171: METZ FRESCATY | D171: non | E171: ADM | F171: non | G171: oui | H171: Nuit | I171: 49.070556 | J171: 6.126111 | K171: 2 | L171: 630 | M171: 192 | O171: 300 x 25 | P171: Rectangulaire | Q171: 300 | R171: 25 | S171: 15 x 15 | T171: HB | U171: 1, 2 et 3 | V171: EC 135 | W171: non | X171: En surface | Z171: Béton | AA171: 12 t | AB171: H24 7/7 | AC171: CO2 2x10kg et ABC 100kg | AD171: balisage lumineux TLOF + manche à air | AE171: SAG Tel : 03 87 56 04 58 (H24) | AF171: 49.070556,6.126111 | AG171: QFU : 01/19 | AI171: =IFERROR(IF(SEARCH('Entrees Heli'!B$2,'AD Heli'!C171)>0,A171,""),"") -> 170 | AJ171: 170 | AK171: 170 | AL171: METZ FRESCATY
A172: 171 | B172: [LF] | C172: METZ MERCY CENTRE HOSPITALIER | D172: oui | E172: TPD | F172: non | G172: oui | H172: Nuit | I172: 49.083611 | J172: 6.241389 | K172: x | L172: 868 | M172: 264.6 | O172: 20x20 | P172: Carré | Q172: 20 | S172: 20x20 | T172: HB | U172: 1 | V172: EC 145 | W172: oui | X172: En terrasse | Y172: hostile non habitée | Z172: Béton | AA172: 4t | AB172: NIL | AC172: OUI (300kg poudre répartis en 2 postes) | AD172: OUI | AE172: CHR Metz Hôpital de Mercy - TEL : 03 87 17 98 57 | AF172: 49.083611,6.241389 | AG172: Obtention d'une clairance obligatoire auprès de LORRAINE TWR.#Se référer aux conditions publiées sur la carte VAC de LFJL. | AI172: =IFERROR(IF(SEARCH('Entrees Heli'!B$2,'AD Heli'!C172)>0,A172,""),"") -> 171 | AJ172: 171 | AK172: 171 | AL172: METZ MERCY CENTRE HOSPITALIER
A173: 172 | B173: [LF] | C173: MONACO CENTRE HOSPITALIER PRINCESSE GRACE | D173: non | E173: RST | F173: non | G173: oui | H173: Nuit | I173: 43.729386 | J173: 7.410186 | K173: 2 | L173: 259 | M173: 78.9 | W173: oui | X173: En terrasse | AB173: H24 | AC173: Oui (voir moyens ci-dessous). | AD173: OUI | AE173: Directeur CHPG - TEL et FAX : (+377) 97 98 84 94 | AF173: 43.729386,7.410186 | AG173: Sur autorisation exclusive du Directeur du Centre Hospitalier Princesse Grace.# Réservé uniquement aux sociétés autorisées.# Axes ATT et APP : 335°.# Moyens SSLIA : RIA avec émulseur + 1 extincteur poudre 50 kg + 1 extincteur CO2 10 kg avec perche.#Information publiée sous mandat de la principauté de Monaco. | AI173: =IFERROR(IF(SEARCH('Entrees Heli'!B$2,'AD Heli'!C173)>0,A173,""),"") -> 172 | AJ173: 172 | AK173: 172 | AL173: MONACO CENTRE HOSPITALIER PRINCESSE GRACE
A174: 173 | B174: [LF] | C174: MONACO HELISTATION | D174: oui | E174: CAP | F174: non | G174: oui | H174: Nuit | I174: 43.725556 | J174: 7.419167 | K174: 2 | L174: 19 | M174: 5.8 | T174: HA | U174: non définie | V174: Dauphin EC 155 | W174: non | X174: En surface | Y174: hostile habitée | Z174: Béton | AA174: 6t | AB174: 0700-2130 locales# TEL.377 93 15 88 11. | AC174: Oui CAT H1 (2 RIA, poudre : 4x50kg + 4x9kg, CO2 : 5x10kg) | AD174: OUI | AE174: Service de l'Aviation Civile TEL (377) 98 98 87 11 FAX : (377) 98 98 87 08 | AF174: 43.725556,7.419167 | AG174: Information publiée sous mandat de la Principauté de Monaco. | AI174: =IFERROR(IF(SEARCH('Entrees Heli'!B$2,'AD Heli'!C174)>0,A174,""),"") -> 173 | AJ174: 173 | AK174: 173 | AL174: MONACO HELISTATION
A175: 174 | B175: [LF] | C175: MONT DE LANS LES DEUX ALPES | D175: non | E175: TPD | F175: non | G175: non | H175: Jour | I175: 45.010278 | J175: 6.144083 | K175: 2 | L175: 7152 | M175: 2179.8 | O175: Diamètre 11 m | P175: Circulaire | Q175: 11 | S175: Diamètre 11 m | T175: HB | U175: 3 | V175: AS 350 | W175: non | X175: En surface | Y175: hostile non habitée | Z175: Neige damée | AA175: 3t | AB175: O/R exploitant | AC175: Oui (50kg poudre) | AD175: NIL | AE175: SAF Hélicoptères - TEL 04 79 38 48 29 | AF175: 45.010278,6.144083 | AG175: Trouée unique Nord : 020°/200°.# Utilisation sur sol enneigé et damé : balisage par marques contrastant avec le sol enneigé.# Utilisable par un seul HEL à la fois, sous réserve d'un préavis d'au-moins 2H auprès de l'exploitant. | AI175: =IFERROR(IF(SEARCH('Entrees Heli'!B$2,'AD Heli'!C175)>0,A175,""),"") -> 174 | AJ175: 174 | AK175: 174 | AL175: MONT DE LANS LES DEUX ALPES
A176: 175 | B176: [LF] | C176: MONT DE MARSAN CENTRE HOSPITALIER | D176: oui | E176: TPD | F176: non | G176: oui | H176: Nuit | I176: 43.893333 | J176: -0.486111 | K176: x | L176: 197 | M176: 60 | O176: 21x21 | P176: Carré | Q176: 21 | S176: Diamètre 12 | T176: HB | U176: 1. | V176: EC 145 | W176: oui | X176: En terrasse | Y176: hostile habitée | Z176: Béton | AA176: 4.3t | AB176: NIL | AC176: Oui (1x50 kg poudre ABC, 1 extincteur CO2, 1 rideau de brumisation) | AD176: OUI | AE176: Centre hospitalier de MONT DE MARSAN. TEL: 05 58 05 17 05 / 05 58 05 11 98. | AF176: 43.893333,-0.486111 | AG176: Fréquence : MONT DE MARSAN Opérations 122,975 MHz. Réservée aux transports sanitaires. #Contacter MONT DE MARSAN APP 119,7 MHz. | AI176: =IFERROR(IF(SEARCH('Entrees Heli'!B$2,'AD Heli'!C176)>0,A176,""),"") -> 175 | AJ176: 175 | AK176: 175 | AL176: MONT DE MARSAN CENTRE HOSPITALIER
A177: 176 | B177: [LF] | C177: MONTCEAU LES MINES CENTRE HOSPITALIER | D177: oui | E177: TPD | F177: non | G177: oui | H177: Nuit | I177: 46.65 | J177: 4.333889 | K177: x | L177: 958 | M177: 292 | O177: 20x20 m | P177: Carré | Q177: 20 | S177: 11x11 m | T177: HB | U177: 1 | V177: EC 145 | W177: non | X177: En surface | Y177: hostile habitée | Z177: Enrobé | AA177: 5t | AB177: PPR Exploitant | AC177: Oui (50kg poudre) | AD177: Oui | AE177: Centre hospitalier J. BOUVERI TEL: 03 85 67 60 60. | AF177: 46.65,4.333889 | AG177: Utilisable sur PPR exploitant.#Axes APP: 349°/154°. | AI177: =IFERROR(IF(SEARCH('Entrees Heli'!B$2,'AD Heli'!C177)>0,A177,""),"") -> 176 | AJ177: 176 | AK177: 176 | AL177: MONTCEAU LES MINES CENTRE HOSPITALIER
A178: 177 | B178: [LF] | C178: MONTLUCON CENTRE HOSPITALIER | D178: oui | E178: TPD | F178: non | G178: oui | H178: Nuit | I178: 46.341667 | J178: 2.609444 | K178: 2 | L178: 802 | M178: 244.4 | N178: 76 | O178: 20x20 | P178: Carré | Q178: 20 | S178: 20x20 | T178: HB | U178: 1 | V178: EC 145 | W178: oui | X178: En terrasse | Y178: hostile habitée | Z178: Béton armé + support bitumastic | AA178: 4t | AB178: H24 | AC178: Oui (2x100 kg poudre BC, 1x50 kg poudre BC) | AD178: OUI | AE178: Centre hospitalier de Monltuçon - TEL : 04 70 02 72 18 | AF178: 46.341667,2.609444 | AI178: =IFERROR(IF(SEARCH('Entrees Heli'!B$2,'AD Heli'!C178)>0,A178,""),"") -> 177 | AJ178: 177 | AK178: 177 | AL178: MONTLUCON CENTRE HOSPITALIER
A179: 178 | B179: [LF] | C179: MONTPELLIER LAPEYRONIE CHR | D179: oui | E179: TPD | F179: non | G179: oui | H179: Nuit | I179: 43.630006 | J179: 3.849653 | K179: 2 | L179: 150 | M179: 45.7 | O179: 30 x 25 m | P179: Rectangulaire | Q179: 30 | R179: 25 | S179: 10.76 x 10.76 m | W179: non | X179: En surface | Z179: Ciment | AA179: 10 t | AB179: NIL | AC179: Oui (200 kg poudre, 2 RIA, 1 poteau incendie) | AD179: OUI (PCL : 122.980 MHz) | AE179: SAMU 34.Tél.15 ou 04 67 33 49 95 FAX 04 67 33 79 68 | AF179: 43.630006,3.849653 | AG179: Pour ARR, DEP et ATT, contacter MONTPELLIER Tour. | AI179: =IFERROR(IF(SEARCH('Entrees Heli'!B$2,'AD Heli'!C179)>0,A179,""),"") -> 178 | AJ179: 178 | AK179: 178 | AL179: MONTPELLIER LAPEYRONIE CHR
A180: 179 | B180: [LF] | C180: MONTPELLIER MEDITERRANEE | D180: oui | E180: CAP | F180: non | G180: non | H180: Jour | I180: 43.583333 | J180: 3.961389 | K180: 2 | L180: 17 | M180: 5.2 | AF180: 43.583333,3.961389 | AI180: =IFERROR(IF(SEARCH('Entrees Heli'!B$2,'AD Heli'!C180)>0,A180,""),"") -> 179 | AJ180: 179 | AK180: 179 | AL180: MONTPELLIER MEDITERRANEE
A181: 180 | B181: [LF] | C181: MOUTIERS CENTRE HOSPITALIER | D181: non | E181: TPD | F181: non | G181: oui | H181: Nuit | I181: 45.483611 | J181: 6.535556 | K181: x | L181: 1621 | M181: 494.1 | N181: 49 | O181: 19x21 | P181: Rectangulaire | Q181: 21 | R181: 19 | S181: 19x21 | T181: HB | U181: 1 | V181: masse MAX 4t | W181: oui | X181: En terrasse | Y181: hostile habitée | Z181: Béton | AA181: 4t | AB181: NIL | AC181: Oui (extincteur poudre 250kg) | AD181: OUI | AE181: Centre hospitalier de Moutiers Tél.04 79 09 60 60 FAX 04 79 09 60 09. | AF181: 45.483611,6.535556 | AI181: =IFERROR(IF(SEARCH('Entrees Heli'!B$2,'AD Heli'!C181)>0,A181,""),"") -> 180 | AJ181: 180 | AK181: 180 | AL181: MOUTIERS CENTRE HOSPITALIER
A182: 181 | B182: [LF] | C182: MULHOUSE CENTRE HOSPITALIER DE MOENCHSBERG | D182: oui | E182: TPD | F182: non | G182: oui | H182: Nuit | I182: 47.725331 | J182: 7.344992 | K182: 2 | L182: 1081 | M182: 329.5 | W182: non | X182: En surface | AB182: H24 | AC182: Oui (extincteurs poudre + CO2) | AD182: Oui | AE182: Centre hospitalier de Mulhouse Moenchsberg. TEL : 03 89 64 62 72 / FAX : 03 89 64 62 74 | AF182: 47.725331,7.344992 | AG182: Hélistation située sous la TMA 1 de BALE. | AI182: =IFERROR(IF(SEARCH('Entrees Heli'!B$2,'AD Heli'!C182)>0,A182,""),"") -> 181 | AJ182: 181 | AK182: 181 | AL182: MULHOUSE CENTRE HOSPITALIER DE MOENCHSBERG
A183: 182 | B183: [LF] | C183: NANCY BRABOIS CENTRE HOSPITALIER | D183: oui | E183: TPD | F183: non | G183: oui | H183: Nuit | I183: 48.644722 | J183: 6.151389 | K183: x | L183: 1335 | M183: 406.9 | N183: 25 | O183: 20x20 | P183: Carré | Q183: 20 | S183: 20x20 | T183: HB | U183: 1 | V183: EC 135 T1 | W183: oui | X183: En terrasse | Y183: hostile habitée | Z183: Béton | AA183: 4t | AB183: H24 | AC183: OUI (2x150 kg de poudre) | AD183: OUI | AE183: Centre hospitalier universitaire | AF183: 48.644722,6.151389 | AI183: =IFERROR(IF(SEARCH('Entrees Heli'!B$2,'AD Heli'!C183)>0,A183,""),"") -> 182 | AJ183: 182 | AK183: 182 | AL183: NANCY BRABOIS CENTRE HOSPITALIER
A184: 183 | B184: [LF] | C184: NANCY HOPITAL CENTRAL | D184: oui | E184: TPD | F184: non | G184: oui | H184: Nuit | I184: 48.685394 | J184: 6.192475 | K184: 2 | L184: 749 | M184: 228.3 | W184: oui | X184: En terrasse | AB184: H24 | AC184: Oui (250kg de poudre) | AD184: Oui avec télécommande 122.980 | AE184: SAMU TEL 03 83 85 13 71 FAX 03 83 85 26 22 | AF184: 48.685394,6.192475 | AG184: ATT et TKOF uniquement si l'ascenceur est en position descendue.Le rotor anti-couple doit être le plus éloigné possible de la trappe de l'ascenceur.Utilisable par un seul HEL à la fois | AI184: =IFERROR(IF(SEARCH('Entrees Heli'!B$2,'AD Heli'!C184)>0,A184,""),"") -> 183 | AJ184: 183 | AK184: 183 | AL184: NANCY HOPITAL CENTRAL
A185: 184 | B185: [LF] | C185: NANTES ATLANTIQUE | D185: oui | E185: CAP | F185: non | G185: non | H185: Jour | I185: 47.156944 | J185: -1.607778 | K185: 2 | L185: 90 | M185: 27.4 | AF185: 47.156944,-1.607778 | AI185: =IFERROR(IF(SEARCH('Entrees Heli'!B$2,'AD Heli'!C185)>0,A185,""),"") -> 184 | AJ185: 184 | AK185: 184 | AL185: NANTES ATLANTIQUE
A186: 185 | B186: [LF] | C186: NANTES QUAI MONCOUSU CENTRE HOSPITALIER | D186: oui | E186: TPD | F186: non | G186: oui | H186: Nuit | I186: 47.208889 | J186: -1.554444 | K186: x | L186: 77 | M186: 23.5 | W186: oui | X186: En terrasse | AB186: NIL | AC186: Oui (250 kg poudre) | AD186: OUI | AE186: Centre Hospitalier. Tél: 02 40 08 22 23. | AF186: 47.208889,-1.554444 | AG186: Hélistation strictement réservée au transport sanitaire et vols de service médical d'urgence.#Contact radio obligatoire avec Nantes TWR.#Pour LDG et TKOF PPR SAMU Opérations 122.980 MHz.#Utilisation de l'hélistation par un seul hélicoptère à la fois.#Axes 089°/269° et 106°/286°.#Pente des surfaces de protection des trouées : 4,5%. | AI186: =IFERROR(IF(SEARCH('Entrees Heli'!B$2,'AD Heli'!C186)>0,A186,""),"") -> 185 | AJ186: 185 | AK186: 185 | AL186: NANTES QUAI MONCOUSU CENTRE HOSPITALIER
A187: 186 | B187: [LF] | C187: NARBONNE SAINT CRESCENT CENTRE HOSPITALIER | D187: oui | E187: TPD | F187: non | G187: non | H187: Jour | I187: 43.172789 | J187: 2.994561 | K187: x | L187: 30 | M187: 9.1 | O187: 20x20 | P187: Carré | Q187: 20 | T187: HB | U187: 1 | V187: EC 135 | W187: non | X187: En surface | Y187: hostile habitée | Z187: Bitume | AA187: 4t | AB187: NIL | AC187: Oui (50kg poudre) | AD187: NON | AE187: Centre Hospitalier de Narbonne TEL : 04 68 42 60 51 | AF187: 43.172789,2.994561 | AG187: Hélistation réservée exclusivement au transport sanitaire urgent régulé par le SAMU 11. #Axes ATT/DEC : 115°/295° | AI187: =IFERROR(IF(SEARCH('Entrees Heli'!B$2,'AD Heli'!C187)>0,A187,""),"") -> 186 | AJ187: 186 | AK187: 186 | AL187: NARBONNE SAINT CRESCENT CENTRE HOSPITALIER
A188: 187 | B188: [LF] | C188: NEVERS CENTRE HOSPITALIER | D188: oui | E188: TPD | F188: non | G188: oui | H188: Nuit | I188: 46.981389 | J188: 3.122222 | K188: x | L188: 737 | M188: 224.6 | W188: non | X188: En surface | AB188: NIL. | AC188: Oui (2 x 50kg poudre) | AD188: OUI | AE188: Centre Hospitalier P. BEREGOVOY - TEL : 03 86 93 71 36 / 03 86 93 70 07 | AF188: 46.981389,3.122222 | AG188: Réservée aux évacuations sanitaires.# Utilisable par un seul HEL à la fois.# Trouées ATT/DEC décalées cause cheminées hôpital :# - OUEST : orientée 096°/276°,# - EST : orientée 266°/086°.# Trouée OUEST préférentielle cause environnement urbain.# PCL 122.975 MHz couplé avec des feux de circulation routière. Utilisation obligatoire de jour comme de nuit : 3 appuis pour allumage / 5 appuis pour extinction. Eteindre le balisage après utilisation pour permettre le rétablissement de la circulation routière. | AI188: =IFERROR(IF(SEARCH('Entrees Heli'!B$2,'AD Heli'!C188)>0,A188,""),"") -> 187 | AJ188: 187 | AK188: 187 | AL188: NEVERS CENTRE HOSPITALIER
A189: 188 | B189: [LF] | C189: NICE COTE D'AZUR | D189: oui | E189: CAP | F189: non | G189: non | H189: Jour | I189: 43.665278 | J189: 7.215 | K189: 2 | L189: 12 | M189: 3.7 | AF189: 43.665278,7.215 | AI189: =IFERROR(IF(SEARCH('Entrees Heli'!B$2,'AD Heli'!C189)>0,A189,""),"") -> 188 | AJ189: 188 | AK189: 188 | AL189: NICE COTE D'AZUR
A190: 189 | B190: [LF] | C190: NICE HOPITAL L'ARCHET 2 | D190: oui | E190: TPD | F190: non | G190: oui | H190: Nuit | I190: 43.697397 | J190: 7.226133 | K190: 2 | L190: 608 | M190: 185.3 | N190: 66 | O190: 22 x 19 m | P190: Rectangulaire | Q190: 22 | R190: 19 | S190: 22 x 19 m | W190: oui | X190: En terrasse | Z190: Béton | AA190: 3,5 t | AB190: 0700-1900 (SUM - 1HR) | AC190: Oui (2 lances à mousse) | AD190: OUI | AE190: Centre Hospitalier. TEL : 04 92 03 65 85/65 88. | AF190: 43.697397,7.226133 | AG190: Hélistation strictement réservée au transport sanitaire.# Vols privés et de travail aérien interdits.# Accord préalable de l'exploitant exigé avant toute utilisation : PN 15 min par TEL 04 92 03 65 85 ou FAX 04 92 03 34 24 (SAMU).# Axes ATT/DEC : 120°/300°. | AI190: =IFERROR(IF(SEARCH('Entrees Heli'!B$2,'AD Heli'!C190)>0,A190,""),"") -> 189 | AJ190: 189 | AK190: 189 | AL190: NICE HOPITAL L'ARCHET 2
A191: 190 | B191: [LF] | C191: NICE HOPITAL LENVAL | D191: oui | E191: TPD | F191: non | G191: oui | H191: Nuit | I191: 43.689333 | J191: 7.241633 | K191: 2 | L191: 115 | M191: 35.1 | O191: 20 x 20 m | P191: Carré | Q191: 20 | S191: 20 x 20 m | W191: oui | X191: En terrasse | Z191: Béton | AA191: 4 t | AB191: 0700-1900 (SUM - 1HR) | AC191: Oui (250 kg poudre). | AD191: OUI | AE191: Centre Hospitalier. TEL : 04 92 03 03 92. | AF191: 43.689333,7.241633 | AG191: Préavis exploitant exigé pour tout mouvement. Trouées non rectilignes axe 033°/213° ou axe 063°/243°. Transport sanitaire uniquement. | AI191: =IFERROR(IF(SEARCH('Entrees Heli'!B$2,'AD Heli'!C191)>0,A191,""),"") -> 190 | AJ191: 190 | AK191: 190 | AL191: NICE HOPITAL LENVAL
A192: 191 | B192: [LF] | C192: NICE HOPITAL PASTEUR 2 | D192: oui | E192: TPD | F192: non | G192: oui | H192: Nuit | I192: 43.724722 | J192: 7.2825 | K192: 2 | L192: 258 | M192: 78.6 | O192: 20.60 x 20.60 m | P192: Carré | Q192: 20.6 | S192: 20.60 x 20.60 m | W192: oui | X192: En terrasse | Z192: Béton | AA192: 5 t | AB192: H24 | AC192: oui (2 lances à mousse). | AD192: OUI | AE192: Centre Hospitalier. TEL : 04 92 03 84 04 | AF192: 43.724722,7.2825 | AG192: FATO/TLOF + Aire de sécurité : 28.60 x 28.60 m.#Hélistation uniquement réservée aux transports sanitaires et opérations de secours.#Préavis exploitant exigé pour tout mouvement PN 15 min.#2 trouées non rectilignes angle 90°.#Trouée Sud (préférentielle) : ATT et DEC 357°/177°.#Trouée Est : trouée courbe.#Départ : route 087° sur 500 m, puis virage droite avec rayon de virage 350 m, puis route au 183°/003°.#Arrivée : route inverse. | AI192: =IFERROR(IF(SEARCH('Entrees Heli'!B$2,'AD Heli'!C192)>0,A192,""),"") -> 191 | AJ192: 191 | AK192: 191 | AL192: NICE HOPITAL PASTEUR 2
A193: 192 | B193: [LF] | C193: NIMES CAREMEAU CENTRE HOSPITALIER | D193: oui | E193: TPD | F193: non | G193: oui | H193: Nuit | I193: 43.823889 | J193: 4.323056 | K193: x | L193: 310 | M193: 94.5 | W193: non | X193: En surface | AB193: NIL | AC193: Oui (1x50kg et 2 x 25kg poudre) | AD193: OUI | AE193: Centre Hospitalier Universitaire Carémeau. Tél. 04 66 68 33 29 | AF193: 43.823889,4.323056 | AG193: Axes ATT/DEC : 159°/339°#Hélistation réservée aux évacuations sanitaires dans le cadre des misssions d'aide médicale d'urgence et du secours à victime dans le cadre des missions de sécurité civile. | AI193: =IFERROR(IF(SEARCH('Entrees Heli'!B$2,'AD Heli'!C193)>0,A193,""),"") -> 192 | AJ193: 192 | AK193: 192 | AL193: NIMES CAREMEAU CENTRE HOSPITALIER
A194: 193 | B194: [LF] | C194: NIORT CENTRE HOSPITALIER | D194: oui | E194: TPD | F194: non | G194: oui | H194: =IF(G194="oui","Nuit","Jour") -> Nuit | I194: 46.316111 | J194: -0.458333 | K194: x | L194: 108 | M194: =ROUND(L194/3.281,1) -> 32.9 | O194: 20x20m | P194: Carré | Q194: 20 | T194: HB | U194: 1 | V194: EC 135 | W194: oui | X194: =IF(W194="oui","En terrasse",IF(W194="non","En surface","")) -> En terrasse | Y194: hostile habitée | Z194: Béton | AA194: 4t | AB194: O/R SAMU Tél: 05 49 73 95 15 | AC194: Oui 2 extincteurs (50kg poudre), 25 l d'émulseurs + 1 lance à incendie | AD194: OUI | AE194: Centre hospitalier de NIORT. Tél.05 49 32 79 79.FAX.05 49 78 20 33 | AF194: 46.316111,-0.458333 | AG194: Accès réservé au transport sanitaire. | AI194: =IFERROR(IF(SEARCH('Entrees Heli'!B$2,'AD Heli'!C194)>0,A194,""),"") -> 193 | AJ194: =IFERROR(RANK(AI194,AI$2:AI$808,1),"") -> 193 | AK194: =IFERROR(VLOOKUP(A194,AJ$2:AJ$808,1,FALSE),"") -> 193 | AL194: =IF(AK194<>"",LOOKUP(AK194,AJ$2:AJ$808,C$2:C$808),"") -> NIORT CENTRE HOSPITALIER
A195: 194 | B195: [LF] | C195: NORD DEUX-SEVRES CENTRE HOSPITALIER | D195: oui | E195: TPD | F195: non | G195: oui | H195: Nuit | I195: 46.831514 | J195: -0.386 | K195: 2 | L195: 567 | M195: 172.8 | O195: 20x20 m | P195: Carré | Q195: 20 | S195: 20x20 m | T195: HB | U195: 1 | V195: EC145 | W195: oui | X195: En terrasse | Y195: hostile non habitée | Z195: Béton | AA195: 3.6 t | AB195: H24 | AC195: 5 x 50 kg poudre | AD195: Oui | AE195: CH Nord Deux-Sèvres - TEL : 05 49 68 49 68 / 29 49 | AF195: 46.831514,-0.386 | AG195: Accès réservé au transport sanitaire.# Utilisation de l'hélistation par un seul hélicoptère à la fois. | AI195: =IFERROR(IF(SEARCH('Entrees Heli'!B$2,'AD Heli'!C195)>0,A195,""),"") -> 194 | AJ195: 194 | AK195: 194 | AL195: NORD DEUX-SEVRES CENTRE HOSPITALIER
A196: 195 | B196: [NW] | C196: NOUMEA CASERNE NORMANDIE | D196: non | E196: ADM | F196: non | G196: oui | H196: Nuit | I196: -22.226389 | J196: 166.486667 | K196: x | L196: 99 | M196: 30.2 | O196: Diamètre 20 m | P196: Circulaire | Q196: 20 | Z196: Bitume | AB196: NIL | AC196: NIL | AD196: OUI | AE196: Gendarmerie Nationale. | AF196: -22.226389,166.486667 | AG196: Réservé à l'usage de la Gendarmerie Nationale. | AI196: =IFERROR(IF(SEARCH('Entrees Heli'!B$2,'AD Heli'!C196)>0,A196,""),"") -> 195 | AJ196: 195 | AK196: 195 | AL196: NOUMEA CASERNE NORMANDIE
A197: 196 | B197: [NW] | C197: NOUMEA LE MERIDIEN | D197: oui | E197: TPD | F197: non | G197: non | H197: Jour | I197: -22.312222 | J197: 166.448333 | K197: x | L197: 10 | M197: 3 | O197: Diamètre 30 m | P197: Circulaire | Q197: 30 | T197: HB | W197: non | X197: En surface | Y197: non hostile | Z197: Béton | AB197: NIL | AC197: 1 extincteur poudre 50 kg | AD197: NIL | AE197: Province sud DFA TEL : 20 42 50 | AF197: -22.312222,166.448333 | AG197: TA et vols privés : PPR DFA par l'intermédiaire de l'Hôtel Le Méridien avec PN 48 HR Tél. 26 50 00. | AI197: =IFERROR(IF(SEARCH('Entrees Heli'!B$2,'AD Heli'!C197)>0,A197,""),"") -> 196 | AJ197: 196 | AK197: 196 | AL197: NOUMEA LE MERIDIEN
A198: 197 | B198: [NW] | C198: NOUMEA POINTE DE L'ARTILLERIE | D198: non | E198: ADM | F198: non | G198: non | H198: Jour | I198: -22.283056 | J198: 166.433611 | K198: x | L198: 158 | M198: 48.2 | O198: 25x25 | P198: Carré | Q198: 25 | Z198: Bitume | AB198: NIL | AC198: NIL | AD198: NIL | AE198: Forces armées | AF198: -22.283056,166.433611 | AG198: Réservé à l'usage des Forces armées. | AI198: =IFERROR(IF(SEARCH('Entrees Heli'!B$2,'AD Heli'!C198)>0,A198,""),"") -> 197 | AJ198: 197 | AK198: 197 | AL198: NOUMEA POINTE DE L'ARTILLERIE
A199: 198 | B199: [LF] | C199: NOUVELLE CLINIQUE TOURS PLUS SAINT-GATIEN ALLIANCE | D199: oui | E199: TPD | F199: non | G199: oui | H199: Nuit | I199: 47.433333 | J199: 0.668056 | K199: 2 | L199: 371 | M199: 113.1 | W199: oui | X199: En terrasse | AB199: NIL | AC199: Extincteurs : 5 x 50 kg de poudre + colonne sèche | AD199: Oui | AE199: Nouvelle Clinique Tours Plus Saint-Gatien Alliance (NCT+) - TEL : 02 47 88 37 37 | AF199: 47.433333,0.668056 | AG199: Utilisation de l'hélistation par un seul hélicoptère à la fois.# Réservée aux vols sanitaires (SMUH, Sécurité Civile).# Aire de sécurité : diamètre 26,52 m.# Pente d'approche : 4,5%.# Axes TKOF et LDG : 026°/206°.# Présence d'une réserve à oxygène sur la clinique.# Présence de lignes à Haute Tension aux abords de la clinique. | AI199: =IFERROR(IF(SEARCH('Entrees Heli'!B$2,'AD Heli'!C199)>0,A199,""),"") -> 198 | AJ199: 198 | AK199: 198 | AL199: NOUVELLE CLINIQUE TOURS PLUS SAINT-GATIEN ALLIANCE
A200: 199 | B200: [LF] | C200: OLORON SAINTE MARIE CENTRE HOSPITALIER | D200: oui | E200: TPD | F200: non | G200: oui | H200: Nuit | I200: 43.195833 | J200: -0.617778 | K200: x | L200: 758 | M200: 231 | O200: 20.6 x 20.6 m (herbe) | P200: Carré | Q200: 20.6 | S200: 6 x 6 m | T200: HB | U200: 1 | V200: BK 117 - EC 135 | W200: non | X200: En surface | Y200: hostile habitée | Z200: Béton | AA200: non disponible | AB200: NIL | AC200: Oui 1 extincteur 50kg + 2 x 10 kg CO2 à perche | AD200: OUI | AE200: Centre hospitalier .Tél.05 59 88 30 30 . FAX 05 59 88 30 41 | AF200: 43.195833,-0.617778 | AI200: =IFERROR(IF(SEARCH('Entrees Heli'!B$2,'AD Heli'!C200)>0,A200,""),"") -> 199 | AJ200: 199 | AK200: 199 | AL200: OLORON SAINTE MARIE CENTRE HOSPITALIER
... 87 more rows

Sheet caracteristiques des surfaces
A1: AERODROME | B1: =IF('Entrees Aero'!D3<>"",'Entrees Aero'!D3,"Aérodrome") -> AURILLAC - LFLW - 15/33 principale
B2: Cote de référence retenue pour l'aérodrome (m) | D2: ='Entrees Aero'!D4 -> 638.8608
D3: =IF(Parametres!U3=1,"PISTE REVETUE","PISTE NON REVETUE") -> PISTE REVETUE
D4: Seuil | E4: Seuil
B5: N° du seuil | D5: =IF('intermédiaire entrée'!D5<5,'intermédiaire entrée'!D9,'intermédiaire entrée'!D10) -> 15 | E5: =D5+18 -> 33
B6: Chiffre de code | D6: ='intermédiaire entrée'!D6 -> 3 | E6: =D6 -> 3
B7: Spécifications utilisées | D7: =IF('intermédiaire entrée'!D7=1,'QFU1'!C2,IF('intermédiaire entrée'!D7=2,'QFU1'!C3,IF('intermédiaire entrée'!D7=3,'QFU1'!C4,IF('intermédiaire entrée'!D7=4,'QFU1'!C5,IF('intermédiaire entrée'!D7=5,'QFU1'!C6,'QFU1'!C7))))) -> Piste aux instruments - trouée "approche de précision cat I" | E7: =IF('intermédiaire entrée'!E7=1,'QFU1'!C2,IF('intermédiaire entrée'!E7=2,'QFU1'!C3,IF('intermédiaire entrée'!E7=3,'QFU1'!C4,IF('intermédiaire entrée'!E7=4,'QFU1'!C5,IF('intermédiaire entrée'!E7=5,'QFU1'!C6,'QFU1'!C7))))) -> Piste aux instruments - trouée "approche classique"
B8: Longueur de piste (m) | D8: =IF('Entrees Aero'!D10<>"",'Entrees Aero'!D10, 'Entrees Aero'!E30) -> 1700
B9: Largeur de piste (m) | D9: =IF('Entrees Aero'!D11<>"",'Entrees Aero'!D11,45) -> 30
B10: Cote de l'extrémité (m) | D10: ='Entrees Aero'!D14 -> 638.8608 | E10: ='Entrees Aero'!E14 -> 624.5352
B11: Lat WGS84 / L93 | D11: =IF('Entrees Aero'!D12<>"",'Entrees Aero'!D12,"/") -> 44.897736 | E11: =IF('Entrees Aero'!E12<>"",'Entrees Aero'!E12,"/") -> 44.884508 | G11: Les tableaux ci-dessous permettent de modifier la réglementation. Exemples : - d'adaptation EASA (largeur de la trouée). - Modifier le départ de la trouée de décollage ou atterrissage ( -60m pour décalage avant)…
B12: Lon WGS84 / L93 | D12: =IF('Entrees Aero'!D13<>"",'Entrees Aero'!D13,"/") -> 2.416594 | E12: =IF('Entrees Aero'!E13<>"",'Entrees Aero'!E13,"/") -> 2.4274
B13: Lambert 93 - X | D13: =IF(AND(D11<>"/",D12<>"/"),wgs84tolambert93(GPS!F4,GPS!F5,0),"/") -> 653944.4728 | E13: =IF(AND(E11<>"/",E12<>"/"),wgs84tolambert93(GPS!G4,GPS!G5,0),"/") -> 654786.8563
B14: Lambert 93 - Y | D14: =IF(AND(D12<>"/",D13<>"/"),wgs84tolambert93(GPS!F4,GPS!F5,1),"/") -> 6422231.017 | E14: =IF(AND(E12<>"/",E13<>"/"),wgs84tolambert93(GPS!G4,GPS!G5,1),"/") -> 6420755.598
B15: ATTERRISSAGE | G15: Modif ATTERRISSAGE | L15: =IF((SUM(G16:H28)+J26+K26)<>0,"Atterrissage","") -> 
B16: Largeur à l'origine (m) | D16: =IF(SUBSTITUTE('tableaux atterrissages'!G11," ","")<>"/",IF(G16<>"",G16,'tableaux atterrissages'!G11),"/") -> 280 | E16: =IF(SUBSTITUTE('tableaux atterrissages'!G32," ","")<> "/",IF(H16<>"",H16,'tableaux atterrissages'!G32),"/") -> 280
B17: Distance au seuil (décalé) (m) | D17: =IF(G17<>"",G17,'tableaux atterrissages'!L11) -> 60 | E17: =IF(H17<>"",H17,'tableaux atterrissages'!L32) -> 60
B18: Longueur du seuil décalé (m) | D18: ='Entrees Aero'!D18 -> 0 | E18: ='Entrees Aero'!E18 -> 0
B19: Cote du seuil (décalé) (m) | D19: =IF(G19<>"",G19,IF('Entrees Aero'!D21=0,D10,'Entrees Aero'!D21)) -> 638.8608 | E19: =IF(H19<>"",H19,IF('Entrees Aero'!E21=0,E10,'Entrees Aero'!E21)) -> 624.5352
B20: Seuil décalé lat WGS84 / L93 | D20: =IF('Entrees Aero'!D19<>"",'Entrees Aero'!D19,"/") -> / | E20: =IF('Entrees Aero'!E19<>"",'Entrees Aero'!E19,"/") -> /
B21: Seuil décalé lon WGS84 / L93 | D21: =IF('Entrees Aero'!D20<>"",'Entrees Aero'!D20,"/") -> / | E21: =IF('Entrees Aero'!E20<>"",'Entrees Aero'!E20,"/") -> /
B22: Divergence (%) | D22: =IF(G22<>"",G22,'tableaux atterrissages'!Q11) -> 0.15 | E22: =IF(H22<>"",H22,'tableaux atterrissages'!Q32) -> 0.15
B23: Longueur totale (m) | D23: =IF(G23<>"",G23,'tableaux atterrissages'!V11) -> 15000 | E23: =IF(H23<>"",H23,'tableaux atterrissages'!V32) -> 15000
B24: Longueur 1ère section (m) | D24: =IF(G24<>"",G24,'tableaux atterrissages'!AA11) -> 3000 | E24: =IF(H24<>"",H24,'tableaux atterrissages'!AA32) -> 3000 | J24: Hauteur finale section 2
B25: Pente 1ère section (%) | D25: =IF(G25<>"",G25,'tableaux atterrissages'!AF11) -> 0.02 | E25: =IF(H25<>"",H25,'tableaux atterrissages'!AF32) -> 0.02 | J25: ="Seuil " &D5 -> Seuil 15 | K25: ="Seuil " &E5 -> Seuil 33
B26: Pente 2ème section (%) | D26: =IF(G26<>"",G26,'tableaux atterrissages'!AK11) -> 0.025 | E26: =IF(H26<>"",H26,'tableaux atterrissages'!AK32) -> 0.025
B27: Pente 3ème section (%) | D27: =IF(D26="Pas de 2ème section","Pas de 3ème section",0%) -> 0 | E27: =IF(E26="Pas de 2ème section","Pas de 3ème section",0%) -> 0 | J27: =IF(J26<>"",(('tableaux atterrissages'!AQ11-'caracteristiques des surfaces'!D24)*'caracteristiques des surfaces'!D26+'trouees atterrissage'!B73),"") ->  | K27: =IF(K26<>"",(('tableaux atterrissages'!AQ32-'caracteristiques des surfaces'!E24)*'caracteristiques des surfaces'!E26+'trouees atterrissage'!J73),"") -> 
B28: Cote 3ème section (m) | D28: =IF(D27="Pas de 3ème section","Pas de 3ème section",'trouees atterrissage'!D13) -> 788.8608 | E28: =IF(E27="Pas de 3ème section","Pas de 3ème section",'trouees atterrissage'!L13) -> 774.5352
B29: SURFACES LATERALES | G29: Modif SURFACES LATERALES | K29: =IF(OR(Parametres!D8=1,Parametres!D8=3),IF(Parametres!D3=TRUE,"Latérale contraignate",""),IF(Parametres!D3=FALSE,"Latérale contraignate","")) ->  | L29: =IF(SUM(G30:H30)<>0,"Latérales","") -> 
B30: Pente (%) | D30: =IF(G30<>"",G30,'tab surf latt horiz & coniques'!G11) -> 0.143 | E30: =IF(H30<>"",H30,'tab surf latt horiz & coniques'!G32) -> 0.143 | K30: =IF(OR(Parametres!D8=1,Parametres!D8=3),IF(Parametres!D4=TRUE,"Latérale trouée opposée",""),IF(Parametres!D4=FALSE,"Latérale trouée opposée","")) ->  | L30: =IF(Parametres!E4=TRUE,"Latérale trouée opposée","") -> 
B31: SURFACE HORIZONTALE INTERIEURE | G31: Modif SURFACE HORIZONTALE INTERIEURE | L31: =IF(SUM(G32:H33)<>0,"Horizontale","") -> 
B32: Rayon demi-cercle (m) | D32: =IF(G32<>"",G32,'tab surf latt horiz & coniques'!L11) -> 4000 | E32: =IF(H32<>"",H32,'tab surf latt horiz & coniques'!L32) -> 4000
B33: Hauteur (m) | D33: =IF(G33<>"",G33,45) -> 45
B34: SURFACE CONIQUE | G34: Modif SURFACE CONIQUE | L34: =IF(SUM(G35:H36)<>0,"Conique","") -> 
B35: Hauteur (m) | D35: =IF(G35<>"",G35,'tab surf latt horiz & coniques'!Q11) -> 100 | E35: =IF(H35<>"",H35,'tab surf latt horiz & coniques'!Q32) -> 75
B36: Pente (%) | D36: =IF(G36<>"",G36,5%) -> 0.05
B37: DECOLLAGE (QFU opposé) | G37: Modif DECOLLAGE | L37: =IF(SUM(G38:H47)<>0,"Décollage","") -> Décollage
B38: QFU opposé | D38: =E5 -> 33 | E38: =D5 -> 15
B39: Longueur du prolongement dégagé (m) | D39: ='Entrees Aero'!D15 -> 50 | E39: ='Entrees Aero'!E15 -> 50
B40: Largeur du prolongement dégagé (m) | D40: =IF(D39<>0,IF('Entrees Aero'!D16<>0,'Entrees Aero'!D16,D42),0) -> 180 | E40: =IF(E39<>0,IF('Entrees Aero'!E16<>0,'Entrees Aero'!E16,D42),0) -> 180
B41: Cote de l'origine de la trouée de décollage (m) | D41: =IF(G41<>"",G41,IF('Entrees Aero'!D17<>"",'Entrees Aero'!D17,D10)) -> 638.8608 | E41: =IF(H41<>"",H41,IF('Entrees Aero'!E17<>"",'Entrees Aero'!E17,E10)) -> 624.5352
B42: Largeur à l'origine (m) | D42: =IF(G42<>"",G42,'tableaux décollages'!G11) -> 180 | E42: =IF(H42<>"",H42,'tableaux décollages'!G32) -> 180
B43: Distance par rapport à l'extrémité de la piste (incluant PD) (m) | D43: =IF(G43<>"",G43,IF('Entrees Aero'!D15>'tableaux décollages'!L11,'Entrees Aero'!D15,'tableaux décollages'!L11)) -> 60 | E43: =IF(H43<>"",H43,IF('Entrees Aero'!E15>'tableaux décollages'!L32,'Entrees Aero'!E15,'tableaux décollages'!L32)) -> 60
B44: Divergence (%) | D44: =IF(G44<>"",G44,'tableaux décollages'!Q11) -> 0.125 | E44: =IF(H44<>"",H44,'tableaux décollages'!Q32) -> 0.125
B45: Pente (%) | D45: =IF(G45<>"",G45,'tableaux décollages'!V11) -> 0.02 | E45: =IF(H45<>"",H45,'tableaux décollages'!V32) -> 0.065 | H45: 0.065
B46: Largeur finale (m) | D46: =IF(G46<>"",G46,'tableaux décollages'!AA11) -> 1200 | E46: =IF(H46<>"",H46,'tableaux décollages'!AA11) -> 1200
B47: Longueur totale (m) | D47: =IF(G47<>"",G47,'tableaux décollages'!AF11) -> 15000 | E47: =IF(H47<>"",H47,'tableaux décollages'!AF32) -> 15000
B48: OFZ | G48: OFZ
B49: Cote de l'origine de la surface intérieure d'approche (m) | D49: =IF(SUBSTITUTE('tableaux OFZ'!G11," ","")<>"/",D19,"/") -> 638.8608 | E49: =IF(SUBSTITUTE('tableaux OFZ'!G27," ","")<>"/",E19,"/") -> /
B50: Surface intérieure d'approche - Largeur du bord intérieur (m) | D50: =IF(G50<>"",G50,IF('tableaux OFZ'!G11<>"/",'tableaux OFZ'!G11,"/")) -> 120 | E50: =IF(H50<>"",H50,IF('tableaux OFZ'!G27<>"/",'tableaux OFZ'!G27,"/")) -> /
B51: Surface intérieure d'approche - Distance au seuil (m) | D51: =IF('tableaux OFZ'!L11<>"/",'tableaux OFZ'!L11,"/") -> 60 | E51: =IF('tableaux OFZ'!L27<>"/",'tableaux OFZ'!L27,"/") -> /
B52: Surface intérieure d'approche - Longueur (m) | D52: =IF('tableaux OFZ'!Q11<>"/",'tableaux OFZ'!Q11,"/") -> 900 | E52: =IF('tableaux OFZ'!Q27<>"/",'tableaux OFZ'!Q27,"/") -> /
B53: Surface intérieure d'approche - Pente (%) | D53: =IF('tableaux OFZ'!V11<>"/",'tableaux OFZ'!V11,"/") -> 0.02 | E53: =IF('tableaux OFZ'!V27<>"/",'tableaux OFZ'!V27,"/") -> /
B54: Surface intérieure d'approche - Hauteur pente (m) | D54: =IF(D53=" / "," / ",IF(D53=0.02,"18","22,5")) -> 18 | E54: =IF(E53=" / "," / ",IF(E53=0.02,"18","22,5")) -> /
B55: Surface intérieure de transition - Pente (%) | D55: =IF('tableaux OFZ'!AA11<>"/",'tableaux OFZ'!AA11,"/") -> 0.333 | E55: =IF('tableaux OFZ'!AA27<>"/",'tableaux OFZ'!AA27,"/") -> /
B56: Surface d'atterrissage interrompu - Largeur du bord intérieur (m) | D56: =IF(G50<>"",G50,IF('tableaux OFZ'!AF11<>"/",'tableaux OFZ'!AF11,"/")) -> 120 | E56: =IF(H50<>"",H50,IF('tableaux OFZ'!AF27<>"/",'tableaux OFZ'!AF27,"/")) -> /
B57: Surface d'atterrissage interrompu - Distance seuil (m) | D57: =IF('tableaux OFZ'!AK11<>"/", IF('tableaux OFZ'!AK11="Longueur de la piste augmentée de 60m", D8+60, IF('tableaux OFZ'!AK11="Plus petite valeur entre: - la longueur de la piste ou - 1800m",IF(D8<1800,D8,1800),"/")), "/") -> 1700 | E57: =IF('tableaux OFZ'!AK27<>"/", IF('tableaux OFZ'!AK27="Longueur de la piste augmentée de 60m", D8+60, IF('tableaux OFZ'!AK27="Plus petite valeur entre: - la longueur de la piste ou - 1800m",IF(D8<1800,D8,1800),"/")), "/") -> /
B58: Cote de l'origine de la surface d'atterrissage interrompu (m) | D58: =IF('caracteristiques des surfaces'!D49<>"/",IF('Entrees Aero'!D98<>"",'Entrees Aero'!D98,GPS!M192),"/") -> 631.698 | E58: =IF('caracteristiques des surfaces'!E49<>"/",IF('Entrees Aero'!D99<>"",'Entrees Aero'!D99,GPS!O192),"/") -> /
B59: Surface d'atterrissage interrompu - Divergence (%) | D59: =IF('tableaux OFZ'!AP11<>"/",'tableaux OFZ'!AP11,"/") -> 0.1 | E59: =IF('tableaux OFZ'!AP27<>"/",'tableaux OFZ'!AP27,"/") -> /
B60: Surface d'atterrissage interrompu - Pente (%) | D60: =IF('tableaux OFZ'!AU11<>"/",'tableaux OFZ'!AU11,"/") -> 0.0333 | E60: =IF('tableaux OFZ'!AU27<>"/",'tableaux OFZ'!AU27,"/") -> /
B61: Surface d'atterrissage interrompu - Cote de fin (m) | D61: =IF(D60=" / "," / ",OFZ!D62) -> 683.8608 | E61: =IF(E60=" / "," / ",OFZ!D62) -> /
B62: OCS (ou VSS) | G62: Modif OCS (ou VSS) | L62: =IF(SUM(G63:H71)<>0,"OCS","") -> 
B63: Largeur à l'origine (m) | D63: =IF(D67="/","/",IF(G63<>"",G63,'tableaux OCS'!G11)) -> 300 | E63: =IF(E67="/","/",IF(H63<>"",H63,'tableaux OCS'!G32)) -> 300
B64: Distance au seuil (décalé) (m) | D64: =IF(D67="/","/",IF(G64<>"",G64,'tableaux OCS'!L11)) -> 60 | E64: =IF(E67="/","/",IF(H64<>"",H64,'tableaux OCS'!L32)) -> 60
B65: Divergence (%) | D65: =IF(D67="/","/",IF(G65<>"",G65,'tableaux OCS'!Q11)) -> 0.15 | E65: =IF(E67="/","/",IF(H65<>"",H65,'tableaux OCS'!Q32)) -> 0.15
B66: Longueur totale (m) | D66: =IF(D67="/","/",IF(G66<>"",G66,'tableaux OCS'!V11)) -> 15000 | E66: =IF(E67="/","/",IF(H66<>"",H66,'tableaux OCS'!V32)) -> 15000
B67: Pente PAPI (°) ou Pente Approche pour VSS (°) | D67: =IF('Entrees Aero'!D105>0,'Entrees Aero'!D105,"/") -> 3 | E67: =IF('Entrees Aero'!D106>0,'Entrees Aero'!D106,"/") -> 4
B68: Angle de calage (A) Uniquement pour PAPI ou APAPI | D68: =IF(D67="/","/",'Entrees Aero'!E105) -> 2.5 | E68: =IF(E67="/","/",'Entrees Aero'!E106) -> 3.5
B69: Inclinaison (°) | D69: =IF(D67="/","/",IF(_xlfn.SWITCH(Parametres!J29,1,D68-0.57,2,D68-0.9,3,D67-1.12)<=1,"/",_xlfn.SWITCH(Parametres!J29,1,D68-0.57,2,D68-0.9,3,D67-1.12))) -> 1.93 | E69: =IF(E67="/","/",IF(_xlfn.SWITCH(Parametres!J30,1,E68-0.57,2,E68-0.9,3,E67-1.12)<=1,"/",_xlfn.SWITCH(Parametres!J30,1,E68-0.57,2,E68-0.9,3,E67-1.12))) -> 2.93
B70: Inclinaison (%) | D70: =IF(D69="/","/",degre_pourcent(D69)/100) -> 0.03369760074 | E70: =IF(E69="/","/",degre_pourcent(E69)/100) -> 0.05118277106
B71: Décalage axe PAPI ou VSS (en degré) | D71: =IF(D67="/","/",'Entrees Aero'!G105) -> 0 | E71: =IF(E67="/","/",'Entrees Aero'!G106) -> 0
B72: ATTERRISSAGE COURBE 1
B73: Longueur de l’alignement droit (m) | D73: =IF('Entrees Aero'!$D$43>=0,'Entrees Aero'!$D$43,"/") -> 0 | E73: =IF('Entrees Aero'!$E$43>=0,'Entrees Aero'!$E$43,"/") -> 0
B74: Angle (en degré) | D74: =IF('Entrees Aero'!$D$44<>"",'Entrees Aero'!$D$44,"/") -> / | E74: =IF('Entrees Aero'!$E$44<>"",'Entrees Aero'!$E$44,"/") -> /
B75: Sens de virage | D75: =IF(D74<>"/",IF(D74=0,"",IF(D74>0,"droite","gauche")),"/") -> / | E75: =IF(E74<>"/",IF(E74=0,"",IF(E74>0,"droite","gauche")),"/") -> /
B76: Rayon de virage (m) | D76: =IF('Entrees Aero'!$D$45<>"",'Entrees Aero'!$D$45,"/") -> / | E76: =IF('Entrees Aero'!$E$45<>"",'Entrees Aero'!$E$45,"/") -> /
B77: Longueur arc (m) | D77: ='trouees courbe atterrissage 1'!E30 -> 0 | E77: ='trouees courbe atterrissage 1'!M30 -> 0
B78: Cap | D78: ='Entrees Aero'!$D$46 -> 0 | E78: ='Entrees Aero'!$E$46 -> 0
B79: DECOLLAGE COURBE 1
B80: Longueur de l’alignement droit (m) | D80: =IF('Entrees Aero'!$D$58>=0,'Entrees Aero'!$D$58,"/") -> 0 | E80: =IF('Entrees Aero'!$E$58>=0,'Entrees Aero'!$E$58,"/") -> 0
B81: Angle (en degré) | D81: =IF('Entrees Aero'!$D$59<>"",'Entrees Aero'!$D$59,"/") -> / | E81: =IF('Entrees Aero'!$E$59<>"",'Entrees Aero'!$E$59,"/") -> /
B82: Sens de virage | D82: =IF(D81<>"/",IF(D81=0,"",IF(D81>0,"droite","gauche")),"/") -> / | E82: =IF(E81<>"/",IF(E81=0,"",IF(E81>0,"droite","gauche")),"/") -> /
B83: Rayon de virage (m) | D83: =IF('Entrees Aero'!$D$60<>"",'Entrees Aero'!$D$60,"/") -> / | E83: =IF('Entrees Aero'!$E$60<>"",'Entrees Aero'!$E$60,"/") -> /
B84: Longueur arc (m) | D84: ='trouees courbe decollage 1'!E21 -> 0 | E84: ='trouees courbe decollage 1'!M21 -> 0
B85: Cap | D85: ='Entrees Aero'!$D$61 -> 0 | E85: ='Entrees Aero'!$E$61 -> 0
B86: Largeur finale (m) | D86: =IF('trouees courbe decollage 1'!A12="Largeur finale",'trouees courbe decollage 1'!$F$12,'trouees courbe decollage 1'!$F$12&"(Code"&D6&" CAP>15°)") -> / | E86: =IF('trouees courbe decollage 1'!I12="Largeur finale",'trouees courbe decollage 1'!$N$12,'trouees courbe decollage 1'!$N$12&"(Code"&E6&" CAP>15°)") -> /
B87: ATTERRISSAGE COURBE 2
B88: Longueur de l’alignement droit (m) | D88: =IF('Entrees Aero'!$D$48>=0,'Entrees Aero'!$D$48,"/") -> 0 | E88: =IF('Entrees Aero'!$E$48>=0,'Entrees Aero'!$E$48,"/") -> 0
B89: Angle (en degré) | D89: =IF('Entrees Aero'!$D$49<>"",'Entrees Aero'!$D$49,"/") -> / | E89: =IF('Entrees Aero'!$E$49<>"",'Entrees Aero'!$E$49,"/") -> /
B90: Sens de virage | D90: =IF(D89<>"/",IF(D89=0,"",IF(D89>0,"droite","gauche")),"/") -> / | E90: =IF(E89<>"/",IF(E89=0,"",IF(E89>0,"droite","gauche")),"/") -> /
B91: Rayon de virage (m) | D91: =IF('Entrees Aero'!$D$50<>"",'Entrees Aero'!$D$50,"/") -> / | E91: =IF('Entrees Aero'!$E$50<>"",'Entrees Aero'!$E$50,"/") -> /
B92: Longueur arc (m) | D92: ='trouees courbe atterrissage 2'!E30 -> 0 | E92: ='trouees courbe atterrissage 2'!M30 -> 0
B93: Cap | D93: ='Entrees Aero'!$D$51 -> 0 | E93: ='Entrees Aero'!$E$51 -> 0
B94: DECOLLAGE COURBE 2
B95: Longueur de l’alignement droit (m) | D95: =IF('Entrees Aero'!$D$63>=0,'Entrees Aero'!$D$63,"/") -> 0 | E95: =IF('Entrees Aero'!$E$63>=0,'Entrees Aero'!$E$63,"/") -> 0
B96: Angle (en degré) | D96: =IF('Entrees Aero'!$D$64<>"",'Entrees Aero'!$D$64,"/") -> / | E96: =IF('Entrees Aero'!$E$64<>"",'Entrees Aero'!$E$64,"/") -> /
B97: Sens de virage | D97: =IF(D96<>"/",IF(D96=0,"",IF(D96>0,"droite","gauche")),"/") -> / | E97: =IF(E96<>"/",IF(E96=0,"",IF(E96>0,"droite","gauche")),"/") -> /
B98: Rayon de virage (m) | D98: =IF('Entrees Aero'!$D$65<>"",'Entrees Aero'!$D$65,"/") -> / | E98: =IF('Entrees Aero'!$E$65<>"",'Entrees Aero'!$E$65,"/") -> /
B99: Longueur arc (m) | D99: ='trouees courbe decollage 2'!E21 -> 0 | E99: ='trouees courbe decollage 2'!M21 -> 0
B100: Cap | D100: ='Entrees Aero'!$D$66 -> 0 | E100: ='Entrees Aero'!$E$66 -> 0
B101: Largeur finale (m) | D101: =IF('trouees courbe decollage 2'!A12="Largeur finale",'trouees courbe decollage 2'!$F$12,'trouees courbe decollage 2'!$F$12&"(Code"&D6&" CAP>15°)") -> / | E101: =IF('trouees courbe decollage 2'!I12="Largeur finale",'trouees courbe decollage 2'!$N$12,'trouees courbe decollage 2'!$N$12&"(Code"&E6&" CAP>15°)") -> /
A104: HELISTATION | B104: =IF('Entrees Heli'!B3<>"",'Entrees Heli'!B3,"Hélistation") -> Hélistation
B105: Orientation (°) | D105: ='Entrees Heli'!B13 -> 
B106: Cote de référence retenue pour l'hélistation (m) | D106: ='Entrees Heli'!B11 -> 0
D107: HELISTATION
D108: QFU | E108: QFU
B109: QFU | D109: ='intermédiaire entrée'!D13 -> / | E109: ='intermédiaire entrée'!E13 -> /
B110: Classe de performance | D110: ='intermédiaire entrée'!D14 -> / | E110: ='intermédiaire entrée'!E14 -> /
B111: Jour ou nuit | D111: ='intermédiaire entrée'!D15 -> / | E111: ='intermédiaire entrée'!E15 -> /
B112: Forme | C112: Position | D112: =Parametres!K33 -> circulaire | E112: =Parametres!N33 -> terrasse
B113: FATO : Largeur ou Diamètre (m) | D113: =IF('Entrees Heli'!B7<>"",'Entrees Heli'!B7,"/") -> /
B114: FATO : Longueur (m) | D114: =IF('Entrees Heli'!C7<>"",'Entrees Heli'!C7,"/") -> /
B115: Aire sécurité : Largeur ou Diamètre (m) | D115: =IF('Entrees Heli'!B8<>"",'Entrees Heli'!B8,"/") -> /
B116: Aire sécurité : Longueur (m) | D116: =IF('Entrees Heli'!C8<>"",'Entrees Heli'!C8,"/") -> /
B117: Centre FATO Lat WGS84 / L93 | D117: =IF('Entrees Heli'!B10<>"",'Entrees Heli'!B10,"/") -> /
B118: Centre FATO Lon WGS84 / L93 | D118: =IF('Entrees Heli'!C10<>"",'Entrees Heli'!C10,"/") -> /
B119: ATTERRISSAGE | G119: Modif Atterrissage et par conséquent le décollage
B120: QFU | D120: =D109 -> / | E120: =E109 -> /
B121: Cote seuil (m) | D121: ='Entrees Heli'!D21 -> 0 | E121: =IF(E122<>"/",'Entrees Heli'!D45,"/") -> /
B122: Distance par rapport à l'aire de sécurité (m) | D122: =IF(D120="/","/",IF(G122<>"",G122,'tableaux hélistations'!$G$8)) -> / | E122: =IF('Entrees Heli'!B44<>"",IF(H122<>"",H122,'tableaux hélistations'!$G$26),"/") -> /
B123: Largeur à l'origine (m) | D123: =IF(D120="/","/",IF(SUBSTITUTE('tableaux hélistations'!$L$8," ","")<>"/",IF(G123<>"",G123,'tableaux hélistations'!$L$8),"/")) -> / | E123: =IF(E122<>"/",IF(SUBSTITUTE('tableaux hélistations'!$L$26," ","")<> "/",IF(H123<>"",H123,'tableaux hélistations'!$L$26),"/"),"/") -> /
B124: Largeur finale (m) | D124: =IF(D120="/","/",IF(SUBSTITUTE('tableaux hélistations'!$BE$8," ","")<>"/",IF(G124<>"",G124,'tableaux hélistations'!$BE$8),"/")) -> / | E124: =IF(E122<>"/",IF(SUBSTITUTE('tableaux hélistations'!$BE$26," ","")<> "/",IF(H124<>"",H124,'tableaux hélistations'!$BE$26),"/"),"/") -> /
B125: Cote finale (m) | D125: =IF(D120="/","/",'Heli_trouees Att-Dec-Lat-PR'!D13) -> / | E125: =IF(E122<>"/",'Heli_trouees Att-Dec-Lat-PR'!L13,"/") -> /
B126: Longueur finale (m) | D126: =IF(D120="/","/",IF(SUBSTITUTE('tableaux hélistations'!$BJ$8," ","")<>"/",IF(G126<>"",G126,'tableaux hélistations'!$BJ$8),"/")) -> / | E126: =IF(E122<>"/",IF(SUBSTITUTE('tableaux hélistations'!$BJ$26," ","")<> "/",IF(H126<>"",H126,'tableaux hélistations'!BJ26),"/"),"/") -> /
B127: Divergence 1ère section (%) | D127: =IF(D120="/","/",IF(G127<>"",G127,'tableaux hélistations'!$Q$8)) -> / | E127: =IF(E122<>"/",IF(H127<>"",H127,'tableaux hélistations'!$Q$26),"/") -> /
B128: Largeur finale 1ère section (m) | D128: =IF(D120="/","/",'Heli_trouees Att-Dec-Lat-PR'!D9) -> / | E128: =IF(E122<>"/",'Heli_trouees Att-Dec-Lat-PR'!L9,"/") -> /
B129: Longueur 1ère section (m) | D129: =IF(D120="/","/",'Heli_trouees Att-Dec-Lat-PR'!F10) -> / | E129: =IF(E122<>"/",'Heli_trouees Att-Dec-Lat-PR'!N10,"/") -> /
B130: Pente 1ère section (%) | D130: =IF(D120="/","/",IF(G130<>"",G130,'tableaux hélistations'!$V$8)) -> / | E130: =IF(E122<>"/",IF(H130<>"",H130,'tableaux hélistations'!$V$26),"/") -> /
B131: Divergence 2ème section (%) | D131: =IF(D120="/","/",IF(G131<>"",G131,'tableaux hélistations'!$AP$8)) -> / | E131: =IF(E122<>"/",IF(H131<>"",H131,'tableaux hélistations'!$AP$26),"/") -> /
B132: Largeur finale 2ème section (m) | D132: =IF(D120="/","/",'Heli_trouees Att-Dec-Lat-PR'!D6) -> / | E132: =IF(E122<>"/",'Heli_trouees Att-Dec-Lat-PR'!L6,"/") -> /
B133: Longueur 2ème section (m) | D133: =IF(D120="/","/",'Heli_trouees Att-Dec-Lat-PR'!F12) -> / | E133: =IF(E122<>"/",'Heli_trouees Att-Dec-Lat-PR'!N12,"/") -> /
B134: Pente 2ème section (%) | D134: =IF(D120="/","/",IF(G134<>"",G134,'tableaux hélistations'!$AU$8)) -> / | E134: =IF(E122<>"/",IF(H134<>"",H134,'tableaux hélistations'!$AU$26),"/") -> /
B135: DECOLLAGE
B136: QFU | D136: =IF(D120="/","/",IF(Parametres!$L$34=1,D120,IF(Parametres!$L$34=2,azimut_desti(D120,180),IF('Entrees Heli'!E20<>"",'Entrees Heli'!E20,D120)))) -> / | E136: =IF(E120="/","/",IF(Parametres!$L$35=1,E120,IF(Parametres!$L$35=2,IF(E120<>"/",azimut_desti(E120,180),"/"),IF('Entrees Heli'!E44<>"",'Entrees Heli'!E44,E120)))) -> /
B137: Distance par rapport à l'aire de sécurité (Longueur du prolongement dégagé )(m) | D137: =IF(D120="/","/",'Entrees Heli'!B24) -> / | E137: =IF(E122<>"/",'Entrees Heli'!B48,"/") -> /
B139: Les caractéristiques de la trouée de décollage sont identiques à la trouée d'atterrissage
B140: SURFACES LATERALES | G140: Modif Surfaces latérales
B141: Pente (%) | D141: =IF(D120="/","/",IF(G141<>"",G141,'tableaux hélistations'!BT8)) -> /
B142: ="PHASE DE RECUL " & VLOOKUP('Phase de recul'!B2,Tableau2[],2) -> PHASE DE RECUL | G142: ="Modif Phase de Recul " & VLOOKUP('Phase de recul'!B2,Tableau2[],2) -> Modif Phase de Recul
B143: Décalage de la surface de protection (m) | D143: =IF(AND('Entrees Heli'!B20<>"",'Entrees Heli'!G30<>""),IF('Entrees Heli'!I30<>"",'Entrees Heli'!I30,0),"/") -> / | E143: =IF(AND('Entrees Heli'!B44<>"",'Entrees Heli'!G54<>""),IF('Entrees Heli'!I54<>"",'Entrees Heli'!I54,0),"/") -> /
B144: Largeur de départ (m) | D144: =IF(AND('Entrees Heli'!B20<>"",'Entrees Heli'!G30<>""),'Phase de recul'!G10,"/") -> / | E144: =IF(AND('Entrees Heli'!B44<>"",'Entrees Heli'!G54<>""),'Phase de recul'!G12,"/") -> /
B145: Largeur finale (m) | D145: =IF(AND('Entrees Heli'!B20<>"",'Entrees Heli'!G30<>""),'Heli_trouees Att-Dec-Lat-PR'!F184,"/") -> / | E145: =IF(AND('Entrees Heli'!B44<>"",'Entrees Heli'!G54<>""),'Heli_trouees Att-Dec-Lat-PR'!N184,"/") -> /
B146: Désaxage phase de recul (°) | D146: =IF(AND('Entrees Heli'!B20<>"",'Entrees Heli'!G30<>""),IF('Entrees Heli'!K30<>"",'Entrees Heli'!K30,"0"),"/") -> / | E146: =IF(AND('Entrees Heli'!B44<>"",'Entrees Heli'!G54<>""),IF('Entrees Heli'!K54<>"",'Entrees Heli'!K54,"0"),"/") -> /
B147: 3ème section - Hauteur recalculée (m) | D147: =IF(AND('Entrees Heli'!B20<>"",'Entrees Heli'!G30<>""),'Entrees Heli'!E30+('Entrees Heli'!G30-'Entrees Heli'!E30)/('Entrees Heli'!F30-'Entrees Heli'!D30)*('caracteristiques des surfaces'!D148-'Entrees Heli'!D30),"/") -> / | E147: =IF(AND('Entrees Heli'!B44<>"",'Entrees Heli'!G54<>""),'Entrees Heli'!E54+('Entrees Heli'!G54-'Entrees Heli'!E54)/('Entrees Heli'!F54-'Entrees Heli'!D54)*('caracteristiques des surfaces'!E148-'Entrees Heli'!D54),"/") -> /
B148: 3ème section - Distance (m) | D148: =IF(AND('Entrees Heli'!B20<>"",'Entrees Heli'!G30<>""),IF('Entrees Heli'!H30<>"",'Entrees Heli'!H30,'Entrees Heli'!F30),"/") -> / | E148: =IF(AND('Entrees Heli'!B44<>"",'Entrees Heli'!G54<>""),IF('Entrees Heli'!H54<>"",'Entrees Heli'!H54,'Entrees Heli'!F54),"/") -> /
B149: Divergence (%) | D149: =IF(AND('Entrees Heli'!B20<>"",'Entrees Heli'!G30<>""),IF(G149<>"",G149,'tableaux hélistations'!CI8),"/") -> / | E149: =IF(AND('Entrees Heli'!B44<>"",'Entrees Heli'!G54<>""),IF(H149<>"",H149,'tableaux hélistations'!CI8),"/") -> /
B150: Informations supplémentaires | D150: =IF('Phase de recul'!G9<>"/","La largeur de départ de la surface de protection est celle renseignée par l'utilisateur.",IF('Phase de recul'!E9=1,"Le diamètre de la FATO est supérieur à 21,2 m. Puisque le manuel de vol autorise une FATO minimale de 15x15m en " & Parametres!N33 & ", c'est cette FATO minimale qui est utilisée pour le calcul de la largeur de départ de la surface de protection, valeur à laquelle s'ajoute la marge de sécurité valant Max(3m,0,25 LHT) de chaque côté de la FATO.",IF('Phase de recul'!C10<>"N.C.","La FATO minimale, telle que définit dans le manuel de vol, est utilisée pour le calcul de la largeur de départ de la surface de protection, valeur à laquelle s'ajoute la marge de sécurité valant Max(3m,0,25 LHT) de chaque côté de la FATO.","La LHT de l'hélicoptère est utilisée pour le calcul de la largeur de départ de la surface de protection."))) -> La FATO minimale, telle que définit dans le manuel de vol, est utilisée pour le calcul de la largeur de départ de la surface de protection, valeur à laquelle s'ajoute la marge de sécurité valant Max(3m,0,25 LHT) de chaque côté de la FATO. | E150: =IF('Phase de recul'!G11<>"/","La largeur de départ de la surface de protection est celle renseignée par l'utilisateur.",IF('Phase de recul'!E9=1,"Le diamètre de la FATO est supérieur à 21,2 m. Puisque le manuel de vol autorise une FATO minimale de 15x15m en " & Parametres!N33 & ", c'est cette FATO minimale qui est utilisée pour le calcul de la largeur de départ de la surface de protection, valeur à laquelle s'ajoute la marge de sécurité valant Max(3m,0,25 LHT) de chaque côté de la FATO.",IF('Phase de recul'!C10<>"N.C.","La FATO minimale, telle que définit dans le manuel de vol, est utilisée pour le calcul de la largeur de départ de la surface de protection, valeur à laquelle s'ajoute la marge de sécurité valant Max(3m,0,25 LHT) de chaque côté de la FATO.","La LHT de l'hélicoptère est utilisée pour le calcul de la largeur de départ de la surface de protection."))) -> La FATO minimale, telle que définit dans le manuel de vol, est utilisée pour le calcul de la largeur de départ de la surface de protection, valeur à laquelle s'ajoute la marge de sécurité valant Max(3m,0,25 LHT) de chaque côté de la FATO.
B151: ="PHASE DE RECUL " & VLOOKUP('Phase de recul'!B3,Tableau2[],2) -> PHASE DE RECUL | G151: ="Modif Phase de Recul " & VLOOKUP('Phase de recul'!B3,Tableau2[],2) -> Modif Phase de Recul
B152: Décalage de la surface de protection (m) | D152: =IF(AND('Entrees Heli'!B20<>"",'Entrees Heli'!G31<>""),IF('Entrees Heli'!I31<>"",'Entrees Heli'!I31,0),"/") -> / | E152: =IF(AND('Entrees Heli'!B44<>"",'Entrees Heli'!G55<>""),IF('Entrees Heli'!I55<>"",'Entrees Heli'!I55,0),"/") -> /
B153: Largeur de départ (m) | D153: =IF(AND('Entrees Heli'!B20<>"",'Entrees Heli'!G31<>""),'Phase de recul'!G15,"/") -> / | E153: =IF(AND('Entrees Heli'!B44<>"",'Entrees Heli'!G55<>""),'Phase de recul'!G17,"/") -> /
B154: Largeur finale (m) | D154: =IF(AND('Entrees Heli'!B20<>"",'Entrees Heli'!G31<>""),'Heli_trouees Att-Dec-Lat-PR'!F200,"/") -> / | E154: =IF(AND('Entrees Heli'!B44<>"",'Entrees Heli'!G55<>""),'Heli_trouees Att-Dec-Lat-PR'!N200,"/") -> /
B155: Désaxage phase de recul (°) | D155: =IF(AND('Entrees Heli'!B20<>"",'Entrees Heli'!G31<>""),IF('Entrees Heli'!K31<>"",'Entrees Heli'!K31,"0"),"/") -> / | E155: =IF(AND('Entrees Heli'!B44<>"",'Entrees Heli'!G55<>""),IF('Entrees Heli'!K55<>"",'Entrees Heli'!K55,"0"),"/") -> /
B156: 3ème section - Hauteur recalculée (m) | D156: =IF(AND('Entrees Heli'!B20<>"",'Entrees Heli'!G31<>""),'Entrees Heli'!E31+('Entrees Heli'!G31-'Entrees Heli'!E31)/('Entrees Heli'!F31-'Entrees Heli'!D31)*('caracteristiques des surfaces'!D157-'Entrees Heli'!D31),"/") -> / | E156: =IF(AND('Entrees Heli'!B44<>"",'Entrees Heli'!G55<>""),'Entrees Heli'!E55+('Entrees Heli'!G55-'Entrees Heli'!E55)/('Entrees Heli'!F55-'Entrees Heli'!D55)*('caracteristiques des surfaces'!E157-'Entrees Heli'!D55),"/") -> /
B157: 3ème section - Distance (m) | D157: =IF(AND('Entrees Heli'!B20<>"",'Entrees Heli'!G31<>""),IF('Entrees Heli'!H31<>"",'Entrees Heli'!H31,'Entrees Heli'!F31),"/") -> / | E157: =IF(AND('Entrees Heli'!B44<>"",'Entrees Heli'!G55<>""),IF('Entrees Heli'!H55<>"",'Entrees Heli'!H55,'Entrees Heli'!F55),"/") -> /
B158: Divergence (%) | D158: =IF(AND('Entrees Heli'!B20<>"",'Entrees Heli'!G31<>""),IF(G158<>"",G158,'tableaux hélistations'!CI8),"/") -> / | E158: =IF(AND('Entrees Heli'!B44<>"",'Entrees Heli'!G55<>""),IF(H158<>"",H158,'tableaux hélistations'!CI8),"/") -> /
B159: Informations supplémentaires | D159: =IF('Phase de recul'!G14<>"/","La largeur de départ de la surface de protection est celle renseignée par l'utilisateur.",IF('Phase de recul'!E14=1,"Le diamètre de la FATO est supérieur à 21,2 m. Puisque le manuel de vol autorise une FATO minimale de 15x15m en " & Parametres!N33 & ", c'est cette FATO minimale qui est utilisée pour le calcul de la largeur de départ de la surface de protection, valeur à laquelle s'ajoute la marge de sécurité valant Max(3m,0,25 LHT) de chaque côté de la FATO.",IF('Phase de recul'!C15<>"N.C.","La FATO minimale, telle que définit dans le manuel de vol, est utilisée pour le calcul de la largeur de départ de la surface de protection, valeur à laquelle s'ajoute la marge de sécurité valant Max(3m,0,25 LHT) de chaque côté de la FATO.","La LHT de l'hélicoptère est utilisée pour le calcul de la largeur de départ de la surface de protection."))) -> La FATO minimale, telle que définit dans le manuel de vol, est utilisée pour le calcul de la largeur de départ de la surface de protection, valeur à laquelle s'ajoute la marge de sécurité valant Max(3m,0,25 LHT) de chaque côté de la FATO. | E159: =IF('Phase de recul'!G16<>"/","La largeur de départ de la surface de protection est celle renseignée par l'utilisateur.",IF('Phase de recul'!E14=1,"Le diamètre de la FATO est supérieur à 21,2 m. Puisque le manuel de vol autorise une FATO minimale de 15x15m en " & Parametres!N33 & ", c'est cette FATO minimale qui est utilisée pour le calcul de la largeur de départ de la surface de protection, valeur à laquelle s'ajoute la marge de sécurité valant Max(3m,0,25 LHT) de chaque côté de la FATO.",IF('Phase de recul'!C15<>"N.C.","La FATO minimale, telle que définit dans le manuel de vol, est utilisée pour le calcul de la largeur de départ de la surface de protection, valeur à laquelle s'ajoute la marge de sécurité valant Max(3m,0,25 LHT) de chaque côté de la FATO.","La LHT de l'hélicoptère est utilisée pour le calcul de la largeur de départ de la surface de protection."))) -> La FATO minimale, telle que définit dans le manuel de vol, est utilisée pour le calcul de la largeur de départ de la surface de protection, valeur à laquelle s'ajoute la marge de sécurité valant Max(3m,0,25 LHT) de chaque côté de la FATO.
B160: ="PHASE DE RECUL " & VLOOKUP('Phase de recul'!B4,Tableau2[],2) -> PHASE DE RECUL | G160: ="Modif Phase de Recul " & VLOOKUP('Phase de recul'!B4,Tableau2[],2) -> Modif Phase de Recul
B161: Décalage de la surface de protection (m) | D161: =IF(AND('Entrees Heli'!B20<>"",'Entrees Heli'!G32<>""),IF('Entrees Heli'!I32<>"",'Entrees Heli'!I32,0),"/") -> / | E161: =IF(AND('Entrees Heli'!B44<>"",'Entrees Heli'!G56<>""),IF('Entrees Heli'!I56<>"",'Entrees Heli'!I56,0),"/") -> /
B162: Largeur de départ (m) | D162: =IF(AND('Entrees Heli'!B20<>"",'Entrees Heli'!G32<>""),'Phase de recul'!G20,"/") -> / | E162: =IF(AND('Entrees Heli'!B44<>"",'Entrees Heli'!G56<>""),'Phase de recul'!G22,"/") -> /
B163: Largeur finale (m) | D163: =IF(AND('Entrees Heli'!B20<>"",'Entrees Heli'!G32<>""),'Heli_trouees Att-Dec-Lat-PR'!F216,"/") -> / | E163: =IF(AND('Entrees Heli'!B44<>"",'Entrees Heli'!G56<>""),'Heli_trouees Att-Dec-Lat-PR'!N216,"/") -> /
B164: Désaxage phase de recul (°) | D164: =IF(AND('Entrees Heli'!B20<>"",'Entrees Heli'!G32<>""),IF('Entrees Heli'!K32<>"",'Entrees Heli'!K32,"0"),"/") -> / | E164: =IF(AND('Entrees Heli'!B44<>"",'Entrees Heli'!G56<>""),IF('Entrees Heli'!K56<>"",'Entrees Heli'!K56,"0"),"/") -> /
B165: 3ème section - Hauteur recalculée (m) | D165: =IF(AND('Entrees Heli'!B20<>"",'Entrees Heli'!G32<>""),'Entrees Heli'!E32+('Entrees Heli'!G32-'Entrees Heli'!E32)/('Entrees Heli'!F32-'Entrees Heli'!D32)*('caracteristiques des surfaces'!D166-'Entrees Heli'!D32),"/") -> / | E165: =IF(AND('Entrees Heli'!B44<>"",'Entrees Heli'!G56<>""),'Entrees Heli'!E56+('Entrees Heli'!G56-'Entrees Heli'!E56)/('Entrees Heli'!F56-'Entrees Heli'!D56)*('caracteristiques des surfaces'!E166-'Entrees Heli'!D56),"/") -> /
B166: 3ème section - Distance (m) | D166: =IF(AND('Entrees Heli'!B20<>"",'Entrees Heli'!G32<>""),IF('Entrees Heli'!H32<>"",'Entrees Heli'!H32,'Entrees Heli'!F32),"/") -> / | E166: =IF(AND('Entrees Heli'!B44<>"",'Entrees Heli'!G56<>""),IF('Entrees Heli'!H56<>"",'Entrees Heli'!H56,'Entrees Heli'!F56),"/") -> /
B167: Divergence (%) | D167: =IF(AND('Entrees Heli'!B20<>"",'Entrees Heli'!G32<>""),IF(G167<>"",G167,'tableaux hélistations'!CI8),"/") -> / | E167: =IF(AND('Entrees Heli'!B44<>"",'Entrees Heli'!G56<>""),IF(H167<>"",H167,'tableaux hélistations'!CI8),"/") -> /
B168: Informations supplémentaires | D168: =IF('Phase de recul'!G19<>"/","La largeur de départ de la surface de protection est celle renseignée par l'utilisateur.",IF('Phase de recul'!E19=1,"Le diamètre de la FATO est supérieur à 21,2 m. Puisque le manuel de vol autorise une FATO minimale de 15x15m en " & Parametres!N33 & ", c'est cette FATO minimale qui est utilisée pour le calcul de la largeur de départ de la surface de protection, valeur à laquelle s'ajoute la marge de sécurité valant Max(3m,0,25 LHT) de chaque côté de la FATO.",IF('Phase de recul'!C20<>"N.C.","La FATO minimale, telle que définit dans le manuel de vol, est utilisée pour le calcul de la largeur de départ de la surface de protection, valeur à laquelle s'ajoute la marge de sécurité valant Max(3m,0,25 LHT) de chaque côté de la FATO.","La LHT de l'hélicoptère est utilisée pour le calcul de la largeur de départ de la surface de protection."))) -> La FATO minimale, telle que définit dans le manuel de vol, est utilisée pour le calcul de la largeur de départ de la surface de protection, valeur à laquelle s'ajoute la marge de sécurité valant Max(3m,0,25 LHT) de chaque côté de la FATO. | E168: =IF('Phase de recul'!G21<>"/","La largeur de départ de la surface de protection est celle renseignée par l'utilisateur.",IF('Phase de recul'!E19=1,"Le diamètre de la FATO est supérieur à 21,2 m. Puisque le manuel de vol autorise une FATO minimale de 15x15m en " & Parametres!N33 & ", c'est cette FATO minimale qui est utilisée pour le calcul de la largeur de départ de la surface de protection, valeur à laquelle s'ajoute la marge de sécurité valant Max(3m,0,25 LHT) de chaque côté de la FATO.",IF('Phase de recul'!C20<>"N.C.","La FATO minimale, telle que définit dans le manuel de vol, est utilisée pour le calcul de la largeur de départ de la surface de protection, valeur à laquelle s'ajoute la marge de sécurité valant Max(3m,0,25 LHT) de chaque côté de la FATO.","La LHT de l'hélicoptère est utilisée pour le calcul de la largeur de départ de la surface de protection."))) -> La FATO minimale, telle que définit dans le manuel de vol, est utilisée pour le calcul de la largeur de départ de la surface de protection, valeur à laquelle s'ajoute la marge de sécurité valant Max(3m,0,25 LHT) de chaque côté de la FATO.
B169: ="PHASE DE RECUL " & VLOOKUP('Phase de recul'!B5,Tableau2[],2) -> PHASE DE RECUL | G169: ="Modif Phase de Recul " & VLOOKUP('Phase de recul'!B5,Tableau2[],2) -> Modif Phase de Recul
B170: Décalage de la surface de protection (m) | D170: =IF(AND('Entrees Heli'!B20<>"",'Entrees Heli'!G33<>""),IF('Entrees Heli'!I33<>"",'Entrees Heli'!I33,0),"/") -> / | E170: =IF(AND('Entrees Heli'!B44<>"",'Entrees Heli'!G57<>""),IF('Entrees Heli'!I57<>"",'Entrees Heli'!I57,0),"/") -> /
B171: Largeur de départ (m) | D171: =IF(AND('Entrees Heli'!B20<>"",'Entrees Heli'!G33<>""),'Phase de recul'!G25,"/") -> / | E171: =IF(AND('Entrees Heli'!B44<>"",'Entrees Heli'!G57<>""),'Phase de recul'!G27,"/") -> /
B172: Largeur finale (m) | D172: =IF(AND('Entrees Heli'!B20<>"",'Entrees Heli'!G33<>""),'Heli_trouees Att-Dec-Lat-PR'!F232,"/") -> / | E172: =IF(AND('Entrees Heli'!B44<>"",'Entrees Heli'!G57<>""),'Heli_trouees Att-Dec-Lat-PR'!N232,"/") -> /
B173: Désaxage phase de recul (°) | D173: =IF(AND('Entrees Heli'!B20<>"",'Entrees Heli'!G33<>""),IF('Entrees Heli'!K33<>"",'Entrees Heli'!K33,"0"),"/") -> / | E173: =IF(AND('Entrees Heli'!B44<>"",'Entrees Heli'!G57<>""),IF('Entrees Heli'!K57<>"",'Entrees Heli'!K57,"0"),"/") -> /
B174: 3ème section - Hauteur recalculée (m) | D174: =IF(AND('Entrees Heli'!B20<>"",'Entrees Heli'!G33<>""),'Entrees Heli'!E33+('Entrees Heli'!G33-'Entrees Heli'!E33)/('Entrees Heli'!F33-'Entrees Heli'!D33)*('caracteristiques des surfaces'!D175-'Entrees Heli'!D33),"/") -> / | E174: =IF(AND('Entrees Heli'!B44<>"",'Entrees Heli'!G57<>""),'Entrees Heli'!E57+('Entrees Heli'!G57-'Entrees Heli'!E57)/('Entrees Heli'!F57-'Entrees Heli'!D57)*('caracteristiques des surfaces'!E175-'Entrees Heli'!D57),"/") -> /
B175: 3ème section - Distance (m) | D175: =IF(AND('Entrees Heli'!B20<>"",'Entrees Heli'!G33<>""),IF('Entrees Heli'!H33<>"",'Entrees Heli'!H33,'Entrees Heli'!F33),"/") -> / | E175: =IF(AND('Entrees Heli'!B44<>"",'Entrees Heli'!G57<>""),IF('Entrees Heli'!H57<>"",'Entrees Heli'!H57,'Entrees Heli'!F57),"/") -> /
B176: Divergence (%) | D176: =IF(AND('Entrees Heli'!B20<>"",'Entrees Heli'!G33<>""),IF(G176<>"",G176,'tableaux hélistations'!CI8),"/") -> / | E176: =IF(AND('Entrees Heli'!B44<>"",'Entrees Heli'!G57<>""),IF(H176<>"",H176,'tableaux hélistations'!CI8),"/") -> /
B177: Informations supplémentaires | D177: =IF('Phase de recul'!G24<>"/","La largeur de départ de la surface de protection est celle renseignée par l'utilisateur.",IF('Phase de recul'!E24=1,"Le diamètre de la FATO est supérieur à 21,2 m. Puisque le manuel de vol autorise une FATO minimale de 15x15m en " & Parametres!N33 & ", c'est cette FATO minimale qui est utilisée pour le calcul de la largeur de départ de la surface de protection, valeur à laquelle s'ajoute la marge de sécurité valant Max(3m,0,25 LHT) de chaque côté de la FATO.",IF('Phase de recul'!C25<>"N.C.","La FATO minimale, telle que définit dans le manuel de vol, est utilisée pour le calcul de la largeur de départ de la surface de protection, valeur à laquelle s'ajoute la marge de sécurité valant Max(3m,0,25 LHT) de chaque côté de la FATO.","La LHT de l'hélicoptère est utilisée pour le calcul de la largeur de départ de la surface de protection."))) -> La FATO minimale, telle que définit dans le manuel de vol, est utilisée pour le calcul de la largeur de départ de la surface de protection, valeur à laquelle s'ajoute la marge de sécurité valant Max(3m,0,25 LHT) de chaque côté de la FATO. | E177: =IF('Phase de recul'!G26<>"/","La largeur de départ de la surface de protection est celle renseignée par l'utilisateur.",IF('Phase de recul'!E24=1,"Le diamètre de la FATO est supérieur à 21,2 m. Puisque le manuel de vol autorise une FATO minimale de 15x15m en " & Parametres!N33 & ", c'est cette FATO minimale qui est utilisée pour le calcul de la largeur de départ de la surface de protection, valeur à laquelle s'ajoute la marge de sécurité valant Max(3m,0,25 LHT) de chaque côté de la FATO.",IF('Phase de recul'!C25<>"N.C.","La FATO minimale, telle que définit dans le manuel de vol, est utilisée pour le calcul de la largeur de départ de la surface de protection, valeur à laquelle s'ajoute la marge de sécurité valant Max(3m,0,25 LHT) de chaque côté de la FATO.","La LHT de l'hélicoptère est utilisée pour le calcul de la largeur de départ de la surface de protection."))) -> La FATO minimale, telle que définit dans le manuel de vol, est utilisée pour le calcul de la largeur de départ de la surface de protection, valeur à laquelle s'ajoute la marge de sécurité valant Max(3m,0,25 LHT) de chaque côté de la FATO.
B178: ="PHASE DE RECUL " & VLOOKUP('Phase de recul'!B6,Tableau2[],2) -> PHASE DE RECUL | G178: ="Modif Phase de Recul " & VLOOKUP('Phase de recul'!B6,Tableau2[],2) -> Modif Phase de Recul
B179: Décalage de la surface de protection (m) | D179: =IF(AND('Entrees Heli'!B20<>"",'Entrees Heli'!G34<>""),IF('Entrees Heli'!I34<>"",'Entrees Heli'!I34,0),"/") -> / | E179: =IF(AND('Entrees Heli'!B44<>"",'Entrees Heli'!G58<>""),IF('Entrees Heli'!I58<>"",'Entrees Heli'!I58,0),"/") -> /
B180: Largeur de départ (m) | D180: =IF(AND('Entrees Heli'!B20<>"",'Entrees Heli'!G34<>""),'Phase de recul'!G30,"/") -> / | E180: =IF(AND('Entrees Heli'!B44<>"",'Entrees Heli'!G58<>""),'Phase de recul'!G32,"/") -> /
B181: Largeur finale (m) | D181: =IF(AND('Entrees Heli'!B20<>"",'Entrees Heli'!G34<>""),'Heli_trouees Att-Dec-Lat-PR'!F248,"/") -> / | E181: =IF(AND('Entrees Heli'!B44<>"",'Entrees Heli'!G58<>""),'Heli_trouees Att-Dec-Lat-PR'!N248,"/") -> /
B182: Désaxage phase de recul (°) | D182: =IF(AND('Entrees Heli'!B20<>"",'Entrees Heli'!G34<>""),IF('Entrees Heli'!K34<>"",'Entrees Heli'!K34,"0"),"/") -> / | E182: =IF(AND('Entrees Heli'!B44<>"",'Entrees Heli'!G58<>""),IF('Entrees Heli'!K58<>"",'Entrees Heli'!K58,"0"),"/") -> /
B183: 3ème section - Hauteur recalculée (m) | D183: =IF(AND('Entrees Heli'!B20<>"",'Entrees Heli'!G34<>""),'Entrees Heli'!E34+('Entrees Heli'!G34-'Entrees Heli'!E34)/('Entrees Heli'!F34-'Entrees Heli'!D34)*('caracteristiques des surfaces'!D184-'Entrees Heli'!D34),"/") -> / | E183: =IF(AND('Entrees Heli'!B44<>"",'Entrees Heli'!G58<>""),'Entrees Heli'!E58+('Entrees Heli'!G58-'Entrees Heli'!E58)/('Entrees Heli'!F58-'Entrees Heli'!D58)*('caracteristiques des surfaces'!E184-'Entrees Heli'!D58),"/") -> /
B184: 3ème section - Distance (m) | D184: =IF(AND('Entrees Heli'!B20<>"",'Entrees Heli'!G34<>""),IF('Entrees Heli'!H34<>"",'Entrees Heli'!H34,'Entrees Heli'!F34),"/") -> / | E184: =IF(AND('Entrees Heli'!B44<>"",'Entrees Heli'!G58<>""),IF('Entrees Heli'!H58<>"",'Entrees Heli'!H58,'Entrees Heli'!F58),"/") -> /
B185: Divergence (%) | D185: =IF(AND('Entrees Heli'!B20<>"",'Entrees Heli'!G34<>""),IF(G185<>"",G185,'tableaux hélistations'!CI8),"/") -> / | E185: =IF(AND('Entrees Heli'!B44<>"",'Entrees Heli'!G58<>""),IF(H185<>"",H185,'tableaux hélistations'!CI8),"/") -> /
B186: Informations supplémentaires | D186: =IF('Phase de recul'!G29<>"/","La largeur de départ de la surface de protection est celle renseignée par l'utilisateur.",IF('Phase de recul'!E29=1,"Le diamètre de la FATO est supérieur à 21,2 m. Puisque le manuel de vol autorise une FATO minimale de 15x15m en " & Parametres!N33 & ", c'est cette FATO minimale qui est utilisée pour le calcul de la largeur de départ de la surface de protection, valeur à laquelle s'ajoute la marge de sécurité valant Max(3m,0,25 LHT) de chaque côté de la FATO.",IF('Phase de recul'!C30<>"N.C.","La FATO minimale, telle que définit dans le manuel de vol, est utilisée pour le calcul de la largeur de départ de la surface de protection, valeur à laquelle s'ajoute la marge de sécurité valant Max(3m,0,25 LHT) de chaque côté de la FATO.","La LHT de l'hélicoptère est utilisée pour le calcul de la largeur de départ de la surface de protection."))) -> La FATO minimale, telle que définit dans le manuel de vol, est utilisée pour le calcul de la largeur de départ de la surface de protection, valeur à laquelle s'ajoute la marge de sécurité valant Max(3m,0,25 LHT) de chaque côté de la FATO. | E186: =IF('Phase de recul'!G31<>"/","La largeur de départ de la surface de protection est celle renseignée par l'utilisateur.",IF('Phase de recul'!E29=1,"Le diamètre de la FATO est supérieur à 21,2 m. Puisque le manuel de vol autorise une FATO minimale de 15x15m en " & Parametres!N33 & ", c'est cette FATO minimale qui est utilisée pour le calcul de la largeur de départ de la surface de protection, valeur à laquelle s'ajoute la marge de sécurité valant Max(3m,0,25 LHT) de chaque côté de la FATO.",IF('Phase de recul'!C30<>"N.C.","La FATO minimale, telle que définit dans le manuel de vol, est utilisée pour le calcul de la largeur de départ de la surface de protection, valeur à laquelle s'ajoute la marge de sécurité valant Max(3m,0,25 LHT) de chaque côté de la FATO.","La LHT de l'hélicoptère est utilisée pour le calcul de la largeur de départ de la surface de protection."))) -> La FATO minimale, telle que définit dans le manuel de vol, est utilisée pour le calcul de la largeur de départ de la surface de protection, valeur à laquelle s'ajoute la marge de sécurité valant Max(3m,0,25 LHT) de chaque côté de la FATO.
A188: VERTIPORT | B188: =IF('Entrees Vertiport'!B2<>"",'Entrees Vertiport'!B2,"Vertiport") -> Vertiport
B189: Orientation (°) | D189: ='Entrees Vertiport'!B12 -> 
B190: Cote de référence retenue pour l'hélistation (m) | D190: ='Entrees Vertiport'!B10 -> 0
D191: VERTIPORT
D192: QFU | E192: QFU
B193: QFU | D193: ='intermédiaire entrée'!D18 -> / | E193: ='intermédiaire entrée'!E18 -> /
B194: Catégorie | D194: ='intermédiaire entrée'!D19 -> / | E194: ='intermédiaire entrée'!E19 -> /
B195: Jour ou nuit | D195: ='intermédiaire entrée'!D20 -> / | E195: ='intermédiaire entrée'!E20 -> /
B196: Forme | C196: Position | D196: =Parametres!K60 -> circulaire | E196: =Parametres!N61 -> terrasse
B197: FATO : Largeur ou Diamètre (m) | D197: =IF('Entrees Vertiport'!B6<>"",'Entrees Vertiport'!B6,"/") -> /
B198: FATO : Longueur (m) | D198: =IF('Entrees Vertiport'!C6<>"",'Entrees Vertiport'!C6,"/") -> /
B199: Aire sécurité : Largeur ou Diamètre (m) | D199: =IF('Entrees Vertiport'!B7<>"",'Entrees Vertiport'!B7,"/") -> /
B200: Aire sécurité : Longueur (m) | D200: =IF('Entrees Vertiport'!C7<>"",'Entrees Vertiport'!C7,"/") -> /
B201: Centre FATO Lat WGS84 / L93 | D201: =IF('Entrees Vertiport'!B9<>"",'Entrees Vertiport'!B9,"/") -> /
B202: Centre FATO Lon WGS84 / L93 | D202: =IF('Entrees Vertiport'!C9<>"",'Entrees Vertiport'!C9,"/") -> /
B203: ATTERRISSAGE | G203: Modif Atterrissage
B204: Seuil | D204: =D193 -> / | E204: =E193 -> /
... 66 more rows

Sheet Liste Helicoptere (hidden)
G1: La distance d’accélération arrêt (DAA), la distancede décollage sur (n-1)moteur(s) (DD(n-1)), la distance d’atterrissage (DA), la dimension minimale de la FATO pour une procédure ponctuelle en terrasse en classe de performances I (Dter1) et la dimension minimale de la FATO pour une procédure ponctuelle au sol en classe de performances I (Dsol2). Non communiqué (NC). | O1: PHASE DE RECUL
A2: La dimension minimale de la FATO pour une procédure ponctuelle en terrasse en classe de performances I (Dter1) et la dimension minimale de la FATO pour une procédure ponctuelle au sol en classe de performances I (Dsol2). Non communiqué (NC). | P2: Circulaire en surface | V2: Circulaire en terrasse | AB2: Carré ou rectangle en surface | AH2: Carré ou rectangle en terrasse
K3: Rectangulaire | M3: Elliptique | P3: Section 1 | R3: Section 2 | T3: Section 3 (PDD) | V3: Section 1 | X3: Section 2 | Z3: Section 3 (PDD) | AB3: Section 1 | AD3: Section 2 | AF3: Section 3 (PDD) | AH3: Section 1 | AJ3: Section 2 | AL3: Section 3 (PDD)
A4: ID | B4: Hélicoptère | C4: Turbine | D4: Masse maximale structurale de décollage (kg) | E4: LHT (m) | F4: Diamètre Rotor (m) | G4: DAA (m) | H4: DD(n-1) (m) | I4: DA (m) | J4: DDn (m) | K4: Dter1 (m) | L4: Dsol2 (m) | M4: Dter1 (m)2 | N4: Dsol2 (m)3 | O4: Obs phase de recul | P4: distance (m) | Q4: hauteur (m) | R4: distance (m)4 | S4: hauteur (m)5 | T4: distance (m)6 | U4: hauteur (m)7 | V4: distance (m)8 | W4: hauteur (m)9 | X4: distance (m)10 | Y4: hauteur (m)11 | Z4: distance (m)12 | AA4: hauteur (m)13 | AB4: distance (m)14 | AC4: hauteur (m)15 | AD4: distance (m)16 | AE4: hauteur (m)17 | AF4: distance (m)18 | AG4: hauteur (m)19 | AH4: distance (m)20 | AI4: hauteur (m)21 | AJ4: distance (m)22 | AK4: hauteur (m)23 | AL4: distance (m)24 | AM4: hauteur (m)25
A5: 1
A6: 2
A7: 3
A8: 4
A9: 5
A10: 6
A11: 7
A12: 8
A13: 9
A14: 10
A15: 11
A16: 12
A17: 13
A18: 14
A19: 15
A20: 16
A21: 17
A22: 18
A23: 19
A24: 20
A25: 21
A26: 22
A27: 23
A28: 24
A29: 25
A30: 26
A31: 27
A32: 28
A33: 29
A34: 30
A35: 31
A36: 32
A37: 33
A38: 34
A39: 35
A40: 36 | C40: Légende :
A41: 37 | D41: Distance donnée par rapport au bord de l'hélistation minimale
A42: 38 | D42: Distance donnée par rapport au centre de l'hélistation minimale
A43: 39 | D43: Distance donnéeé par rapport au bord de l'hélistation minimale dans le manuel de vol et ramenée par rapport au centre de l'hélistation minimale
A44: 40
A45: 41
A46: 42
A47: 43
A48: 44
A49: 45
A50: 46
A51: 47
A52: 48
A53: 49
A54: 50
A55: 51
A56: 52
A57: 53
A58: 54
A59: 55
A60: 56
A61: 57
A62: 58
A63: 59
A64: 60
A65: 61
A66: 62
A67: 63
A68: 64
A69: 65
A70: 66
A71: 67
A72: 68
A73: 69
A74: 70
A75: 71
A76: 72
A77: 73
A78: 74
A79: 75
A80: 76
A81: 77
A82: 78
A83: 79
A84: 80
A85: 81
A86: 82
A87: 83
A88: 84
A89: 85
A90: 86
A91: 87
A92: 88
A93: 89
A94: 90
A95: 91
A96: 92
A97: 93
A98: 94
A99: 95
A100: 96
A101: 97
A102: 98
A103: 99

Sheet obstacles
A1: LISTE DES OBSTACLES | S1: Sigle : Pour piste : TA(Trouée Atterrissage), TD(Trouée Decollage), SL(Surface Latérale), SR(Surface raccordement), TCA(Trouée Courbe Atterrissage), TCD(Trouée Courbe Decollage). Pour hélistation : Heli-TA(Hélistation Trouée Atterrissage), Heli-TD (Hélistation Trouée Décollage), Heli-TCA (Hélistation Trouée Courbe Atterrissage), Heli-TCD (Hélistation Trouée Courbe Décollage), Heli-SL(Surface Latérale), Heli-PR(Phase de Recul). Pour vertiport : Verti-TA (Vertiport Trouée Atterrissage), Verti-TD (Vertiport Trouée Décollage), Verti-TCA (Vertiport Trouée Courbe Atterrissage), Verti-TCD (Vertiport Trouée Courbe Décollage), Verti-SL (Vertiport Surface Latérale), Verti-TR (Vertiport Transition), Verti-TRTC (Vertiport Transition d'une Trouée Courbe) LE CHIFFRE représente le seuil ou QFU.
A2: Attention, il ne faut pas de ligne blanche entre les lignes obstacles POUR DES PROBLEMES DE PERFORMANCE, LE NOMBRE D'OBSTACLE AFFICHE NE DOIT PAS DEPASSER 30000 LIGNES. | F2: Choisir la méthode de conversion selon les données d'entrée : Lambert93 et WGS DMS Vers WGS84 degré
A4: Choix des colonnes à afficher | F4: Méthode n°1 | H4: Méthode n°2 | J4: Méthode n°3 | Q4: Final | U4: Calcul de percement sur quelle surface ? | W4: Afficher percement négatif | Y4: Temps | Z4: SURFACES AERO | AO4: SURFACES HELISTATION | BA4: SURFACES VERTIPORT
A5: Import nouveau relevé par fichier | Y5: 00:00:08 | AF5: Courbes 1 | AI5: Courbes 2 | AT5: Courbe | AV5: Phase de recul | BD5: OLS 1 | BJ5: OLS 2 | BP5: OFV
A6: N° | B6: Commune ou description | C6: Nom Obstacle | D6: Type | E6: Altitude sommitale (m) | F6: X_L93 | G6: Y_L93 | H6: Lat (Degré Minute Seconde) | I6: Lon (Degré Minute Seconde) | J6: Position-Lat (degré minute seconde) | K6: Position-Lon (degré minute seconde) | L6: Altitude position (m) | M6: Hauteur œil (m) | N6: Relèvement (°) | O6: Elévation (%) | P6: Distance (m) | Q6: WGS (degré décimal) Lat | R6: WGS (degré décimal) Lon | S6: Distance centre piste arrondie (m) | T6: Relèvement (degré) et distance(m) centre piste | U6: Quelle surface ? | V6: Perce ou pas (Oui/Non) | W6: Alt de servitude (Plus contraignante) | X6: Percement (m) | Y6: Surface la plus contraignante | Z6: Appui | AA6: Latérales | AB6: Atterrisssage | AC6: Décollage | AD6: horizontale | AE6: Conique | AF6: Atterrisssage | AG6: Décollage | AH6: Latérales | AI6: Atterrisssage | AJ6: Décollage | AK6: Latérales | AL6: ="OFZ"&'caracteristiques des surfaces'!$D$5 -> OFZ15 | AM6: ="OFZ"&'caracteristiques des surfaces'!$E$5 -> OFZ33 | AN6: OCS (ou VSS) | AO6: FATO | AP6: Aire de sécurité | AQ6: Latérales | AR6: Atterrisssage | AS6: Décollage | AT6: Atterrisssage | AU6: Décollage | AV6: =VLOOKUP('Phase de recul'!B2,Tableau2[],2) -> 0 | AW6: =VLOOKUP('Phase de recul'!B3,Tableau2[],2) -> 0 | AX6: =VLOOKUP('Phase de recul'!B4,Tableau2[],2) -> 0 | AY6: =VLOOKUP('Phase de recul'!B5,Tableau2[],2) -> 0 | AZ6: =VLOOKUP('Phase de recul'!B6,Tableau2[],2) -> 0 | BA6: FATO | BB6: Aire de sécurité | BC6: Surface Latérale | BD6: Atterrissage | BE6: Décollage | BF6: Transition | BG6: Atterrissage Courbe | BH6: Décollage Courbe | BI6: Transition Courbe | BJ6: Atterrissage | BK6: Décollage | BL6: Transition | BM6: Atterrissage Courbe | BN6: Décollage Courbe | BO6: Transition Courbe | BP6: OFV 1 | BQ6: OFV 2

Sheet AD (hidden)
A1: Date MAJ | B1: 44713
A2: Code | B2: AdNomComplet | C2: AdStatut | D2: Code letre Ref | E2: Code lettre regulier | F2: ADG Ref | G2: ADG regulier | H2: Code AD Ref | I2: Type approche | J2: ILS | K2: PAPI | L2: Nbre Piste | M2: AdGestion | N2: ArpLat | O2: ArpLong | P2: AdRefAltFt | Q2: AdRefAltm | R2: AdMagVar | S2: TfcIntl | T2: TfcNtl | U2: TfcIfr | V2: TfcVfr | W2: TfcRegulier | X2: TfcNonRegulier | Y2: TfcPrive | Z2: MetAts | AA2: SsliaCat | AB2: TwyLargeur | AC2: TwyRevet | AD2: TwyResist | AE2: AireTfcRevet | AF2: AireTfcResist
A3: LFOI | B3: ABBEVILLE | C3: CAP | H3: 3 | I3: Vue | J3: NON | K3: NON | L3: 3 | N3: 50.142222 | O3: 1.831111 | P3: 220 | Q3: 67.056 | R3: 0.79 | S3: oui | T3: oui | U3: non | V3: oui | W3: non | X3: non | Y3: oui | AE3: Béton bitumineux ou béton\\Bituminous concrete or concrete | AF3: 1 : 54 F/B/W/T#2 : 70 F/B/W/T#3 : 70 F/B/W/T#4 : 94 R/B/W/T#5 : 105 R/B/W/T#6 : 100 R/B/W/T#7 : 47 F/B/W/T#8 : 47 F/B/W/T#9 à 11 : 78 F/B/W/T#12 : 103 R/B/W/T#13 : 50 F/B/W/T#14 : 50 F/B/W/T#15 : 35 F/B/W/T#16 : 81 F/B/W/T#17 : 76 R/B/W/T#PKG AVG : 10 F/B/W/T
A4: LFBA | B4: AGEN LA GARENNE | C4: CAP | H4: 4 | I4: Instrument | J4: NON | K4: OUI | L4: 1 | M4: SMAD | N4: 44.174714 | O4: 0.590619 | P4: 204 | Q4: 62.1792 | R4: 0.73 | S4: oui | T4: oui | U4: oui | V4: oui | W4: oui | X4: oui | Y4: oui | Z4: TWR | AA4: 5 | AB4: E, M, N : 15 m#W : 8,54 m | AC4: E, M, N, W : Enrobé\\E, M, N, W : Asphalt | AD4: E : 31 F/C/W/T#M, N, W : 23 F/C/W/T | AE4: PRKG CIV, KERLAEN, KERMADEHOYE : béton / concrete | AF4: PRKG CIV : 41/R/B/W/T# PRKG KERLAEN : 10 R/B/W/T# PRKG KERMADEHOYE : 22 R/C/W/T
A5: NTHE | B5: AHE | C5: CAP | D5: C | E5: C | F5: IIB | G5: IIB | H5: 3 | I5: Vue | J5: NON | K5: NON | L5: 1 | M5: DAC POLYNESIE FRANCAISE | N5: -14.4275 | O5: -146.255278 | P5: 19 | Q5: 5.7912 | R5: 12.04 | S5: non | T5: oui | U5: non | V5: oui | W5: oui | X5: oui | Y5: oui | AA5: 4 | AB5: 15 m | AC5: Enrobé bitumineux\\asphalt | AD5: 14/F/A/X/T | AE5: PRKG commercial et aviation générale : Asphalte.#PRKG HEL : non revêtu, sur l'herbe.\\Commercial and general aviation apron : Asphalt.#HEL apron : unpaved, on grass. | AF5: 23 F/B/W/T
A6: LFDA | B6: AIRE SUR L'ADOUR | C6: CAP | H6: 2 | I6: Vue | J6: NON | K6: NON | L6: 2 | N6: 43.708611 | O6: -0.247222 | P6: 266 | Q6: 81.0768 | R6: 0.52 | S6: non | T6: oui | U6: non | V6: oui | W6: non | X6: non | Y6: oui
A7: LFMA | B7: AIX LES MILLES | C7: CAP | H7: 3 | I7: Instrument | J7: NON | K7: NON | L7: 1 | M7: EDEIS AEROPORT AIX | N7: 43.505278 | O7: 5.367222 | P7: 368 | Q7: 112.1664 | R7: 1.96 | S7: non | T7: oui | U7: oui | V7: oui | W7: non | X7: non | Y7: oui | Z7: TWR | AA7: 2
A8: LFKJ | B8: AJACCIO NAPOLEON BONAPARTE | C8: CAP | D8: C | E8: C | F8: IIC | G8: IIA | H8: 4 | I8: Instrument | J8: OUI | K8: OUI | L8: 1 | M8: CCI DE CORSE | N8: 41.923897 | O8: 8.802436 | P8: 19 | Q8: 5.7912 | R8: 2.69 | S8: oui | T8: oui | U8: oui | V8: oui | W8: oui | X8: oui | Y8: oui | Z8: TWR | AA8: 7 | AB8: TWY A/B/T : 23 m#TWY C/E/F/G1/G2/H : 18 m#TWY D/D1/D2 : 22 m | AC8: Béton bitumineux\\Asphaltic concrete | AD8: A, F : 27 F/C/W/T - B : 45 F/C/W/T - C : 42 F/C/W/T#D : 34 F/D/W/T mini - E, H : 12 F/C/W/T#G : 29 F/C/W/T - T : 39 F/C/W/T | AE8: PRKG principal (P1) : 960 x 60 m : Béton# PRKG secondaire (P2) : 75 x 40 m : Béton# Zone d'alerte 1 (ZA1) : 22576 m2 : Béton# Zone d'alerte 2 (ZA2) : 8003 m2 : Béton\\ Main PRKG (P1) : 960 x 60 m : Concrete# Secondary PRKG (P2) : 75 x 40 m : Concrete# Warning zone 1 (ZA1) : 22576 m2 : Concrete# Warning zone 2 (ZA2) : 8003 m2 : Concrete | AF8: PRKG principal (P1) : 21 R/B/W/U# PRKG secondaire (P2) :20 R/B/W/T# Zone d'alerte 1 (ZA1) : 18 R/C/W/U# Zone d'alerte 2 (ZA2) : 20 F/B/W/T\\ Main PRKG (P1) : 960 x 60 m : 21 R/B/W/U# Secondary PRKG (P2) : 20 R/B/W/T# Alert area 1 (ZA1) : 18 R/C/W/U# Alert area 2 (ZA2) : 20 F/B/W/T
A9: LF01 | B9: ALBE | C9: PRV | H9: 1 | I9: Vue | J9: NON | K9: NON | L9: 1 | N9: 48.35 | O9: 7.328333 | R9: 2.45 | S9: non | T9: non | U9: non | V9: non | W9: non | X9: non | Y9: non
A10: LFAQ | B10: ALBERT BRAY | C10: CAP | D10: C | E10: C | F10: IIC | G10: IIC | H10: 4 | I10: Instrument | J10: NON | K10: OUI | L10: 2 | M10: RAAP | N10: 49.970061 | O10: 2.692617 | P10: 363 | Q10: 110.6424 | R10: 1.07 | S10: oui | T10: oui | U10: oui | V10: oui | W10: non | X10: oui | Y10: oui | Z10: TWR/AFIS | AA10: 5 | AB10: TWY B et S : 10,5 m sans accotement revêtu.#TWY E : 22,5 m avec accotement revêtu de 10,5 m.\\ TWY B and S : 10,5 m without paved shoulder.#TWY E : 22,5 m with 10,5 m wide paved shoulder.
A11: LFKA | B11: ALBERTVILLE GENERAL PIERRE DELACHENAL | C11: RST | H11: 2 | I11: Vue | J11: NON | K11: NON | L11: 1 | N11: 45.626389 | O11: 6.328889 | P11: 1035 | Q11: 315.468 | R11: 2.19 | S11: non | T11: oui | U11: non | V11: oui | W11: non | X11: non | Y11: oui
A12: LFCI | B12: ALBI LE SEQUESTRE | C12: CAP | H12: 3 | I12: Instrument | J12: NON | K12: OUI | L12: 1 | M12: VILLE D'ALBI | N12: 43.913278 | O12: 2.11675 | P12: 565 | Q12: 172.212 | R12: 1.15 | S12: oui | T12: oui | U12: oui | V12: oui | W12: non | X12: non | Y12: oui | Z12: AFIS | AA12: 2 | AB12: 15 m | AC12: Revêtu\\Paved | AD12: 30 F/A/W/T | AE12: Revêtue\\Paved | AF12: 41 F/A/W/T
A13: LFOF | B13: ALENCON VALFRAMBERT | C13: CAP | H13: 1 | I13: Vue | J13: NON | K13: NON | L13: 2 | N13: 48.446667 | O13: 0.108333 | P13: 476 | Q13: 145.0848 | R13: 0.36 | S13: non | T13: oui | U13: non | V13: oui | W13: non | X13: non | Y13: oui
A14: LFMS | B14: ALES CEVENNES | C14: CAP | H14: 3 | I14: Vue | J14: NON | K14: NON | L14: 1 | N14: 44.072733 | O14: 4.142919 | P14: 668 | Q14: 203.6064 | R14: 1.67 | S14: non | T14: oui | U14: non | V14: oui | W14: non | X14: non | Y14: oui
A15: LFXA | B15: AMBERIEU | C15: CAP | H15: 4 | I15: Vue | J15: NON | K15: NON | L15: 2 | N15: 45.979722 | O15: 5.337778 | P15: 823 | Q15: 250.8504 | R15: 1.94 | S15: non | T15: oui | U15: non | V15: oui | W15: non | X15: non | Y15: oui | AE15: Revêtue\\Paved
A16: LFHT | B16: AMBERT LE POYET | C16: CAP | H16: 1 | I16: Vue | J16: NON | K16: NON | L16: 1 | M16: COMITE DE GESTION DE L'AERODROME PAUL GORCE | N16: 45.515556 | O16: 3.745 | P16: 1848 | Q16: 563.2704 | R16: 1.54 | S16: non | T16: oui | U16: non | V16: oui | W16: non | X16: non | Y16: oui
A17: LFEF | B17: AMBOISE DIERRE | C17: CAP | H17: 1 | I17: Vue | J17: NON | K17: NON | L17: 2 | N17: 47.340556 | O17: 0.941111 | P17: 177 | Q17: 53.9496 | R17: 0.68 | S17: non | T17: oui | U17: non | V17: oui | W17: non | X17: non | Y17: oui
A18: LFAY | B18: AMIENS-GLISY | C18: CAP | H18: 3 | I18: Instrument | J18: NON | K18: OUI | L18: 2 | M18: COMMUNAUTE D'AGGLOMERATION D'AMIENS METROPOLE | N18: 49.873103 | O18: 2.386986 | P18: 208 | Q18: 63.3984 | R18: 0.98 | S18: oui | T18: oui | U18: oui | V18: oui | W18: non | X18: non | Y18: oui | Z18: AFIS | AA18: 1 | AB18: TWY A : 10 m# TWY C, H : 15 m | AC18: Revêtu : TWY A\\Paved : TWY A | AE18: W TWR : macadam# E TWR : macadam# N RWYs : macadam# (PRKG EFA à usage restreint) | AF18: W TWR : 7 F/A/W/U# E TWR : 7 F/A/W/U# N RWYs : 7 F/A/W/U# AST EFA (TIGRE) : 16 F/A/W/T# AST OUEST (PUMA) : 36/F/A/W/T# AST GAZELLE 1 : 7 F/A/W/T# POSTES DE STATIONNEMENT GAZELLE : 4 R/B/W/T# AST GAZELLE2 : 8 F/A/W/T# AST CFIA (NH90) : 21 F/A/W/T# AST EST : 20 F/A/W/T# PÉLICANDROME : 56 F/A/W/T#\\ W TWR : 7 F/A/W/U# E TWR : 7 F/A/W/U# N RWYs : 7 F/A/W/U# AST EFA (TIGRE) : 16 F/A/W/T# AST WEST (PUMA) : 36/F/A/W/T# AST GAZELLE 1 : 7 F/A/W/T# STAND GAZELLE : 4 R/B/W/T# AST GAZELLE 2 : 8 F/A/W/T# AST CFIA (NH90) : 21 F/A/W/T# AST EAST : 20 F/A/W/T# PELICANDROM : 56 F/A/W/T
A19: NTGA | B19: ANAA | C19: CAP | D19: C | E19: C | F19: IIB | G19: IIB | H19: 3 | I19: Instrument | J19: NON | K19: NON | L19: 1 | M19: DAC POLYNESIE FRANCAISE | N19: -17.355 | O19: -145.508333 | P19: 21 | Q19: 6.4008 | R19: 12.87 | S19: non | T19: oui | U19: oui | V19: oui | W19: oui | X19: oui | Y19: oui | AA19: 4 | AC19: bi-couche bitume\\asphalt | AE19: Asphalte\\Asphalt | AF19: 6 F/B/W/T
A20: LFFI | B20: ANCENIS | C20: CAP | H20: 3 | I20: Vue | J20: NON | K20: NON | L20: 1 | N20: 47.407222 | O20: -1.178889 | P20: 109 | Q20: 33.2232 | R20: 0.03 | S20: non | T20: oui | U20: non | V20: oui | W20: non | X20: non | Y20: oui
A21: LFCD | B21: ANDERNOS LES BAINS | C21: CAP | H21: 2 | I21: Vue | J21: NON | K21: NON | L21: 1 | N21: 44.755 | O21: -1.065 | P21: 64 | Q21: 19.5072 | R21: 0.24 | S21: non | T21: oui | U21: non | V21: oui | W21: non | X21: non | Y21: oui
A22: LFJR | B22: ANGERS MARCE | C22: CAP | H22: 4 | I22: Instrument | J22: NON | K22: OUI | L22: 3 | M22: EDEIS AEROPORT ANGERS | N22: 47.560211 | O22: -0.312128 | P22: 194 | Q22: 59.1312 | R22: 0.29 | S22: oui | T22: oui | U22: oui | V22: oui | W22: oui | X22: oui | Y22: oui | Z22: AFIS | AA22: 5 | AB22: TWY A: 21 m.#TWY B, C, S: 15m\\TWY A: 21 m.#TWY B, C, S: 15m | AC22: TWY B : revêtu.#TWY A, C, S: non revêtu.\\TWY B: paved.#TWY A, C, S: unpaved. | AD22: TWY B: 34 F/B/W/T.
A23: LFBU | B23: ANGOULEME BRIE CHAMPNIERS | C23: CAP | H23: 4 | I23: Instrument | J23: NON | K23: OUI | L23: 2 | M23: SYNDICAT MIXTE DES AEROPORTS DE CHARENTE | N23: 45.729475 | O23: 0.219153 | P23: 436 | Q23: 132.8928 | R23: 0.56 | S23: oui | T23: oui | U23: oui | V23: oui | W23: oui | X23: oui | Y23: oui | Z23: AFIS | AA23: 4 | AB23: 23 m | AC23: Bitume\\Asphalt | AD23: 39 F/C/W/T\\39 F/C/W/T | AE23: Aire N et A en percollé, aires B, C, L et postes de stationnement J33 à J41 bétonnés, les autres postes en hydrocarboné.\\Area N and A bitumineous, areas B, C, L and aprons J33 to J41 concrete other aprons hydrocarboned. | AF23: Appropriée au dimensionnement maximum de chaque aire.\\Adapted to the maximum size of each area.
A24: LFLP | B24: ANNECY MEYTHET | C24: CAP | H24: 3 | I24: Instrument | J24: NON | K24: OUI | L24: 2 | M24: EDEIS AEROPORT ANNECY | N24: 45.930775 | O24: 6.106289 | P24: 1521 | Q24: 463.6008 | R24: 2.14 | S24: non | T24: oui | U24: oui | V24: oui | W24: non | X24: non | Y24: oui | Z24: TWR | AA24: 5 | AB24: Charlie, Delta et Tango : 15 m / Alpha et Bravo : 7.5 m\\ Charlie, Delta and Tango : 15 m / Alpha and Bravo : 7.5 m | AC24: Bitume.\\Bitumen. | AD24: PCN Charlie, Delta et Tango : 24 F/C/W/T\\PCN Charlie, Delta and Tango : 24 F/C/W/T | AE24: Parking ENAC-JEUMONT 3 TONNEAUX : rigide.#Parking ACB : enrobé souple.\\ENAC-JEUMONT 3 TONNEAUX apron : concrete. #ACB apron : asphalt.
A25: LFLI | B25: ANNEMASSE | C25: CAP | H25: 2 | I25: Vue | J25: NON | K25: NON | L25: 1 | N25: 46.191944 | O25: 6.268333 | P25: 1620 | Q25: 493.776 | R25: 2.18 | S25: non | T25: oui | U25: non | V25: oui | W25: non | X25: non | Y25: oui
A26: NTGD | B26: APATAKI | C26: RST | D26: B | E26: B | F26: IIB | G26: IIB | H26: 2 | I26: Vue | J26: NON | K26: NON | L26: 1 | M26: DAC POLYNESIE FRANCAISE | N26: -15.573611 | O26: -146.415 | P26: 14 | Q26: 4.2672 | R26: 12.36 | S26: non | T26: oui | U26: non | V26: oui | W26: oui | X26: oui | Y26: oui | AA26: 2 | AC26: Enrobé bitumineux\\Bituminous mix
A27: NTKK | B27: ARATIKA NORD | C27: CAP | D27: C | E27: C | F27: IIB | G27: IIB | H27: 3 | I27: Vue | J27: NON | K27: NON | L27: 1 | M27: DAC POLYNESIE FRANCAISE | N27: -15.485 | O27: -145.47 | P27: 10 | Q27: 3.048 | R27: 12.32 | S27: non | T27: oui | U27: non | V27: oui | W27: non | X27: non | Y27: non | AA27: 3 | AC27: Enrobé bitumineux\\Bituminous mix | AE27: Asphalte\\ Asphalt | AF27: Poste 1 : 21 F/A/W/T# Poste 2, 3, 4 : 19/F/B/W/T\\ Stand 1 : 21 F/A/W/T# Stand 2, 3, 4 : 19/F/B/W/T
A28: NTGR | B28: ARATIKA PERLES | C28: OFF | H28: 1 | I28: Vue | J28: NON | K28: NON | L28: 1 | M28: PACIFIC PERLES (FOURCADE). | N28: -15.633333 | O28: -145.5 | P28: 7 | Q28: 2.1336 | R28: 12.37 | S28: non | T28: oui | U28: non | V28: oui | W28: non | X28: non | Y28: oui | AC28: Corail compacté\\Compact coral | AE28: Asphalte\\Asphalt | AF28: 21 F/A/W/T
A29: LFCH | B29: ARCACHON LA TESTE DE BUCH | C29: CAP | H29: 3 | I29: Vue | J29: NON | K29: NON | L29: 2 | N29: 44.596944 | O29: -1.113889 | P29: 52 | Q29: 15.8496 | R29: 0.23 | S29: non | T29: oui | U29: non | V29: oui | W29: non | X29: non | Y29: oui | Z29: AFIS
A30: LFAJ | B30: ARGENTAN | C30: CAP | H30: 2 | I30: Vue | J30: NON | K30: NON | L30: 1 | N30: 48.709444 | O30: 0.002778 | P30: 581 | Q30: 177.0888 | R30: 0.31 | S30: non | T30: oui | U30: non | V30: oui | W30: non | X30: non | Y30: oui
A31: LFEG | B31: ARGENTON SUR CREUSE | C31: CAP | H31: 2 | I31: Vue | J31: NON | K31: NON | L31: 2 | N31: 46.595833 | O31: 1.601111 | P31: 666 | Q31: 202.9968 | R31: 0.92 | S31: non | T31: oui | U31: non | V31: oui | W31: non | X31: non | Y31: oui
A32: LFQD | B32: ARRAS ROCLINCOURT | C32: CAP | H32: 2 | I32: Vue | J32: NON | K32: NON | L32: 1 | N32: 50.323889 | O32: 2.802778 | P32: 328 | Q32: 99.9744 | R32: 1.08 | S32: non | T32: oui | U32: non | V32: oui | W32: non | X32: non | Y32: oui
A33: NTGU | B33: ARUTUA | C33: CAP | D33: C | E33: C | F33: IIB | G33: IIB | H33: 3 | I33: Instrument | J33: NON | K33: NON | L33: 1 | M33: DAC POLYNESIE FRANCAISE | N33: -15.246389 | O33: -146.620278 | P33: 16 | Q33: 4.8768 | R33: 12.26 | S33: non | T33: oui | U33: oui | V33: oui | W33: oui | X33: oui | Y33: oui | AA33: 4 | AB33: 15 m\\15 m | AC33: Enrobé bitumineux\\Bituminous mix | AE33: Asphalte.# P1, P2, P3, P4, P11, P21 : béton.#\\ Asphalt.# P1, P2, P3, P4, P11, P21 : concrete. | AF33: MIL : T : 29 F/C/W/T, G : 25 F/C/W/T, MIL/N : 20 TRSI, A1 : 5 T, CIV : voir/see AD 2 NWWW.20
A34: LFNJ | B34: ASPRES SUR BUECH | C34: RST | H34: 2 | I34: Vue | J34: NON | K34: NON | L34: 2 | N34: 44.517778 | O34: 5.736111 | P34: 2727 | Q34: 831.1896 | R34: 2.05 | S34: non | T34: oui | U34: non | V34: oui | W34: non | X34: non | Y34: oui
A35: LFHO | B35: AUBENAS ARDECHE MERIDIONALE | C35: CAP | H35: 3 | I35: Vue | J35: NON | K35: NON | L35: 1 | N35: 44.539419 | O35: 4.371733 | P35: 923 | Q35: 281.3304 | R35: 1.72 | S35: non | T35: oui | U35: non | V35: oui | W35: non | X35: non | Y35: oui
A36: LFJF | B36: AUBENASSON | C36: RST | H36: 1 | I36: Vue | J36: NON | K36: NON | L36: 1 | N36: 44.695278 | O36: 5.153889 | P36: 807 | Q36: 245.9736 | R36: 1.91 | S36: non | T36: oui | U36: non | V36: oui | W36: non | X36: non | Y36: oui
A37: LFEH | B37: AUBIGNY SUR NERE | C37: CAP | H37: 2 | I37: Vue | J37: NON | K37: NON | L37: 1 | N37: 47.480556 | O37: 2.394167 | P37: 630 | Q37: 192.024 | R37: 1.1 | S37: non | T37: oui | U37: non | V37: oui | W37: non | X37: non | Y37: oui
A38: LFDH | B38: AUCH GERS | C38: CAP | H38: 4 | I38: Instrument | J38: NON | K38: OUI | L38: 2 | M38: SYNDICAT MIXTE DE GESTION DE L'AEROPORT AUCH - GERS | N38: 43.686839 | O38: 0.600047 | P38: 411 | Q38: 125.2728 | R38: 0.75 | S38: non | T38: oui | U38: oui | V38: oui | W38: non | X38: non | Y38: oui | Z38: AFIS | AA38: 1 | AB38: TWY A : 15 m#TWY B : 12 m | AC38: Revêtus\\Paved | AD38: TWY A : 22 F/B/W/T#TWY B : 12 F/B/W/T
A39: LFLW | B39: AURILLAC | C39: CAP | D39: C | E39: C | F39: IIB | G39: IIB | H39: 3 | I39: Instrument | J39: NON | K39: OUI | L39: 1 | M39: COMMUNAUTE D'AGGLOMERATION DU BASSIN D'AURILLAC | N39: 44.897583 | O39: 2.416719 | P39: 2096 | Q39: 638.8608 | R39: 1.2 | S39: non | T39: oui | U39: oui | V39: oui | W39: non | X39: non | Y39: oui | Z39: AFIS | AA39: 4 | AB39: C, A, A1, A2 : 15m. B, N : 12m. | AC39: C, A, A1, A2, B, N : bitume\\C, A, A1, A2, B, N : bitumen | AD39: C : 12 F/C/W/T. A, A1, A2 : 31 F/C/W/T. B: 14 F/C/W/T. | AE39: Bitume.\\ Asphalt. | AF39: 5 TRSI
A40: LFQF | B40: AUTUN BELLEVUE | C40: CAP | H40: 2 | I40: Vue | J40: NON | K40: NON | L40: 2 | N40: 46.971111 | O40: 4.261111 | P40: 1001 | Q40: 305.1048 | R40: 1.64 | S40: non | T40: oui | U40: non | V40: oui | W40: non | X40: non | Y40: oui | AE40: Revêtue\\Paved
A41: LFLA | B41: AUXERRE BRANCHES | C41: CAP | H41: 3 | I41: Instrument | J41: NON | K41: OUI | L41: 1 | M41: EDEIS AEROPORT D'AUXERRE | N41: 47.846328 | O41: 3.496578 | P41: 523 | Q41: 159.4104 | R41: 1.4 | S41: non | T41: oui | U41: oui | V41: oui | W41: non | X41: non | Y41: oui | Z41: AFIS | AA41: 4 | AB41: TWY A : 15 m et TWY B : 5.5 m\\TWY A : 15 m and TWY B : 5.5 m | AC41: TWY A et TWY B : enrobé.\\TWY A and TWY B : coated. | AD41: TWY A : 43 F/C/W/U
A42: LFGE | B42: AVALLON | C42: CAP | H42: 1 | I42: Vue | J42: NON | K42: NON | L42: 1 | N42: 47.501944 | O42: 3.898333 | P42: 786 | Q42: 239.5728 | R42: 1.53 | S42: non | T42: oui | U42: non | V42: oui | W42: non | X42: non | Y42: oui
A43: LFMV | B43: AVIGNON CAUMONT | C43: CAP | D43: C | E43: C | F43: IIC | G43: IIC | H43: 3 | I43: Instrument | J43: NON | K43: OUI | L43: 3 | M43: SOCIETE AEROPORT AVIGNON PROVENCE | N43: 43.906581 | O43: 4.902028 | P43: 124 | Q43: 37.7952 | R43: 1.85 | S43: oui | T43: oui | U43: oui | V43: oui | W43: oui | X43: oui | Y43: oui | Z43: TWR | AA43: 5 | AB43: P2 et B : 10,5 m.#C : 19 m.#P3, P4 et D : 15 m.#E : 12 m.\\P2 and B : 10.5 m.#C : 19 m.#P3, P4 and D : 15 m.#E : 12 m. | AC43: A1, A2, B, C, D, E, P2, P3, P4, W1 à W5 : béton bitumineux.#A, C1, C2, C3 et P1 : non revêtus.\\A1, A2, B, C, D, E, P2, P3, P4, W1 to W5 : bituminous concrete.#A, C1, C2, C3 and P1 : unpaved. | AD43: C, D, P3 et P4 : 38 F/C/W/T.#P2 et B : 6 TRSI.#E : 10 TRSI.\\C, D, P3 and P4 : 38 F/C/W/T.#P2 and B : 6 TRSI.#E : 10 TRSI. | AE43: Béton\\Concrete | AF43: PRKG P : 59 R/C/W/T
A44: LFNT | B44: AVIGNON PUJAUT | C44: RST | H44: 3 | I44: Vue | J44: NON | K44: NON | L44: 3 | N44: 43.996111 | O44: 4.754444 | P44: 146 | Q44: 44.5008 | R44: 1.82 | S44: non | T44: oui | U44: non | V44: oui | W44: non | X44: non | Y44: oui
A45: LFOA | B45: AVORD | C45: MIL | H45: 4 | I45: Instrument | J45: NON | K45: OUI | L45: 1 | M45: MINISTERE DES ARMEES (FAF)\\MINISTRY OF DEFENCE | N45: 47.056944 | O45: 2.638889 | P45: 578 | Q45: 176.1744 | R45: 1.19 | S45: non | T45: oui | U45: oui | V45: non | W45: non | X45: non | Y45: non | Z45: AVORD | AA45: 7 | AB45: TWY E, C, W, bretelle B3 et B5 : 25m# Bretelle B1 : 25m# Bretelle B2 et B4 : 15m\\ TWY E, C, W, strip B3 and B5 : 25m# strip B1 : 25m# strip B2 and B4 : 15m | AC45: TWY E, C, W, Bret. B1, B2, B3, B4, B5 : tarmac\\ TWY E, C, W, strip B1, B2, B3, B4, B5 : tarmac | AD45: TWY E : 34 F/C/W/T# TWY C : 36 F/C/W/T# TWY W, bret. B5 : 29 F/C/W/T# Bret. B1 : 51 R/B/W/T# Bret. B2 : 24 F/C/W/T# Bret. B3 : 30 F/C/W/T# Bret. B4 : 26 F/C/W/T\\ TWY E : 34 F/C/W/T# TWY C : 36 F/C/W/T# TWY W, strip B5 : 29 F/C/W/T# strip B1 : 51 R/B/W/T# strip B2 : 24 F/C/W/T# strip B3 : 30 F/C/W/T# strip B4 : 26 F/C/W/T | AE45: PARKING INDIA (ESCALE) : Béton\\PARKING INDIA (STOP-OVER) : Concrete | AF45: PARKING INDIA (ESCALE) : 28 R/B/W/T\\PARKING INDIA (STOP-OVER) : 28 R/B/W/T
A46: LFRW | B46: AVRANCHES LE VAL SAINT PERE | C46: RST | H46: 2 | I46: Vue | J46: NON | K46: NON | L46: 2 | M46: COMMUNAUTE D'AGGLOMERATION MONT SAINT-MICHEL NORMANDIE | N46: 48.660833 | O46: -1.405833 | P46: 25 | Q46: 7.62 | R46: -0.14 | S46: non | T46: oui | U46: non | V46: oui | W46: non | X46: non | Y46: oui | AA46: 1 | AE46: Enrobé bitumineux\\Bituminous mix
A47: LFCB | B47: BAGNERES DE LUCHON | C47: CAP | H47: 1 | I47: Vue | J47: NON | K47: NON | L47: 1 | N47: 42.800556 | O47: 0.601111 | P47: 2028 | Q47: 618.1344 | R47: 0.78 | S47: non | T47: oui | U47: non | V47: oui | W47: non | X47: non | Y47: oui
A48: LFAO | B48: BAGNOLES DE L'ORNE COUTERNE | C48: CAP | H48: 2 | I48: Vue | J48: NON | K48: NON | L48: 2 | N48: 48.544722 | O48: -0.385 | P48: 714 | Q48: 217.6272 | R48: 0.2 | S48: non | T48: oui | U48: non | V48: oui | W48: non | X48: non | Y48: oui
A49: LFFL | B49: BAILLEAU ARMENONVILLE | C49: RST | H49: 1 | I49: Vue | J49: NON | K49: NON | L49: 2 | N49: 48.514722 | O49: 1.638611 | P49: 508 | Q49: 154.8384 | R49: 0.83 | S49: non | T49: oui | U49: non | V49: oui | W49: non | X49: non | Y49: oui
A50: LFSB | B50: BALE-MULHOUSE | C50: CAP | H50: 4 | I50: Instrument | J50: OUI | K50: OUI | L50: 2 | M50: ETABLISSEMENT PUBLIC FRANCO-SUISSE AD BALE-MULHOUSE | N50: 47.589878 | O50: 7.529222 | P50: 885 | Q50: 269.748 | R50: 2.5 | S50: oui | T50: oui | U50: oui | V50: oui | W50: oui | X50: oui | Y50: oui | Z50: TWR APP | AA50: 7 | AB50: - 25 m : D, L, Q, V# - 24 m : E, F, G# - 23 m : A, B, H, K, P, C1# - 22 m : J# - 15 m : C | AC50: Béton : C1, E, F, G, K, P# Enrobé : B, H, J, Q# Mixte enrobé/béton : A, C, D, L, V\\ Concrete : C1, E, F, G, K, P# Asphalt : B, H, J, Q# Mixed asphalt/concrete : A, C, D, L, V | AD50: A :# - entre D et E : 68 R/B/W/T,# - entre E et F : 70 F/B/W/T.# B/L : 80 F/B/W/T.# J : 68 F/B/WT.# V : 50 F/A/W/T \\A:# - between D and E: 68 R/B/W/T,# - between E and F: 70 F/B/W/T.# B/L: 80 F/B/W/T.# J: 68 F/B/WT.# V: 50 F/A/W/T | AE50: Souple\\Soft | AF50: PRKG Nord : 46 F/B/W/T# PRKG Sud : 5.7 t MAX\\ North apron : 46 F/B/W/T# South apron : 5.7 t MAX
A51: LFEU | B51: BAR LE DUC LES HAUTS DE CHEE | C51: CAP | H51: 2 | I51: Vue | J51: NON | K51: NON | L51: 1 | N51: 48.867778 | O51: 5.184167 | P51: 899 | Q51: 274.0152 | R51: 1.85 | S51: non | T51: oui | U51: non | V51: oui | W51: non | X51: non | Y51: oui
A52: LFFR | B52: BAR SUR SEINE | C52: RST | H52: 2 | I52: Vue | J52: NON | K52: NON | L52: 1 | N52: 48.066111 | O52: 4.4125 | P52: 938 | Q52: 285.9024 | R52: 1.66 | S52: non | T52: oui | U52: non | V52: oui | W52: non | X52: non | Y52: oui
A53: LFMR | B53: BARCELONNETTE SAINT PONS | C53: CAP | H53: 1 | I53: Vue | J53: NON | K53: NON | L53: 1 | N53: 44.387222 | O53: 6.609167 | P53: 3714 | Q53: 1132.0272 | R53: 2.26 | S53: non | T53: oui | U53: non | V53: oui | W53: non | X53: non | Y53: oui
A54: TFFB | B54: BASSE TERRE BAILLIF | C54: RST | H54: 1 | I54: Vue | J54: NON | K54: NON | L54: 1 | M54: CONSEIL DEPARTEMENTAL DE LA GUADELOUPE | N54: 16.013333 | O54: -61.742222 | P54: 64 | Q54: 19.5072 | R54: -14.86 | S54: non | T54: oui | U54: non | V54: oui | W54: oui | X54: oui | Y54: oui | AA54: 1 | AB54: Bretelle d'accès au PRKG : 15 m.\\TWY to PRKG : 15 m. | AE54: Bitume bicouche\\Asphalt
A55: LFKB | B55: BASTIA PORETTA | C55: CAP | D55: C | E55: C | F55: IIC | G55: IIA | H55: 4 | I55: Instrument | J55: NON | K55: OUI | L55: 1 | M55: CCI DE BASTIA ET DE HAUTE CORSE | N55: 42.55 | O55: 9.484847 | P55: 26 | Q55: 7.9248 | R55: 2.84 | S55: oui | T55: oui | U55: oui | V55: oui | W55: oui | X55: oui | Y55: oui | Z55: TWR | AA55: 7 | AB55: A : 24 m# C: 12.2 m# D: 15.5 m# E : 26 m# G : 26 m# M : 21.5 m# N1 : 15 m | AC55: Béton bitumineux\\Asphaltic concrete | AD55: TWY C : 30 F/B/W/T# TWY D : 29 F/B/W/T# TWY M : 68 F/B/W/T# TWY E : 60 F/B/W/T# TWY G : 50 F/B/W/T | AE55: Tarmac | AF55: A1 à/to A6 : 25 F/C/W/T#B1 à/to C3 : 39 F/C/W/T#D1 à/to D6, D10 : 40 R/B/W/T#D7 à/to D9 : 50 R/B/W/T#E1: 39 F/C/W/T#E2 à/to E9 : 16 F/C/W/T#F1 à/to F8 : 14 F/C/W/T#Fret/Freight : 32 F/C/W/T#G1 à/to G3 : 15 F/C/W/T#TEC : 20 F/C/W/T#ENAC : 4t / 0.9 MPa#ESMA : 3t / 0.9 MPa#N : 8 F/C/W/T#P1, P2, P3 : 2t / 0.9 MPa
A56: LF02 | B56: BEAUMONT DE LOMAGNE | C56: PRV | H56: 1 | I56: Vue | J56: NON | K56: NON | L56: 1 | N56: 43.877222 | O56: 0.982222 | R56: 0.85 | S56: non | T56: non | U56: non | V56: non | W56: non | X56: non | Y56: non
A57: LFGF | B57: BEAUNE CHALLANGES | C57: CAP | H57: 2 | I57: Vue | J57: NON | K57: NON | L57: 2 | N57: 47.010278 | O57: 4.896389 | P57: 656 | Q57: 199.9488 | R57: 1.81 | S57: non | T57: oui | U57: non | V57: oui | W57: non | X57: non | Y57: oui
A58: LFOB | B58: BEAUVAIS TILLE | C58: CAP | D58: C | E58: C | F58: IIC | G58: IIC | H58: 4 | I58: Instrument | J58: OUI | K58: OUI | L58: 2 | M58: SAGEB | N58: 49.454422 | O58: 2.112814 | P58: 359 | Q58: 109.4232 | R58: 0.92 | S58: oui | T58: oui | U58: oui | V58: oui | W58: oui | X58: oui | Y58: oui | Z58: TWR | AA58: 7 | AB58: N = 23 m; W, R = 18 m; A, P = 7.5 m; H = 11 m; T = 10.5 m | AC58: N, W, R, A, P, T : enrobé#H : herbe\\N, W, R, A, P, T : asphalt#H : grass | AD58: N : 54 F/C/W/T#W : 46 F/B/W/T#R : 38 F/C/W/T#A, P : 5.7 t#T : 6 F/C/Y/T | AE58: Revêtue\\Paved | AF58: Aire de trafic aviation légère (entre TWY A et B) :#6 F/D/W/T# Aire de trafic aviation d'affaires (côté manche à air) :#7 F/D/W/T# Aire de point fixe : 8 F/D/W/T\\ Light aviation apron (between TWY A and B) :#6 F/D/W/T# Business aviation apron (windsock side) : 7 F/D/W/T# Run-up area : 8 F/D/W/T
A59: LFFO | B59: BEAUVOIR FROMENTINE | C59: RST | H59: 1 | I59: Vue | J59: NON | K59: NON | L59: 1 | N59: 46.890556 | O59: -2.088611 | P59: 10 | Q59: 3.048 | R59: -0.21 | S59: non | T59: oui | U59: non | V59: oui | W59: non | X59: non | Y59: oui
A60: LFNX | B60: BEDARIEUX LA TOUR SUR ORB | C60: RST | H60: 2 | I60: Vue | J60: NON | K60: NON | L60: 1 | N60: 43.639722 | O60: 3.144722 | P60: 1247 | Q60: 380.0856 | R60: 1.42 | S60: non | T60: oui | U60: non | V60: oui | W60: non | X60: non | Y60: oui
A61: LFGG | B61: BELFORT CHAUX | C61: CAP | H61: 2 | I61: Vue | J61: NON | K61: NON | L61: 2 | N61: 47.700975 | O61: 6.830833 | P61: 1367 | Q61: 416.6616 | R61: 2.32 | S61: non | T61: oui | U61: non | V61: oui | W61: non | X61: non | Y61: oui
A62: LFSQ | B62: BELFORT FONTAINE | C62: OFF | H62: 4 | I62: Vue | J62: NON | K62: NON | L62: 1 | N62: 47.655556 | O62: 7.011667 | R62: 2.36 | S62: non | T62: oui | U62: non | V62: oui | W62: non | X62: non | Y62: non | AE62: Enrobé bitumineux\\Bituminous mix
A63: LFEA | B63: BELLE ILE | C63: CAP | D63: A | E63: A | F63: I | G63: I | H63: 1 | I63: Vue | J63: NON | K63: NON | L63: 1 | N63: 47.326111 | O63: -3.198889 | P63: 177 | Q63: 53.9496 | R63: -0.61 | S63: non | T63: oui | U63: non | V63: oui | W63: non | X63: non | Y63: oui
A64: LFHN | B64: BELLEGARDE VOUVRAY | C64: CAP | H64: 1 | I64: Vue | J64: NON | K64: NON | L64: 1 | N64: 46.123333 | O64: 5.804722 | P64: 1626 | Q64: 495.6048 | R64: 2.06 | S64: non | T64: oui | U64: non | V64: oui | W64: non | X64: non | Y64: oui
A65: LFHW | B65: BELLEVILLE VILLIE MORGON | C65: RST | H65: 1 | I65: Vue | J65: NON | K65: NON | L65: 1 | N65: 46.141111 | O65: 4.713889 | P65: 705 | Q65: 214.884 | R65: 1.78 | S65: non | T65: oui | U65: non | V65: oui | W65: non | X65: non | Y65: oui
A66: LFKY | B66: BELLEY-PEYRIEU | C66: RST | H66: 1 | I66: Vue | J66: NON | K66: NON | L66: 1 | N66: 45.693889 | O66: 5.691667 | P66: 739 | Q66: 225.2472 | R66: 2.04 | S66: non | T66: oui | U66: non | V66: oui | W66: non | X66: non | Y66: oui
A67: LFIB | B67: BELVES SAINT PARDOUX | C67: RST | H67: 2 | I67: Vue | J67: NON | K67: NON | L67: 1 | N67: 44.7825 | O67: 0.958889 | P67: 791 | Q67: 241.0968 | R67: 0.81 | S67: non | T67: oui | U67: non | V67: oui | W67: non | X67: non | Y67: oui
A68: LFAM | B68: BERCK SUR MER | C68: CAP | H68: 2 | I68: Vue | J68: NON | K68: NON | L68: 1 | N68: 50.423056 | O68: 1.591944 | P68: 32 | Q68: 9.7536 | R68: 0.69 | S68: non | T68: oui | U68: non | V68: oui | W68: non | X68: non | Y68: oui
A69: LF03 | B69: BERDOUES | C69: PRV | H69: 1 | I69: Vue | J69: NON | K69: NON | L69: 1 | N69: 43.470556 | O69: 0.388889 | P69: 688 | Q69: 209.7024 | R69: 0.7 | S69: non | T69: non | U69: non | V69: non | W69: non | X69: non | Y69: non
A70: LFBE | B70: BERGERAC DORDOGNE PERIGORD | C70: CAP | D70: C | E70: C | F70: IIC | G70: IIC | H70: 4 | I70: Instrument | J70: NON | K70: OUI | L70: 2 | M70: EGC AERO | N70: 44.824431 | O70: 0.520525 | P70: 172 | Q70: 52.4256 | R70: 0.69 | S70: oui | T70: oui | U70: oui | V70: oui | W70: oui | X70: oui | Y70: oui | Z70: TWR | AA70: 7 | AB70: TWY A,B :15m. TWY Air CD: 7.5m\\TWY A,B :15m. TWY Air CD: 7.5m | AC70: Béton bitumineux\\Bituminous concrete | AD70: TWY A : 41 F/C/W/T - TWY B : 40 F/C/W/T | AE70: Enrobé\\Coated | AF70: 106 F/B/W/T
A71: LFPD | B71: BERNAY SAINT MARTIN | C71: CAP | H71: 3 | I71: Vue | J71: NON | K71: NON | L71: 1 | N71: 49.1025 | O71: 0.565556 | P71: 555 | Q71: 169.164 | R71: 0.46 | S71: non | T71: oui | U71: non | V71: oui | W71: non | X71: non | Y71: oui
A72: LFNR | B72: BERRE LA FARE | C72: RST | H72: 2 | I72: Vue | J72: NON | K72: NON | L72: 2 | N72: 43.536667 | O72: 5.1775 | P72: 108 | Q72: 32.9184 | R72: 1.92 | S72: non | T72: oui | U72: non | V72: oui | W72: non | X72: non | Y72: oui
A73: LFQM | B73: BESANCON LA VEZE | C73: CAP | H73: 3 | I73: Instrument | J73: NON | K73: OUI | L73: 1 | M73: SYNDICAT MIXTE DE L'AERODROME DE BESANCON LA VEZE. | N73: 47.205308 | O73: 6.08055 | P73: 1270 | Q73: 387.096 | R73: 2.12 | S73: non | T73: oui | U73: oui | V73: oui | W73: non | X73: non | Y73: oui | Z73: AFIS | AA73: 2 | AB73: 10.5 m | AC73: Revêtue\\Paved | AD73: 9/F/D/W/T
A74: LFSA | B74: BESANCON THISE | C74: CAP | H74: 2 | I74: Vue | J74: NON | K74: NON | L74: 2 | M74: UNION SPORTIVE DE L'AEROCLUB DU DOUBS (USACD) | N74: 47.273611 | O74: 6.083056 | P74: 807 | Q74: 245.9736 | R74: 2.12 | S74: non | T74: oui | U74: non | V74: oui | W74: non | X74: non | Y74: oui | AE74: Béton bitumineux\\Bituminous concrete
A75: LFPF | B75: BEYNES THIVERVAL | C75: RST | H75: 2 | I75: Vue | J75: NON | K75: NON | L75: 1 | N75: 48.843611 | O75: 1.908889 | P75: 371 | Q75: 113.0808 | R75: 0.89 | S75: non | T75: oui | U75: non | V75: oui | W75: non | X75: non | Y75: oui
A76: LFMU | B76: BEZIERS VIAS | C76: CAP | D76: C | E76: C | F76: IIC | G76: IIC | H76: 4 | I76: Instrument | J76: NON | K76: OUI | L76: 1 | M76: SYNDICAT MIXTE (SM) AEROPORT BEZIERS CAP D'AGDE | N76: 43.323428 | O76: 3.353397 | P76: 56 | Q76: 17.0688 | R76: 1.48 | S76: oui | T76: oui | U76: oui | V76: oui | W76: non | X76: non | Y76: oui | Z76: TWR | AA76: 7 | AB76: TWY A : 23 m.#TWY B, T3 : 10 m.#TWY P : 15 m.# TWY T1, T2 : 18 m. | AC76: TWY A, B, P, T1, T2, T3: macadam | AD76: TWY A, T1, T2 : 48 F/C/X/T#TWY B, T3 : limité à 5.7 t/0.9 MPa#TWY P : 24 F/C/X/T | AE76: Parking principal/Main apron : Béton/Concrete#Parking Mike/Apron Mike : Béton/Concrete #S1 S2 : Béton /Concrete#Parking INDIA, KILO, JULIET/Apron INDIA, KILO, JULIET : Béton/Concrete | AF76: Parking principal/Main apron : 23 R/B/W/T - 22 F/C/W/T# Parking Mike/Apron Mike : 27 R/B/W/T - 22 F/C/W/T#S1 S2 : 13 R/B/W/T#Parking INDIA, KILO, JULIET/Apron INDIA, KILO, JULIET : 12 R/B/W/T - 14 R/B/W/T - 15 R/B/W/T
A77: LFBZ | B77: BIARRITZ PAYS BASQUE | C77: CAP | D77: C | E77: C | F77: IIC | G77: IIA | H77: 4 | I77: Instrument | J77: NON | K77: OUI | L77: 1 | M77: AEROPORT DE BIARRITZ - PAYS BASQUE | N77: 43.468308 | O77: -1.531161 | P77: 245 | Q77: 74.676 | R77: 0.17 | S77: oui | T77: oui | U77: oui | V77: oui | W77: oui | X77: oui | Y77: oui | Z77: TWR | AA77: 7 | AB77: N1 : 23 m, N2 : 23 m, N3 : 14,65 m, S1 : 7,50 m, S2 : 7,5 m, P : 23 m, D : 12,50 m\\N1 : 23 m, N2 : 23 m, N3 : 14,65 m, S1 : 7,50 m, S2 : 7,5 m, P : 23 m, D : 12,50 m | AC77: Béton bitumineux\\bituminous concrete | AD77: TWY P : 52 F/A/W/T# TWY N1 : 59 F/B/W/T# TWY N2 : 52 F/A/W/T# TWY N3 : 43 F/A/W/T# TWY S : 5 F/D/W/T limité à 4 t# TWY D : 40 F/B/W/T \\TWY P : 52 F/A/W/T# TWY N1 : 59 F/B/W/T# TWY N2 : 52 F/A/W/T# TWY N3 : 43 F/A/W/T# TWY S : 5 F/D/W/T limited to 4 t# TWY D : 40 F/B/W/T | AE77: Bitume\\Asphalt | AF77: PRKG postes/stands 1 à/to 20, LIMA, MIKE : 49 F/C/W/T#PRKG JULIETT : ACFT MAX 3 T#PRKG INDIA : ACFT MAX 2 T.
A78: LFBS | B78: BISCARROSSE PARENTIS | C78: CAP | H78: 3 | I78: Instrument | J78: NON | K78: OUI | L78: 3 | M78: COMMUNAUTE DE COMMUNES DES GRANDS LACS | N78: 44.368056 | O78: -1.132222 | P78: 100 | Q78: 30.48 | R78: 0.24 | S78: non | T78: oui | U78: oui | V78: oui | W78: non | X78: non | Y78: oui | Z78: TWR | AA78: 1
A79: LFOQ | B79: BLOIS LE BREUIL | C79: CAP | H79: 3 | I79: Instrument | J79: NON | K79: NON | L79: 5 | M79: SEMOP AERODROME BLOIS LE BREUIL | N79: 47.679833 | O79: 1.205775 | P79: 398 | Q79: 121.3104 | R79: 0.74 | S79: oui | T79: oui | U79: oui | V79: oui | W79: non | X79: oui | Y79: oui | Z79: AFIS | AA79: 2 | AB79: A, B, C et N : 9,50 m, S : 30 m, S1 : 15 m.\\ A, B, C and N : 9.50 m, S : 30 m, S1 : 15 m. | AC79: A, B, C et N : béton bitumineux.#S, S1 : herbe.\\ A, B, C and N : Bituminous concrete.#S, S1 : grass. | AD79: A, B, C et N : 6/F/D/W/T\\ A, B, C and N : 6/F/D/W/T
